Workbook

Sheet Aufgabenstellung_Notizen (hidden)
A1: Systembeschreibung Geschlossene Ecke
A2: - Alu Eckwinkel zum zusammenklipsen, befestigt an einer Largoplatte 8-12mm mit je zwei Sigma 8 Pro Hinterschnittanker
A3: - Plattenbreite der Eckplatten 200 - 800 mm x Plattenhöhe 340 - 3050mm
A4: - Ab welcher Plattenbreite x ist eine Zweifeldplatte Notwendig?
A5: - Funktioniert eine Einfeldplatte überhaupt`?
A6: - Geschlossene Ecke voraussichtlich nur mit NU Platten
A7: - Farben Azurit & Jade (Blau und grün) wegen entschäumungsmittel geringste Festigkeit
N10: Knoten | Q10: Winkel
N12: 9 | O12: =($K$21+Systemrechner!$C$24+N12*Systemrechner!$C$28)/1000 ->  | Q12: =($K$21+Systemrechner!$C$26-40+N12*Systemrechner!$C$29)/1000 ->  | R12: =Q12+0.08 -> 
N13: 8 | O13: =($K$21+Systemrechner!$C$24+N13*Systemrechner!$C$28)/1000 ->  | Q13: =($K$21+Systemrechner!$C$26-40+N13*Systemrechner!$C$29)/1000 -> 
N14: 7 | O14: =($K$21+Systemrechner!$C$24+N14*Systemrechner!$C$28)/1000 ->  | Q14: =($K$21+Systemrechner!$C$26-40+N14*Systemrechner!$C$29)/1000 -> 
N15: 6 | O15: =($K$21+Systemrechner!$C$24+N15*Systemrechner!$C$28)/1000 ->  | Q15: =($K$21+Systemrechner!$C$26-40+N15*Systemrechner!$C$29)/1000 -> 
N16: 5 | O16: =($K$21+Systemrechner!$C$24+N16*Systemrechner!$C$28)/1000 ->  | Q16: =($K$21+Systemrechner!$C$26-40+N16*Systemrechner!$C$29)/1000 -> 
N17: 4 | O17: =($K$21+Systemrechner!$C$24+N17*Systemrechner!$C$28)/1000 ->  | Q17: =($K$21+Systemrechner!$C$26-40+N17*Systemrechner!$C$29)/1000 -> 
D18: Mod 1 | E18: Mod 2 | N18: 3 | O18: =($K$21+Systemrechner!$C$24+N18*Systemrechner!$C$28)/1000 ->  | Q18: =($K$21+Systemrechner!$C$26-40+N18*Systemrechner!$C$29)/1000 -> 
C19: Last | D19: 4.47 | N19: 2 | O19: =($K$21+Systemrechner!$C$24+N19*Systemrechner!$C$28)/1000 ->  | Q19: =($K$21+Systemrechner!$C$26-40+N19*Systemrechner!$C$29)/1000 -> 
C20: Reaktion Mitte | D20: =1.25*D19*D21 -> 3.2686875 | N20: 1 | O20: =($K$21+Systemrechner!$C$24+N20*Systemrechner!$C$28)/1000 ->  | Q20: =($K$21+Systemrechner!$C$26-40+N20*Systemrechner!$C$29)/1000 ->  | R20: =Q20+0.08 -> 
C21: Länge | D21: 0.585 | J21: Global 0 | K21: 15010 | L21: mm | M21: unterster Knoten | O21: =($K$21+Systemrechner!$C$24)/1000 -> 15.010 | Q21: =($K$21+Systemrechner!$C$26-40)/1000 -> 15.09
C22: Biegemoment | D22: =0.125*D19*D21^2 -> 0.1912182187
N24: =Systemrechner!C28 -> - | Q24: =Systemrechner!C29 -> -
M26: Plattenhöhenabstufung nach max Abstand
M27: RA=80 | N27: RA=60
M28: =2*80+O28*725 -> 885 | N28: =2*60+O28*725 -> 845 | O28: 1
M29: =2*80+O29*725 -> 1610 | N29: =2*60+O29*725 -> 1570 | O29: 2
M30: 2335 | N30: 2295 | O30: 3
M31: 3060 | N31: 3020 | O31: 4
M33: Maximaler Verbindungsabstand = 725mm

Sheet Diagramm Verbindungsmittelabsta (hidden)
B2: Geometrischer Abstand | F2: Gerechnete Systeme
B3: Plattenhöhe [mm] | C3: max d1 mit RA=60 | D3: Anz. Verb. | M3: minimale Anz. V. | N3: maximale Anz. V
B4: 340 | C4: =(B4-2*60)/(D4-1) -> 220 | D4: 2 | F4: 340 | G4: =(F4-2*60)/(H4-1) -> 220 | H4: 2 | I4: 1.8 | K4: 845 | L4: =(K4-2*60)/(M4-1) -> 725 | M4: 2 | N4: =ROUNDDOWN(K4/350,0)+1 -> 3 | O4: =(K4-2*60)/(N4-1) -> 362.5 | V4: plattenhöhe | X4: qp | Y4: Feldlänge | Z4: F
B5: 350 | C5: =(B5-2*60)/(D5-1) -> 230 | D5: 2 | F5: 500 | G5: =(F5-2*60)/(H5-1) -> 380 | H5: 2 | I5: 1.8 | K5: 1570 | L5: =(K5-2*60)/(M5-1) -> 725 | M5: 3 | N5: =ROUNDDOWN(K5/350,0)+1 -> 5 | O5: =(K5-2*60)/(ROUNDDOWN(N5,0)) -> 290 | V5: 1500 | W5: 3 | X5: 1.1 | Y5: =(V5-2*60)/(W5-1) -> 690 | Z5: =1.25*X5*Y5/1000 -> 0.949 | AE5: Staudruck [kN/m2] | AI5: 0.9 | AS5: 1.1 | BC5: 1.3
B6: 360 | C6: 240 | D6: 2 | F6: 1000 | G6: =(F6-2*60)/(H6-1) -> 440 | H6: 3 | I6: 1.6 | K6: 2295 | L6: 725 | M6: 4 | N6: 7 | O6: 310.7142857 | Q6: Anz. Stat. Systeme/ Variante | R6: =N8-M8+1+N6-M6+1+N5-M5+1+N4-M4+1 -> 13 | V6: 1500 | W6: 4 | X6: =Z6/(Y6*1.25)*1000 -> 1.7 | Y6: =(V6-2*60)/(W6-1) -> 460 | Z6: =Z5 -> 0.949 | AE6: Gebäudehöhe bis [m] | AI6: < | AJ6: 11 | AK6: < | AL6: 15 | AM6: < | AN6: 25 | AO6: < | AP6: 30 | AQ6: < | AR6: 50 | AS6: < | AT6: 11 | AU6: < | AV6: 15 | AW6: < | AX6: 25 | AY6: < | AZ6: 30 | BA6: < | BB6: 50 | BC6: < | BD6: 11 | BE6: < | BF6: 15 | BG6: < | BH6: 25 | BI6: < | BJ6: 30 | BK6: < | BL6: 50
B7: 370 | C7: 250 | D7: 2 | F7: 1500 | G7: =(F7-2*60)/(H7-1) -> 690 | H7: 3 | I7: 1.1 | K7: 3020 | L7: 725 | M7: 5 | N7: 9 | O7: =(K7-2*60)/(ROUNDDOWN(N7,0)) -> 322.2222222 | Q7: Anz. Varianten | R7: 6 | V7: 1500 | W7: 5 | X7: =Z7/(Y7*1.25)*1000 -> 2.2 | Y7: 345 | Z7: =Z6 -> 0.949 | AE7: Gelände-kategorie | AF7: Plattenhöhe [mm] | AI7: qp=ch x qp0 / qk =cpe x qp [kN/m2] | BC7: Mit cpe,Rand = | BG7: 1.3
B8: 380 | C8: 260 | D8: 2 | F8: 2000 | G8: =(F8-2*60)/(H8-1) -> 627 | H8: 4 | I8: 1.3 | K8: 3050 | L8: 586 | M8: 6 | N8: 9 | O8: =(K8-2*60)/(ROUNDDOWN(N8,0)) -> 325.5555556 | Q8: Stat. Systeme | R8: =R6*R7 -> 78 | V8: 2000 | W8: 4 | X8: =Z8/(Y8*1.25)*1000 -> 1.2 | Y8: =(V8-2*60)/(W8-1) -> 626.6666667 | Z8: =Z7 -> 0.949
B9: 390 | C9: 270 | D9: 2 | F9: 2500 | G9: =(F9-2*60)/(H9-1) -> 595 | H9: 5 | I9: 1.4 | Q9: a Anz. Versch. Winddrücke | R9: 34 | V9: 2000 | W9: 5 | X9: 1.6 | Y9: 470 | Z9: 0.949 | AE9: II: Seeufer | AF9: 340 | AG9: - | AH9: 500 | AI9: 1.34 | AJ9: 1.74 | AK9: 1.42 | AL9: 1.85 | AM9: 1.58 | AN9: 2.05 | AO9: 1.64 | AP9: 2.13 | AQ9: 1.82 | AS9: 1.64 | AT9: 2.13 | AU9: 1.74 | AW9: 1.93 | AY9: 2.00 | BA9: 2.23 | BC9: 1.93 | BD9: 2.51 | BE9: 2.06 | BG9: 2.28 | BI9: 2.37 | BK9: 2.64
B10: 400 | C10: 280 | D10: 2 | F10: 3050 | G10: =(F10-2*60)/(H10-1) -> 733 | H10: 5 | I10: 1.1 | Q10: Anz. Rechnungen: | R10: =R9*R8 -> 2652 | V10: 2000 | W10: 6 | X10: 2.0 | Y10: 376 | Z10: 0.949 | AF10: 500 | AG10: - | AH10: 1000 | AI10: 1.34 | AJ10: 1.74 | AK10: 1.42 | AL10: 1.85 | AM10: 1.58 | AN10: 2.05 | AO10: 1.64 | AP10: 2.13 | AQ10: 1.82 | AS10: 1.64 | AT10: 2.13 | AU10: 1.74 | AW10: 1.93 | AY10: 2.00 | BA10: 2.23 | BC10: 1.93 | BD10: 2.51 | BE10: 2.06 | BG10: 2.28 | BI10: 2.37 | BK10: 2.64
B11: 410 | C11: 290 | D11: 2 | V11: 2200 | W11: 4 | X11: 1.1 | Y11: 693.3333333 | Z11: 0.949 | AF11: 1000 | AG11: - | AH11: 1500 | AI11: 1.34 | AJ11: 1.74 | AK11: 1.42 | AL11: 1.85 | AM11: 1.58 | AN11: 2.05 | AO11: 1.64 | AP11: 2.13 | AQ11: 1.82 | AS11: 1.64 | AT11: 2.13 | AU11: 1.74 | AW11: 1.93 | AY11: 2.00 | BA11: 2.23 | BC11: 1.93 | BD11: 2.51 | BE11: 2.06 | BG11: 2.28 | BI11: 2.37 | BK11: 2.64
B12: 420 | C12: 300 | D12: 2 | V12: 2200 | W12: 5 | X12: 1.5 | Y12: 520 | Z12: 0.949 | AF12: 1500 | AG12: - | AH12: 2000 | AI12: 1.34 | AJ12: 1.74 | AK12: 1.42 | AL12: 1.85 | AM12: 1.58 | AN12: 2.05 | AO12: 1.64 | AP12: 2.13 | AQ12: 1.82 | AS12: 1.64 | AT12: 2.13 | AU12: 1.74 | AW12: 1.93 | AY12: 2.00 | BA12: 2.23 | BC12: 1.93 | BD12: 2.51 | BE12: 2.06 | BG12: 2.28 | BI12: 2.37 | BK12: 2.64
B13: 430 | C13: 310 | D13: 2 | V13: 2200 | W13: 6 | X13: 1.8 | Y13: 416 | Z13: 0.949 | AF13: 2000 | AG13: - | AH13: 2500 | AI13: 1.34 | AJ13: 1.74 | AK13: 1.42 | AL13: 1.85 | AM13: 1.58 | AN13: 2.05 | AO13: 1.64 | AP13: 2.13 | AQ13: 1.82 | AS13: 1.64 | AT13: 2.13 | AU13: 1.74 | AW13: 1.93 | AY13: 2.00 | BA13: 2.23 | BC13: 1.93 | BD13: 2.51 | BE13: 2.06 | BG13: 2.28 | BI13: 2.37 | BK13: 2.64
B14: 440 | C14: 320 | D14: 2 | V14: 2200 | W14: 7 | X14: 2.2 | Y14: 346.6666667 | Z14: 0.949 | AF14: 2500 | AG14: - | AH14: 3050 | AI14: 1.34 | AJ14: 1.74 | AK14: 1.42 | AL14: 1.85 | AM14: 1.58 | AN14: 2.05 | AO14: 1.64 | AP14: 2.13 | AQ14: 1.82 | AS14: 1.64 | AT14: 2.13 | AU14: 1.74 | AW14: 1.93 | AY14: 2.00 | BA14: 2.23 | BC14: 1.93 | BD14: 2.51 | BE14: 2.06 | BG14: 2.28 | BI14: 2.37 | BK14: 2.64
B15: 450 | C15: 330 | D15: 2 | V15: 2500 | W15: 5 | X15: 1.3 | Y15: 595 | Z15: 0.949 | AE15: IIa: Grosse Ebene | AF15: 340 | AG15: - | AH15: 500 | AI15: 1.13 | AJ15: 1.47 | AK15: 1.21 | AL15: 1.57 | AM15: 1.36 | AN15: 1.77 | AO15: 1.42 | AP15: 1.84 | AQ15: 1.60 | AS15: 1.38 | AT15: 1.79 | AU15: 1.48 | AW15: 1.66 | AY15: 1.73 | BA15: 1.96 | BC15: 1.63 | BD15: 2.12 | BE15: 1.75 | BG15: 1.96 | BI15: 2.05 | BK15: 2.32
B16: 460 | C16: 340 | D16: 2 | V16: 2500 | W16: 6 | X16: 1.6 | Y16: 476 | Z16: 0.949 | AF16: 500 | AG16: - | AH16: 1000 | AI16: 1.13 | AJ16: 1.47 | AK16: 1.21 | AL16: 1.57 | AM16: 1.36 | AN16: 1.77 | AO16: 1.42 | AP16: 1.84 | AQ16: 1.60 | AS16: 1.38 | AT16: 1.79 | AU16: 1.48 | AV16: 1.92 | AW16: 1.66 | AY16: 1.73 | BA16: 1.96 | BC16: 1.63 | BD16: 2.12 | BE16: 1.75 | BG16: 1.96 | BI16: 2.05 | BK16: 2.32
B17: 470 | C17: 350 | D17: 2 | V17: 2500 | W17: 7 | X17: 1.9 | Y17: 396.6666667 | Z17: 0.949 | AF17: 1000 | AG17: - | AH17: 1500 | AI17: 1.13 | AJ17: 1.47 | AK17: 1.21 | AL17: 1.57 | AM17: 1.36 | AN17: 1.77 | AO17: 1.42 | AP17: 1.84 | AQ17: 1.60 | AS17: 1.38 | AT17: 1.79 | AU17: 1.48 | AV17: 1.92 | AW17: 1.66 | AX17: 2.16 | AY17: 1.73 | BA17: 1.96 | BC17: 1.63 | BD17: 2.12 | BE17: 1.75 | BG17: 1.96 | BI17: 2.05 | BK17: 2.32
B18: 480 | C18: 360 | D18: 2 | V18: 2500 | W18: 8 | X18: 2.2 | Y18: 340 | Z18: 0.949 | AF18: 1500 | AG18: - | AH18: 2000 | AI18: 1.13 | AJ18: 1.47 | AK18: 1.21 | AL18: 1.57 | AM18: 1.36 | AN18: 1.77 | AO18: 1.42 | AP18: 1.84 | AQ18: 1.60 | AS18: 1.38 | AT18: 1.79 | AU18: 1.48 | AV18: 1.92 | AW18: 1.66 | AX18: 2.16 | AY18: 1.73 | BA18: 1.96 | BC18: 1.63 | BD18: 2.12 | BE18: 1.75 | BG18: 1.96 | BI18: 2.05 | BK18: 2.32
B19: 490 | C19: 370 | D19: 2 | V19: 3050 | W19: 5 | X19: 1.0 | Y19: 732.5 | Z19: 0.949 | AF19: 2000 | AG19: - | AH19: 2500 | AI19: 1.13 | AJ19: 1.47 | AK19: 1.21 | AL19: 1.57 | AM19: 1.36 | AN19: 1.77 | AO19: 1.42 | AP19: 1.84 | AQ19: 1.60 | AS19: 1.38 | AT19: 1.79 | AU19: 1.48 | AV19: 1.92 | AW19: 1.66 | AX19: 2.16 | AY19: 1.73 | BA19: 1.96 | BC19: 1.63 | BD19: 2.12 | BE19: 1.75 | BG19: 1.96 | BI19: 2.05 | BK19: 2.32
B20: 500 | C20: 380 | D20: 2 | V20: 3050 | W20: 6 | X20: 1.3 | Y20: 586 | Z20: 0.949 | AF20: 2500 | AG20: - | AH20: 3050 | AI20: 1.13 | AJ20: 1.47 | AK20: 1.21 | AL20: 1.57 | AM20: 1.36 | AN20: 1.77 | AO20: 1.42 | AP20: 1.84 | AQ20: 1.60 | AS20: 1.38 | AT20: 1.79 | AU20: 1.48 | AV20: 1.92 | AW20: 1.66 | AX20: 2.16 | AY20: 1.73 | BA20: 1.96 | BC20: 1.63 | BD20: 2.12 | BE20: 1.75 | BG20: 1.96 | BI20: 2.05 | BK20: 2.32
B21: 510 | C21: 390 | D21: 2 | V21: 3050 | W21: 7 | X21: 1.6 | Y21: 488.3333333 | Z21: 0.949 | AE21: III: Ortschaften, freies Feld | AF21: 340 | AG21: - | AH21: 500 | AI21: 0.92 | AJ21: 1.20 | AK21: 1.00 | AL21: 1.30 | AM21: 1.14 | AN21: 1.48 | AO21: 1.20 | AP21: 1.56 | AQ21: 1.38 | AS21: 1.13 | AT21: 1.47 | AU21: 1.22 | AV21: 1.59 | AW21: 1.39 | AX21: 1.81 | AY21: 1.46 | BA21: 1.68 | BC21: 1.33 | BD21: 1.73 | BE21: 1.44 | BG21: 1.65 | BI21: 1.73 | BK21: 1.99
B22: 520 | C22: 400 | D22: 2 | V22: 3050 | W22: 8 | X22: 1.8 | Y22: 418.5714286 | Z22: 0.949 | AF22: 500 | AG22: - | AH22: 1000 | AI22: 0.92 | AJ22: 1.20 | AK22: 1.00 | AL22: 1.30 | AM22: 1.14 | AN22: 1.48 | AO22: 1.20 | AP22: 1.56 | AQ22: 1.38 | AS22: 1.13 | AT22: 1.47 | AU22: 1.22 | AV22: 1.59 | AW22: 1.39 | AX22: 1.81 | AY22: 1.46 | AZ22: 1.90 | BA22: 1.68 | BB22: 2.19 | BC22: 1.33 | BD22: 1.73 | BE22: 1.44 | BG22: 1.65 | BI22: 1.73 | BK22: 1.99
B23: 530 | C23: 410 | D23: 2 | V23: 3050 | W23: 9 | X23: 2.1 | Y23: 366.25 | Z23: 0.949 | AF23: 1000 | AG23: - | AH23: 1500 | AI23: 0.92 | AJ23: 1.20 | AK23: 1.00 | AL23: 1.30 | AM23: 1.14 | AN23: 1.48 | AO23: 1.20 | AP23: 1.56 | AQ23: 1.38 | AS23: 1.13 | AT23: 1.47 | AU23: 1.22 | AV23: 1.59 | AW23: 1.39 | AX23: 1.81 | AY23: 1.46 | AZ23: 1.90 | BA23: 1.68 | BB23: 2.19 | BC23: 1.33 | BD23: 1.73 | BE23: 1.44 | BG23: 1.65 | BI23: 1.73 | BK23: 1.99
B24: 540 | C24: 420 | D24: 2 | AF24: 1500 | AG24: - | AH24: 2000 | AI24: 0.92 | AJ24: 1.20 | AK24: 1.00 | AL24: 1.30 | AM24: 1.14 | AN24: 1.48 | AO24: 1.20 | AP24: 1.56 | AQ24: 1.38 | AS24: 1.13 | AT24: 1.47 | AU24: 1.22 | AV24: 1.59 | AW24: 1.39 | AX24: 1.81 | AY24: 1.46 | AZ24: 1.90 | BA24: 1.68 | BB24: 2.19 | BC24: 1.33 | BD24: 1.73 | BE24: 1.44 | BG24: 1.65 | BH24: 2.14 | BI24: 1.73 | BK24: 1.99
B25: 550 | C25: 430 | D25: 2 | AF25: 2000 | AG25: - | AH25: 2500 | AI25: 0.92 | AJ25: 1.20 | AK25: 1.00 | AL25: 1.30 | AM25: 1.14 | AN25: 1.48 | AO25: 1.20 | AP25: 1.56 | AQ25: 1.38 | AS25: 1.13 | AT25: 1.47 | AU25: 1.22 | AV25: 1.59 | AW25: 1.39 | AX25: 1.81 | AY25: 1.46 | AZ25: 1.90 | BA25: 1.68 | BB25: 2.19 | BC25: 1.33 | BD25: 1.73 | BE25: 1.44 | BF25: 1.87 | BG25: 1.65 | BH25: 2.14 | BI25: 1.73 | BK25: 1.99
B26: 560 | C26: 440 | D26: 2 | AF26: 2500 | AG26: - | AH26: 3050 | AI26: 0.92 | AJ26: 1.20 | AK26: 1.00 | AL26: 1.30 | AM26: 1.14 | AN26: 1.48 | AO26: 1.20 | AP26: 1.56 | AQ26: 1.38 | AS26: 1.13 | AT26: 1.47 | AU26: 1.22 | AV26: 1.59 | AW26: 1.39 | AX26: 1.81 | AY26: 1.46 | AZ26: 1.90 | BA26: 1.68 | BB26: 2.19 | BC26: 1.33 | BD26: 1.73 | BE26: 1.44 | BF26: 1.87 | BG26: 1.65 | BH26: 2.14 | BI26: 1.73 | BK26: 1.99
B27: 570 | C27: 450 | D27: 2 | AE27: IV: Gross-flächige Stadtgebiete | AF27: 340 | AG27: - | AH27: 500 | AI27: 0.68 | AJ27: 0.89 | AK27: 0.74 | AL27: 0.97 | AM27: 0.87 | AN27: 1.13 | AO27: 0.92 | AP27: 1.19 | AQ27: 1.09 | AS27: 0.83 | AT27: 1.08 | AU27: 0.91 | AV27: 1.18 | AW27: 1.06 | AX27: 1.38 | AY27: 1.12 | AZ27: 1.46 | BA27: 1.33 | BB27: 1.73 | BC27: 0.99 | BD27: 1.28 | BE27: 1.08 | BF27: 1.40 | BG27: 1.25 | BH27: 1.63 | BI27: 1.33 | BK27: 1.57
B28: 580 | C28: 460 | D28: 2 | AF28: 500 | AG28: - | AH28: 1000 | AI28: 0.68 | AJ28: 0.89 | AK28: 0.74 | AL28: 0.97 | AM28: 0.87 | AN28: 1.13 | AO28: 0.92 | AP28: 1.19 | AQ28: 1.09 | AS28: 0.83 | AT28: 1.08 | AU28: 0.91 | AV28: 1.18 | AW28: 1.06 | AX28: 1.38 | AY28: 1.12 | AZ28: 1.46 | BA28: 1.33 | BB28: 1.73 | BC28: 0.99 | BD28: 1.28 | BE28: 1.08 | BF28: 1.40 | BG28: 1.25 | BH28: 1.63 | BI28: 1.33 | BJ28: 1.72 | BK28: 1.57
B29: 590 | C29: 470 | D29: 2 | AF29: 1000 | AG29: - | AH29: 1500 | AI29: 0.68 | AJ29: 0.89 | AK29: 0.74 | AL29: 0.97 | AM29: 0.87 | AN29: 1.13 | AO29: 0.92 | AP29: 1.19 | AQ29: 1.09 | AS29: 0.83 | AT29: 1.08 | AU29: 0.91 | AV29: 1.18 | AW29: 1.06 | AX29: 1.38 | AY29: 1.12 | AZ29: 1.46 | BA29: 1.33 | BB29: 1.73 | BC29: 0.99 | BD29: 1.28 | BE29: 1.08 | BF29: 1.40 | BG29: 1.25 | BH29: 1.63 | BI29: 1.33 | BJ29: 1.72 | BK29: 1.57 | BL29: 2.04
B30: 600 | C30: 480 | D30: 2 | AF30: 1500 | AG30: - | AH30: 2000 | AI30: 0.68 | AJ30: 0.89 | AK30: 0.74 | AL30: 0.97 | AM30: 0.87 | AN30: 1.13 | AO30: 0.92 | AP30: 1.19 | AQ30: 1.09 | AS30: 0.83 | AT30: 1.08 | AU30: 0.91 | AV30: 1.18 | AW30: 1.06 | AX30: 1.38 | AY30: 1.12 | AZ30: 1.46 | BA30: 1.33 | BB30: 1.73 | BC30: 0.99 | BD30: 1.28 | BE30: 1.08 | BF30: 1.40 | BG30: 1.25 | BH30: 1.63 | BI30: 1.33 | BJ30: 1.72 | BK30: 1.57 | BL30: 2.04
B31: 610 | C31: 490 | D31: 2 | AF31: 2000 | AG31: - | AH31: 2500 | AI31: 0.68 | AJ31: 0.89 | AK31: 0.74 | AL31: 0.97 | AM31: 0.87 | AN31: 1.13 | AO31: 0.92 | AP31: 1.19 | AQ31: 1.09 | AS31: 0.83 | AT31: 1.08 | AU31: 0.91 | AV31: 1.18 | AW31: 1.06 | AX31: 1.38 | AY31: 1.12 | AZ31: 1.46 | BA31: 1.33 | BB31: 1.73 | BC31: 0.99 | BD31: 1.28 | BE31: 1.08 | BF31: 1.40 | BG31: 1.25 | BH31: 1.63 | BI31: 1.33 | BJ31: 1.72 | BK31: 1.57 | BL31: 2.04
B32: 620 | C32: 500 | D32: 2 | AF32: 2500 | AG32: - | AH32: 3050 | AI32: 0.68 | AJ32: 0.89 | AK32: 0.74 | AL32: 0.97 | AM32: 0.87 | AN32: 1.13 | AO32: 0.92 | AP32: 1.19 | AQ32: 1.09 | AR32: 1.41 | AS32: 0.83 | AT32: 1.08 | AU32: 0.91 | AV32: 1.18 | AW32: 1.06 | AX32: 1.38 | AY32: 1.12 | AZ32: 1.46 | BA32: 1.33 | BB32: 1.73 | BC32: 0.99 | BD32: 1.28 | BE32: 1.08 | BF32: 1.40 | BG32: 1.25 | BH32: 1.63 | BI32: 1.33 | BJ32: 1.72 | BK32: 1.57 | BL32: 2.04
B33: 630 | C33: 510 | D33: 2
B34: 640 | C34: 520 | D34: 2
B35: 650 | C35: 530 | D35: 2
B36: 660 | C36: 540 | D36: 2
B37: 670 | C37: 550 | D37: 2
B38: 680 | C38: 560 | D38: 2
B39: 690 | C39: 570 | D39: 2
B40: 700 | C40: 580 | D40: 2
B41: 710 | C41: 590 | D41: 2
B42: 720 | C42: 600 | D42: 2
B43: 730 | C43: 610 | D43: 2
B44: 740 | C44: 620 | D44: 2
B45: 750 | C45: 630 | D45: 2
B46: 760 | C46: 640 | D46: 2
B47: 770 | C47: 650 | D47: 2
B48: 780 | C48: 660 | D48: 2
B49: 790 | C49: 670 | D49: 2
B50: 800 | C50: 680 | D50: 2
B51: 810 | C51: 690 | D51: 2
B52: 820 | C52: 700 | D52: 2
B53: 830 | C53: 710 | D53: 2
B54: 840 | C54: 720 | D54: 2
B55: 850 | C55: 365 | D55: 3
B56: 860 | C56: 370 | D56: 3
B57: 870 | C57: 375 | D57: 3
B58: 880 | C58: 380 | D58: 3
B59: 890 | C59: 385 | D59: 3
B60: 900 | C60: 390 | D60: 3
B61: 910 | C61: 395 | D61: 3
B62: 920 | C62: 400 | D62: 3
B63: 930 | C63: 405 | D63: 3
B64: 940 | C64: 410 | D64: 3
B65: 950 | C65: 415 | D65: 3
B66: 960 | C66: 420 | D66: 3
B67: 970 | C67: 425 | D67: 3
B68: 980 | C68: 430 | D68: 3
B69: 990 | C69: =(B69-2*60)/(D69-1) -> 435 | D69: 3
B70: 1000 | C70: 440 | D70: 3
B71: 1010 | C71: 445 | D71: 3
B72: 1020 | C72: 450 | D72: 3
B73: 1030 | C73: 455 | D73: 3
B74: 1040 | C74: 460 | D74: 3
B75: 1050 | C75: 465 | D75: 3
B76: 1060 | C76: 470 | D76: 3
B77: 1070 | C77: 475 | D77: 3
B78: 1080 | C78: 480 | D78: 3
B79: 1090 | C79: 485 | D79: 3
B80: 1100 | C80: 490 | D80: 3
B81: 1110 | C81: 495 | D81: 3
B82: 1120 | C82: 500 | D82: 3
B83: 1130 | C83: 505 | D83: 3
B84: 1140 | C84: 510 | D84: 3
B85: 1150 | C85: 515 | D85: 3
B86: 1160 | C86: 520 | D86: 3
B87: 1170 | C87: 525 | D87: 3
B88: 1180 | C88: 530 | D88: 3
B89: 1190 | C89: 535 | D89: 3
B90: 1200 | C90: 540 | D90: 3
B91: 1210 | C91: 545 | D91: 3
B92: 1220 | C92: 550 | D92: 3
B93: 1230 | C93: 555 | D93: 3
B94: 1240 | C94: 560 | D94: 3
B95: 1250 | C95: 565 | D95: 3
B96: 1260 | C96: 570 | D96: 3
B97: 1270 | C97: 575 | D97: 3
B98: 1280 | C98: 580 | D98: 3
B99: 1290 | C99: 585 | D99: 3
B100: 1300 | C100: 590 | D100: 3
B101: 1310 | C101: 595 | D101: 3
B102: 1320 | C102: 600 | D102: 3
B103: 1330 | C103: 605 | D103: 3
B104: 1340 | C104: 610 | D104: 3
B105: 1350 | C105: 615 | D105: 3
B106: 1360 | C106: 620 | D106: 3
B107: 1370 | C107: 625 | D107: 3
B108: 1380 | C108: 630 | D108: 3
B109: 1390 | C109: 635 | D109: 3
B110: 1400 | C110: 640 | D110: 3
B111: 1410 | C111: 645 | D111: 3
B112: 1420 | C112: 650 | D112: 3
B113: 1430 | C113: 655 | D113: 3
B114: 1440 | C114: 660 | D114: 3
B115: 1450 | C115: 665 | D115: 3
B116: 1460 | C116: 670 | D116: 3
B117: 1470 | C117: 675 | D117: 3
B118: 1480 | C118: 680 | D118: 3
B119: 1490 | C119: 685 | D119: 3
B120: 1500 | C120: 690 | D120: 3
B121: 1510 | C121: 695 | D121: 3
B122: 1520 | C122: 700 | D122: 3
B123: 1530 | C123: 705 | D123: 3
B124: 1540 | C124: 710 | D124: 3
B125: 1550 | C125: 715 | D125: 3
B126: 1560 | C126: 720 | D126: 3
B127: 1570 | C127: 725 | D127: 3
B128: 1580 | C128: 487 | D128: 4
B129: 1590 | C129: 490 | D129: 4
B130: 1600 | C130: 493 | D130: 4
B131: 1610 | C131: 497 | D131: 4
B132: 1620 | C132: 500 | D132: 4
B133: 1630 | C133: =(B133-2*60)/(D133-1) -> 503 | D133: 4
B134: 1640 | C134: 507 | D134: 4
B135: 1650 | C135: 510 | D135: 4
B136: 1660 | C136: 513 | D136: 4
B137: 1670 | C137: 517 | D137: 4
B138: 1680 | C138: 520 | D138: 4
B139: 1690 | C139: 523 | D139: 4
B140: 1700 | C140: 527 | D140: 4
B141: 1710 | C141: 530 | D141: 4
B142: 1720 | C142: 533 | D142: 4
B143: 1730 | C143: 537 | D143: 4
B144: 1740 | C144: 540 | D144: 4
B145: 1750 | C145: 543 | D145: 4
B146: 1760 | C146: 547 | D146: 4
B147: 1770 | C147: 550 | D147: 4
B148: 1780 | C148: 553 | D148: 4
B149: 1790 | C149: 557 | D149: 4
B150: 1800 | C150: 560 | D150: 4
B151: 1810 | C151: 563 | D151: 4
B152: 1820 | C152: 567 | D152: 4
B153: 1830 | C153: 570 | D153: 4
B154: 1840 | C154: 573 | D154: 4
B155: 1850 | C155: 577 | D155: 4
B156: 1860 | C156: 580 | D156: 4
B157: 1870 | C157: 583 | D157: 4
B158: 1880 | C158: 587 | D158: 4
B159: 1890 | C159: 590 | D159: 4
B160: 1900 | C160: 593 | D160: 4
B161: 1910 | C161: 597 | D161: 4
B162: 1920 | C162: 600 | D162: 4
B163: 1930 | C163: 603 | D163: 4
B164: 1940 | C164: 607 | D164: 4
B165: 1950 | C165: 610 | D165: 4
B166: 1960 | C166: 613 | D166: 4
B167: 1970 | C167: 617 | D167: 4
B168: 1980 | C168: 620 | D168: 4
B169: 1990 | C169: 623 | D169: 4
B170: 2000 | C170: 627 | D170: 4
B171: 2010 | C171: 630 | D171: 4
B172: 2020 | C172: 633 | D172: 4
B173: 2030 | C173: 637 | D173: 4
B174: 2040 | C174: 640 | D174: 4
B175: 2050 | C175: 643 | D175: 4
B176: 2060 | C176: 647 | D176: 4
B177: 2070 | C177: 650 | D177: 4
B178: 2080 | C178: 653 | D178: 4
B179: 2090 | C179: 657 | D179: 4
B180: 2100 | C180: 660 | D180: 4
B181: 2110 | C181: 663 | D181: 4
B182: 2120 | C182: 667 | D182: 4
B183: 2130 | C183: 670 | D183: 4
B184: 2140 | C184: 673 | D184: 4
B185: 2150 | C185: 677 | D185: 4
B186: 2160 | C186: 680 | D186: 4
B187: 2170 | C187: 683 | D187: 4
B188: 2180 | C188: 687 | D188: 4
B189: 2190 | C189: 690 | D189: 4
B190: 2200 | C190: 693 | D190: 4
B191: 2210 | C191: 697 | D191: 4
B192: 2220 | C192: 700 | D192: 4
B193: 2230 | C193: 703 | D193: 4
B194: 2240 | C194: 707 | D194: 4
B195: 2250 | C195: 710 | D195: 4
B196: 2260 | C196: 713 | D196: 4
B197: 2270 | C197: =(B197-2*60)/(D197-1) -> 717 | D197: 4
B198: 2280 | C198: 720 | D198: 4
B199: 2290 | C199: 723 | D199: 4
B200: 2300 | C200: 545 | D200: 5
B201: 2310 | C201: 548 | D201: 5
... 74 more rows

Sheet Systemrechner
A1: Systemrechner geschlossene Ecke 90°
G2: Einfeldträger | K2: Zweifeldträger
A3: Objektangaben
A6: Unternehmer
A10: Plattendicke | B10: t | D10: =IFERROR(_xlfn.IFS(C10="Largo 8mm",1,C10="Largo Gravial 9/12mm",2,C10="Largo 12mm",3),0) -> 0 | E10: =IF(C10="",0,1) -> 0 | F10: [mm]
A11: Statisches System | D11: =IFERROR(_xlfn.IFS(C11="Einfeldplatte",1,C11="Zweifeldplatte",2),0) -> 0 | E11: 0 | F11: [-]
A12: Befestigungsmittel | D12: =IFERROR(_xlfn.IFS(C12=Listen!$A$27,"R",C12=Listen!$A$28,"S",C12=Listen!$A$29,"T",C12=Listen!$A$30,"T"),0) -> 0 | E12: =IF(C12="",0,1) -> 0 | F12: [-]
A13: Plattenbreite | B13: b | D13: =IF(D11=1,IF(D10=1,400,IF(OR(D12="R",D12="S"),393,IF(D12="T",393,0))),IF(D10=2,IF(OR(D12="R",D12="S"),592,IF(D12="T",492,0)),IF(OR(D12="R",D12="S"),IF(C13>600,800,600),IF(D12="T",600,0)))) -> 0 | E13: =IF(C13="",0,1) -> 0 | F13: [mm]
A14: Plattenhöhe | B14: h | D14: =IF(C14>2500,3050,CEILING(C14,500)) -> 0 | E14: 0 | F14: [mm]
A15: Staudruckgebiet gem. SIA 261 Anhang E | B15: qp0 | D15: =IF(D11=1,200,300) -> 300 | E15: 0 | F15: [kN/m2]
A16: Gebäudehöhe ≤ | D16: =IF(C16="",0,1) -> 0 | E16: 0 | F16: [m]
A17: Geländekategorie | D17: =IF(C17="",0,1) -> 0 | E17: 0 | F17: [-]
A18: Gebäudeform | C18: gemäss SIA 261 Tabelle 31 - 45
A19: Druckbeiwert gem. Tab. 31-45, SIA 261, Anhang C | B19: cpe,o & A | C19: -1.3 & 0.8 | D19: =IF(D11=1,IF(D10=1,400,IF(OR(D12="R",D12="S"),400,IF(D12="T",400,0))),IF(D10=2,IF(OR(D12="R",D12="S"),600,IF(D12="T",600,0)),IF(OR(D12="R",D12="S"),IF(C13>600,800,600),IF(D12="T",600,0)))) -> 0 | F19: [-]
A20: Staudruck | B20: qp | C20: =IFERROR(_xlfn.IFS($C$17="II: Seeufer",1.6*(($C$16/300)^0.16+0.375)^2*$C$15,$C$17="IIa: Grosse Ebene",1.6*(($C$16/380)^0.19+0.375)^2*$C$15,$C$17="III: Ortschaften, freies Feld",1.6*(($C$16/450)^0.23+0.375)^2*$C$15,$C$17="IV: Gross-flächige Stadtgebiete",1.6*(($C$16/526)^0.3+0.375)^2*$C$15),"") ->  | F20: [kN/m2]
A22: Anzahl vertikaler Befestigungspunkte | B22: n | C22: =IFERROR(IF(_xlfn.MINIFS(Auswertung!$F$3:$F$200,Auswertung!$L$3:$L$200,$D$10,Auswertung!$G$3:$G$200,$D$11,Auswertung!$K$3:$K$200,$D$19,Auswertung!$J$3:$J$200,$D$14,INDIRECT("Auswertung!"&$D$12&"3:"&$D$12&"200"),">="&$C$20)=0,0,_xlfn.MINIFS(Auswertung!$F$3:$F$200,Auswertung!$L$3:$L$200,$D$10,Auswertung!$G$3:$G$200,$D$11,Auswertung!$K$3:$K$200,$D$19,Auswertung!$J$3:$J$200,$D$14,INDIRECT("Auswertung!"&$D$12&"3:"&$D$12&"200"),">="&$C$20)),"-") -> - | E22: =_xlfn.IFS(C22="",0,C22>0,1,C22=0,2) -> 1 | F22: [Stk.]
A23: Randabstande horizontal | B23: R1 | D23: =IF(D12="T",50,IF(D10=2,29,30)) -> 30 | E23: =IF(C23="",0,1) -> 0 | F23: [mm]
A24: Randabstande vertikal | B24: R2 | D24: =IF(D12="T",70, IF(AND(D10=1,OR(D12="R",D12="S")),100, IF(AND(D10=2,OR(D12="R",D12="S")),62,""))) ->  | E24: =IF(C24="",0,1) -> 0 | F24: [mm]
A25: Randabstand Eckelement horizontal | B25: R3 | C25: 50 | F25: [mm]
A26: Randabstand Eckelement vertikal | B26: R4 | C26: 120 | F26: [mm]
A27: Befestigungsabstand horizontal | B27: d1 | C27: =IFERROR(IF(D11=1,"-",(C13-2*C24)/D11),"-") -> - | F27: [mm]
A28: Befestigungsdistanz vertikal | B28: d2 | C28: =IFERROR((C14-2*C24)/(C22-1),"-") -> - | F28: [mm]
A29: Abstand Eckelement | B29: d3 | C29: =IF(C14="","-",(C14-2*C26)/(C22-1)) -> - | F29: [mm]
A30: Abstand Befestigung Eckelement bis zur Plattenbefestigung | B30: d4 | C30: =IFERROR(IF(D11=1,(C13-C23-C25),(C13-C23-C25-C27)),"-") -> - | F30: [mm]
C32: =VLOOKUP(Listen!J2,Listen!I4:J25,2,FALSE) -> Bitte wählen Sie eine Platte

Sheet Listen (hidden)
I2: Fehlercodes | J2: =_xlfn.TEXTJOIN("",TRUE,Systemrechner!E10:E24) -> 00000000100
A4: Befestigung | B4: Befestigung Spezifikation | C4: Nr. | H4: 1 | I4: 00000000100 | J4: Bitte wählen Sie eine Platte
A5: Fassadenschrauben | B5: Fassadenschrauben | C5: 100 | H5: 2 | I5: 10000000100 | J5: Bitte wählen Sie ein statisches System
A6: Nieten Alu UK AlMg3 | B6: Nieten Alu UK AlMg3 | C6: 2 | H6: 3 | I6: 11000000100 | J6: Bitte wählen Sie ein Befestigungsmittel
A7: Nieten Alu UK AlMg5 | B7: Nieten Alu UK AlMg5 | C7: 3 | H7: 4 | I7: 11100000200 | J7: Definieren Sie die Plattenbreite
B8: Nieten Alu UK AlMg5 mit Interaktion | C8: 4 | H8: 5 | I8: 11110000200 | J8: Definieren Sie die Plattenhöhe
A9: Nieten Stahl UK | B9: Nieten Stahl UK | C9: 5 | H9: 6 | I9: 11111000200 | J9: Wählen Sie den Staudruck qp0 gem. SIA 261 Anhang E
B10: Nieten Stahl UK mit Interaktion | C10: 6 | H10: 7 | I10: 11111100200 | J10: Geben Sie die Gebäudehöhe ein
A11: Sigma 8 Pro | B11: Sigma 8 Pro | C11: 7 | H11: 8 | I11: 11111110200 | J11: Bitte Wählen Sie die Geländekategorie
I12: 11111111100 | J12: Wählen Sie den Randabstand R1
H13: 9 | I13: 11111111110 | J13: Wählen Sie den Randabstand R2
H14: 10 | I14: 11111111111 | J14: Eingabe korrekt mit einer möglichen Lösung.
I15: 11111111211 | J15: Für die Ausgewählte Plattenkonfiguration gibt es bei dieser Windkraft keine Lösung. Bitte wenden sie sich an den Technischen Dienst.
I16: 11100111200 | J16: Definieren Sie die Plattenbreite
I17: 11110111200 | J17: Definieren Sie die Plattenhöhe
A18: Auslesung Tabelle | I18: 11111111200 | J18: Wählen Sie den Randabstand R1
I19: 11111111210 | J19: Wählen Sie den Randabstand R2
A20: Einfeldplatte | B20: 1
A21: Zweifeldplatte | B21: 2
A22: Largo 8mm
A23: Largo Gravial 9/12mm
A24: 0.9
A25: 1.1
A26: 1.3
A27: Sichtbar auf Traglatte mit Schrauben
A28: Sichtbar auf Tragprofiele mit Nieten
A29: Unsichtbar auf Traglatte mit Sigma 8 Pro
A30: Unsichtbar auf Tragprofiel mit Sigma 8 Pro
A32: =Ergebnistabellen!G6 -> 11 | C32: =IF(Systemrechner!D12="T",70,60) -> 60
A33: =Ergebnistabellen!I6 -> 15 | C33: =IF(Systemrechner!D12="T","",80) -> 80
A34: =Ergebnistabellen!K6 -> 25
A35: =Ergebnistabellen!M6 -> 30
A36: =Ergebnistabellen!$O$6 -> 50
A38: =Ergebnistabellen!B9 -> II: Seeufer
A39: =Ergebnistabellen!B15 -> IIa: Grosse Ebene
A40: =Ergebnistabellen!B21 -> III: Ortschaften, freies Feld
A41: =Ergebnistabellen!B27 -> IV: Gross-flächige Stadtgebiete
A44: System | B44: Breite | C44: Platte | E44: Befestigung | G44: Tabelle
A45: 1 | B45: 400 | C45: Largo 8mm | D45: 1 | E45: Schrauben | F45: R | G45: 1
A46: 1 | B46: 400 | C46: Largo 8mm | D46: 1 | E46: Nieten | F46: S | G46: 2
A47: 1 | B47: 400 | C47: Largo 8mm | D47: 1 | E47: Sigma 8 pro | F47: T | G47: 3
A48: 1 | B48: 393 | C48: Largo Gravial 9/12mm | D48: 2 | E48: Schrauben | F48: R | G48: 9
A49: 1 | B49: 393 | C49: Largo Gravial 9/12mm | D49: 2 | E49: Nieten | F49: S | G49: 10
A50: 1 | B50: 393 | C50: Largo Gravial 9/12mm | D50: 2 | E50: Sigma 8 pro | F50: T | G50: 11
A51: 2 | B51: 600 | C51: Largo 8mm | D51: 1 | E51: Schrauben | F51: R | G51: 4
A52: 2 | B52: 600 | C52: Largo 8mm | D52: 1 | E52: Nieten | F52: S | G52: 5
A53: 2 | B53: 600 | C53: Largo 8mm | D53: 1 | E53: Sigma 8 pro | F53: T | G53: 6
A54: 2 | B54: 592 | C54: Largo Gravial 9/12mm | D54: 2 | E54: Schrauben | F54: R | G54: 12
A55: 2 | B55: 592 | C55: Largo Gravial 9/12mm | D55: 2 | E55: Nieten | F55: S | G55: 13
A56: 2 | B56: 492 | C56: Largo Gravial 9/12mm | D56: 2 | E56: Sigma 8 pro | F56: t | G56: 14
A57: 2 | B57: 800 | C57: Largo 8mm | D57: 1 | E57: Schrauben | F57: R | G57: 7
A58: 2 | B58: 800 | C58: Largo 8mm | D58: 1 | E58: Nieten | F58: S | G58: 8
A59: 2 | B59: 800 | C59: Largo 8mm | D59: 1 | E59: Sigma 8 pro | F59: T

Sheet Read me
A1: Anwendung Systemrechner Geschlossene Ecke 90°
A3: Anwendung | C3: Die markierten Felder sind von oben nach unten auszufüllen. Die möglichen Eingabeeinschränkungen sind in den einzelnen Zellen markiert. Anhand der eingegebenen Daten werden die nötigen Verbindungsmittelabstände, sowie die Anzahl pro Reihe berechnet. Sofern am Schluss die Kontrolle erfüllt, ist das Ergebnis gültig.
B5: Reset | C5: Löscht alle eingegebenen Daten Dauerhaft. Diese sind auch nicht mit Control+Z wiederherstellbar.
B7: Drucken | C7: Erstellt ein PDF am selben Speicherort, wie das Excel abgelegt ist mit dem Namen "Verbindungsmittelabstände_Objektangaben" (Wert aus Zelle A4)
A9: Erläuterungen | B9: Plattendicke | C9: Auswahl zwischen der normalen Largo 8mm Platte und der Gravial Platte 9/12 mm
B11: Statisches System | C11: Auswahl zwischen Einfeldplatten (bis 400mm Breite) - Einfeldplatten sind definiert mit einer linken Unterkonstruktion - Geschlossene Ecke Eckelemente und auf der anderen Fassadenseite nochmals eine rechte Unterkonstruktion Zweifeldplatten (bis 600/800 mm Breite) - Zwischen der linken Unterkonstruktion und der Eckelemente wird noch eine Mittelkonstruktion angebracht.
B13: Plattenbreite | C13: Gemäss Skizze mit folgenden Einschränkungen: Einfeldplatten - Largo 8mm sichtbar befestigt von 200 bis 400 mm - Largo 8mm unsichtbar mit Sigma 8 Pro von 200 bis 400 mm - Largo Gravial sichtbar befestigt von 228 - 393 mm - Largo Gravial unsichtbar mit Sigma 8 Pro von 228 - 393 mm Zweifeldplatten - Largo 8mm sichtbar befestigt von 300 bis 800 mm - Largo 8mm unsichtbar mit Sigma 8 Pro von 300 bis 600 mm - Largo Gravial sichtbar befestigt von 294 - 592 mm - Largo Gravial unsichtbar mit Sigma 8 Pro von 294 - 492 mm
B15: Plattenhöhe | C15: Gemäss Skizze mit folgenden Einschränkungen: 340 ≤ h ≤ 3050
B17: Staudruckgebiet gem. SIA 261 Anhang E | C17: Im Tabellenblatt "Staudruckkarte SIA 261" finden Sie die aktuelle Karte mit den Staudruckgebieten.
B19: Gebäudehöhe & Geländekategorie | C19: Mit diesen Angaben wird der Profilbeiwert ch berechnet gem. SIA 261 6.2.1.2.
B21: Gebäudeform & Druckbeiwert gem. Tab. 31-45, SIA 261, Anhang C | C21: Anhand der Gebäudeformtabellen gem. SIA 261 Anhang C wird der Druck-/ Sog beiwert cpe bestimmt. Nähere Informationen finden Sie in der SIA 261 6.2.2.
B24: Staudruck | C24: Der Staudruck qp wird anhand des Referenzwertes des Staudruck gem. SIA 261 Anhang E, multipliziert mit dem Profilbeiwert ch bestimmt.
A27: Hinweise | C27: Für eine einwandfreie Anwendung sollte zwischen mehreren Rechnungen jeweils der Resetknopf betätigt werden. Ansonsten funktioniert die Fehlermeldungsfunktion nur bedingt.
A29: Grundlagen der Berechnung
A31: Zulassungen: | B31: - Z-31.4-199 | C31: Largo Platten inkl. Befestigungsmittel
B32: - ETA-20/1084 | C32: Hinterschnittanker Sigma 8 Pro
A34: Bemessungswerte: | B34: Gem. Zulassungen
A36: Produktetoleranzen: | B36: Gem. ET-006 Swisspearl Largo
A38: Normen: | B38: - SN-EN 12467 Faserzement-Tafeln
B39: - SIA 260 Grundlagen der Projektierung von Tragwerken
B40: - SIA 261 Einwirkungen auf Tragwerke
A42: Statikprogramm | B42: -RFEM 6 von Dlubal
A45: Berechnung
A47: Modellierung | B47: Modelle | C47: Diverse Modelle mit Breiten 400mm, 600mm und 800mm, sowie Höhen von 500, 1000, 1500, 2000, 2500 & 3050mm mit jeweils Verbindungsmittelabständen von 340-720mm
C49: Befestigungsmittel mit Knotenlager und entsprechenden Steifigkeiten
C50: Geschlossene Ecke mittels Linien-Linien Verbindung steiff, wahre Länge
B52: Lasten im Modell | C52: Einheitslast multipliziert mit dem cPE Wert 0.8 & -1.3 , massgebende Teilfläche A & o für Tabellen 31 - 45 gem. SIA 261, Anhang C
C54: Eigenlast
B56: Lastkombination | C56: 1.35 x Gk + 1.5 x qk,Einheitslast x cpe
B58: Ergebnisse | C58: Export der Lager- und Linienkräfte, sowie der Flächenspannungen
A60: Nachweise | B60: Befestigungsmittel | C60: Die Ergebnisse der Lastkombination wurden für alle Knotenresultate mit dem Staudruck qp0 und dem Höhenbeiwert ch multipliziert und der kombinierte Nachweis zwischen Normal- und Querkraft geführt.
B61: Schrauben
B62: Nieten | C62: mit Querkraft und Interaktionsformel gem. Zulassung, Fax,Ed ≤ Fax,Rd
C63: mit Querkraft ind Interaktionsformel gem. Zulassung, Fax <
B64: Sigma 8 Pro
B66: Winkel
B68: Platte
A71: Hinweis | C71: Es ist nicht direkt möglich, andere cpe -Werte direkt umzurechnen.

Sheet Staudruckkarte SIA 261
C5: 100

Sheet Auswertung (hidden)
M1: Max Staudruck Verb. Qp
B2: Bezeichnung | C2: System | D2: Höhe [cm] | E2: Breite | F2: Anz. Verb. | G2: System | H2: Max d1 | I2: Max d2 | J2: Höhe [mm] | K2: Breite [mm] | L2: Dicke 1=8mm, 2 = 9/12 | M2: Winkel | N2: Schrauben | O2: Nieten | P2: Sigma 8 Pro | Q2: Spannungen x | R2: Min. Schrauben | S2: Min. Nieten | T2: Min. Sigma
A3: Auswertung 8mm EF-x-40-x | B3: EF-300-40-9 | C3: EF | D3: 300 | E3: 40 | F3: 9 | G3: =IF(C3="EF",1,2) -> 1 | H3: =(J3-2*60)/(F3-1) -> 366 | I3: =(J3-2*120)/(F3-1) -> 351 | J3: =D3*10+50 -> 3050 | K3: =E3*10 -> 400 | L3: 1 | M3: =_xlfn.MINIFS('8-EF-x-40-x-W'!$BG$3:$BG$400,'8-EF-x-40-x-W'!$P$3:$P$400,B3) -> 4.5 | N3: =_xlfn.MINIFS('8-EF-x-40-x-K'!$AZ$3:$AZ$400,'8-EF-x-40-x-K'!$M$3:$M$400,Auswertung!B3) -> 2.9 | O3: =_xlfn.MINIFS('8-EF-x-40-x-K'!$CK$3:$CK$400,'8-EF-x-40-x-K'!$M$3:$M$400,B3) -> 2.6 | P3: =_xlfn.MINIFS('8-EF-x-40-x-K'!$DV$3:$DV$400,'8-EF-x-40-x-K'!$M$3:$M$400,B3) -> 2.4 | Q3: =_xlfn.MINIFS('8-EF-x-40-x-S'!$AW$3:$AW$400,'8-EF-x-40-x-S'!$K$3:$K$400,Auswertung!B3) -> 2.0 | R3: =IF(C3="EF",MIN(M3:N3,Q3),MIN(M3:N3)) -> 2.0 | S3: =IF(C3="EF",MIN(M3,O3,Q3),MIN(M3,O3)) -> 2.0 | T3: =IF(C3="EF",MIN(M3,P3,Q3),MIN(M3,P3)) -> 2.0
B4: EF-300-40-8 | C4: EF | D4: 300 | E4: 40 | F4: 8 | G4: =IF(C4="EF",1,2) -> 1 | H4: =(J4-2*60)/(F4-1) -> 419 | I4: =(J4-2*120)/(F4-1) -> 401 | J4: =D4*10+50 -> 3050 | K4: =E4*10 -> 400 | L4: 1 | M4: =_xlfn.MINIFS('8-EF-x-40-x-W'!$BG$3:$BG$400,'8-EF-x-40-x-W'!$P$3:$P$400,B4) -> 4.5 | N4: =_xlfn.MINIFS('8-EF-x-40-x-K'!$AZ$3:$AZ$400,'8-EF-x-40-x-K'!$M$3:$M$400,Auswertung!B4) -> 2.5 | O4: =_xlfn.MINIFS('8-EF-x-40-x-K'!$CK$3:$CK$400,'8-EF-x-40-x-K'!$M$3:$M$400,B4) -> 2.3 | P4: =_xlfn.MINIFS('8-EF-x-40-x-K'!$DV$3:$DV$400,'8-EF-x-40-x-K'!$M$3:$M$400,B4) -> 2.1 | Q4: =_xlfn.MINIFS('8-EF-x-40-x-S'!$AW$3:$AW$400,'8-EF-x-40-x-S'!$K$3:$K$400,Auswertung!B4) -> 1.9 | R4: =IF(C4="EF",MIN(M4:N4,Q4),MIN(M4:N4)) -> 1.9 | S4: =IF(C4="EF",MIN(M4,O4,Q4),MIN(M4,O4)) -> 1.9 | T4: =IF(C4="EF",MIN(M4,P4,Q4),MIN(M4,P4)) -> 1.9
B5: EF-300-40-7 | C5: 100 | D5: 300 | E5: 40 | F5: 7 | G5: 2 | H5: 488 | I5: 468 | J5: 3050 | K5: 400 | L5: 1 | M5: =_xlfn.MINIFS('8-EF-x-40-x-W'!$BG$3:$BG$400,'8-EF-x-40-x-W'!$P$3:$P$400,B5) -> 4.5 | N5: =_xlfn.MINIFS('8-EF-x-40-x-K'!$AZ$3:$AZ$400,'8-EF-x-40-x-K'!$M$3:$M$400,Auswertung!B5) -> 2.1 | O5: =_xlfn.MINIFS('8-EF-x-40-x-K'!$CK$3:$CK$400,'8-EF-x-40-x-K'!$M$3:$M$400,B5) -> 1.9 | P5: =_xlfn.MINIFS('8-EF-x-40-x-K'!$DV$3:$DV$400,'8-EF-x-40-x-K'!$M$3:$M$400,B5) -> 1.8 | Q5: =_xlfn.MINIFS('8-EF-x-40-x-S'!$AW$3:$AW$400,'8-EF-x-40-x-S'!$K$3:$K$400,Auswertung!B5) -> 1.7 | R5: 2.1 | S5: 1.9 | T5: 1.8
B6: EF-300-40-6 | C6: EF | D6: 300 | E6: 40 | F6: 6 | G6: 1 | H6: 586 | I6: 562 | J6: 3050 | K6: 400 | L6: 1 | M6: =_xlfn.MINIFS('8-EF-x-40-x-W'!$BG$3:$BG$400,'8-EF-x-40-x-W'!$P$3:$P$400,B6) -> 4.5 | N6: =_xlfn.MINIFS('8-EF-x-40-x-K'!$AZ$3:$AZ$400,'8-EF-x-40-x-K'!$M$3:$M$400,Auswertung!B6) -> 1.8 | O6: =_xlfn.MINIFS('8-EF-x-40-x-K'!$CK$3:$CK$400,'8-EF-x-40-x-K'!$M$3:$M$400,B6) -> 1.6 | P6: =_xlfn.MINIFS('8-EF-x-40-x-K'!$DV$3:$DV$400,'8-EF-x-40-x-K'!$M$3:$M$400,B6) -> 1.5 | Q6: =_xlfn.MINIFS('8-EF-x-40-x-S'!$AW$3:$AW$400,'8-EF-x-40-x-S'!$K$3:$K$400,Auswertung!B6) -> 1.3 | R6: 1.3 | S6: 1.3 | T6: 1.3
B7: EF-300-40-5 | C7: EF | D7: 300 | E7: 40 | F7: 5 | G7: 1 | H7: 733 | I7: 703 | J7: 3050 | K7: 400 | L7: 1 | M7: =_xlfn.MINIFS('8-EF-x-40-x-W'!$BG$3:$BG$400,'8-EF-x-40-x-W'!$P$3:$P$400,B7) -> 4.5 | N7: =_xlfn.MINIFS('8-EF-x-40-x-K'!$AZ$3:$AZ$400,'8-EF-x-40-x-K'!$M$3:$M$400,Auswertung!B7) -> 1.4 | O7: =_xlfn.MINIFS('8-EF-x-40-x-K'!$CK$3:$CK$400,'8-EF-x-40-x-K'!$M$3:$M$400,B7) -> 1.2 | P7: =_xlfn.MINIFS('8-EF-x-40-x-K'!$DV$3:$DV$400,'8-EF-x-40-x-K'!$M$3:$M$400,B7) -> 1.2 | Q7: =_xlfn.MINIFS('8-EF-x-40-x-S'!$AW$3:$AW$400,'8-EF-x-40-x-S'!$K$3:$K$400,Auswertung!B7) -> 0.9 | R7: 0.9 | S7: 0.9 | T7: 0.9
B8: EF-250-40-7 | C8: EF | D8: 250 | E8: 40 | F8: 7 | G8: 1 | H8: 397 | I8: 377 | J8: =D8*10 -> 2500 | K8: 400 | L8: 1 | M8: =_xlfn.MINIFS('8-EF-x-40-x-W'!$BG$3:$BG$400,'8-EF-x-40-x-W'!$P$3:$P$400,B8) -> 4.5 | N8: =_xlfn.MINIFS('8-EF-x-40-x-K'!$AZ$3:$AZ$400,'8-EF-x-40-x-K'!$M$3:$M$400,Auswertung!B8) -> 2.7 | O8: =_xlfn.MINIFS('8-EF-x-40-x-K'!$CK$3:$CK$400,'8-EF-x-40-x-K'!$M$3:$M$400,B8) -> 2.4 | P8: =_xlfn.MINIFS('8-EF-x-40-x-K'!$DV$3:$DV$400,'8-EF-x-40-x-K'!$M$3:$M$400,B8) -> 2.2 | Q8: =_xlfn.MINIFS('8-EF-x-40-x-S'!$AW$3:$AW$400,'8-EF-x-40-x-S'!$K$3:$K$400,Auswertung!B8) -> 2.0 | R8: 2.0 | S8: 2.0 | T8: 2.0
B9: EF-250-40-6 | C9: EF | D9: 250 | E9: 40 | F9: 6 | G9: 1 | H9: 476 | I9: 452 | J9: 2500 | K9: 400 | L9: 1 | M9: =_xlfn.MINIFS('8-EF-x-40-x-W'!$BG$3:$BG$400,'8-EF-x-40-x-W'!$P$3:$P$400,B9) -> 4.5 | N9: =_xlfn.MINIFS('8-EF-x-40-x-K'!$AZ$3:$AZ$400,'8-EF-x-40-x-K'!$M$3:$M$400,Auswertung!B9) -> 2.2 | O9: =_xlfn.MINIFS('8-EF-x-40-x-K'!$CK$3:$CK$400,'8-EF-x-40-x-K'!$M$3:$M$400,B9) -> 2.0 | P9: =_xlfn.MINIFS('8-EF-x-40-x-K'!$DV$3:$DV$400,'8-EF-x-40-x-K'!$M$3:$M$400,B9) -> 1.8 | Q9: =_xlfn.MINIFS('8-EF-x-40-x-S'!$AW$3:$AW$400,'8-EF-x-40-x-S'!$K$3:$K$400,Auswertung!B9) -> 1.8 | R9: 1.8 | S9: 1.8 | T9: 1.8
B10: EF-250-40-5 | C10: EF | D10: 250 | E10: 40 | F10: 5 | G10: 1 | H10: 595 | I10: 565 | J10: 2500 | K10: 400 | L10: 1 | M10: =_xlfn.MINIFS('8-EF-x-40-x-W'!$BG$3:$BG$400,'8-EF-x-40-x-W'!$P$3:$P$400,B10) -> 4.5 | N10: =_xlfn.MINIFS('8-EF-x-40-x-K'!$AZ$3:$AZ$400,'8-EF-x-40-x-K'!$M$3:$M$400,Auswertung!B10) -> 1.7 | O10: =_xlfn.MINIFS('8-EF-x-40-x-K'!$CK$3:$CK$400,'8-EF-x-40-x-K'!$M$3:$M$400,B10) -> 1.6 | P10: =_xlfn.MINIFS('8-EF-x-40-x-K'!$DV$3:$DV$400,'8-EF-x-40-x-K'!$M$3:$M$400,B10) -> 1.5 | Q10: =_xlfn.MINIFS('8-EF-x-40-x-S'!$AW$3:$AW$400,'8-EF-x-40-x-S'!$K$3:$K$400,Auswertung!B10) -> 1.3 | R10: 1.3 | S10: 1.3 | T10: 1.3
B11: EF-200-40-6 | C11: EF | D11: 200 | E11: 40 | F11: 6 | G11: 1 | H11: 376 | I11: 352 | J11: 2000 | K11: 400 | L11: 1 | M11: =_xlfn.MINIFS('8-EF-x-40-x-W'!$BG$3:$BG$400,'8-EF-x-40-x-W'!$P$3:$P$400,B11) -> 4.5 | N11: =_xlfn.MINIFS('8-EF-x-40-x-K'!$AZ$3:$AZ$400,'8-EF-x-40-x-K'!$M$3:$M$400,Auswertung!B11) -> 2.8 | O11: =_xlfn.MINIFS('8-EF-x-40-x-K'!$CK$3:$CK$400,'8-EF-x-40-x-K'!$M$3:$M$400,B11) -> 2.6 | P11: =_xlfn.MINIFS('8-EF-x-40-x-K'!$DV$3:$DV$400,'8-EF-x-40-x-K'!$M$3:$M$400,B11) -> 2.4 | Q11: =_xlfn.MINIFS('8-EF-x-40-x-S'!$AW$3:$AW$400,'8-EF-x-40-x-S'!$K$3:$K$400,Auswertung!B11) -> 2.0 | R11: 2.0 | S11: 2.0 | T11: 2.0
B12: EF-200-40-5 | C12: EF | D12: 200 | E12: 40 | F12: 5 | G12: 1 | H12: 470 | I12: 440 | J12: 2000 | K12: 400 | L12: 1 | M12: =_xlfn.MINIFS('8-EF-x-40-x-W'!$BG$3:$BG$400,'8-EF-x-40-x-W'!$P$3:$P$400,B12) -> 4.5 | N12: =_xlfn.MINIFS('8-EF-x-40-x-K'!$AZ$3:$AZ$400,'8-EF-x-40-x-K'!$M$3:$M$400,Auswertung!B12) -> 2.2 | O12: =_xlfn.MINIFS('8-EF-x-40-x-K'!$CK$3:$CK$400,'8-EF-x-40-x-K'!$M$3:$M$400,B12) -> 2.0 | P12: =_xlfn.MINIFS('8-EF-x-40-x-K'!$DV$3:$DV$400,'8-EF-x-40-x-K'!$M$3:$M$400,B12) -> 1.9 | Q12: =_xlfn.MINIFS('8-EF-x-40-x-S'!$AW$3:$AW$400,'8-EF-x-40-x-S'!$K$3:$K$400,Auswertung!B12) -> 1.8 | R12: 1.8 | S12: 1.8 | T12: 1.8
B13: EF-200-40-4 | C13: EF | D13: 200 | E13: 40 | F13: 4 | G13: 1 | H13: 627 | I13: 587 | J13: 2000 | K13: 400 | L13: 1 | M13: =_xlfn.MINIFS('8-EF-x-40-x-W'!$BG$3:$BG$400,'8-EF-x-40-x-W'!$P$3:$P$400,B13) -> 4.5 | N13: =_xlfn.MINIFS('8-EF-x-40-x-K'!$AZ$3:$AZ$400,'8-EF-x-40-x-K'!$M$3:$M$400,Auswertung!B13) -> 1.7 | O13: =_xlfn.MINIFS('8-EF-x-40-x-K'!$CK$3:$CK$400,'8-EF-x-40-x-K'!$M$3:$M$400,B13) -> 1.5 | P13: =_xlfn.MINIFS('8-EF-x-40-x-K'!$DV$3:$DV$400,'8-EF-x-40-x-K'!$M$3:$M$400,B13) -> 1.4 | Q13: =_xlfn.MINIFS('8-EF-x-40-x-S'!$AW$3:$AW$400,'8-EF-x-40-x-S'!$K$3:$K$400,Auswertung!B13) -> 1.2 | R13: 1.2 | S13: 1.2 | T13: 1.2
B14: EF-150-40-4 | C14: EF | D14: 150 | E14: 40 | F14: 4 | G14: 1 | H14: 460 | I14: 420 | J14: 1500 | K14: 400 | L14: 1 | M14: =_xlfn.MINIFS('8-EF-x-40-x-W'!$BG$3:$BG$400,'8-EF-x-40-x-W'!$P$3:$P$400,B14) -> 4.5 | N14: =_xlfn.MINIFS('8-EF-x-40-x-K'!$AZ$3:$AZ$400,'8-EF-x-40-x-K'!$M$3:$M$400,Auswertung!B14) -> 2.3 | O14: =_xlfn.MINIFS('8-EF-x-40-x-K'!$CK$3:$CK$400,'8-EF-x-40-x-K'!$M$3:$M$400,B14) -> 2.1 | P14: =_xlfn.MINIFS('8-EF-x-40-x-K'!$DV$3:$DV$400,'8-EF-x-40-x-K'!$M$3:$M$400,B14) -> 2.0 | Q14: =_xlfn.MINIFS('8-EF-x-40-x-S'!$AW$3:$AW$400,'8-EF-x-40-x-S'!$K$3:$K$400,Auswertung!B14) -> 1.9 | R14: 1.9 | S14: 1.9 | T14: 1.9
B15: EF-150-40-3 | C15: EF | D15: 150 | E15: 40 | F15: 3 | G15: 1 | H15: 690 | I15: 630 | J15: 1500 | K15: 400 | L15: 1 | M15: =_xlfn.MINIFS('8-EF-x-40-x-W'!$BG$3:$BG$400,'8-EF-x-40-x-W'!$P$3:$P$400,B15) -> 4.5 | N15: =_xlfn.MINIFS('8-EF-x-40-x-K'!$AZ$3:$AZ$400,'8-EF-x-40-x-K'!$M$3:$M$400,Auswertung!B15) -> 1.4 | O15: =_xlfn.MINIFS('8-EF-x-40-x-K'!$CK$3:$CK$400,'8-EF-x-40-x-K'!$M$3:$M$400,B15) -> 1.2 | P15: =_xlfn.MINIFS('8-EF-x-40-x-K'!$DV$3:$DV$400,'8-EF-x-40-x-K'!$M$3:$M$400,B15) -> 1.2 | Q15: =_xlfn.MINIFS('8-EF-x-40-x-S'!$AW$3:$AW$400,'8-EF-x-40-x-S'!$K$3:$K$400,Auswertung!B15) -> 1.1 | R15: 1.1 | S15: 1.1 | T15: 1.1
B16: EF-100-40-3 | C16: EF | D16: 100 | E16: 40 | F16: 3 | G16: 1 | H16: 440 | I16: 380 | J16: 1000 | K16: 400 | L16: 1 | M16: =_xlfn.MINIFS('8-EF-x-40-x-W'!$BG$3:$BG$400,'8-EF-x-40-x-W'!$P$3:$P$400,B16) -> 4.5 | N16: =_xlfn.MINIFS('8-EF-x-40-x-K'!$AZ$3:$AZ$400,'8-EF-x-40-x-K'!$M$3:$M$400,Auswertung!B16) -> 2.3 | O16: =_xlfn.MINIFS('8-EF-x-40-x-K'!$CK$3:$CK$400,'8-EF-x-40-x-K'!$M$3:$M$400,B16) -> 2.0 | P16: =_xlfn.MINIFS('8-EF-x-40-x-K'!$DV$3:$DV$400,'8-EF-x-40-x-K'!$M$3:$M$400,B16) -> 2.0 | Q16: =_xlfn.MINIFS('8-EF-x-40-x-S'!$AW$3:$AW$400,'8-EF-x-40-x-S'!$K$3:$K$400,Auswertung!B16) -> 1.9 | R16: 1.9 | S16: 1.9 | T16: 1.9
B17: EF-50-40-2 | C17: EF | D17: 50 | E17: 40 | F17: 2 | G17: 1 | H17: 380 | I17: 260 | J17: 500 | K17: 400 | L17: 1 | M17: =_xlfn.MINIFS('8-EF-x-40-x-W'!$BG$3:$BG$400,'8-EF-x-40-x-W'!$P$3:$P$400,B17) -> 4.5 | N17: =_xlfn.MINIFS('8-EF-x-40-x-K'!$AZ$3:$AZ$400,'8-EF-x-40-x-K'!$M$3:$M$400,Auswertung!B17) -> 3.1 | O17: =_xlfn.MINIFS('8-EF-x-40-x-K'!$CK$3:$CK$400,'8-EF-x-40-x-K'!$M$3:$M$400,B17) -> 4.0 | P17: =_xlfn.MINIFS('8-EF-x-40-x-K'!$DV$3:$DV$400,'8-EF-x-40-x-K'!$M$3:$M$400,B17) -> 3.5 | Q17: =_xlfn.MINIFS('8-EF-x-40-x-S'!$AW$3:$AW$400,'8-EF-x-40-x-S'!$K$3:$K$400,Auswertung!B17) -> 2.0 | R17: 2.0 | S17: 2.0 | T17: 2.0
A19: Auswertung 8mm ZF-x-60-x | B19: ZF-300-60-9 | C19: ZF | D19: 300 | E19: 60 | F19: 9 | G19: 2 | H19: =(J19-2*60)/(F19-1) -> 366 | I19: =(J19-2*120)/(F19-1) -> 351 | J19: =D19*10+50 -> 3050 | K19: =E19*10 -> 600 | L19: 1 | M19: =_xlfn.MINIFS('8-ZF-x-60-x-W'!$BG$3:$BG$400,'8-ZF-x-60-x-W'!$P$3:$P$400,B19) -> 4.5 | N19: =_xlfn.MINIFS('8-ZF-x-60-x-K'!$AZ$3:$AZ$400,'8-ZF-x-60-x-K'!$M$3:$M$400,B19) -> 3.1 | O19: =_xlfn.MINIFS('8-ZF-x-60-x-K'!$CK$3:$CK$400,'8-ZF-x-60-x-K'!$M$3:$M$400,B19) -> 2.9 | P19: =_xlfn.MINIFS('8-ZF-x-60-x-K'!$DV$3:$DV$400,'8-ZF-x-60-x-K'!$M$3:$M$400,B19) -> 1.6 | Q19: =_xlfn.MINIFS('8-ZF-x-60-x-S'!$AW$3:$AW$400,'8-ZF-x-60-x-S'!$K$3:$K$400,Auswertung!B19) -> 3.0 | R19: 3.1 | S19: 2.9 | T19: 1.6
B20: ZF-300-60-8 | C20: ZF | D20: 300 | E20: 60 | F20: 8 | G20: 2 | H20: =(J20-2*60)/(F20-1) -> 419 | I20: =(J20-2*120)/(F20-1) -> 401 | J20: =D20*10+50 -> 3050 | K20: =E20*10 -> 600 | L20: 1 | M20: =_xlfn.MINIFS('8-ZF-x-60-x-W'!$BG$3:$BG$400,'8-ZF-x-60-x-W'!$P$3:$P$400,B20) -> 4.5 | N20: =_xlfn.MINIFS('8-ZF-x-60-x-K'!$AZ$3:$AZ$400,'8-ZF-x-60-x-K'!$M$3:$M$400,B20) -> 2.8 | O20: =_xlfn.MINIFS('8-ZF-x-60-x-K'!$CK$3:$CK$400,'8-ZF-x-60-x-K'!$M$3:$M$400,B20) -> 2.5 | P20: =_xlfn.MINIFS('8-ZF-x-60-x-K'!$DV$3:$DV$400,'8-ZF-x-60-x-K'!$M$3:$M$400,B20) -> 1.4 | Q20: =_xlfn.MINIFS('8-ZF-x-60-x-S'!$AW$3:$AW$400,'8-ZF-x-60-x-S'!$K$3:$K$400,Auswertung!B20) -> 2.3 | R20: 2.8 | S20: 2.5 | T20: 1.4
B21: ZF-300-60-7 | C21: ZF | D21: 300 | E21: 60 | F21: 7 | G21: 2 | H21: 488 | I21: 468 | J21: 3050 | K21: 600 | L21: 1 | M21: =_xlfn.MINIFS('8-ZF-x-60-x-W'!$BG$3:$BG$400,'8-ZF-x-60-x-W'!$P$3:$P$400,B21) -> 4.5 | N21: =_xlfn.MINIFS('8-ZF-x-60-x-K'!$AZ$3:$AZ$400,'8-ZF-x-60-x-K'!$M$3:$M$400,B21) -> 2.4 | O21: =_xlfn.MINIFS('8-ZF-x-60-x-K'!$CK$3:$CK$400,'8-ZF-x-60-x-K'!$M$3:$M$400,B21) -> 2.1 | P21: =_xlfn.MINIFS('8-ZF-x-60-x-K'!$DV$3:$DV$400,'8-ZF-x-60-x-K'!$M$3:$M$400,B21) -> 1.2 | Q21: =_xlfn.MINIFS('8-ZF-x-60-x-S'!$AW$3:$AW$400,'8-ZF-x-60-x-S'!$K$3:$K$400,Auswertung!B21) -> 1.8 | R21: 2.4 | S21: 2.1 | T21: 1.2
B22: ZF-300-60-6 | C22: ZF | D22: 300 | E22: 60 | F22: 6 | G22: 2 | H22: 586 | I22: 562 | J22: 3050 | K22: 600 | L22: 1 | M22: =_xlfn.MINIFS('8-ZF-x-60-x-W'!$BG$3:$BG$400,'8-ZF-x-60-x-W'!$P$3:$P$400,B22) -> 4.5 | N22: =_xlfn.MINIFS('8-ZF-x-60-x-K'!$AZ$3:$AZ$400,'8-ZF-x-60-x-K'!$M$3:$M$400,B22) -> 2.0 | O22: =_xlfn.MINIFS('8-ZF-x-60-x-K'!$CK$3:$CK$400,'8-ZF-x-60-x-K'!$M$3:$M$400,B22) -> 1.8 | P22: =_xlfn.MINIFS('8-ZF-x-60-x-K'!$DV$3:$DV$400,'8-ZF-x-60-x-K'!$M$3:$M$400,B22) -> 1.0 | Q22: =_xlfn.MINIFS('8-ZF-x-60-x-S'!$AW$3:$AW$400,'8-ZF-x-60-x-S'!$K$3:$K$400,Auswertung!B22) -> 1.2 | R22: 2.0 | S22: 1.8 | T22: 1.0
B23: ZF-300-60-5 | C23: ZF | D23: 300 | E23: 60 | F23: 5 | G23: 2 | H23: 733 | I23: 703 | J23: 3050 | K23: 600 | L23: 1 | M23: =_xlfn.MINIFS('8-ZF-x-60-x-W'!$BG$3:$BG$400,'8-ZF-x-60-x-W'!$P$3:$P$400,B23) -> 4.5 | N23: =_xlfn.MINIFS('8-ZF-x-60-x-K'!$AZ$3:$AZ$400,'8-ZF-x-60-x-K'!$M$3:$M$400,B23) -> 1.6 | O23: =_xlfn.MINIFS('8-ZF-x-60-x-K'!$CK$3:$CK$400,'8-ZF-x-60-x-K'!$M$3:$M$400,B23) -> 1.4 | P23: =_xlfn.MINIFS('8-ZF-x-60-x-K'!$DV$3:$DV$400,'8-ZF-x-60-x-K'!$M$3:$M$400,B23) -> 0.8 | Q23: =_xlfn.MINIFS('8-ZF-x-60-x-S'!$AW$3:$AW$400,'8-ZF-x-60-x-S'!$K$3:$K$400,Auswertung!B23) -> 0.8 | R23: 1.6 | S23: 1.4 | T23: 0.8
B24: ZF-250-60-7 | C24: ZF | D24: 250 | E24: 60 | F24: 7 | G24: 2 | H24: 397 | I24: 377 | J24: =D24*10 -> 2500 | K24: 600 | L24: 1 | M24: =_xlfn.MINIFS('8-ZF-x-60-x-W'!$BG$3:$BG$400,'8-ZF-x-60-x-W'!$P$3:$P$400,B24) -> 4.5 | N24: =_xlfn.MINIFS('8-ZF-x-60-x-K'!$AZ$3:$AZ$400,'8-ZF-x-60-x-K'!$M$3:$M$400,B24) -> 2.9 | O24: =_xlfn.MINIFS('8-ZF-x-60-x-K'!$CK$3:$CK$400,'8-ZF-x-60-x-K'!$M$3:$M$400,B24) -> 2.7 | P24: =_xlfn.MINIFS('8-ZF-x-60-x-K'!$DV$3:$DV$400,'8-ZF-x-60-x-K'!$M$3:$M$400,B24) -> 1.5 | Q24: =_xlfn.MINIFS('8-ZF-x-60-x-S'!$AW$3:$AW$400,'8-ZF-x-60-x-S'!$K$3:$K$400,Auswertung!B24) -> 2.6 | R24: 2.9 | S24: 2.7 | T24: 1.5
B25: ZF-250-60-6 | C25: ZF | D25: 250 | E25: 60 | F25: 6 | G25: 2 | H25: 476 | I25: 452 | J25: 2500 | K25: 600 | L25: 1 | M25: =_xlfn.MINIFS('8-ZF-x-60-x-W'!$BG$3:$BG$400,'8-ZF-x-60-x-W'!$P$3:$P$400,B25) -> 4.5 | N25: =_xlfn.MINIFS('8-ZF-x-60-x-K'!$AZ$3:$AZ$400,'8-ZF-x-60-x-K'!$M$3:$M$400,B25) -> 2.4 | O25: =_xlfn.MINIFS('8-ZF-x-60-x-K'!$CK$3:$CK$400,'8-ZF-x-60-x-K'!$M$3:$M$400,B25) -> 2.2 | P25: =_xlfn.MINIFS('8-ZF-x-60-x-K'!$DV$3:$DV$400,'8-ZF-x-60-x-K'!$M$3:$M$400,B25) -> 1.3 | Q25: =_xlfn.MINIFS('8-ZF-x-60-x-S'!$AW$3:$AW$400,'8-ZF-x-60-x-S'!$K$3:$K$400,Auswertung!B25) -> 1.8 | R25: 2.4 | S25: 2.2 | T25: 1.3
B26: ZF-250-60-5 | C26: ZF | D26: 250 | E26: 60 | F26: 5 | G26: 2 | H26: 595 | I26: 565 | J26: 2500 | K26: 600 | L26: 1 | M26: =_xlfn.MINIFS('8-ZF-x-60-x-W'!$BG$3:$BG$400,'8-ZF-x-60-x-W'!$P$3:$P$400,B26) -> 4.5 | N26: =_xlfn.MINIFS('8-ZF-x-60-x-K'!$AZ$3:$AZ$400,'8-ZF-x-60-x-K'!$M$3:$M$400,B26) -> 1.9 | O26: =_xlfn.MINIFS('8-ZF-x-60-x-K'!$CK$3:$CK$400,'8-ZF-x-60-x-K'!$M$3:$M$400,B26) -> 1.7 | P26: =_xlfn.MINIFS('8-ZF-x-60-x-K'!$DV$3:$DV$400,'8-ZF-x-60-x-K'!$M$3:$M$400,B26) -> 1.0 | Q26: =_xlfn.MINIFS('8-ZF-x-60-x-S'!$AW$3:$AW$400,'8-ZF-x-60-x-S'!$K$3:$K$400,Auswertung!B26) -> 1.2 | R26: 1.9 | S26: 1.7 | T26: 1.0
B27: ZF-200-60-6 | C27: ZF | D27: 200 | E27: 60 | F27: 6 | G27: 2 | H27: 376 | I27: 352 | J27: 2000 | K27: 600 | L27: 1 | M27: =_xlfn.MINIFS('8-ZF-x-60-x-W'!$BG$3:$BG$400,'8-ZF-x-60-x-W'!$P$3:$P$400,B27) -> 4.5 | N27: =_xlfn.MINIFS('8-ZF-x-60-x-K'!$AZ$3:$AZ$400,'8-ZF-x-60-x-K'!$M$3:$M$400,B27) -> 3.1 | O27: =_xlfn.MINIFS('8-ZF-x-60-x-K'!$CK$3:$CK$400,'8-ZF-x-60-x-K'!$M$3:$M$400,B27) -> 2.8 | P27: =_xlfn.MINIFS('8-ZF-x-60-x-K'!$DV$3:$DV$400,'8-ZF-x-60-x-K'!$M$3:$M$400,B27) -> 1.6 | Q27: =_xlfn.MINIFS('8-ZF-x-60-x-S'!$AW$3:$AW$400,'8-ZF-x-60-x-S'!$K$3:$K$400,Auswertung!B27) -> 2.9 | R27: 3.1 | S27: 2.8 | T27: 1.6
B28: ZF-200-60-5 | C28: ZF | D28: 200 | E28: 60 | F28: 5 | G28: 2 | H28: 470 | I28: 440 | J28: 2000 | K28: 600 | L28: 1 | M28: =_xlfn.MINIFS('8-ZF-x-60-x-W'!$BG$3:$BG$400,'8-ZF-x-60-x-W'!$P$3:$P$400,B28) -> 4.5 | N28: =_xlfn.MINIFS('8-ZF-x-60-x-K'!$AZ$3:$AZ$400,'8-ZF-x-60-x-K'!$M$3:$M$400,B28) -> 2.5 | O28: =_xlfn.MINIFS('8-ZF-x-60-x-K'!$CK$3:$CK$400,'8-ZF-x-60-x-K'!$M$3:$M$400,B28) -> 2.2 | P28: =_xlfn.MINIFS('8-ZF-x-60-x-K'!$DV$3:$DV$400,'8-ZF-x-60-x-K'!$M$3:$M$400,B28) -> 1.3 | Q28: =_xlfn.MINIFS('8-ZF-x-60-x-S'!$AW$3:$AW$400,'8-ZF-x-60-x-S'!$K$3:$K$400,Auswertung!B28) -> 1.9 | R28: 2.5 | S28: 2.2 | T28: 1.3
B29: ZF-200-60-4 | C29: ZF | D29: 200 | E29: 60 | F29: 4 | G29: 2 | H29: 627 | I29: 587 | J29: 2000 | K29: 600 | L29: 1 | M29: =_xlfn.MINIFS('8-ZF-x-60-x-W'!$BG$3:$BG$400,'8-ZF-x-60-x-W'!$P$3:$P$400,B29) -> 4.5 | N29: =_xlfn.MINIFS('8-ZF-x-60-x-K'!$AZ$3:$AZ$400,'8-ZF-x-60-x-K'!$M$3:$M$400,B29) -> 1.9 | O29: =_xlfn.MINIFS('8-ZF-x-60-x-K'!$CK$3:$CK$400,'8-ZF-x-60-x-K'!$M$3:$M$400,B29) -> 1.7 | P29: =_xlfn.MINIFS('8-ZF-x-60-x-K'!$DV$3:$DV$400,'8-ZF-x-60-x-K'!$M$3:$M$400,B29) -> 1.0 | Q29: =_xlfn.MINIFS('8-ZF-x-60-x-S'!$AW$3:$AW$400,'8-ZF-x-60-x-S'!$K$3:$K$400,Auswertung!B29) -> 1.1 | R29: 1.9 | S29: 1.7 | T29: 1.0
B30: ZF-150-60-4 | C30: ZF | D30: 150 | E30: 60 | F30: 4 | G30: 2 | H30: 460 | I30: 420 | J30: 1500 | K30: 600 | L30: 1 | M30: =_xlfn.MINIFS('8-ZF-x-60-x-W'!$BG$3:$BG$400,'8-ZF-x-60-x-W'!$P$3:$P$400,B30) -> 4.5 | N30: =_xlfn.MINIFS('8-ZF-x-60-x-K'!$AZ$3:$AZ$400,'8-ZF-x-60-x-K'!$M$3:$M$400,B30) -> 2.6 | O30: =_xlfn.MINIFS('8-ZF-x-60-x-K'!$CK$3:$CK$400,'8-ZF-x-60-x-K'!$M$3:$M$400,B30) -> 2.3 | P30: =_xlfn.MINIFS('8-ZF-x-60-x-K'!$DV$3:$DV$400,'8-ZF-x-60-x-K'!$M$3:$M$400,B30) -> 1.3 | Q30: =_xlfn.MINIFS('8-ZF-x-60-x-S'!$AW$3:$AW$400,'8-ZF-x-60-x-S'!$K$3:$K$400,Auswertung!B30) -> 1.9 | R30: 2.6 | S30: 2.3 | T30: 1.3
B31: ZF-150-60-3 | C31: ZF | D31: 150 | E31: 60 | F31: 3 | G31: 2 | H31: 690 | I31: 630 | J31: 1500 | K31: 600 | L31: 1 | M31: =_xlfn.MINIFS('8-ZF-x-60-x-W'!$BG$3:$BG$400,'8-ZF-x-60-x-W'!$P$3:$P$400,B31) -> 4.5 | N31: =_xlfn.MINIFS('8-ZF-x-60-x-K'!$AZ$3:$AZ$400,'8-ZF-x-60-x-K'!$M$3:$M$400,B31) -> 1.6 | O31: =_xlfn.MINIFS('8-ZF-x-60-x-K'!$CK$3:$CK$400,'8-ZF-x-60-x-K'!$M$3:$M$400,B31) -> 1.4 | P31: =_xlfn.MINIFS('8-ZF-x-60-x-K'!$DV$3:$DV$400,'8-ZF-x-60-x-K'!$M$3:$M$400,B31) -> 0.8 | Q31: =_xlfn.MINIFS('8-ZF-x-60-x-S'!$AW$3:$AW$400,'8-ZF-x-60-x-S'!$K$3:$K$400,Auswertung!B31) -> 1.0 | R31: 1.6 | S31: 1.4 | T31: 0.8
B32: ZF-100-60-3 | C32: ZF | D32: 100 | E32: 60 | F32: 3 | G32: 2 | H32: 440 | I32: 380 | J32: 1000 | K32: 600 | L32: 1 | M32: =_xlfn.MINIFS('8-ZF-x-60-x-W'!$BG$3:$BG$400,'8-ZF-x-60-x-W'!$P$3:$P$400,B32) -> 4.5 | N32: =_xlfn.MINIFS('8-ZF-x-60-x-K'!$AZ$3:$AZ$400,'8-ZF-x-60-x-K'!$M$3:$M$400,B32) -> 2.5 | O32: =_xlfn.MINIFS('8-ZF-x-60-x-K'!$CK$3:$CK$400,'8-ZF-x-60-x-K'!$M$3:$M$400,B32) -> 2.2 | P32: =_xlfn.MINIFS('8-ZF-x-60-x-K'!$DV$3:$DV$400,'8-ZF-x-60-x-K'!$M$3:$M$400,B32) -> 1.3 | Q32: =_xlfn.MINIFS('8-ZF-x-60-x-S'!$AW$3:$AW$400,'8-ZF-x-60-x-S'!$K$3:$K$400,Auswertung!B32) -> 2.3 | R32: 2.5 | S32: 2.2 | T32: 1.3
B33: ZF-50-60-2 | C33: ZF | D33: 50 | E33: 60 | F33: 2 | G33: 2 | H33: 380 | I33: 260 | J33: 500 | K33: 600 | L33: 1 | M33: =_xlfn.MINIFS('8-ZF-x-60-x-W'!$BG$3:$BG$400,'8-ZF-x-60-x-W'!$P$3:$P$400,B33) -> 4.5 | N33: =_xlfn.MINIFS('8-ZF-x-60-x-K'!$AZ$3:$AZ$400,'8-ZF-x-60-x-K'!$M$3:$M$400,B33) -> 3.0 | O33: =_xlfn.MINIFS('8-ZF-x-60-x-K'!$CK$3:$CK$400,'8-ZF-x-60-x-K'!$M$3:$M$400,B33) -> 2.6 | P33: =_xlfn.MINIFS('8-ZF-x-60-x-K'!$DV$3:$DV$400,'8-ZF-x-60-x-K'!$M$3:$M$400,B33) -> 2.7 | Q33: =_xlfn.MINIFS('8-ZF-x-60-x-S'!$AW$3:$AW$400,'8-ZF-x-60-x-S'!$K$3:$K$400,Auswertung!B33) -> 2.0 | R33: 3.0 | S33: 2.6 | T33: 2.7
A35: Auswertung 8mm ZF-x-80-x | B35: ZF-300-80-9 | C35: ZF | D35: 300 | E35: 80 | F35: 9 | G35: 2 | H35: =(J35-2*60)/(F35-1) -> 366 | I35: =(J35-2*120)/(F35-1) -> 351 | J35: =D35*10+50 -> 3050 | K35: =E35*10 -> 800 | L35: 1 | M35: =_xlfn.MINIFS('8-ZF-x-80-x-W'!$BG$3:$BG$400,'8-ZF-x-80-x-W'!$P$3:$P$400,B35) -> 4.5 | N35: =_xlfn.MINIFS('8-ZF-x-80-x-K'!$AZ$3:$AZ$400,'8-ZF-x-80-x-K'!$M$3:$M$400,B35) -> 2.3 | O35: =_xlfn.MINIFS('8-ZF-x-80-x-K'!$CK$3:$CK$400,'8-ZF-x-80-x-K'!$M$3:$M$400,B35) -> 2.1 | P35: =_xlfn.MINIFS('8-ZF-x-80-x-K'!$DV$3:$DV$400,'8-ZF-x-80-x-K'!$M$3:$M$400,B35) -> 1.2 | Q35: =_xlfn.MINIFS('8-ZF-x-80-x-S'!$AW$3:$AW$400,'8-ZF-x-80-x-S'!$K$3:$K$400,Auswertung!B35) -> 2.7 | R35: 2.3 | S35: 2.1 | T35: =IF(C35="EF",MIN(M35,P35,Q35),MIN(M35,P35)) -> 1.2
B36: ZF-300-80-8 | C36: ZF | D36: 300 | E36: 80 | F36: 8 | G36: 2 | H36: =(J36-2*60)/(F36-1) -> 419 | I36: =(J36-2*120)/(F36-1) -> 401 | J36: =D36*10+50 -> 3050 | K36: =E36*10 -> 800 | L36: 1 | M36: =_xlfn.MINIFS('8-ZF-x-80-x-W'!$BG$3:$BG$400,'8-ZF-x-80-x-W'!$P$3:$P$400,B36) -> 4.5 | N36: =_xlfn.MINIFS('8-ZF-x-80-x-K'!$AZ$3:$AZ$400,'8-ZF-x-80-x-K'!$M$3:$M$400,B36) -> 2.0 | O36: =_xlfn.MINIFS('8-ZF-x-80-x-K'!$CK$3:$CK$400,'8-ZF-x-80-x-K'!$M$3:$M$400,B36) -> 1.8 | P36: =_xlfn.MINIFS('8-ZF-x-80-x-K'!$DV$3:$DV$400,'8-ZF-x-80-x-K'!$M$3:$M$400,B36) -> 1.0 | Q36: =_xlfn.MINIFS('8-ZF-x-80-x-S'!$AW$3:$AW$400,'8-ZF-x-80-x-S'!$K$3:$K$400,Auswertung!B36) -> 2.1 | R36: 2.0 | S36: 1.8 | T36: 1
B37: ZF-300-80-7 | C37: ZF | D37: 300 | E37: 80 | F37: 7 | G37: 2 | H37: 488 | I37: 468 | J37: 3050 | K37: 800 | L37: 1 | M37: =_xlfn.MINIFS('8-ZF-x-80-x-W'!$BG$3:$BG$400,'8-ZF-x-80-x-W'!$P$3:$P$400,B37) -> 4.5 | N37: =_xlfn.MINIFS('8-ZF-x-80-x-K'!$AZ$3:$AZ$400,'8-ZF-x-80-x-K'!$M$3:$M$400,B37) -> 1.7 | O37: =_xlfn.MINIFS('8-ZF-x-80-x-K'!$CK$3:$CK$400,'8-ZF-x-80-x-K'!$M$3:$M$400,B37) -> 1.5 | P37: =_xlfn.MINIFS('8-ZF-x-80-x-K'!$DV$3:$DV$400,'8-ZF-x-80-x-K'!$M$3:$M$400,B37) -> 0.9 | Q37: =_xlfn.MINIFS('8-ZF-x-80-x-S'!$AW$3:$AW$400,'8-ZF-x-80-x-S'!$K$3:$K$400,Auswertung!B37) -> 1.6 | R37: 1.7 | S37: 1.5 | T37: 0.9
B38: ZF-300-80-6 | C38: ZF | D38: 300 | E38: 80 | F38: 6 | G38: 2 | H38: 586 | I38: 562 | J38: 3050 | K38: 800 | L38: 1 | M38: =_xlfn.MINIFS('8-ZF-x-80-x-W'!$BG$3:$BG$400,'8-ZF-x-80-x-W'!$P$3:$P$400,B38) -> 4.5 | N38: =_xlfn.MINIFS('8-ZF-x-80-x-K'!$AZ$3:$AZ$400,'8-ZF-x-80-x-K'!$M$3:$M$400,B38) -> 1.4 | O38: =_xlfn.MINIFS('8-ZF-x-80-x-K'!$CK$3:$CK$400,'8-ZF-x-80-x-K'!$M$3:$M$400,B38) -> 1.3 | P38: =_xlfn.MINIFS('8-ZF-x-80-x-K'!$DV$3:$DV$400,'8-ZF-x-80-x-K'!$M$3:$M$400,B38) -> 0.7 | Q38: =_xlfn.MINIFS('8-ZF-x-80-x-S'!$AW$3:$AW$400,'8-ZF-x-80-x-S'!$K$3:$K$400,Auswertung!B38) -> 1.1 | R38: 1.4 | S38: 1.3 | T38: 0.7
B39: ZF-300-80-5 | C39: ZF | D39: 300 | E39: 80 | F39: 5 | G39: 2 | H39: 733 | I39: 703 | J39: 3050 | K39: 800 | L39: 1 | M39: =_xlfn.MINIFS('8-ZF-x-80-x-W'!$BG$3:$BG$400,'8-ZF-x-80-x-W'!$P$3:$P$400,B39) -> 4.5 | N39: =_xlfn.MINIFS('8-ZF-x-80-x-K'!$AZ$3:$AZ$400,'8-ZF-x-80-x-K'!$M$3:$M$400,B39) -> 1.1 | O39: =_xlfn.MINIFS('8-ZF-x-80-x-K'!$CK$3:$CK$400,'8-ZF-x-80-x-K'!$M$3:$M$400,B39) -> 1.0 | P39: =_xlfn.MINIFS('8-ZF-x-80-x-K'!$DV$3:$DV$400,'8-ZF-x-80-x-K'!$M$3:$M$400,B39) -> 0.0 | Q39: =_xlfn.MINIFS('8-ZF-x-80-x-S'!$AW$3:$AW$400,'8-ZF-x-80-x-S'!$K$3:$K$400,Auswertung!B39) -> 0.7 | R39: 1.1 | S39: 1.0 | T39: 0
B40: ZF-250-80-7 | C40: ZF | D40: 250 | E40: 80 | F40: 7 | G40: 2 | H40: 397 | I40: 377 | J40: =D40*10 -> 2500 | K40: 800 | L40: 1 | M40: =_xlfn.MINIFS('8-ZF-x-80-x-W'!$BG$3:$BG$400,'8-ZF-x-80-x-W'!$P$3:$P$400,B40) -> 4.5 | N40: =_xlfn.MINIFS('8-ZF-x-80-x-K'!$AZ$3:$AZ$400,'8-ZF-x-80-x-K'!$M$3:$M$400,B40) -> 2.1 | O40: =_xlfn.MINIFS('8-ZF-x-80-x-K'!$CK$3:$CK$400,'8-ZF-x-80-x-K'!$M$3:$M$400,B40) -> 1.9 | P40: =_xlfn.MINIFS('8-ZF-x-80-x-K'!$DV$3:$DV$400,'8-ZF-x-80-x-K'!$M$3:$M$400,B40) -> 1.1 | Q40: =_xlfn.MINIFS('8-ZF-x-80-x-S'!$AW$3:$AW$400,'8-ZF-x-80-x-S'!$K$3:$K$400,Auswertung!B40) -> 2.3 | R40: 2.1 | S40: 1.9 | T40: 1.1
B41: ZF-250-80-6 | C41: ZF | D41: 250 | E41: 80 | F41: 6 | G41: 2 | H41: 476 | I41: 452 | J41: 2500 | K41: 800 | L41: 1 | M41: =_xlfn.MINIFS('8-ZF-x-80-x-W'!$BG$3:$BG$400,'8-ZF-x-80-x-W'!$P$3:$P$400,B41) -> 4.5 | N41: =_xlfn.MINIFS('8-ZF-x-80-x-K'!$AZ$3:$AZ$400,'8-ZF-x-80-x-K'!$M$3:$M$400,B41) -> 1.8 | O41: =_xlfn.MINIFS('8-ZF-x-80-x-K'!$CK$3:$CK$400,'8-ZF-x-80-x-K'!$M$3:$M$400,B41) -> 1.6 | P41: =_xlfn.MINIFS('8-ZF-x-80-x-K'!$DV$3:$DV$400,'8-ZF-x-80-x-K'!$M$3:$M$400,B41) -> 0.9 | Q41: =_xlfn.MINIFS('8-ZF-x-80-x-S'!$AW$3:$AW$400,'8-ZF-x-80-x-S'!$K$3:$K$400,Auswertung!B41) -> 1.7 | R41: 1.8 | S41: 1.6 | T41: 0.9
B42: ZF-250-80-5 | C42: ZF | D42: 250 | E42: 80 | F42: 5 | G42: 2 | H42: 595 | I42: 565 | J42: 2500 | K42: 800 | L42: 1 | M42: =_xlfn.MINIFS('8-ZF-x-80-x-W'!$BG$3:$BG$400,'8-ZF-x-80-x-W'!$P$3:$P$400,B42) -> 4.5 | N42: =_xlfn.MINIFS('8-ZF-x-80-x-K'!$AZ$3:$AZ$400,'8-ZF-x-80-x-K'!$M$3:$M$400,B42) -> 1.4 | O42: =_xlfn.MINIFS('8-ZF-x-80-x-K'!$CK$3:$CK$400,'8-ZF-x-80-x-K'!$M$3:$M$400,B42) -> 1.2 | P42: =_xlfn.MINIFS('8-ZF-x-80-x-K'!$DV$3:$DV$400,'8-ZF-x-80-x-K'!$M$3:$M$400,B42) -> 0.7 | Q42: =_xlfn.MINIFS('8-ZF-x-80-x-S'!$AW$3:$AW$400,'8-ZF-x-80-x-S'!$K$3:$K$400,Auswertung!B42) -> 1.1 | R42: 1.4 | S42: 1.2 | T42: 0.7
B43: ZF-200-80-6 | C43: ZF | D43: 200 | E43: 80 | F43: 6 | G43: 2 | H43: 376 | I43: 352 | J43: 2000 | K43: 800 | L43: 1 | M43: =_xlfn.MINIFS('8-ZF-x-80-x-W'!$BG$3:$BG$400,'8-ZF-x-80-x-W'!$P$3:$P$400,B43) -> 4.5 | N43: =_xlfn.MINIFS('8-ZF-x-80-x-K'!$AZ$3:$AZ$400,'8-ZF-x-80-x-K'!$M$3:$M$400,B43) -> 2.2 | O43: =_xlfn.MINIFS('8-ZF-x-80-x-K'!$CK$3:$CK$400,'8-ZF-x-80-x-K'!$M$3:$M$400,B43) -> 2.0 | P43: =_xlfn.MINIFS('8-ZF-x-80-x-K'!$DV$3:$DV$400,'8-ZF-x-80-x-K'!$M$3:$M$400,B43) -> 1.2 | Q43: =_xlfn.MINIFS('8-ZF-x-80-x-S'!$AW$3:$AW$400,'8-ZF-x-80-x-S'!$K$3:$K$400,Auswertung!B43) -> 2.6 | R43: 2.2 | S43: 2.0 | T43: 1.2
B44: ZF-200-80-5 | C44: ZF | D44: 200 | E44: 80 | F44: 5 | G44: 2 | H44: 470 | I44: 440 | J44: 2000 | K44: 800 | L44: 1 | M44: =_xlfn.MINIFS('8-ZF-x-80-x-W'!$BG$3:$BG$400,'8-ZF-x-80-x-W'!$P$3:$P$400,B44) -> 4.5 | N44: =_xlfn.MINIFS('8-ZF-x-80-x-K'!$AZ$3:$AZ$400,'8-ZF-x-80-x-K'!$M$3:$M$400,B44) -> 1.8 | O44: =_xlfn.MINIFS('8-ZF-x-80-x-K'!$CK$3:$CK$400,'8-ZF-x-80-x-K'!$M$3:$M$400,B44) -> 1.6 | P44: =_xlfn.MINIFS('8-ZF-x-80-x-K'!$DV$3:$DV$400,'8-ZF-x-80-x-K'!$M$3:$M$400,B44) -> 0.9 | Q44: =_xlfn.MINIFS('8-ZF-x-80-x-S'!$AW$3:$AW$400,'8-ZF-x-80-x-S'!$K$3:$K$400,Auswertung!B44) -> 1.7 | R44: 1.8 | S44: 1.6 | T44: 0.9
B45: ZF-200-80-4 | C45: ZF | D45: 200 | E45: 80 | F45: 4 | G45: 2 | H45: 627 | I45: 587 | J45: 2000 | K45: 800 | L45: 1 | M45: =_xlfn.MINIFS('8-ZF-x-80-x-W'!$BG$3:$BG$400,'8-ZF-x-80-x-W'!$P$3:$P$400,B45) -> 4.5 | N45: =_xlfn.MINIFS('8-ZF-x-80-x-K'!$AZ$3:$AZ$400,'8-ZF-x-80-x-K'!$M$3:$M$400,B45) -> 1.3 | O45: =_xlfn.MINIFS('8-ZF-x-80-x-K'!$CK$3:$CK$400,'8-ZF-x-80-x-K'!$M$3:$M$400,B45) -> 1.2 | P45: =_xlfn.MINIFS('8-ZF-x-80-x-K'!$DV$3:$DV$400,'8-ZF-x-80-x-K'!$M$3:$M$400,B45) -> 0.7 | Q45: =_xlfn.MINIFS('8-ZF-x-80-x-S'!$AW$3:$AW$400,'8-ZF-x-80-x-S'!$K$3:$K$400,Auswertung!B45) -> 1 | R45: 1.3 | S45: 1.2 | T45: 0.7
B46: ZF-150-80-4 | C46: ZF | D46: 150 | E46: 80 | F46: 4 | G46: 2 | H46: 460 | I46: 420 | J46: 1500 | K46: 800 | L46: 1 | M46: =_xlfn.MINIFS('8-ZF-x-80-x-W'!$BG$3:$BG$400,'8-ZF-x-80-x-W'!$P$3:$P$400,B46) -> 4.5 | N46: =_xlfn.MINIFS('8-ZF-x-80-x-K'!$AZ$3:$AZ$400,'8-ZF-x-80-x-K'!$M$3:$M$400,B46) -> 1.8 | O46: =_xlfn.MINIFS('8-ZF-x-80-x-K'!$CK$3:$CK$400,'8-ZF-x-80-x-K'!$M$3:$M$400,B46) -> 1.7 | P46: =_xlfn.MINIFS('8-ZF-x-80-x-K'!$DV$3:$DV$400,'8-ZF-x-80-x-K'!$M$3:$M$400,B46) -> 1.0 | Q46: =_xlfn.MINIFS('8-ZF-x-80-x-S'!$AW$3:$AW$400,'8-ZF-x-80-x-S'!$K$3:$K$400,Auswertung!B46) -> 1.8 | R46: 1.8 | S46: 1.7 | T46: 1
B47: ZF-150-80-3 | C47: ZF | D47: 150 | E47: 80 | F47: 3 | G47: 2 | H47: 690 | I47: 630 | J47: 1500 | K47: 800 | L47: 1 | M47: =_xlfn.MINIFS('8-ZF-x-80-x-W'!$BG$3:$BG$400,'8-ZF-x-80-x-W'!$P$3:$P$400,B47) -> 4.5 | N47: =_xlfn.MINIFS('8-ZF-x-80-x-K'!$AZ$3:$AZ$400,'8-ZF-x-80-x-K'!$M$3:$M$400,B47) -> 1.1 | O47: =_xlfn.MINIFS('8-ZF-x-80-x-K'!$CK$3:$CK$400,'8-ZF-x-80-x-K'!$M$3:$M$400,B47) -> 1.0 | P47: =_xlfn.MINIFS('8-ZF-x-80-x-K'!$DV$3:$DV$400,'8-ZF-x-80-x-K'!$M$3:$M$400,B47) -> 0.0 | Q47: =_xlfn.MINIFS('8-ZF-x-80-x-S'!$AW$3:$AW$400,'8-ZF-x-80-x-S'!$K$3:$K$400,Auswertung!B47) -> 0.9 | R47: 1.1 | S47: 1.0 | T47: 0
B48: ZF-100-80-3 | C48: ZF | D48: 100 | E48: 80 | F48: 3 | G48: 2 | H48: =(J48-2*60)/(F48-1) -> 440 | I48: 380 | J48: 1000 | K48: 800 | L48: 1 | M48: =_xlfn.MINIFS('8-ZF-x-80-x-W'!$BG$3:$BG$400,'8-ZF-x-80-x-W'!$P$3:$P$400,B48) -> 4.5 | N48: =_xlfn.MINIFS('8-ZF-x-80-x-K'!$AZ$3:$AZ$400,'8-ZF-x-80-x-K'!$M$3:$M$400,B48) -> 1.8 | O48: =_xlfn.MINIFS('8-ZF-x-80-x-K'!$CK$3:$CK$400,'8-ZF-x-80-x-K'!$M$3:$M$400,B48) -> 1.6 | P48: =_xlfn.MINIFS('8-ZF-x-80-x-K'!$DV$3:$DV$400,'8-ZF-x-80-x-K'!$M$3:$M$400,B48) -> 0.9 | Q48: =_xlfn.MINIFS('8-ZF-x-80-x-S'!$AW$3:$AW$400,'8-ZF-x-80-x-S'!$K$3:$K$400,Auswertung!B48) -> 2.1 | R48: 1.8 | S48: 1.6 | T48: 0.9
B49: ZF-50-80-2 | C49: ZF | D49: 50 | E49: 80 | F49: 2 | G49: 2 | H49: 380 | I49: 260 | J49: 500 | K49: 800 | L49: 1 | M49: =_xlfn.MINIFS('8-ZF-x-80-x-W'!$BG$3:$BG$400,'8-ZF-x-80-x-W'!$P$3:$P$400,B49) -> 4.5 | N49: =_xlfn.MINIFS('8-ZF-x-80-x-K'!$AZ$3:$AZ$400,'8-ZF-x-80-x-K'!$M$3:$M$400,B49) -> 2.1 | O49: =_xlfn.MINIFS('8-ZF-x-80-x-K'!$CK$3:$CK$400,'8-ZF-x-80-x-K'!$M$3:$M$400,B49) -> 1.8 | P49: =_xlfn.MINIFS('8-ZF-x-80-x-K'!$DV$3:$DV$400,'8-ZF-x-80-x-K'!$M$3:$M$400,B49) -> 1.9 | Q49: =_xlfn.MINIFS('8-ZF-x-80-x-S'!$AW$3:$AW$400,'8-ZF-x-80-x-S'!$K$3:$K$400,Auswertung!B49) -> 1.8 | R49: 2.1 | S49: 1.8 | T49: 1.9
A51: Auswertung Gravial EF-x-40-x | B51: EF-300-40-9 | C51: EF | D51: 300 | E51: 40 | F51: 9 | G51: 1 | H51: 366 | I51: 351 | J51: =D51*10+50 -> 3050 | K51: 400 | L51: 2 | M51: =_xlfn.MINIFS('G-EF-x-40-x-W'!$BG$3:$BG$400,'G-EF-x-40-x-W'!$P$3:$P$400,B51) -> 4.5 | N51: =_xlfn.MINIFS('G-EF-x-40-x-K'!$AZ$3:$AZ$400,'G-EF-x-40-x-K'!$M$3:$M$400,B51) -> 3.3 | O51: =_xlfn.MINIFS('G-EF-x-40-x-K'!$CK$3:$CK$400,'G-EF-x-40-x-K'!$M$3:$M$400,B51) -> 3.6 | P51: =_xlfn.MINIFS('G-EF-x-40-x-K'!$DV$3:$DV$400,'G-EF-x-40-x-K'!$M$3:$M$400,B51) -> 2.4 | Q51: =_xlfn.MINIFS('G-EF-x-40-x-S'!$AW$3:$AW$400,'G-EF-x-40-x-S'!$K$3:$K$400,Auswertung!B51) -> 3.1 | R51: 3.1 | S51: 3.1 | T51: 2.4
B52: EF-300-40-8 | C52: EF | D52: 300 | E52: 40 | F52: 8 | G52: 1 | H52: 419 | I52: 401 | J52: =D52*10+50 -> 3050 | K52: 400 | L52: 2 | M52: =_xlfn.MINIFS('G-EF-x-40-x-W'!$BG$3:$BG$400,'G-EF-x-40-x-W'!$P$3:$P$400,B52) -> 4.5 | N52: =_xlfn.MINIFS('G-EF-x-40-x-K'!$AZ$3:$AZ$400,'G-EF-x-40-x-K'!$M$3:$M$400,B52) -> 2.9 | O52: =_xlfn.MINIFS('G-EF-x-40-x-K'!$CK$3:$CK$400,'G-EF-x-40-x-K'!$M$3:$M$400,B52) -> 3.1 | P52: =_xlfn.MINIFS('G-EF-x-40-x-K'!$DV$3:$DV$400,'G-EF-x-40-x-K'!$M$3:$M$400,B52) -> 2.1 | Q52: =_xlfn.MINIFS('G-EF-x-40-x-S'!$AW$3:$AW$400,'G-EF-x-40-x-S'!$K$3:$K$400,Auswertung!B52) -> 3.0 | R52: 2.9 | S52: 3.0 | T52: 2.1
B53: EF-300-40-7 | C53: EF | D53: 300 | E53: 40 | F53: 7 | G53: 1 | H53: 488 | I53: 468 | J53: 3050 | K53: 400 | L53: 2 | M53: =_xlfn.MINIFS('G-EF-x-40-x-W'!$BG$3:$BG$400,'G-EF-x-40-x-W'!$P$3:$P$400,B53) -> 4.5 | N53: =_xlfn.MINIFS('G-EF-x-40-x-K'!$AZ$3:$AZ$400,'G-EF-x-40-x-K'!$M$3:$M$400,B53) -> 2.4 | O53: =_xlfn.MINIFS('G-EF-x-40-x-K'!$CK$3:$CK$400,'G-EF-x-40-x-K'!$M$3:$M$400,B53) -> 2.6 | P53: =_xlfn.MINIFS('G-EF-x-40-x-K'!$DV$3:$DV$400,'G-EF-x-40-x-K'!$M$3:$M$400,B53) -> 1.8 | Q53: =_xlfn.MINIFS('G-EF-x-40-x-S'!$AW$3:$AW$400,'G-EF-x-40-x-S'!$K$3:$K$400,Auswertung!B53) -> 2.6 | R53: 2.4 | S53: 2.6 | T53: 1.8
B54: EF-300-40-6 | C54: EF | D54: 300 | E54: 40 | F54: 6 | G54: 1 | H54: 586 | I54: 562 | J54: 3050 | K54: 400 | L54: 2 | M54: =_xlfn.MINIFS('G-EF-x-40-x-W'!$BG$3:$BG$400,'G-EF-x-40-x-W'!$P$3:$P$400,B54) -> 4.5 | N54: =_xlfn.MINIFS('G-EF-x-40-x-K'!$AZ$3:$AZ$400,'G-EF-x-40-x-K'!$M$3:$M$400,B54) -> 2.0 | O54: =_xlfn.MINIFS('G-EF-x-40-x-K'!$CK$3:$CK$400,'G-EF-x-40-x-K'!$M$3:$M$400,B54) -> 2.1 | P54: =_xlfn.MINIFS('G-EF-x-40-x-K'!$DV$3:$DV$400,'G-EF-x-40-x-K'!$M$3:$M$400,B54) -> 1.5 | Q54: =_xlfn.MINIFS('G-EF-x-40-x-S'!$AW$3:$AW$400,'G-EF-x-40-x-S'!$K$3:$K$400,Auswertung!B54) -> 2.0 | R54: 2.0 | S54: 2.0 | T54: 1.5
B55: EF-300-40-5 | C55: EF | D55: 300 | E55: 40 | F55: 5 | G55: 1 | H55: 733 | I55: 703 | J55: 3050 | K55: 400 | L55: 2 | M55: =_xlfn.MINIFS('G-EF-x-40-x-W'!$BG$3:$BG$400,'G-EF-x-40-x-W'!$P$3:$P$400,B55) -> 4.5 | N55: =_xlfn.MINIFS('G-EF-x-40-x-K'!$AZ$3:$AZ$400,'G-EF-x-40-x-K'!$M$3:$M$400,B55) -> 1.6 | O55: =_xlfn.MINIFS('G-EF-x-40-x-K'!$CK$3:$CK$400,'G-EF-x-40-x-K'!$M$3:$M$400,B55) -> 1.7 | P55: =_xlfn.MINIFS('G-EF-x-40-x-K'!$DV$3:$DV$400,'G-EF-x-40-x-K'!$M$3:$M$400,B55) -> 1.2 | Q55: =_xlfn.MINIFS('G-EF-x-40-x-S'!$AW$3:$AW$400,'G-EF-x-40-x-S'!$K$3:$K$400,Auswertung!B55) -> 1.5 | R55: 1.5 | S55: 1.5 | T55: 1.2
B56: EF-250-40-7 | C56: EF | D56: 250 | E56: 40 | F56: 7 | G56: 1 | H56: 397 | I56: 377 | J56: =D56*10 -> 2500 | K56: 400 | L56: 2 | M56: =_xlfn.MINIFS('G-EF-x-40-x-W'!$BG$3:$BG$400,'G-EF-x-40-x-W'!$P$3:$P$400,B56) -> 4.5 | N56: =_xlfn.MINIFS('G-EF-x-40-x-K'!$AZ$3:$AZ$400,'G-EF-x-40-x-K'!$M$3:$M$400,B56) -> 3.0 | O56: =_xlfn.MINIFS('G-EF-x-40-x-K'!$CK$3:$CK$400,'G-EF-x-40-x-K'!$M$3:$M$400,B56) -> 3.3 | P56: =_xlfn.MINIFS('G-EF-x-40-x-K'!$DV$3:$DV$400,'G-EF-x-40-x-K'!$M$3:$M$400,B56) -> 2.2 | Q56: =_xlfn.MINIFS('G-EF-x-40-x-S'!$AW$3:$AW$400,'G-EF-x-40-x-S'!$K$3:$K$400,Auswertung!B56) -> 3.1 | R56: 3.0 | S56: 3.1 | T56: 2.2
B57: EF-250-40-6 | C57: EF | D57: 250 | E57: 40 | F57: 6 | G57: 1 | H57: 476 | I57: 452 | J57: 2500 | K57: 400 | L57: 2 | M57: =_xlfn.MINIFS('G-EF-x-40-x-W'!$BG$3:$BG$400,'G-EF-x-40-x-W'!$P$3:$P$400,B57) -> 4.5 | N57: =_xlfn.MINIFS('G-EF-x-40-x-K'!$AZ$3:$AZ$400,'G-EF-x-40-x-K'!$M$3:$M$400,B57) -> 2.5 | O57: =_xlfn.MINIFS('G-EF-x-40-x-K'!$CK$3:$CK$400,'G-EF-x-40-x-K'!$M$3:$M$400,B57) -> 2.7 | P57: =_xlfn.MINIFS('G-EF-x-40-x-K'!$DV$3:$DV$400,'G-EF-x-40-x-K'!$M$3:$M$400,B57) -> 1.8 | Q57: =_xlfn.MINIFS('G-EF-x-40-x-S'!$AW$3:$AW$400,'G-EF-x-40-x-S'!$K$3:$K$400,Auswertung!B57) -> 2.7 | R57: 2.5 | S57: 2.7 | T57: 1.8
B58: EF-250-40-5 | C58: EF | D58: 250 | E58: 40 | F58: 5 | G58: 1 | H58: 595 | I58: 565 | J58: 2500 | K58: 400 | L58: 2 | M58: =_xlfn.MINIFS('G-EF-x-40-x-W'!$BG$3:$BG$400,'G-EF-x-40-x-W'!$P$3:$P$400,B58) -> 4.5 | N58: =_xlfn.MINIFS('G-EF-x-40-x-K'!$AZ$3:$AZ$400,'G-EF-x-40-x-K'!$M$3:$M$400,B58) -> 2.0 | O58: =_xlfn.MINIFS('G-EF-x-40-x-K'!$CK$3:$CK$400,'G-EF-x-40-x-K'!$M$3:$M$400,B58) -> 2.1 | P58: =_xlfn.MINIFS('G-EF-x-40-x-K'!$DV$3:$DV$400,'G-EF-x-40-x-K'!$M$3:$M$400,B58) -> 1.5 | Q58: =_xlfn.MINIFS('G-EF-x-40-x-S'!$AW$3:$AW$400,'G-EF-x-40-x-S'!$K$3:$K$400,Auswertung!B58) -> 2.0 | R58: 2.0 | S58: 2.0 | T58: 1.5
B59: EF-200-40-6 | C59: EF | D59: 200 | E59: 40 | F59: 6 | G59: 1 | H59: 376 | I59: 352 | J59: 2000 | K59: 400 | L59: 2 | M59: =_xlfn.MINIFS('G-EF-x-40-x-W'!$BG$3:$BG$400,'G-EF-x-40-x-W'!$P$3:$P$400,B59) -> 4.5 | N59: =_xlfn.MINIFS('G-EF-x-40-x-K'!$AZ$3:$AZ$400,'G-EF-x-40-x-K'!$M$3:$M$400,B59) -> 3.2 | O59: =_xlfn.MINIFS('G-EF-x-40-x-K'!$CK$3:$CK$400,'G-EF-x-40-x-K'!$M$3:$M$400,B59) -> 3.5 | P59: =_xlfn.MINIFS('G-EF-x-40-x-K'!$DV$3:$DV$400,'G-EF-x-40-x-K'!$M$3:$M$400,B59) -> 2.3 | Q59: =_xlfn.MINIFS('G-EF-x-40-x-S'!$AW$3:$AW$400,'G-EF-x-40-x-S'!$K$3:$K$400,Auswertung!B59) -> 3.1 | R59: 3.1 | S59: 3.1 | T59: 2.3
B60: EF-200-40-5 | C60: EF | D60: 200 | E60: 40 | F60: 5 | G60: 1 | H60: 470 | I60: 440 | J60: 2000 | K60: 400 | L60: 2 | M60: =_xlfn.MINIFS('G-EF-x-40-x-W'!$BG$3:$BG$400,'G-EF-x-40-x-W'!$P$3:$P$400,B60) -> 4.5 | N60: =_xlfn.MINIFS('G-EF-x-40-x-K'!$AZ$3:$AZ$400,'G-EF-x-40-x-K'!$M$3:$M$400,B60) -> 2.5 | O60: =_xlfn.MINIFS('G-EF-x-40-x-K'!$CK$3:$CK$400,'G-EF-x-40-x-K'!$M$3:$M$400,B60) -> 2.7 | P60: =_xlfn.MINIFS('G-EF-x-40-x-K'!$DV$3:$DV$400,'G-EF-x-40-x-K'!$M$3:$M$400,B60) -> 1.9 | Q60: =_xlfn.MINIFS('G-EF-x-40-x-S'!$AW$3:$AW$400,'G-EF-x-40-x-S'!$K$3:$K$400,Auswertung!B60) -> 2.8 | R60: 2.5 | S60: 2.7 | T60: 1.9
B61: EF-200-40-4 | C61: EF | D61: 200 | E61: 40 | F61: 4 | G61: 1 | H61: 627 | I61: 587 | J61: 2000 | K61: 400 | L61: 2 | M61: =_xlfn.MINIFS('G-EF-x-40-x-W'!$BG$3:$BG$400,'G-EF-x-40-x-W'!$P$3:$P$400,B61) -> 4.5 | N61: =_xlfn.MINIFS('G-EF-x-40-x-K'!$AZ$3:$AZ$400,'G-EF-x-40-x-K'!$M$3:$M$400,B61) -> 1.9 | O61: =_xlfn.MINIFS('G-EF-x-40-x-K'!$CK$3:$CK$400,'G-EF-x-40-x-K'!$M$3:$M$400,B61) -> 2.0 | P61: =_xlfn.MINIFS('G-EF-x-40-x-K'!$DV$3:$DV$400,'G-EF-x-40-x-K'!$M$3:$M$400,B61) -> 1.4 | Q61: =_xlfn.MINIFS('G-EF-x-40-x-S'!$AW$3:$AW$400,'G-EF-x-40-x-S'!$K$3:$K$400,Auswertung!B61) -> 1.9 | R61: 1.9 | S61: 1.9 | T61: 1.4
B62: EF-150-40-4 | C62: EF | D62: 150 | E62: 40 | F62: 4 | G62: 1 | H62: 460 | I62: 420 | J62: 1500 | K62: 400 | L62: 2 | M62: =_xlfn.MINIFS('G-EF-x-40-x-W'!$BG$3:$BG$400,'G-EF-x-40-x-W'!$P$3:$P$400,B62) -> 4.5 | N62: =_xlfn.MINIFS('G-EF-x-40-x-K'!$AZ$3:$AZ$400,'G-EF-x-40-x-K'!$M$3:$M$400,B62) -> 2.6 | O62: =_xlfn.MINIFS('G-EF-x-40-x-K'!$CK$3:$CK$400,'G-EF-x-40-x-K'!$M$3:$M$400,B62) -> 2.8 | P62: =_xlfn.MINIFS('G-EF-x-40-x-K'!$DV$3:$DV$400,'G-EF-x-40-x-K'!$M$3:$M$400,B62) -> 1.9 | Q62: =_xlfn.MINIFS('G-EF-x-40-x-S'!$AW$3:$AW$400,'G-EF-x-40-x-S'!$K$3:$K$400,Auswertung!B62) -> 2.9 | R62: 2.6 | S62: 2.8 | T62: 1.9
B63: EF-150-40-3 | C63: EF | D63: 150 | E63: 40 | F63: 3 | G63: 1 | H63: 690 | I63: 630 | J63: 1500 | K63: 400 | L63: 2 | M63: =_xlfn.MINIFS('G-EF-x-40-x-W'!$BG$3:$BG$400,'G-EF-x-40-x-W'!$P$3:$P$400,B63) -> 4.5 | N63: =_xlfn.MINIFS('G-EF-x-40-x-K'!$AZ$3:$AZ$400,'G-EF-x-40-x-K'!$M$3:$M$400,B63) -> 1.6 | O63: =_xlfn.MINIFS('G-EF-x-40-x-K'!$CK$3:$CK$400,'G-EF-x-40-x-K'!$M$3:$M$400,B63) -> 1.7 | P63: =_xlfn.MINIFS('G-EF-x-40-x-K'!$DV$3:$DV$400,'G-EF-x-40-x-K'!$M$3:$M$400,B63) -> 1.2 | Q63: =_xlfn.MINIFS('G-EF-x-40-x-S'!$AW$3:$AW$400,'G-EF-x-40-x-S'!$K$3:$K$400,Auswertung!B63) -> 1.7 | R63: 1.6 | S63: 1.7 | T63: 1.2
B64: EF-100-40-3 | C64: EF | D64: 100 | E64: 40 | F64: 3 | G64: 1 | H64: 440 | I64: 380 | J64: 1000 | K64: 400 | L64: 2 | M64: =_xlfn.MINIFS('G-EF-x-40-x-W'!$BG$3:$BG$400,'G-EF-x-40-x-W'!$P$3:$P$400,B64) -> 4.5 | N64: =_xlfn.MINIFS('G-EF-x-40-x-K'!$AZ$3:$AZ$400,'G-EF-x-40-x-K'!$M$3:$M$400,B64) -> 2.6 | O64: =_xlfn.MINIFS('G-EF-x-40-x-K'!$CK$3:$CK$400,'G-EF-x-40-x-K'!$M$3:$M$400,B64) -> 2.8 | P64: =_xlfn.MINIFS('G-EF-x-40-x-K'!$DV$3:$DV$400,'G-EF-x-40-x-K'!$M$3:$M$400,B64) -> 2.0 | Q64: =_xlfn.MINIFS('G-EF-x-40-x-S'!$AW$3:$AW$400,'G-EF-x-40-x-S'!$K$3:$K$400,Auswertung!B64) -> 3.0 | R64: 2.6 | S64: 2.8 | T64: 2.0
B65: EF-50-40-2 | C65: EF | D65: 50 | E65: 40 | F65: 2 | G65: 1 | H65: 380 | I65: 260 | J65: 500 | K65: 400 | L65: 2 | M65: =_xlfn.MINIFS('G-EF-x-40-x-W'!$BG$3:$BG$400,'G-EF-x-40-x-W'!$P$3:$P$400,B65) -> 4.5 | N65: =_xlfn.MINIFS('G-EF-x-40-x-K'!$AZ$3:$AZ$400,'G-EF-x-40-x-K'!$M$3:$M$400,B65) -> 3.6 | O65: =_xlfn.MINIFS('G-EF-x-40-x-K'!$CK$3:$CK$400,'G-EF-x-40-x-K'!$M$3:$M$400,B65) -> 4.0 | P65: =_xlfn.MINIFS('G-EF-x-40-x-K'!$DV$3:$DV$400,'G-EF-x-40-x-K'!$M$3:$M$400,B65) -> 3.4 | Q65: =_xlfn.MINIFS('G-EF-x-40-x-S'!$AW$3:$AW$400,'G-EF-x-40-x-S'!$K$3:$K$400,Auswertung!B65) -> 3.0 | R65: 3.0 | S65: 3.0 | T65: 3.0
A67: Auswertung Gravial ZF-x-60-x | B67: ZF-300-60-9 | C67: ZF | D67: 300 | E67: 60 | F67: 9 | G67: =IF(C67="EF",1,2) -> 2 | H67: =(J67-2*60)/(F67-1) -> 366 | I67: =(J67-2*120)/(F67-1) -> 351 | J67: =D67*10+50 -> 3050 | K67: 600 | L67: 2 | M67: =_xlfn.MINIFS('G-ZF-x-60-x-W'!$BG$3:$BG$400,'G-ZF-x-60-x-W'!$P$3:$P$400,B67) -> 4.5 | N67: =_xlfn.MINIFS('G-ZF-x-60-x-K'!$AZ$3:$AZ$400,'G-ZF-x-60-x-K'!$M$3:$M$400,B67) -> 3.7 | O67: =_xlfn.MINIFS('G-ZF-x-60-x-K'!$CK$3:$CK$400,'G-ZF-x-60-x-K'!$M$3:$M$400,B67) -> 3.3 | P67: =_xlfn.MINIFS('G-ZF-x-60-x-K'!$DV$3:$DV$400,'G-ZF-x-60-x-K'!$M$3:$M$400,B67) -> 1.6 | Q67: =_xlfn.MINIFS('G-ZF-x-60-x-S'!$AW$3:$AW$400,'G-ZF-x-60-x-S'!$K$3:$K$400,Auswertung!B67) -> 4.5 | R67: 3.7 | S67: 3.3 | T67: 1.6
B68: ZF-300-60-8 | C68: ZF | D68: 300 | E68: 60 | F68: 8 | G68: 2 | H68: 419 | I68: 401 | J68: =D68*10+50 -> 3050 | K68: 600 | L68: 2 | M68: =_xlfn.MINIFS('G-ZF-x-60-x-W'!$BG$3:$BG$400,'G-ZF-x-60-x-W'!$P$3:$P$400,B68) -> 4.5 | N68: =_xlfn.MINIFS('G-ZF-x-60-x-K'!$AZ$3:$AZ$400,'G-ZF-x-60-x-K'!$M$3:$M$400,B68) -> 3.2 | O68: =_xlfn.MINIFS('G-ZF-x-60-x-K'!$CK$3:$CK$400,'G-ZF-x-60-x-K'!$M$3:$M$400,B68) -> 2.9 | P68: =_xlfn.MINIFS('G-ZF-x-60-x-K'!$DV$3:$DV$400,'G-ZF-x-60-x-K'!$M$3:$M$400,B68) -> 1.4 | Q68: =_xlfn.MINIFS('G-ZF-x-60-x-S'!$AW$3:$AW$400,'G-ZF-x-60-x-S'!$K$3:$K$400,Auswertung!B68) -> 3.6 | R68: =IF(C68="EF",MIN(M68:N68,Q68),MIN(M68:N68)) -> 3.2 | S68: =IF(C68="EF",MIN(M68,O68,Q68),MIN(M68,O68)) -> 2.9 | T68: =IF(C68="EF",MIN(M68,P68,Q68),MIN(M68,P68)) -> 1.4
B69: ZF-300-60-7 | C69: ZF | D69: 300 | E69: 60 | F69: 7 | G69: 2 | H69: 488 | I69: 468 | J69: 3050 | K69: 600 | L69: 2 | M69: =_xlfn.MINIFS('G-ZF-x-60-x-W'!$BG$3:$BG$400,'G-ZF-x-60-x-W'!$P$3:$P$400,B69) -> 4.5 | N69: =_xlfn.MINIFS('G-ZF-x-60-x-K'!$AZ$3:$AZ$400,'G-ZF-x-60-x-K'!$M$3:$M$400,B69) -> 2.7 | O69: =_xlfn.MINIFS('G-ZF-x-60-x-K'!$CK$3:$CK$400,'G-ZF-x-60-x-K'!$M$3:$M$400,B69) -> 2.5 | P69: =_xlfn.MINIFS('G-ZF-x-60-x-K'!$DV$3:$DV$400,'G-ZF-x-60-x-K'!$M$3:$M$400,B69) -> 1.2 | Q69: =_xlfn.MINIFS('G-ZF-x-60-x-S'!$AW$3:$AW$400,'G-ZF-x-60-x-S'!$K$3:$K$400,Auswertung!B69) -> 2.7 | R69: 2.7 | S69: 2.5 | T69: 1.2
B70: ZF-300-60-6 | C70: ZF | D70: 300 | E70: 60 | F70: 6 | G70: 2 | H70: 586 | I70: 562 | J70: 3050 | K70: 600 | L70: 2 | M70: =_xlfn.MINIFS('G-ZF-x-60-x-W'!$BG$3:$BG$400,'G-ZF-x-60-x-W'!$P$3:$P$400,B70) -> 4.5 | N70: =_xlfn.MINIFS('G-ZF-x-60-x-K'!$AZ$3:$AZ$400,'G-ZF-x-60-x-K'!$M$3:$M$400,B70) -> 2.3 | O70: =_xlfn.MINIFS('G-ZF-x-60-x-K'!$CK$3:$CK$400,'G-ZF-x-60-x-K'!$M$3:$M$400,B70) -> 2.0 | P70: =_xlfn.MINIFS('G-ZF-x-60-x-K'!$DV$3:$DV$400,'G-ZF-x-60-x-K'!$M$3:$M$400,B70) -> 1.0 | Q70: =_xlfn.MINIFS('G-ZF-x-60-x-S'!$AW$3:$AW$400,'G-ZF-x-60-x-S'!$K$3:$K$400,Auswertung!B70) -> 1.9 | R70: 2.3 | S70: 2.0 | T70: 1.0
B71: ZF-300-60-5 | C71: ZF | D71: 300 | E71: 60 | F71: 5 | G71: 2 | H71: 733 | I71: 703 | J71: 3050 | K71: 600 | L71: 2 | M71: =_xlfn.MINIFS('G-ZF-x-60-x-W'!$BG$3:$BG$400,'G-ZF-x-60-x-W'!$P$3:$P$400,B71) -> 4.5 | N71: =_xlfn.MINIFS('G-ZF-x-60-x-K'!$AZ$3:$AZ$400,'G-ZF-x-60-x-K'!$M$3:$M$400,B71) -> 1.8 | O71: =_xlfn.MINIFS('G-ZF-x-60-x-K'!$CK$3:$CK$400,'G-ZF-x-60-x-K'!$M$3:$M$400,B71) -> 1.6 | P71: =_xlfn.MINIFS('G-ZF-x-60-x-K'!$DV$3:$DV$400,'G-ZF-x-60-x-K'!$M$3:$M$400,B71) -> 0.8 | Q71: =_xlfn.MINIFS('G-ZF-x-60-x-S'!$AW$3:$AW$400,'G-ZF-x-60-x-S'!$K$3:$K$400,Auswertung!B71) -> 1.3 | R71: 1.8 | S71: 1.6 | T71: 0.8
B72: ZF-250-60-7 | C72: ZF | D72: 250 | E72: 60 | F72: 7 | G72: 2 | H72: 397 | I72: 377 | J72: =D72*10 -> 2500 | K72: 600 | L72: 2 | M72: =_xlfn.MINIFS('G-ZF-x-60-x-W'!$BG$3:$BG$400,'G-ZF-x-60-x-W'!$P$3:$P$400,B72) -> 4.5 | N72: =_xlfn.MINIFS('G-ZF-x-60-x-K'!$AZ$3:$AZ$400,'G-ZF-x-60-x-K'!$M$3:$M$400,B72) -> 3.4 | O72: =_xlfn.MINIFS('G-ZF-x-60-x-K'!$CK$3:$CK$400,'G-ZF-x-60-x-K'!$M$3:$M$400,B72) -> 3.0 | P72: =_xlfn.MINIFS('G-ZF-x-60-x-K'!$DV$3:$DV$400,'G-ZF-x-60-x-K'!$M$3:$M$400,B72) -> 1.5 | Q72: =_xlfn.MINIFS('G-ZF-x-60-x-S'!$AW$3:$AW$400,'G-ZF-x-60-x-S'!$K$3:$K$400,Auswertung!B72) -> 4.0 | R72: 3.4 | S72: 3.0 | T72: 1.5
B73: ZF-250-60-6 | C73: ZF | D73: 250 | E73: 60 | F73: 6 | G73: 2 | H73: 476 | I73: 452 | J73: 2500 | K73: 600 | L73: 2 | M73: =_xlfn.MINIFS('G-ZF-x-60-x-W'!$BG$3:$BG$400,'G-ZF-x-60-x-W'!$P$3:$P$400,B73) -> 4.5 | N73: =_xlfn.MINIFS('G-ZF-x-60-x-K'!$AZ$3:$AZ$400,'G-ZF-x-60-x-K'!$M$3:$M$400,B73) -> 2.8 | O73: =_xlfn.MINIFS('G-ZF-x-60-x-K'!$CK$3:$CK$400,'G-ZF-x-60-x-K'!$M$3:$M$400,B73) -> 2.5 | P73: =_xlfn.MINIFS('G-ZF-x-60-x-K'!$DV$3:$DV$400,'G-ZF-x-60-x-K'!$M$3:$M$400,B73) -> 1.3 | Q73: =_xlfn.MINIFS('G-ZF-x-60-x-S'!$AW$3:$AW$400,'G-ZF-x-60-x-S'!$K$3:$K$400,Auswertung!B73) -> 2.8 | R73: 2.8 | S73: 2.5 | T73: 1.3
B74: ZF-250-60-5 | C74: ZF | D74: 250 | E74: 60 | F74: 5 | G74: 2 | H74: 595 | I74: 565 | J74: 2500 | K74: 600 | L74: 2 | M74: =_xlfn.MINIFS('G-ZF-x-60-x-W'!$BG$3:$BG$400,'G-ZF-x-60-x-W'!$P$3:$P$400,B74) -> 4.5 | N74: =_xlfn.MINIFS('G-ZF-x-60-x-K'!$AZ$3:$AZ$400,'G-ZF-x-60-x-K'!$M$3:$M$400,B74) -> 2.2 | O74: =_xlfn.MINIFS('G-ZF-x-60-x-K'!$CK$3:$CK$400,'G-ZF-x-60-x-K'!$M$3:$M$400,B74) -> 2.0 | P74: =_xlfn.MINIFS('G-ZF-x-60-x-K'!$DV$3:$DV$400,'G-ZF-x-60-x-K'!$M$3:$M$400,B74) -> 1.0 | Q74: =_xlfn.MINIFS('G-ZF-x-60-x-S'!$AW$3:$AW$400,'G-ZF-x-60-x-S'!$K$3:$K$400,Auswertung!B74) -> 1.9 | R74: 2.2 | S74: 2.0 | T74: 1.0
B75: ZF-200-60-6 | C75: ZF | D75: 200 | E75: 60 | F75: 6 | G75: 2 | H75: 376 | I75: 352 | J75: 2000 | K75: 600 | L75: 2 | M75: =_xlfn.MINIFS('G-ZF-x-60-x-W'!$BG$3:$BG$400,'G-ZF-x-60-x-W'!$P$3:$P$400,B75) -> 4.5 | N75: =_xlfn.MINIFS('G-ZF-x-60-x-K'!$AZ$3:$AZ$400,'G-ZF-x-60-x-K'!$M$3:$M$400,B75) -> 3.6 | O75: =_xlfn.MINIFS('G-ZF-x-60-x-K'!$CK$3:$CK$400,'G-ZF-x-60-x-K'!$M$3:$M$400,B75) -> 3.2 | P75: =_xlfn.MINIFS('G-ZF-x-60-x-K'!$DV$3:$DV$400,'G-ZF-x-60-x-K'!$M$3:$M$400,B75) -> 1.6 | Q75: =_xlfn.MINIFS('G-ZF-x-60-x-S'!$AW$3:$AW$400,'G-ZF-x-60-x-S'!$K$3:$K$400,Auswertung!B75) -> 4.0 | R75: 3.6 | S75: 3.2 | T75: 1.6
B76: ZF-200-60-5 | C76: ZF | D76: 200 | E76: 60 | F76: 5 | G76: 2 | H76: 470 | I76: 440 | J76: 2000 | K76: 600 | L76: 2 | M76: =_xlfn.MINIFS('G-ZF-x-60-x-W'!$BG$3:$BG$400,'G-ZF-x-60-x-W'!$P$3:$P$400,B76) -> 4.5 | N76: =_xlfn.MINIFS('G-ZF-x-60-x-K'!$AZ$3:$AZ$400,'G-ZF-x-60-x-K'!$M$3:$M$400,B76) -> 2.9 | O76: =_xlfn.MINIFS('G-ZF-x-60-x-K'!$CK$3:$CK$400,'G-ZF-x-60-x-K'!$M$3:$M$400,B76) -> 2.6 | P76: =_xlfn.MINIFS('G-ZF-x-60-x-K'!$DV$3:$DV$400,'G-ZF-x-60-x-K'!$M$3:$M$400,B76) -> 1.3 | Q76: =_xlfn.MINIFS('G-ZF-x-60-x-S'!$AW$3:$AW$400,'G-ZF-x-60-x-S'!$K$3:$K$400,Auswertung!B76) -> 2.9 | R76: 2.9 | S76: 2.6 | T76: 1.3
B77: ZF-200-60-4 | C77: ZF | D77: 200 | E77: 60 | F77: 4 | G77: 2 | H77: 627 | I77: 587 | J77: 2000 | K77: 600 | L77: 2 | M77: =_xlfn.MINIFS('G-ZF-x-60-x-W'!$BG$3:$BG$400,'G-ZF-x-60-x-W'!$P$3:$P$400,B77) -> 4.5 | N77: =_xlfn.MINIFS('G-ZF-x-60-x-K'!$AZ$3:$AZ$400,'G-ZF-x-60-x-K'!$M$3:$M$400,B77) -> 2.2 | O77: =_xlfn.MINIFS('G-ZF-x-60-x-K'!$CK$3:$CK$400,'G-ZF-x-60-x-K'!$M$3:$M$400,B77) -> 1.9 | P77: =_xlfn.MINIFS('G-ZF-x-60-x-K'!$DV$3:$DV$400,'G-ZF-x-60-x-K'!$M$3:$M$400,B77) -> 1.0 | Q77: =_xlfn.MINIFS('G-ZF-x-60-x-S'!$AW$3:$AW$400,'G-ZF-x-60-x-S'!$K$3:$K$400,Auswertung!B77) -> 1.7 | R77: 2.2 | S77: 1.9 | T77: 1.0
B78: ZF-150-60-4 | C78: ZF | D78: 150 | E78: 60 | F78: 4 | G78: 2 | H78: 460 | I78: 420 | J78: 1500 | K78: 600 | L78: 2 | M78: =_xlfn.MINIFS('G-ZF-x-60-x-W'!$BG$3:$BG$400,'G-ZF-x-60-x-W'!$P$3:$P$400,B78) -> 4.5 | N78: =_xlfn.MINIFS('G-ZF-x-60-x-K'!$AZ$3:$AZ$400,'G-ZF-x-60-x-K'!$M$3:$M$400,B78) -> 3.0 | O78: =_xlfn.MINIFS('G-ZF-x-60-x-K'!$CK$3:$CK$400,'G-ZF-x-60-x-K'!$M$3:$M$400,B78) -> 2.7 | P78: =_xlfn.MINIFS('G-ZF-x-60-x-K'!$DV$3:$DV$400,'G-ZF-x-60-x-K'!$M$3:$M$400,B78) -> 1.3 | Q78: =_xlfn.MINIFS('G-ZF-x-60-x-S'!$AW$3:$AW$400,'G-ZF-x-60-x-S'!$K$3:$K$400,Auswertung!B78) -> 3.0 | R78: 3.0 | S78: 2.7 | T78: 1.3
B79: ZF-150-60-3 | C79: ZF | D79: 150 | E79: 60 | F79: 3 | G79: 2 | H79: 690 | I79: 630 | J79: 1500 | K79: 600 | L79: 2 | M79: =_xlfn.MINIFS('G-ZF-x-60-x-W'!$BG$3:$BG$400,'G-ZF-x-60-x-W'!$P$3:$P$400,B79) -> 4.5 | N79: =_xlfn.MINIFS('G-ZF-x-60-x-K'!$AZ$3:$AZ$400,'G-ZF-x-60-x-K'!$M$3:$M$400,B79) -> 1.8 | O79: =_xlfn.MINIFS('G-ZF-x-60-x-K'!$CK$3:$CK$400,'G-ZF-x-60-x-K'!$M$3:$M$400,B79) -> 1.6 | P79: =_xlfn.MINIFS('G-ZF-x-60-x-K'!$DV$3:$DV$400,'G-ZF-x-60-x-K'!$M$3:$M$400,B79) -> 0.8 | Q79: =_xlfn.MINIFS('G-ZF-x-60-x-S'!$AW$3:$AW$400,'G-ZF-x-60-x-S'!$K$3:$K$400,Auswertung!B79) -> 1.5 | R79: 1.8 | S79: 1.6 | T79: 0.8
B80: ZF-100-60-3 | C80: ZF | D80: 100 | E80: 60 | F80: 3 | G80: 2 | H80: 440 | I80: 380 | J80: 1000 | K80: 600 | L80: 2 | M80: =_xlfn.MINIFS('G-ZF-x-60-x-W'!$BG$3:$BG$400,'G-ZF-x-60-x-W'!$P$3:$P$400,B80) -> 4.5 | N80: =_xlfn.MINIFS('G-ZF-x-60-x-K'!$AZ$3:$AZ$400,'G-ZF-x-60-x-K'!$M$3:$M$400,B80) -> 2.9 | O80: =_xlfn.MINIFS('G-ZF-x-60-x-K'!$CK$3:$CK$400,'G-ZF-x-60-x-K'!$M$3:$M$400,B80) -> 2.6 | P80: =_xlfn.MINIFS('G-ZF-x-60-x-K'!$DV$3:$DV$400,'G-ZF-x-60-x-K'!$M$3:$M$400,B80) -> 1.3 | Q80: =_xlfn.MINIFS('G-ZF-x-60-x-S'!$AW$3:$AW$400,'G-ZF-x-60-x-S'!$K$3:$K$400,Auswertung!B80) -> 3.5 | R80: 2.9 | S80: 2.6 | T80: 1.3
B81: ZF-50-60-2 | C81: ZF | D81: 50 | E81: 60 | F81: 2 | G81: 2 | H81: 380 | I81: 260 | J81: 500 | K81: 600 | L81: 2 | M81: =_xlfn.MINIFS('G-ZF-x-60-x-W'!$BG$3:$BG$400,'G-ZF-x-60-x-W'!$P$3:$P$400,B81) -> 4.5 | N81: =_xlfn.MINIFS('G-ZF-x-60-x-K'!$AZ$3:$AZ$400,'G-ZF-x-60-x-K'!$M$3:$M$400,B81) -> 3.4 | O81: =_xlfn.MINIFS('G-ZF-x-60-x-K'!$CK$3:$CK$400,'G-ZF-x-60-x-K'!$M$3:$M$400,B81) -> 3.5 | P81: =_xlfn.MINIFS('G-ZF-x-60-x-K'!$DV$3:$DV$400,'G-ZF-x-60-x-K'!$M$3:$M$400,B81) -> 2.7 | Q81: =_xlfn.MINIFS('G-ZF-x-60-x-S'!$AW$3:$AW$400,'G-ZF-x-60-x-S'!$K$3:$K$400,Auswertung!B81) -> 3.1 | R81: 3.4 | S81: 3.5 | T81: 2.7

Sheet Ergebnistabellen (hidden)
B1: Staudrücke qp
B5: Staudruck [kN/m2] | F5: 0.9 | P5: 1.1 | Z5: 1.3
B6: Gebäudehöhe bis [m] | F6: < | G6: 11 | H6: < | I6: 15 | J6: < | K6: 25 | L6: < | M6: 30 | N6: < | O6: 50 | P6: < | Q6: =G6 -> 11 | R6: < | S6: =I6 -> 15 | T6: < | U6: =K6 -> 25 | V6: < | W6: =M6 -> 30 | X6: < | Y6: =O6 -> 50 | Z6: < | AA6: =G6 -> 11 | AB6: < | AC6: =I6 -> 15 | AD6: < | AE6: =K6 -> 25 | AF6: < | AG6: =M6 -> 30 | AH6: < | AI6: =O6 -> 50
B7: Gelände-kategorie | C7: Plattenhöhe [mm] | F7: qp=ch x qp0 [kN/m2] | Z7: Mit cpe,Rand = | AD7: 0.8/-1.3
B9: II: Seeufer | C9: 340 | D9: - | E9: 500 | F9: =1.6*(($G$6/300)^0.16+0.375)^2*$F$5 -> 1.34 | H9: =1.6*(($I$6/300)^0.16+0.375)^2*$F$5 -> 1.42 | J9: =1.6*(($K$6/300)^0.16+0.375)^2*$F$5 -> 1.58 | L9: =1.6*(($M$6/300)^0.16+0.375)^2*$F$5 -> 1.64 | N9: =1.6*(($O$6/300)^0.16+0.375)^2*$F$5 -> 1.82 | P9: =1.6*(($Q$6/300)^0.16+0.375)^2*$P$5 -> 1.64 | R9: =1.6*(($S$6/300)^0.16+0.375)^2*$P$5 -> 1.74 | S9: =R9*$AD$7 ->  | T9: =1.6*(($U$6/300)^0.16+0.375)^2*$P$5 -> 1.93 | U9: =T9*$AD$7 ->  | V9: =1.6*(($W$6/300)^0.16+0.375)^2*$P$5 -> 2.00 | W9: =V9*$AD$7 ->  | X9: =1.6*(($Y$6/300)^0.16+0.375)^2*$P$5 -> 2.23 | Y9: =X9*$AD$7 ->  | Z9: =1.6*(($AA$6/300)^0.16+0.375)^2*$Z$5 -> 1.93 | AA9: =Z9*$AD$7 ->  | AB9: =1.6*(($AC$6/300)^0.16+0.375)^2*$Z$5 -> 2.06 | AC9: =AB9*$AD$7 ->  | AD9: =1.6*(($AE$6/300)^0.16+0.375)^2*$Z$5 -> 2.28 | AE9: =AD9*$AD$7 ->  | AF9: =1.6*(($AG$6/300)^0.16+0.375)^2*$Z$5 -> 2.37 | AG9: =AF9*$AD$7 ->  | AH9: =1.6*(($AI$6/300)^0.16+0.375)^2*$Z$5 -> 2.64 | AI9: =AH9*$AD$7 -> 
C10: 500 | D10: - | E10: 1000 | F10: 1.34 | H10: 1.42 | J10: 1.58 | L10: 1.64 | N10: 1.82 | P10: 1.64 | R10: 1.74 | T10: 1.93 | V10: 2.00 | X10: 2.23 | Z10: 1.93 | AB10: 2.06 | AD10: 2.28 | AF10: 2.37 | AH10: 2.64
C11: 1000 | D11: - | E11: 1500 | F11: 1.34 | H11: 1.42 | J11: 1.58 | L11: 1.64 | N11: 1.82 | P11: 1.64 | R11: 1.74 | T11: 1.93 | V11: 2.00 | X11: 2.23 | Z11: 1.93 | AB11: 2.06 | AD11: 2.28 | AF11: 2.37 | AH11: 2.64
C12: 1500 | D12: - | E12: 2000 | F12: 1.34 | H12: 1.42 | J12: 1.58 | L12: 1.64 | N12: 1.82 | P12: 1.64 | R12: 1.74 | T12: 1.93 | V12: 2.00 | X12: 2.23 | Z12: 1.93 | AB12: 2.06 | AD12: 2.28 | AF12: 2.37 | AH12: 2.64
C13: 2000 | D13: - | E13: 2500 | F13: 1.34 | H13: 1.42 | J13: 1.58 | L13: 1.64 | N13: 1.82 | P13: 1.64 | R13: 1.74 | T13: 1.93 | V13: 2.00 | X13: 2.23 | Z13: 1.93 | AB13: 2.06 | AD13: 2.28 | AF13: 2.37 | AH13: 2.64
C14: 2500 | D14: - | E14: 3050 | F14: 1.34 | H14: 1.42 | J14: 1.58 | L14: 1.64 | N14: 1.82 | P14: 1.64 | R14: 1.74 | T14: 1.93 | V14: 2.00 | X14: 2.23 | Z14: 1.93 | AB14: 2.06 | AD14: 2.28 | AF14: 2.37 | AH14: 2.64
B15: IIa: Grosse Ebene | C15: 340 | D15: - | E15: 500 | F15: =1.6*(($G$6/380)^0.19+0.375)^2*$F$5 -> 1.13 | H15: =1.6*(($I$6/380)^0.19+0.375)^2*$F$5 -> 1.21 | J15: =1.6*(($K$6/380)^0.19+0.375)^2*$F$5 -> 1.36 | L15: =1.6*(($M$6/380)^0.19+0.375)^2*$F$5 -> 1.42 | N15: =1.6*(($O$6/380)^0.19+0.375)^2*$F$5 -> 1.60 | P15: =1.6*(($Q$6/380)^0.19+0.375)^2*$P$5 -> 1.38 | R15: =1.6*(($S$6/380)^0.19+0.375)^2*$P$5 -> 1.48 | T15: =1.6*(($U$6/380)^0.19+0.375)^2*$P$5 -> 1.66 | V15: =1.6*(($W$6/380)^0.19+0.375)^2*$P$5 -> 1.73 | X15: =1.6*(($Y$6/380)^0.19+0.375)^2*$P$5 -> 1.96 | Z15: =1.6*(($AA$6/380)^0.19+0.375)^2*$Z$5 -> 1.63 | AB15: =1.6*(($AC$6/380)^0.19+0.375)^2*$Z$5 -> 1.75 | AD15: =1.6*(($AE$6/380)^0.19+0.375)^2*$Z$5 -> 1.96 | AF15: =1.6*(($AG$6/380)^0.19+0.375)^2*$Z$5 -> 2.05 | AH15: =1.6*(($AI$6/380)^0.19+0.375)^2*$Z$5 -> 2.32
C16: 500 | D16: - | E16: 1000 | F16: 1.13 | H16: 1.21 | J16: 1.36 | L16: 1.42 | N16: 1.60 | P16: 1.38 | R16: 1.48 | T16: 1.66 | V16: 1.73 | X16: 1.96 | Z16: 1.63 | AB16: 1.75 | AD16: 1.96 | AF16: 2.05 | AH16: 2.32
C17: 1000 | D17: - | E17: 1500 | F17: 1.13 | H17: 1.21 | J17: 1.36 | L17: 1.42 | N17: 1.60 | P17: 1.38 | R17: 1.48 | T17: 1.66 | V17: 1.73 | X17: 1.96 | Z17: 1.63 | AB17: 1.75 | AD17: 1.96 | AF17: 2.05 | AH17: 2.32
C18: 1500 | D18: - | E18: 2000 | F18: 1.13 | H18: 1.21 | J18: 1.36 | L18: 1.42 | N18: 1.60 | P18: 1.38 | R18: 1.48 | T18: 1.66 | V18: 1.73 | X18: 1.96 | Z18: 1.63 | AB18: 1.75 | AD18: 1.96 | AF18: 2.05 | AH18: 2.32
C19: 2000 | D19: - | E19: 2500 | F19: 1.13 | H19: 1.21 | J19: 1.36 | L19: 1.42 | N19: 1.60 | P19: 1.38 | R19: 1.48 | T19: 1.66 | V19: 1.73 | X19: 1.96 | Z19: 1.63 | AB19: 1.75 | AD19: 1.96 | AF19: 2.05 | AH19: 2.32
C20: 2500 | D20: - | E20: 3050 | F20: 1.13 | H20: 1.21 | J20: 1.36 | L20: 1.42 | N20: 1.60 | P20: 1.38 | R20: 1.48 | T20: 1.66 | V20: 1.73 | X20: 1.96 | Z20: 1.63 | AB20: 1.75 | AD20: 1.96 | AF20: 2.05 | AH20: 2.32
B21: III: Ortschaften, freies Feld | C21: 340 | D21: - | E21: 500 | F21: =1.6*(($G$6/450)^0.23+0.375)^2*$F$5 -> 0.92 | H21: =1.6*(($I$6/450)^0.23+0.375)^2*$F$5 -> 1.00 | J21: =1.6*(($K$6/450)^0.23+0.375)^2*$F$5 -> 1.14 | L21: =1.6*(($M$6/450)^0.23+0.375)^2*$F$5 -> 1.20 | N21: =1.6*(($O$6/450)^0.23+0.375)^2*$F$5 -> 1.38 | P21: =1.6*(($Q$6/450)^0.23+0.375)^2*$P$5 -> 1.13 | R21: =1.6*(($S$6/450)^0.23+0.375)^2*$P$5 -> 1.22 | T21: =1.6*(($U$6/450)^0.23+0.375)^2*$P$5 -> 1.39 | V21: =1.6*(($W$6/450)^0.23+0.375)^2*$P$5 -> 1.46 | X21: =1.6*(($Y$6/450)^0.23+0.375)^2*$P$5 -> 1.68 | Z21: =1.6*(($AA$6/450)^0.23+0.375)^2*$Z$5 -> 1.33 | AB21: =1.6*(($AC$6/450)^0.23+0.375)^2*$Z$5 -> 1.44 | AD21: =1.6*(($AE$6/450)^0.23+0.375)^2*$Z$5 -> 1.65 | AF21: =1.6*(($AG$6/450)^0.23+0.375)^2*$Z$5 -> 1.73 | AH21: =1.6*(($AI$6/450)^0.23+0.375)^2*$Z$5 -> 1.99
C22: 500 | D22: - | E22: 1000 | F22: 0.92 | H22: 1.00 | J22: 1.14 | L22: 1.20 | N22: 1.38 | P22: 1.13 | R22: 1.22 | T22: 1.39 | V22: 1.46 | X22: 1.68 | Z22: 1.33 | AB22: 1.44 | AD22: 1.65 | AF22: 1.73 | AH22: 1.99
C23: 1000 | D23: - | E23: 1500 | F23: 0.92 | H23: 1.00 | J23: 1.14 | L23: 1.20 | N23: 1.38 | P23: 1.13 | R23: 1.22 | T23: 1.39 | V23: 1.46 | X23: 1.68 | Z23: 1.33 | AB23: 1.44 | AD23: 1.65 | AF23: 1.73 | AH23: 1.99
C24: 1500 | D24: - | E24: 2000 | F24: 0.92 | H24: 1.00 | J24: 1.14 | L24: 1.20 | N24: 1.38 | P24: 1.13 | R24: 1.22 | T24: 1.39 | V24: 1.46 | X24: 1.68 | Z24: 1.33 | AB24: 1.44 | AD24: 1.65 | AF24: 1.73 | AH24: 1.99
C25: 2000 | D25: - | E25: 2500 | F25: 0.92 | H25: 1.00 | J25: 1.14 | L25: 1.20 | N25: 1.38 | P25: 1.13 | R25: 1.22 | T25: 1.39 | V25: 1.46 | X25: 1.68 | Z25: 1.33 | AB25: 1.44 | AD25: 1.65 | AF25: 1.73 | AH25: 1.99
C26: 2500 | D26: - | E26: 3050 | F26: 0.92 | H26: 1.00 | J26: 1.14 | L26: 1.20 | N26: 1.38 | P26: 1.13 | R26: 1.22 | T26: 1.39 | V26: 1.46 | X26: 1.68 | Z26: 1.33 | AB26: 1.44 | AD26: 1.65 | AF26: 1.73 | AH26: 1.99
B27: IV: Gross-flächige Stadtgebiete | C27: 340 | D27: - | E27: 500 | F27: =1.6*(($G$6/526)^0.3+0.375)^2*$F$5 -> 0.68 | H27: =1.6*(($I$6/526)^0.3+0.375)^2*$F$5 -> 0.74 | J27: =1.6*(($K$6/526)^0.3+0.375)^2*$F$5 -> 0.87 | L27: =1.6*(($M$6/526)^0.3+0.375)^2*$F$5 -> 0.92 | N27: =1.6*(($O$6/526)^0.3+0.375)^2*$F$5 -> 1.09 | P27: =1.6*(($Q$6/526)^0.3+0.375)^2*$P$5 -> 0.83 | R27: =1.6*(($S$6/526)^0.3+0.375)^2*$P$5 -> 0.91 | T27: =1.6*(($U$6/526)^0.3+0.375)^2*$P$5 -> 1.06 | V27: =1.6*(($W$6/526)^0.3+0.375)^2*$P$5 -> 1.12 | X27: =1.6*(($Y$6/526)^0.3+0.375)^2*$P$5 -> 1.33 | Z27: =1.6*(($AA$6/526)^0.3+0.375)^2*$Z$5 -> 0.99 | AB27: =1.6*(($AC$6/526)^0.3+0.375)^2*$Z$5 -> 1.08 | AD27: =1.6*(($AE$6/526)^0.3+0.375)^2*$Z$5 -> 1.25 | AF27: =1.6*(($AG$6/526)^0.3+0.375)^2*$Z$5 -> 1.33 | AH27: =1.6*(($AI$6/526)^0.3+0.375)^2*$Z$5 -> 1.57
C28: 500 | D28: - | E28: 1000 | F28: 0.68 | H28: 0.74 | J28: 0.87 | L28: 0.92 | N28: 1.09 | P28: 0.83 | R28: 0.91 | T28: 1.06 | V28: 1.12 | X28: 1.33 | Z28: 0.99 | AB28: 1.08 | AD28: 1.25 | AF28: 1.33 | AH28: 1.57
C29: 1000 | D29: - | E29: 1500 | F29: 0.68 | H29: 0.74 | J29: 0.87 | L29: 0.92 | N29: 1.09 | P29: 0.83 | R29: 0.91 | T29: 1.06 | V29: 1.12 | X29: 1.33 | Z29: 0.99 | AB29: 1.08 | AD29: 1.25 | AF29: 1.33 | AH29: 1.57
C30: 1500 | D30: - | E30: 2000 | F30: 0.68 | H30: 0.74 | J30: 0.87 | L30: 0.92 | N30: 1.09 | P30: 0.83 | R30: 0.91 | T30: 1.06 | V30: 1.12 | X30: 1.33 | Z30: 0.99 | AB30: 1.08 | AD30: 1.25 | AF30: 1.33 | AH30: 1.57
C31: 2000 | D31: - | E31: 2500 | F31: 0.68 | H31: 0.74 | J31: 0.87 | L31: 0.92 | N31: 1.09 | P31: 0.83 | R31: 0.91 | T31: 1.06 | V31: 1.12 | X31: 1.33 | Z31: 0.99 | AB31: 1.08 | AD31: 1.25 | AF31: 1.33 | AH31: 1.57
C32: 2500 | D32: - | E32: 3050 | F32: 0.68 | H32: 0.74 | J32: 0.87 | L32: 0.92 | N32: 1.09 | P32: 0.83 | R32: 0.91 | T32: 1.06 | V32: 1.12 | X32: 1.33 | Z32: 0.99 | AB32: 1.08 | AD32: 1.25 | AF32: 1.33 | AH32: 1.57
B34: Tabelle 1 | C34: 8mm Largo EF-x-40-x-Schrauben | AM34: =B34&".1" -> Tabelle 1.1 | AO34: =C34 -> 8mm Largo EF-x-40-x-Schrauben
C35: Anzahl Verbindungsmittel | AO35: Maximale Verbindungsmittelabstände
B38: Staudruck [kN/m2] | F38: =F5 -> 0.9 | P38: =P5 -> 1.1 | Z38: =Z5 -> 1.3 | AM38: Staudruck [kN/m2] | AQ38: =F38 -> 0.9 | BA38: =P38 -> 1.1 | BK38: =Z38 -> 1.3
B39: Gebäudehöhe bis [m] | F39: < | G39: =$G$6 -> 11 | H39: < | I39: =$I$6 -> 15 | J39: < | K39: =$K$6 -> 25 | L39: < | M39: =$M$6 -> 30 | N39: < | O39: =$O$6 -> 50 | P39: < | Q39: =$Q$6 -> 11 | R39: < | S39: =$S$6 -> 15 | T39: < | U39: =$U$6 -> 25 | V39: < | W39: =$W$6 -> 30 | X39: < | Y39: =$Y$6 -> 50 | Z39: < | AA39: =$AA$6 -> 11 | AB39: < | AC39: =$AC$6 -> 15 | AD39: < | AE39: =$AE$6 -> 25 | AF39: < | AG39: =$AG$6 -> 30 | AH39: < | AI39: =$AI$6 -> 50 | AM39: Gebäudehöhe bis [m] | AQ39: < | AR39: =G39 -> 11 | AS39: < | AT39: =I39 -> 15 | AU39: < | AV39: =K39 -> 25 | AW39: < | AX39: =M39 -> 30 | AY39: < | AZ39: =O39 -> 50 | BA39: < | BB39: =Q39 -> 11 | BC39: < | BD39: =S39 -> 15 | BE39: < | BF39: =U39 -> 25 | BG39: < | BH39: =W39 -> 30 | BI39: < | BJ39: =Y39 -> 50 | BK39: < | BL39: =AA39 -> 11 | BM39: < | BN39: =AC39 -> 15 | BO39: < | BP39: =AE39 -> 25 | BQ39: < | BR39: =AG39 -> 30 | BS39: < | BT39: =AI39 -> 50
B40: Gelände-kategorie | C40: Plattenhöhe [mm] | F40: Anzahl Befestigungspunkte/ Anzahl Eckverbinder | Z40: Mit cpe,Rand = | AD40: =AD7 -> 0.8/-1.3 | AM40: Gelände-kategorie | AN40: Plattenhöhe [mm] | AQ40: Maximale Befestigungsmittelabstände d2/d3 [mm] | BK40: Mit cpe,Rand = | BO40: =AD40 -> 0.8/-1.3
B42: II: Seeufer | C42: 340 | D42: - | E42: 500 | F42: =IF(_xlfn.MINIFS(Auswertung!$F$3:$F$17,Auswertung!$J$3:$J$17, $E42,Auswertung!$R$3:$R$17, ">="&F9)=0,"-",_xlfn.MINIFS(Auswertung!$F$3:$F$17,Auswertung!$J$3:$J$17, $E42,Auswertung!$R$3:$R$17, ">="&F9)) -> 2 | G42: =F42 -> 2 | H42: =IF(_xlfn.MINIFS(Auswertung!$F$3:$F$17,Auswertung!$J$3:$J$17, $E42,Auswertung!$R$3:$R$17, ">="&H9)=0,"-",_xlfn.MINIFS(Auswertung!$F$3:$F$17,Auswertung!$J$3:$J$17, $E42,Auswertung!$R$3:$R$17, ">="&H9)) -> 2 | I42: =H42 -> 2 | J42: =IF(_xlfn.MINIFS(Auswertung!$F$3:$F$17,Auswertung!$J$3:$J$17, $E42,Auswertung!$R$3:$R$17, ">="&J9)=0,"-",_xlfn.MINIFS(Auswertung!$F$3:$F$17,Auswertung!$J$3:$J$17, $E42,Auswertung!$R$3:$R$17, ">="&J9)) -> 2 | K42: =J42 -> 2 | L42: =IF(_xlfn.MINIFS(Auswertung!$F$3:$F$17,Auswertung!$J$3:$J$17, $E42,Auswertung!$R$3:$R$17, ">="&L9)=0,"-",_xlfn.MINIFS(Auswertung!$F$3:$F$17,Auswertung!$J$3:$J$17, $E42,Auswertung!$R$3:$R$17, ">="&L9)) -> 2 | M42: =L42 -> 2 | N42: =IF(_xlfn.MINIFS(Auswertung!$F$3:$F$17,Auswertung!$J$3:$J$17, $E42,Auswertung!$R$3:$R$17, ">="&N9)=0,"-",_xlfn.MINIFS(Auswertung!$F$3:$F$17,Auswertung!$J$3:$J$17, $E42,Auswertung!$R$3:$R$17, ">="&N9)) -> 2 | O42: =N42 -> 2 | P42: =IF(_xlfn.MINIFS(Auswertung!$F$3:$F$17,Auswertung!$J$3:$J$17, $E42,Auswertung!$R$3:$R$17, ">="&P9)=0,"-",_xlfn.MINIFS(Auswertung!$F$3:$F$17,Auswertung!$J$3:$J$17, $E42,Auswertung!$R$3:$R$17, ">="&P9)) -> 2 | Q42: =P42 -> 2 | R42: =IF(_xlfn.MINIFS(Auswertung!$F$3:$F$17,Auswertung!$J$3:$J$17, $E42,Auswertung!$R$3:$R$17, ">="&R9)=0,"-",_xlfn.MINIFS(Auswertung!$F$3:$F$17,Auswertung!$J$3:$J$17, $E42,Auswertung!$R$3:$R$17, ">="&R9)) -> 2 | S42: =R42 -> 2 | T42: =IF(_xlfn.MINIFS(Auswertung!$F$3:$F$17,Auswertung!$J$3:$J$17, $E42,Auswertung!$R$3:$R$17, ">="&T9)=0,"-",_xlfn.MINIFS(Auswertung!$F$3:$F$17,Auswertung!$J$3:$J$17, $E42,Auswertung!$R$3:$R$17, ">="&T9)) -> 2 | U42: =T42 -> 2 | V42: =IF(_xlfn.MINIFS(Auswertung!$F$3:$F$17,Auswertung!$J$3:$J$17, $E42,Auswertung!$R$3:$R$17, ">="&V9)=0,"-",_xlfn.MINIFS(Auswertung!$F$3:$F$17,Auswertung!$J$3:$J$17, $E42,Auswertung!$R$3:$R$17, ">="&V9)) -> - | W42: =V42 -> - | X42: =IF(_xlfn.MINIFS(Auswertung!$F$3:$F$17,Auswertung!$J$3:$J$17, $E42,Auswertung!$R$3:$R$17, ">="&X9)=0,"-",_xlfn.MINIFS(Auswertung!$F$3:$F$17,Auswertung!$J$3:$J$17, $E42,Auswertung!$R$3:$R$17, ">="&X9)) -> - | Y42: =X42 -> - | Z42: =IF(_xlfn.MINIFS(Auswertung!$F$3:$F$17,Auswertung!$J$3:$J$17, $E42,Auswertung!$R$3:$R$17, ">="&Z9)=0,"-",_xlfn.MINIFS(Auswertung!$F$3:$F$17,Auswertung!$J$3:$J$17, $E42,Auswertung!$R$3:$R$17, ">="&Z9)) -> 2 | AA42: =Z42 -> 2 | AB42: =IF(_xlfn.MINIFS(Auswertung!$F$3:$F$17,Auswertung!$J$3:$J$17, $E42,Auswertung!$R$3:$R$17, ">="&AB9)=0,"-",_xlfn.MINIFS(Auswertung!$F$3:$F$17,Auswertung!$J$3:$J$17, $E42,Auswertung!$R$3:$R$17, ">="&AB9)) -> - | AC42: =AB42 -> - | AD42: =IF(_xlfn.MINIFS(Auswertung!$F$3:$F$17,Auswertung!$J$3:$J$17, $E42,Auswertung!$R$3:$R$17, ">="&AD9)=0,"-",_xlfn.MINIFS(Auswertung!$F$3:$F$17,Auswertung!$J$3:$J$17, $E42,Auswertung!$R$3:$R$17, ">="&AD9)) -> - | AE42: =AD42 -> - | AF42: =IF(_xlfn.MINIFS(Auswertung!$F$3:$F$17,Auswertung!$J$3:$J$17, $E42,Auswertung!$R$3:$R$17, ">="&AF9)=0,"-",_xlfn.MINIFS(Auswertung!$F$3:$F$17,Auswertung!$J$3:$J$17, $E42,Auswertung!$R$3:$R$17, ">="&AF9)) -> - | AG42: =AF42 -> - | AH42: =IF(_xlfn.MINIFS(Auswertung!$F$3:$F$17,Auswertung!$J$3:$J$17, $E42,Auswertung!$R$3:$R$17, ">="&AH9)=0,"-",_xlfn.MINIFS(Auswertung!$F$3:$F$17,Auswertung!$J$3:$J$17, $E42,Auswertung!$R$3:$R$17, ">="&AH9)) -> - | AI42: =AH42 -> - | AM42: II: Seeufer | AN42: 340 | AO42: - | AP42: 500 | AQ42: =IFERROR(($AP42-2*60)/(F42-1),"-") -> 380 | AR42: =IFERROR(($AP42-2*120)/(F42-1),"-") -> 260 | AS42: =IFERROR(($AP42-2*60)/(H42-1),"-") -> 380 | AT42: =IFERROR(($AP42-2*120)/(H42-1),"-") -> 260 | AU42: =IFERROR(($AP42-2*60)/(J42-1),"-") -> 380 | AV42: =IFERROR(($AP42-2*120)/(J42-1),"-") -> 260 | AW42: =IFERROR(($AP42-2*60)/(L42-1),"-") -> 380 | AX42: =IFERROR(($AP42-2*120)/(L42-1),"-") -> 260 | AY42: =IFERROR(($AP42-2*60)/(N42-1),"-") -> 380 | AZ42: =IFERROR(($AP42-2*120)/(N42-1),"-") -> 260 | BA42: =IFERROR(($AP42-2*60)/(P42-1),"-") -> 380 | BB42: =IFERROR(($AP42-2*120)/(P42-1),"-") -> 260 | BC42: =IFERROR(($AP42-2*60)/(R42-1),"-") -> 380 | BD42: =IFERROR(($AP42-2*120)/(R42-1),"-") -> 260 | BE42: =IFERROR(($AP42-2*60)/(T42-1),"-") -> 380 | BF42: =IFERROR(($AP42-2*120)/(T42-1),"-") -> 260 | BG42: =IFERROR(($AP42-2*60)/(V42-1),"-") -> - | BH42: =IFERROR(($AP42-2*120)/(V42-1),"-") -> - | BI42: =IFERROR(($AP42-2*60)/(X42-1),"-") -> - | BJ42: =IFERROR(($AP42-2*120)/(X42-1),"-") -> - | BK42: =IFERROR(($AP42-2*60)/(Z42-1),"-") -> 380 | BL42: =IFERROR(($AP42-2*120)/(Z42-1),"-") -> 260 | BM42: =IFERROR(($AP42-2*60)/(AB42-1),"-") -> - | BN42: =IFERROR(($AP42-2*120)/(AB42-1),"-") -> - | BO42: =IFERROR(($AP42-2*60)/(AD42-1),"-") -> - | BP42: =IFERROR(($AP42-2*120)/(AD42-1),"-") -> - | BQ42: =IFERROR(($AP42-2*60)/(AF42-1),"-") -> - | BR42: =IFERROR(($AP42-2*120)/(AF42-1),"-") -> - | BS42: =IFERROR(($AP42-2*60)/(AH42-1),"-") -> - | BT42: =IFERROR(($AP42-2*120)/(AH42-1),"-") -> -
C43: 500 | D43: - | E43: 1000 | F43: =IF(_xlfn.MINIFS(Auswertung!$F$3:$F$17,Auswertung!$J$3:$J$17, $E43,Auswertung!$R$3:$R$17, ">="&F10)=0,"-",_xlfn.MINIFS(Auswertung!$F$3:$F$17,Auswertung!$J$3:$J$17, $E43,Auswertung!$R$3:$R$17, ">="&F10)) -> 3 | G43: =F43 -> 3 | H43: =IF(_xlfn.MINIFS(Auswertung!$F$3:$F$17,Auswertung!$J$3:$J$17, $E43,Auswertung!$R$3:$R$17, ">="&H10)=0,"-",_xlfn.MINIFS(Auswertung!$F$3:$F$17,Auswertung!$J$3:$J$17, $E43,Auswertung!$R$3:$R$17, ">="&H10)) -> 3 | I43: =H43 -> 3 | J43: =IF(_xlfn.MINIFS(Auswertung!$F$3:$F$17,Auswertung!$J$3:$J$17, $E43,Auswertung!$R$3:$R$17, ">="&J10)=0,"-",_xlfn.MINIFS(Auswertung!$F$3:$F$17,Auswertung!$J$3:$J$17, $E43,Auswertung!$R$3:$R$17, ">="&J10)) -> 3 | K43: =J43 -> 3 | L43: =IF(_xlfn.MINIFS(Auswertung!$F$3:$F$17,Auswertung!$J$3:$J$17, $E43,Auswertung!$R$3:$R$17, ">="&L10)=0,"-",_xlfn.MINIFS(Auswertung!$F$3:$F$17,Auswertung!$J$3:$J$17, $E43,Auswertung!$R$3:$R$17, ">="&L10)) -> 3 | M43: =L43 -> 3 | N43: =IF(_xlfn.MINIFS(Auswertung!$F$3:$F$17,Auswertung!$J$3:$J$17, $E43,Auswertung!$R$3:$R$17, ">="&N10)=0,"-",_xlfn.MINIFS(Auswertung!$F$3:$F$17,Auswertung!$J$3:$J$17, $E43,Auswertung!$R$3:$R$17, ">="&N10)) -> 3 | O43: =N43 -> 3 | P43: =IF(_xlfn.MINIFS(Auswertung!$F$3:$F$17,Auswertung!$J$3:$J$17, $E43,Auswertung!$R$3:$R$17, ">="&P10)=0,"-",_xlfn.MINIFS(Auswertung!$F$3:$F$17,Auswertung!$J$3:$J$17, $E43,Auswertung!$R$3:$R$17, ">="&P10)) -> 3 | Q43: =P43 -> 3 | R43: =IF(_xlfn.MINIFS(Auswertung!$F$3:$F$17,Auswertung!$J$3:$J$17, $E43,Auswertung!$R$3:$R$17, ">="&R10)=0,"-",_xlfn.MINIFS(Auswertung!$F$3:$F$17,Auswertung!$J$3:$J$17, $E43,Auswertung!$R$3:$R$17, ">="&R10)) -> 3 | S43: =R43 -> 3 | T43: =IF(_xlfn.MINIFS(Auswertung!$F$3:$F$17,Auswertung!$J$3:$J$17, $E43,Auswertung!$R$3:$R$17, ">="&T10)=0,"-",_xlfn.MINIFS(Auswertung!$F$3:$F$17,Auswertung!$J$3:$J$17, $E43,Auswertung!$R$3:$R$17, ">="&T10)) -> - | U43: =T43 -> - | V43: =IF(_xlfn.MINIFS(Auswertung!$F$3:$F$17,Auswertung!$J$3:$J$17, $E43,Auswertung!$R$3:$R$17, ">="&V10)=0,"-",_xlfn.MINIFS(Auswertung!$F$3:$F$17,Auswertung!$J$3:$J$17, $E43,Auswertung!$R$3:$R$17, ">="&V10)) -> - | W43: =V43 -> - | X43: =IF(_xlfn.MINIFS(Auswertung!$F$3:$F$17,Auswertung!$J$3:$J$17, $E43,Auswertung!$R$3:$R$17, ">="&X10)=0,"-",_xlfn.MINIFS(Auswertung!$F$3:$F$17,Auswertung!$J$3:$J$17, $E43,Auswertung!$R$3:$R$17, ">="&X10)) -> - | Y43: =X43 -> - | Z43: =IF(_xlfn.MINIFS(Auswertung!$F$3:$F$17,Auswertung!$J$3:$J$17, $E43,Auswertung!$R$3:$R$17, ">="&Z10)=0,"-",_xlfn.MINIFS(Auswertung!$F$3:$F$17,Auswertung!$J$3:$J$17, $E43,Auswertung!$R$3:$R$17, ">="&Z10)) -> - | AA43: =Z43 -> - | AB43: =IF(_xlfn.MINIFS(Auswertung!$F$3:$F$17,Auswertung!$J$3:$J$17, $E43,Auswertung!$R$3:$R$17, ">="&AB10)=0,"-",_xlfn.MINIFS(Auswertung!$F$3:$F$17,Auswertung!$J$3:$J$17, $E43,Auswertung!$R$3:$R$17, ">="&AB10)) -> - | AC43: =AB43 -> - | AD43: =IF(_xlfn.MINIFS(Auswertung!$F$3:$F$17,Auswertung!$J$3:$J$17, $E43,Auswertung!$R$3:$R$17, ">="&AD10)=0,"-",_xlfn.MINIFS(Auswertung!$F$3:$F$17,Auswertung!$J$3:$J$17, $E43,Auswertung!$R$3:$R$17, ">="&AD10)) -> - | AE43: =AD43 -> - | AF43: =IF(_xlfn.MINIFS(Auswertung!$F$3:$F$17,Auswertung!$J$3:$J$17, $E43,Auswertung!$R$3:$R$17, ">="&AF10)=0,"-",_xlfn.MINIFS(Auswertung!$F$3:$F$17,Auswertung!$J$3:$J$17, $E43,Auswertung!$R$3:$R$17, ">="&AF10)) -> - | AG43: =AF43 -> - | AH43: =IF(_xlfn.MINIFS(Auswertung!$F$3:$F$17,Auswertung!$J$3:$J$17, $E43,Auswertung!$R$3:$R$17, ">="&AH10)=0,"-",_xlfn.MINIFS(Auswertung!$F$3:$F$17,Auswertung!$J$3:$J$17, $E43,Auswertung!$R$3:$R$17, ">="&AH10)) -> - | AI43: - | AN43: 500 | AO43: - | AP43: 1000 | AQ43: =IFERROR(($AP43-2*60)/(F43-1),"-") -> 440 | AR43: =IFERROR(($AP43-2*120)/(F43-1),"-") -> 380 | AS43: =IFERROR(($AP43-2*60)/(H43-1),"-") -> 440 | AT43: =IFERROR(($AP43-2*120)/(H43-1),"-") -> 380 | AU43: =IFERROR(($AP43-2*60)/(J43-1),"-") -> 440 | AV43: =IFERROR(($AP43-2*120)/(J43-1),"-") -> 380 | AW43: =IFERROR(($AP43-2*60)/(L43-1),"-") -> 440 | AX43: =IFERROR(($AP43-2*120)/(L43-1),"-") -> 380 | AY43: =IFERROR(($AP43-2*60)/(N43-1),"-") -> 440 | AZ43: =IFERROR(($AP43-2*120)/(N43-1),"-") -> 380 | BA43: =IFERROR(($AP43-2*60)/(P43-1),"-") -> 440 | BB43: =IFERROR(($AP43-2*120)/(P43-1),"-") -> 380 | BC43: =IFERROR(($AP43-2*60)/(R43-1),"-") -> 440 | BD43: =IFERROR(($AP43-2*120)/(R43-1),"-") -> 380 | BE43: =IFERROR(($AP43-2*60)/(T43-1),"-") -> - | BF43: =IFERROR(($AP43-2*120)/(T43-1),"-") -> - | BG43: =IFERROR(($AP43-2*60)/(V43-1),"-") -> - | BH43: =IFERROR(($AP43-2*120)/(V43-1),"-") -> - | BI43: =IFERROR(($AP43-2*60)/(X43-1),"-") -> - | BJ43: =IFERROR(($AP43-2*120)/(X43-1),"-") -> - | BK43: =IFERROR(($AP43-2*60)/(Z43-1),"-") -> - | BL43: =IFERROR(($AP43-2*120)/(Z43-1),"-") -> - | BM43: =IFERROR(($AP43-2*60)/(AB43-1),"-") -> - | BN43: =IFERROR(($AP43-2*120)/(AB43-1),"-") -> - | BO43: =IFERROR(($AP43-2*60)/(AD43-1),"-") -> - | BP43: =IFERROR(($AP43-2*120)/(AD43-1),"-") -> - | BQ43: =IFERROR(($AP43-2*60)/(AF43-1),"-") -> - | BR43: =IFERROR(($AP43-2*120)/(AF43-1),"-") -> - | BS43: =IFERROR(($AP43-2*60)/(AH43-1),"-") -> - | BT43: =IFERROR(($AP43-2*120)/(AH43-1),"-") -> -
C44: 1000 | D44: - | E44: 1500 | F44: =IF(_xlfn.MINIFS(Auswertung!$F$3:$F$17,Auswertung!$J$3:$J$17, $E44,Auswertung!$R$3:$R$17, ">="&F11)=0,"-",_xlfn.MINIFS(Auswertung!$F$3:$F$17,Auswertung!$J$3:$J$17, $E44,Auswertung!$R$3:$R$17, ">="&F11)) -> 4 | G44: 4 | H44: =IF(_xlfn.MINIFS(Auswertung!$F$3:$F$17,Auswertung!$J$3:$J$17, $E44,Auswertung!$R$3:$R$17, ">="&H11)=0,"-",_xlfn.MINIFS(Auswertung!$F$3:$F$17,Auswertung!$J$3:$J$17, $E44,Auswertung!$R$3:$R$17, ">="&H11)) -> 4 | I44: =H44 -> 4 | J44: =IF(_xlfn.MINIFS(Auswertung!$F$3:$F$17,Auswertung!$J$3:$J$17, $E44,Auswertung!$R$3:$R$17, ">="&J11)=0,"-",_xlfn.MINIFS(Auswertung!$F$3:$F$17,Auswertung!$J$3:$J$17, $E44,Auswertung!$R$3:$R$17, ">="&J11)) -> 4 | K44: =J44 -> 4 | L44: =IF(_xlfn.MINIFS(Auswertung!$F$3:$F$17,Auswertung!$J$3:$J$17, $E44,Auswertung!$R$3:$R$17, ">="&L11)=0,"-",_xlfn.MINIFS(Auswertung!$F$3:$F$17,Auswertung!$J$3:$J$17, $E44,Auswertung!$R$3:$R$17, ">="&L11)) -> 4 | M44: =L44 -> 4 | N44: =IF(_xlfn.MINIFS(Auswertung!$F$3:$F$17,Auswertung!$J$3:$J$17, $E44,Auswertung!$R$3:$R$17, ">="&N11)=0,"-",_xlfn.MINIFS(Auswertung!$F$3:$F$17,Auswertung!$J$3:$J$17, $E44,Auswertung!$R$3:$R$17, ">="&N11)) -> 4 | O44: =N44 -> 4 | P44: =IF(_xlfn.MINIFS(Auswertung!$F$3:$F$17,Auswertung!$J$3:$J$17, $E44,Auswertung!$R$3:$R$17, ">="&P11)=0,"-",_xlfn.MINIFS(Auswertung!$F$3:$F$17,Auswertung!$J$3:$J$17, $E44,Auswertung!$R$3:$R$17, ">="&P11)) -> 4 | Q44: =P44 -> 4 | R44: =IF(_xlfn.MINIFS(Auswertung!$F$3:$F$17,Auswertung!$J$3:$J$17, $E44,Auswertung!$R$3:$R$17, ">="&R11)=0,"-",_xlfn.MINIFS(Auswertung!$F$3:$F$17,Auswertung!$J$3:$J$17, $E44,Auswertung!$R$3:$R$17, ">="&R11)) -> 4 | S44: =R44 -> 4 | T44: =IF(_xlfn.MINIFS(Auswertung!$F$3:$F$17,Auswertung!$J$3:$J$17, $E44,Auswertung!$R$3:$R$17, ">="&T11)=0,"-",_xlfn.MINIFS(Auswertung!$F$3:$F$17,Auswertung!$J$3:$J$17, $E44,Auswertung!$R$3:$R$17, ">="&T11)) -> - | U44: =T44 -> - | V44: =IF(_xlfn.MINIFS(Auswertung!$F$3:$F$17,Auswertung!$J$3:$J$17, $E44,Auswertung!$R$3:$R$17, ">="&V11)=0,"-",_xlfn.MINIFS(Auswertung!$F$3:$F$17,Auswertung!$J$3:$J$17, $E44,Auswertung!$R$3:$R$17, ">="&V11)) -> - | W44: =V44 -> - | X44: =IF(_xlfn.MINIFS(Auswertung!$F$3:$F$17,Auswertung!$J$3:$J$17, $E44,Auswertung!$R$3:$R$17, ">="&X11)=0,"-",_xlfn.MINIFS(Auswertung!$F$3:$F$17,Auswertung!$J$3:$J$17, $E44,Auswertung!$R$3:$R$17, ">="&X11)) -> - | Y44: =X44 -> - | Z44: =IF(_xlfn.MINIFS(Auswertung!$F$3:$F$17,Auswertung!$J$3:$J$17, $E44,Auswertung!$R$3:$R$17, ">="&Z11)=0,"-",_xlfn.MINIFS(Auswertung!$F$3:$F$17,Auswertung!$J$3:$J$17, $E44,Auswertung!$R$3:$R$17, ">="&Z11)) -> - | AA44: =Z44 -> - | AB44: =IF(_xlfn.MINIFS(Auswertung!$F$3:$F$17,Auswertung!$J$3:$J$17, $E44,Auswertung!$R$3:$R$17, ">="&AB11)=0,"-",_xlfn.MINIFS(Auswertung!$F$3:$F$17,Auswertung!$J$3:$J$17, $E44,Auswertung!$R$3:$R$17, ">="&AB11)) -> - | AC44: =AB44 -> - | AD44: =IF(_xlfn.MINIFS(Auswertung!$F$3:$F$17,Auswertung!$J$3:$J$17, $E44,Auswertung!$R$3:$R$17, ">="&AD11)=0,"-",_xlfn.MINIFS(Auswertung!$F$3:$F$17,Auswertung!$J$3:$J$17, $E44,Auswertung!$R$3:$R$17, ">="&AD11)) -> - | AE44: =AD44 -> - | AF44: =IF(_xlfn.MINIFS(Auswertung!$F$3:$F$17,Auswertung!$J$3:$J$17, $E44,Auswertung!$R$3:$R$17, ">="&AF11)=0,"-",_xlfn.MINIFS(Auswertung!$F$3:$F$17,Auswertung!$J$3:$J$17, $E44,Auswertung!$R$3:$R$17, ">="&AF11)) -> - | AG44: =AF44 -> - | AH44: =IF(_xlfn.MINIFS(Auswertung!$F$3:$F$17,Auswertung!$J$3:$J$17, $E44,Auswertung!$R$3:$R$17, ">="&AH11)=0,"-",_xlfn.MINIFS(Auswertung!$F$3:$F$17,Auswertung!$J$3:$J$17, $E44,Auswertung!$R$3:$R$17, ">="&AH11)) -> - | AI44: - | AN44: 1000 | AO44: - | AP44: 1500 | AQ44: 460 | AR44: 420 | AS44: 460 | AT44: 420 | AU44: 460 | AV44: 420 | AW44: 460 | AX44: 420 | AY44: 460 | AZ44: 420 | BA44: 460 | BB44: 420 | BC44: 460 | BD44: 420 | BE44: - | BF44: - | BG44: - | BH44: - | BI44: - | BJ44: - | BK44: - | BL44: - | BM44: - | BN44: - | BO44: - | BP44: - | BQ44: - | BR44: - | BS44: - | BT44: -
C45: 1500 | D45: - | E45: 2000 | F45: =IF(_xlfn.MINIFS(Auswertung!$F$3:$F$17,Auswertung!$J$3:$J$17, $E45,Auswertung!$R$3:$R$17, ">="&F12)=0,"-",_xlfn.MINIFS(Auswertung!$F$3:$F$17,Auswertung!$J$3:$J$17, $E45,Auswertung!$R$3:$R$17, ">="&F12)) -> 5 | G45: 5 | H45: =IF(_xlfn.MINIFS(Auswertung!$F$3:$F$17,Auswertung!$J$3:$J$17, $E45,Auswertung!$R$3:$R$17, ">="&H12)=0,"-",_xlfn.MINIFS(Auswertung!$F$3:$F$17,Auswertung!$J$3:$J$17, $E45,Auswertung!$R$3:$R$17, ">="&H12)) -> 5 | I45: =H45 -> 5 | J45: =IF(_xlfn.MINIFS(Auswertung!$F$3:$F$17,Auswertung!$J$3:$J$17, $E45,Auswertung!$R$3:$R$17, ">="&J12)=0,"-",_xlfn.MINIFS(Auswertung!$F$3:$F$17,Auswertung!$J$3:$J$17, $E45,Auswertung!$R$3:$R$17, ">="&J12)) -> 5 | K45: =J45 -> 5 | L45: =IF(_xlfn.MINIFS(Auswertung!$F$3:$F$17,Auswertung!$J$3:$J$17, $E45,Auswertung!$R$3:$R$17, ">="&L12)=0,"-",_xlfn.MINIFS(Auswertung!$F$3:$F$17,Auswertung!$J$3:$J$17, $E45,Auswertung!$R$3:$R$17, ">="&L12)) -> 5 | M45: =L45 -> 5 | N45: =IF(_xlfn.MINIFS(Auswertung!$F$3:$F$17,Auswertung!$J$3:$J$17, $E45,Auswertung!$R$3:$R$17, ">="&N12)=0,"-",_xlfn.MINIFS(Auswertung!$F$3:$F$17,Auswertung!$J$3:$J$17, $E45,Auswertung!$R$3:$R$17, ">="&N12)) -> 6 | O45: =N45 -> 6 | P45: =IF(_xlfn.MINIFS(Auswertung!$F$3:$F$17,Auswertung!$J$3:$J$17, $E45,Auswertung!$R$3:$R$17, ">="&P12)=0,"-",_xlfn.MINIFS(Auswertung!$F$3:$F$17,Auswertung!$J$3:$J$17, $E45,Auswertung!$R$3:$R$17, ">="&P12)) -> 5 | Q45: =P45 -> 5 | R45: =IF(_xlfn.MINIFS(Auswertung!$F$3:$F$17,Auswertung!$J$3:$J$17, $E45,Auswertung!$R$3:$R$17, ">="&R12)=0,"-",_xlfn.MINIFS(Auswertung!$F$3:$F$17,Auswertung!$J$3:$J$17, $E45,Auswertung!$R$3:$R$17, ">="&R12)) -> 5 | S45: =R45 -> 5 | T45: =IF(_xlfn.MINIFS(Auswertung!$F$3:$F$17,Auswertung!$J$3:$J$17, $E45,Auswertung!$R$3:$R$17, ">="&T12)=0,"-",_xlfn.MINIFS(Auswertung!$F$3:$F$17,Auswertung!$J$3:$J$17, $E45,Auswertung!$R$3:$R$17, ">="&T12)) -> 6 | U45: =T45 -> 6 | V45: =IF(_xlfn.MINIFS(Auswertung!$F$3:$F$17,Auswertung!$J$3:$J$17, $E45,Auswertung!$R$3:$R$17, ">="&V12)=0,"-",_xlfn.MINIFS(Auswertung!$F$3:$F$17,Auswertung!$J$3:$J$17, $E45,Auswertung!$R$3:$R$17, ">="&V12)) -> - | W45: =V45 -> - | X45: =IF(_xlfn.MINIFS(Auswertung!$F$3:$F$17,Auswertung!$J$3:$J$17, $E45,Auswertung!$R$3:$R$17, ">="&X12)=0,"-",_xlfn.MINIFS(Auswertung!$F$3:$F$17,Auswertung!$J$3:$J$17, $E45,Auswertung!$R$3:$R$17, ">="&X12)) -> - | Y45: =X45 -> - | Z45: =IF(_xlfn.MINIFS(Auswertung!$F$3:$F$17,Auswertung!$J$3:$J$17, $E45,Auswertung!$R$3:$R$17, ">="&Z12)=0,"-",_xlfn.MINIFS(Auswertung!$F$3:$F$17,Auswertung!$J$3:$J$17, $E45,Auswertung!$R$3:$R$17, ">="&Z12)) -> 6 | AA45: =Z45 -> 6 | AB45: =IF(_xlfn.MINIFS(Auswertung!$F$3:$F$17,Auswertung!$J$3:$J$17, $E45,Auswertung!$R$3:$R$17, ">="&AB12)=0,"-",_xlfn.MINIFS(Auswertung!$F$3:$F$17,Auswertung!$J$3:$J$17, $E45,Auswertung!$R$3:$R$17, ">="&AB12)) -> - | AC45: =AB45 -> - | AD45: =IF(_xlfn.MINIFS(Auswertung!$F$3:$F$17,Auswertung!$J$3:$J$17, $E45,Auswertung!$R$3:$R$17, ">="&AD12)=0,"-",_xlfn.MINIFS(Auswertung!$F$3:$F$17,Auswertung!$J$3:$J$17, $E45,Auswertung!$R$3:$R$17, ">="&AD12)) -> - | AE45: =AD45 -> - | AF45: =IF(_xlfn.MINIFS(Auswertung!$F$3:$F$17,Auswertung!$J$3:$J$17, $E45,Auswertung!$R$3:$R$17, ">="&AF12)=0,"-",_xlfn.MINIFS(Auswertung!$F$3:$F$17,Auswertung!$J$3:$J$17, $E45,Auswertung!$R$3:$R$17, ">="&AF12)) -> - | AG45: =AF45 -> - | AH45: =IF(_xlfn.MINIFS(Auswertung!$F$3:$F$17,Auswertung!$J$3:$J$17, $E45,Auswertung!$R$3:$R$17, ">="&AH12)=0,"-",_xlfn.MINIFS(Auswertung!$F$3:$F$17,Auswertung!$J$3:$J$17, $E45,Auswertung!$R$3:$R$17, ">="&AH12)) -> - | AI45: - | AN45: 1500 | AO45: - | AP45: 2000 | AQ45: 470 | AR45: 440 | AS45: 470 | AT45: 440 | AU45: 470 | AV45: 440 | AW45: 470 | AX45: 440 | AY45: 376 | AZ45: 352 | BA45: 470 | BB45: 440 | BC45: 470 | BD45: 440 | BE45: 376 | BF45: 352 | BG45: - | BH45: - | BI45: - | BJ45: - | BK45: 376 | BL45: 352 | BM45: - | BN45: - | BO45: - | BP45: - | BQ45: - | BR45: - | BS45: - | BT45: -
C46: 2000 | D46: - | E46: 2500 | F46: =IF(_xlfn.MINIFS(Auswertung!$F$3:$F$17,Auswertung!$J$3:$J$17, $E46,Auswertung!$R$3:$R$17, ">="&F13)=0,"-",_xlfn.MINIFS(Auswertung!$F$3:$F$17,Auswertung!$J$3:$J$17, $E46,Auswertung!$R$3:$R$17, ">="&F13)) -> 6 | G46: 6 | H46: =IF(_xlfn.MINIFS(Auswertung!$F$3:$F$17,Auswertung!$J$3:$J$17, $E46,Auswertung!$R$3:$R$17, ">="&H13)=0,"-",_xlfn.MINIFS(Auswertung!$F$3:$F$17,Auswertung!$J$3:$J$17, $E46,Auswertung!$R$3:$R$17, ">="&H13)) -> 6 | I46: =H46 -> 6 | J46: =IF(_xlfn.MINIFS(Auswertung!$F$3:$F$17,Auswertung!$J$3:$J$17, $E46,Auswertung!$R$3:$R$17, ">="&J13)=0,"-",_xlfn.MINIFS(Auswertung!$F$3:$F$17,Auswertung!$J$3:$J$17, $E46,Auswertung!$R$3:$R$17, ">="&J13)) -> 6 | K46: =J46 -> 6 | L46: =IF(_xlfn.MINIFS(Auswertung!$F$3:$F$17,Auswertung!$J$3:$J$17, $E46,Auswertung!$R$3:$R$17, ">="&L13)=0,"-",_xlfn.MINIFS(Auswertung!$F$3:$F$17,Auswertung!$J$3:$J$17, $E46,Auswertung!$R$3:$R$17, ">="&L13)) -> 6 | M46: =L46 -> 6 | N46: =IF(_xlfn.MINIFS(Auswertung!$F$3:$F$17,Auswertung!$J$3:$J$17, $E46,Auswertung!$R$3:$R$17, ">="&N13)=0,"-",_xlfn.MINIFS(Auswertung!$F$3:$F$17,Auswertung!$J$3:$J$17, $E46,Auswertung!$R$3:$R$17, ">="&N13)) -> 7 | O46: =N46 -> 7 | P46: =IF(_xlfn.MINIFS(Auswertung!$F$3:$F$17,Auswertung!$J$3:$J$17, $E46,Auswertung!$R$3:$R$17, ">="&P13)=0,"-",_xlfn.MINIFS(Auswertung!$F$3:$F$17,Auswertung!$J$3:$J$17, $E46,Auswertung!$R$3:$R$17, ">="&P13)) -> 6 | Q46: =P46 -> 6 | R46: =IF(_xlfn.MINIFS(Auswertung!$F$3:$F$17,Auswertung!$J$3:$J$17, $E46,Auswertung!$R$3:$R$17, ">="&R13)=0,"-",_xlfn.MINIFS(Auswertung!$F$3:$F$17,Auswertung!$J$3:$J$17, $E46,Auswertung!$R$3:$R$17, ">="&R13)) -> 6 | S46: =R46 -> 6 | T46: =IF(_xlfn.MINIFS(Auswertung!$F$3:$F$17,Auswertung!$J$3:$J$17, $E46,Auswertung!$R$3:$R$17, ">="&T13)=0,"-",_xlfn.MINIFS(Auswertung!$F$3:$F$17,Auswertung!$J$3:$J$17, $E46,Auswertung!$R$3:$R$17, ">="&T13)) -> 7 | U46: =T46 -> 7 | V46: =IF(_xlfn.MINIFS(Auswertung!$F$3:$F$17,Auswertung!$J$3:$J$17, $E46,Auswertung!$R$3:$R$17, ">="&V13)=0,"-",_xlfn.MINIFS(Auswertung!$F$3:$F$17,Auswertung!$J$3:$J$17, $E46,Auswertung!$R$3:$R$17, ">="&V13)) -> - | W46: =V46 -> - | X46: =IF(_xlfn.MINIFS(Auswertung!$F$3:$F$17,Auswertung!$J$3:$J$17, $E46,Auswertung!$R$3:$R$17, ">="&X13)=0,"-",_xlfn.MINIFS(Auswertung!$F$3:$F$17,Auswertung!$J$3:$J$17, $E46,Auswertung!$R$3:$R$17, ">="&X13)) -> - | Y46: =X46 -> - | Z46: =IF(_xlfn.MINIFS(Auswertung!$F$3:$F$17,Auswertung!$J$3:$J$17, $E46,Auswertung!$R$3:$R$17, ">="&Z13)=0,"-",_xlfn.MINIFS(Auswertung!$F$3:$F$17,Auswertung!$J$3:$J$17, $E46,Auswertung!$R$3:$R$17, ">="&Z13)) -> 7 | AA46: =Z46 -> 7 | AB46: =IF(_xlfn.MINIFS(Auswertung!$F$3:$F$17,Auswertung!$J$3:$J$17, $E46,Auswertung!$R$3:$R$17, ">="&AB13)=0,"-",_xlfn.MINIFS(Auswertung!$F$3:$F$17,Auswertung!$J$3:$J$17, $E46,Auswertung!$R$3:$R$17, ">="&AB13)) -> - | AC46: =AB46 -> - | AD46: =IF(_xlfn.MINIFS(Auswertung!$F$3:$F$17,Auswertung!$J$3:$J$17, $E46,Auswertung!$R$3:$R$17, ">="&AD13)=0,"-",_xlfn.MINIFS(Auswertung!$F$3:$F$17,Auswertung!$J$3:$J$17, $E46,Auswertung!$R$3:$R$17, ">="&AD13)) -> - | AE46: =AD46 -> - | AF46: =IF(_xlfn.MINIFS(Auswertung!$F$3:$F$17,Auswertung!$J$3:$J$17, $E46,Auswertung!$R$3:$R$17, ">="&AF13)=0,"-",_xlfn.MINIFS(Auswertung!$F$3:$F$17,Auswertung!$J$3:$J$17, $E46,Auswertung!$R$3:$R$17, ">="&AF13)) -> - | AG46: =AF46 -> - | AH46: =IF(_xlfn.MINIFS(Auswertung!$F$3:$F$17,Auswertung!$J$3:$J$17, $E46,Auswertung!$R$3:$R$17, ">="&AH13)=0,"-",_xlfn.MINIFS(Auswertung!$F$3:$F$17,Auswertung!$J$3:$J$17, $E46,Auswertung!$R$3:$R$17, ">="&AH13)) -> - | AI46: - | AN46: 2000 | AO46: - | AP46: 2500 | AQ46: 476 | AR46: 452 | AS46: 476 | AT46: 452 | AU46: 476 | AV46: 452 | AW46: 476 | AX46: 452 | AY46: 397 | AZ46: 377 | BA46: 476 | BB46: 452 | BC46: 476 | BD46: 452 | BE46: 397 | BF46: 377 | BG46: - | BH46: - | BI46: - | BJ46: - | BK46: 397 | BL46: 377 | BM46: - | BN46: - | BO46: - | BP46: - | BQ46: - | BR46: - | BS46: - | BT46: -
C47: 2500 | D47: - | E47: 3050 | F47: =IF(_xlfn.MINIFS(Auswertung!$F$3:$F$17,Auswertung!$J$3:$J$17, $E47,Auswertung!$R$3:$R$17, ">="&F14)=0,"-",_xlfn.MINIFS(Auswertung!$F$3:$F$17,Auswertung!$J$3:$J$17, $E47,Auswertung!$R$3:$R$17, ">="&F14)) -> 7 | G47: 7 | H47: =IF(_xlfn.MINIFS(Auswertung!$F$3:$F$17,Auswertung!$J$3:$J$17, $E47,Auswertung!$R$3:$R$17, ">="&H14)=0,"-",_xlfn.MINIFS(Auswertung!$F$3:$F$17,Auswertung!$J$3:$J$17, $E47,Auswertung!$R$3:$R$17, ">="&H14)) -> 7 | I47: =H47 -> 7 | J47: =IF(_xlfn.MINIFS(Auswertung!$F$3:$F$17,Auswertung!$J$3:$J$17, $E47,Auswertung!$R$3:$R$17, ">="&J14)=0,"-",_xlfn.MINIFS(Auswertung!$F$3:$F$17,Auswertung!$J$3:$J$17, $E47,Auswertung!$R$3:$R$17, ">="&J14)) -> 7 | K47: =J47 -> 7 | L47: =IF(_xlfn.MINIFS(Auswertung!$F$3:$F$17,Auswertung!$J$3:$J$17, $E47,Auswertung!$R$3:$R$17, ">="&L14)=0,"-",_xlfn.MINIFS(Auswertung!$F$3:$F$17,Auswertung!$J$3:$J$17, $E47,Auswertung!$R$3:$R$17, ">="&L14)) -> 7 | M47: =L47 -> 7 | N47: =IF(_xlfn.MINIFS(Auswertung!$F$3:$F$17,Auswertung!$J$3:$J$17, $E47,Auswertung!$R$3:$R$17, ">="&N14)=0,"-",_xlfn.MINIFS(Auswertung!$F$3:$F$17,Auswertung!$J$3:$J$17, $E47,Auswertung!$R$3:$R$17, ">="&N14)) -> 7 | O47: =N47 -> 7 | P47: =IF(_xlfn.MINIFS(Auswertung!$F$3:$F$17,Auswertung!$J$3:$J$17, $E47,Auswertung!$R$3:$R$17, ">="&P14)=0,"-",_xlfn.MINIFS(Auswertung!$F$3:$F$17,Auswertung!$J$3:$J$17, $E47,Auswertung!$R$3:$R$17, ">="&P14)) -> 7 | Q47: =P47 -> 7 | R47: =IF(_xlfn.MINIFS(Auswertung!$F$3:$F$17,Auswertung!$J$3:$J$17, $E47,Auswertung!$R$3:$R$17, ">="&R14)=0,"-",_xlfn.MINIFS(Auswertung!$F$3:$F$17,Auswertung!$J$3:$J$17, $E47,Auswertung!$R$3:$R$17, ">="&R14)) -> 7 | S47: =R47 -> 7 | T47: =IF(_xlfn.MINIFS(Auswertung!$F$3:$F$17,Auswertung!$J$3:$J$17, $E47,Auswertung!$R$3:$R$17, ">="&T14)=0,"-",_xlfn.MINIFS(Auswertung!$F$3:$F$17,Auswertung!$J$3:$J$17, $E47,Auswertung!$R$3:$R$17, ">="&T14)) -> 7 | U47: =T47 -> 7 | V47: =IF(_xlfn.MINIFS(Auswertung!$F$3:$F$17,Auswertung!$J$3:$J$17, $E47,Auswertung!$R$3:$R$17, ">="&V14)=0,"-",_xlfn.MINIFS(Auswertung!$F$3:$F$17,Auswertung!$J$3:$J$17, $E47,Auswertung!$R$3:$R$17, ">="&V14)) -> 7 | W47: =V47 -> 7 | X47: =IF(_xlfn.MINIFS(Auswertung!$F$3:$F$17,Auswertung!$J$3:$J$17, $E47,Auswertung!$R$3:$R$17, ">="&X14)=0,"-",_xlfn.MINIFS(Auswertung!$F$3:$F$17,Auswertung!$J$3:$J$17, $E47,Auswertung!$R$3:$R$17, ">="&X14)) -> - | Y47: =X47 -> - | Z47: =IF(_xlfn.MINIFS(Auswertung!$F$3:$F$17,Auswertung!$J$3:$J$17, $E47,Auswertung!$R$3:$R$17, ">="&Z14)=0,"-",_xlfn.MINIFS(Auswertung!$F$3:$F$17,Auswertung!$J$3:$J$17, $E47,Auswertung!$R$3:$R$17, ">="&Z14)) -> 7 | AA47: =Z47 -> 7 | AB47: =IF(_xlfn.MINIFS(Auswertung!$F$3:$F$17,Auswertung!$J$3:$J$17, $E47,Auswertung!$R$3:$R$17, ">="&AB14)=0,"-",_xlfn.MINIFS(Auswertung!$F$3:$F$17,Auswertung!$J$3:$J$17, $E47,Auswertung!$R$3:$R$17, ">="&AB14)) -> 7 | AC47: =AB47 -> 7 | AD47: =IF(_xlfn.MINIFS(Auswertung!$F$3:$F$17,Auswertung!$J$3:$J$17, $E47,Auswertung!$R$3:$R$17, ">="&AD14)=0,"-",_xlfn.MINIFS(Auswertung!$F$3:$F$17,Auswertung!$J$3:$J$17, $E47,Auswertung!$R$3:$R$17, ">="&AD14)) -> - | AE47: =AD47 -> - | AF47: =IF(_xlfn.MINIFS(Auswertung!$F$3:$F$17,Auswertung!$J$3:$J$17, $E47,Auswertung!$R$3:$R$17, ">="&AF14)=0,"-",_xlfn.MINIFS(Auswertung!$F$3:$F$17,Auswertung!$J$3:$J$17, $E47,Auswertung!$R$3:$R$17, ">="&AF14)) -> - | AG47: =AF47 -> - | AH47: =IF(_xlfn.MINIFS(Auswertung!$F$3:$F$17,Auswertung!$J$3:$J$17, $E47,Auswertung!$R$3:$R$17, ">="&AH14)=0,"-",_xlfn.MINIFS(Auswertung!$F$3:$F$17,Auswertung!$J$3:$J$17, $E47,Auswertung!$R$3:$R$17, ">="&AH14)) -> - | AI47: - | AN47: 2500 | AO47: - | AP47: 3050 | AQ47: 488 | AR47: 468 | AS47: 488 | AT47: 468 | AU47: 488 | AV47: 468 | AW47: 488 | AX47: 468 | AY47: 488 | AZ47: 468 | BA47: 488 | BB47: 468 | BC47: 488 | BD47: 468 | BE47: 488 | BF47: 468 | BG47: 488 | BH47: 468 | BI47: - | BJ47: - | BK47: 488 | BL47: 468 | BM47: 488 | BN47: 468 | BO47: - | BP47: - | BQ47: - | BR47: - | BS47: - | BT47: -
B48: IIa: Grosse Ebene | C48: 340 | D48: - | E48: 500 | F48: =IF(_xlfn.MINIFS(Auswertung!$F$3:$F$17,Auswertung!$J$3:$J$17, $E48,Auswertung!$R$3:$R$17, ">="&F15)=0,"-",_xlfn.MINIFS(Auswertung!$F$3:$F$17,Auswertung!$J$3:$J$17, $E48,Auswertung!$R$3:$R$17, ">="&F15)) -> 2 | G48: 2 | H48: =IF(_xlfn.MINIFS(Auswertung!$F$3:$F$17,Auswertung!$J$3:$J$17, $E48,Auswertung!$R$3:$R$17, ">="&H15)=0,"-",_xlfn.MINIFS(Auswertung!$F$3:$F$17,Auswertung!$J$3:$J$17, $E48,Auswertung!$R$3:$R$17, ">="&H15)) -> 2 | I48: =H48 -> 2 | J48: =IF(_xlfn.MINIFS(Auswertung!$F$3:$F$17,Auswertung!$J$3:$J$17, $E48,Auswertung!$R$3:$R$17, ">="&J15)=0,"-",_xlfn.MINIFS(Auswertung!$F$3:$F$17,Auswertung!$J$3:$J$17, $E48,Auswertung!$R$3:$R$17, ">="&J15)) -> 2 | K48: =J48 -> 2 | L48: =IF(_xlfn.MINIFS(Auswertung!$F$3:$F$17,Auswertung!$J$3:$J$17, $E48,Auswertung!$R$3:$R$17, ">="&L15)=0,"-",_xlfn.MINIFS(Auswertung!$F$3:$F$17,Auswertung!$J$3:$J$17, $E48,Auswertung!$R$3:$R$17, ">="&L15)) -> 2 | M48: =L48 -> 2 | N48: =IF(_xlfn.MINIFS(Auswertung!$F$3:$F$17,Auswertung!$J$3:$J$17, $E48,Auswertung!$R$3:$R$17, ">="&N15)=0,"-",_xlfn.MINIFS(Auswertung!$F$3:$F$17,Auswertung!$J$3:$J$17, $E48,Auswertung!$R$3:$R$17, ">="&N15)) -> 2 | O48: =N48 -> 2 | P48: =IF(_xlfn.MINIFS(Auswertung!$F$3:$F$17,Auswertung!$J$3:$J$17, $E48,Auswertung!$R$3:$R$17, ">="&P15)=0,"-",_xlfn.MINIFS(Auswertung!$F$3:$F$17,Auswertung!$J$3:$J$17, $E48,Auswertung!$R$3:$R$17, ">="&P15)) -> 2 | Q48: =P48 -> 2 | R48: =IF(_xlfn.MINIFS(Auswertung!$F$3:$F$17,Auswertung!$J$3:$J$17, $E48,Auswertung!$R$3:$R$17, ">="&R15)=0,"-",_xlfn.MINIFS(Auswertung!$F$3:$F$17,Auswertung!$J$3:$J$17, $E48,Auswertung!$R$3:$R$17, ">="&R15)) -> 2 | S48: =R48 -> 2 | T48: =IF(_xlfn.MINIFS(Auswertung!$F$3:$F$17,Auswertung!$J$3:$J$17, $E48,Auswertung!$R$3:$R$17, ">="&T15)=0,"-",_xlfn.MINIFS(Auswertung!$F$3:$F$17,Auswertung!$J$3:$J$17, $E48,Auswertung!$R$3:$R$17, ">="&T15)) -> 2 | U48: =T48 -> 2 | V48: =IF(_xlfn.MINIFS(Auswertung!$F$3:$F$17,Auswertung!$J$3:$J$17, $E48,Auswertung!$R$3:$R$17, ">="&V15)=0,"-",_xlfn.MINIFS(Auswertung!$F$3:$F$17,Auswertung!$J$3:$J$17, $E48,Auswertung!$R$3:$R$17, ">="&V15)) -> 2 | W48: =V48 -> 2 | X48: =IF(_xlfn.MINIFS(Auswertung!$F$3:$F$17,Auswertung!$J$3:$J$17, $E48,Auswertung!$R$3:$R$17, ">="&X15)=0,"-",_xlfn.MINIFS(Auswertung!$F$3:$F$17,Auswertung!$J$3:$J$17, $E48,Auswertung!$R$3:$R$17, ">="&X15)) -> 2 | Y48: =X48 -> 2 | Z48: =IF(_xlfn.MINIFS(Auswertung!$F$3:$F$17,Auswertung!$J$3:$J$17, $E48,Auswertung!$R$3:$R$17, ">="&Z15)=0,"-",_xlfn.MINIFS(Auswertung!$F$3:$F$17,Auswertung!$J$3:$J$17, $E48,Auswertung!$R$3:$R$17, ">="&Z15)) -> 2 | AA48: =Z48 -> 2 | AB48: =IF(_xlfn.MINIFS(Auswertung!$F$3:$F$17,Auswertung!$J$3:$J$17, $E48,Auswertung!$R$3:$R$17, ">="&AB15)=0,"-",_xlfn.MINIFS(Auswertung!$F$3:$F$17,Auswertung!$J$3:$J$17, $E48,Auswertung!$R$3:$R$17, ">="&AB15)) -> 2 | AC48: =AB48 -> 2 | AD48: =IF(_xlfn.MINIFS(Auswertung!$F$3:$F$17,Auswertung!$J$3:$J$17, $E48,Auswertung!$R$3:$R$17, ">="&AD15)=0,"-",_xlfn.MINIFS(Auswertung!$F$3:$F$17,Auswertung!$J$3:$J$17, $E48,Auswertung!$R$3:$R$17, ">="&AD15)) -> 2 | AE48: =AD48 -> 2 | AF48: =IF(_xlfn.MINIFS(Auswertung!$F$3:$F$17,Auswertung!$J$3:$J$17, $E48,Auswertung!$R$3:$R$17, ">="&AF15)=0,"-",_xlfn.MINIFS(Auswertung!$F$3:$F$17,Auswertung!$J$3:$J$17, $E48,Auswertung!$R$3:$R$17, ">="&AF15)) -> - | AG48: =AF48 -> - | AH48: =IF(_xlfn.MINIFS(Auswertung!$F$3:$F$17,Auswertung!$J$3:$J$17, $E48,Auswertung!$R$3:$R$17, ">="&AH15)=0,"-",_xlfn.MINIFS(Auswertung!$F$3:$F$17,Auswertung!$J$3:$J$17, $E48,Auswertung!$R$3:$R$17, ">="&AH15)) -> - | AI48: - | AM48: IIa: Grosse Ebene | AN48: 340 | AO48: - | AP48: 500 | AQ48: 380 | AR48: 260 | AS48: 380 | AT48: 260 | AU48: 380 | AV48: 260 | AW48: 380 | AX48: 260 | AY48: 380 | AZ48: 260 | BA48: 380 | BB48: 260 | BC48: 380 | BD48: 260 | BE48: 380 | BF48: 260 | BG48: 380 | BH48: 260 | BI48: 380 | BJ48: 260 | BK48: 380 | BL48: 260 | BM48: 380 | BN48: 260 | BO48: 380 | BP48: 260 | BQ48: - | BR48: - | BS48: - | BT48: -
C49: 500 | D49: - | E49: 1000 | F49: =IF(_xlfn.MINIFS(Auswertung!$F$3:$F$17,Auswertung!$J$3:$J$17, $E49,Auswertung!$R$3:$R$17, ">="&F16)=0,"-",_xlfn.MINIFS(Auswertung!$F$3:$F$17,Auswertung!$J$3:$J$17, $E49,Auswertung!$R$3:$R$17, ">="&F16)) -> 3 | G49: 3 | H49: =IF(_xlfn.MINIFS(Auswertung!$F$3:$F$17,Auswertung!$J$3:$J$17, $E49,Auswertung!$R$3:$R$17, ">="&H16)=0,"-",_xlfn.MINIFS(Auswertung!$F$3:$F$17,Auswertung!$J$3:$J$17, $E49,Auswertung!$R$3:$R$17, ">="&H16)) -> 3 | I49: =H49 -> 3 | J49: =IF(_xlfn.MINIFS(Auswertung!$F$3:$F$17,Auswertung!$J$3:$J$17, $E49,Auswertung!$R$3:$R$17, ">="&J16)=0,"-",_xlfn.MINIFS(Auswertung!$F$3:$F$17,Auswertung!$J$3:$J$17, $E49,Auswertung!$R$3:$R$17, ">="&J16)) -> 3 | K49: =J49 -> 3 | L49: =IF(_xlfn.MINIFS(Auswertung!$F$3:$F$17,Auswertung!$J$3:$J$17, $E49,Auswertung!$R$3:$R$17, ">="&L16)=0,"-",_xlfn.MINIFS(Auswertung!$F$3:$F$17,Auswertung!$J$3:$J$17, $E49,Auswertung!$R$3:$R$17, ">="&L16)) -> 3 | M49: =L49 -> 3 | N49: =IF(_xlfn.MINIFS(Auswertung!$F$3:$F$17,Auswertung!$J$3:$J$17, $E49,Auswertung!$R$3:$R$17, ">="&N16)=0,"-",_xlfn.MINIFS(Auswertung!$F$3:$F$17,Auswertung!$J$3:$J$17, $E49,Auswertung!$R$3:$R$17, ">="&N16)) -> 3 | O49: =N49 -> 3 | P49: =IF(_xlfn.MINIFS(Auswertung!$F$3:$F$17,Auswertung!$J$3:$J$17, $E49,Auswertung!$R$3:$R$17, ">="&P16)=0,"-",_xlfn.MINIFS(Auswertung!$F$3:$F$17,Auswertung!$J$3:$J$17, $E49,Auswertung!$R$3:$R$17, ">="&P16)) -> 3 | Q49: =P49 -> 3 | R49: =IF(_xlfn.MINIFS(Auswertung!$F$3:$F$17,Auswertung!$J$3:$J$17, $E49,Auswertung!$R$3:$R$17, ">="&R16)=0,"-",_xlfn.MINIFS(Auswertung!$F$3:$F$17,Auswertung!$J$3:$J$17, $E49,Auswertung!$R$3:$R$17, ">="&R16)) -> 3 | S49: =R49 -> 3 | T49: =IF(_xlfn.MINIFS(Auswertung!$F$3:$F$17,Auswertung!$J$3:$J$17, $E49,Auswertung!$R$3:$R$17, ">="&T16)=0,"-",_xlfn.MINIFS(Auswertung!$F$3:$F$17,Auswertung!$J$3:$J$17, $E49,Auswertung!$R$3:$R$17, ">="&T16)) -> 3 | U49: =T49 -> 3 | V49: =IF(_xlfn.MINIFS(Auswertung!$F$3:$F$17,Auswertung!$J$3:$J$17, $E49,Auswertung!$R$3:$R$17, ">="&V16)=0,"-",_xlfn.MINIFS(Auswertung!$F$3:$F$17,Auswertung!$J$3:$J$17, $E49,Auswertung!$R$3:$R$17, ">="&V16)) -> 3 | W49: =V49 -> 3 | X49: =IF(_xlfn.MINIFS(Auswertung!$F$3:$F$17,Auswertung!$J$3:$J$17, $E49,Auswertung!$R$3:$R$17, ">="&X16)=0,"-",_xlfn.MINIFS(Auswertung!$F$3:$F$17,Auswertung!$J$3:$J$17, $E49,Auswertung!$R$3:$R$17, ">="&X16)) -> - | Y49: =X49 -> - | Z49: =IF(_xlfn.MINIFS(Auswertung!$F$3:$F$17,Auswertung!$J$3:$J$17, $E49,Auswertung!$R$3:$R$17, ">="&Z16)=0,"-",_xlfn.MINIFS(Auswertung!$F$3:$F$17,Auswertung!$J$3:$J$17, $E49,Auswertung!$R$3:$R$17, ">="&Z16)) -> 3 | AA49: =Z49 -> 3 | AB49: =IF(_xlfn.MINIFS(Auswertung!$F$3:$F$17,Auswertung!$J$3:$J$17, $E49,Auswertung!$R$3:$R$17, ">="&AB16)=0,"-",_xlfn.MINIFS(Auswertung!$F$3:$F$17,Auswertung!$J$3:$J$17, $E49,Auswertung!$R$3:$R$17, ">="&AB16)) -> 3 | AC49: =AB49 -> 3 | AD49: =IF(_xlfn.MINIFS(Auswertung!$F$3:$F$17,Auswertung!$J$3:$J$17, $E49,Auswertung!$R$3:$R$17, ">="&AD16)=0,"-",_xlfn.MINIFS(Auswertung!$F$3:$F$17,Auswertung!$J$3:$J$17, $E49,Auswertung!$R$3:$R$17, ">="&AD16)) -> - | AE49: =AD49 -> - | AF49: =IF(_xlfn.MINIFS(Auswertung!$F$3:$F$17,Auswertung!$J$3:$J$17, $E49,Auswertung!$R$3:$R$17, ">="&AF16)=0,"-",_xlfn.MINIFS(Auswertung!$F$3:$F$17,Auswertung!$J$3:$J$17, $E49,Auswertung!$R$3:$R$17, ">="&AF16)) -> - | AG49: =AF49 -> - | AH49: =IF(_xlfn.MINIFS(Auswertung!$F$3:$F$17,Auswertung!$J$3:$J$17, $E49,Auswertung!$R$3:$R$17, ">="&AH16)=0,"-",_xlfn.MINIFS(Auswertung!$F$3:$F$17,Auswertung!$J$3:$J$17, $E49,Auswertung!$R$3:$R$17, ">="&AH16)) -> - | AI49: - | AN49: 500 | AO49: - | AP49: 1000 | AQ49: 440 | AR49: 380 | AS49: 440 | AT49: 380 | AU49: 440 | AV49: 380 | AW49: 440 | AX49: 380 | AY49: 440 | AZ49: 380 | BA49: 440 | BB49: 380 | BC49: 440 | BD49: 380 | BE49: 440 | BF49: 380 | BG49: 440 | BH49: 380 | BI49: - | BJ49: - | BK49: 440 | BL49: 380 | BM49: 440 | BN49: 380 | BO49: - | BP49: - | BQ49: - | BR49: - | BS49: - | BT49: -
C50: 1000 | D50: - | E50: 1500 | F50: =IF(_xlfn.MINIFS(Auswertung!$F$3:$F$17,Auswertung!$J$3:$J$17, $E50,Auswertung!$R$3:$R$17, ">="&F17)=0,"-",_xlfn.MINIFS(Auswertung!$F$3:$F$17,Auswertung!$J$3:$J$17, $E50,Auswertung!$R$3:$R$17, ">="&F17)) -> 4 | G50: 4 | H50: =IF(_xlfn.MINIFS(Auswertung!$F$3:$F$17,Auswertung!$J$3:$J$17, $E50,Auswertung!$R$3:$R$17, ">="&H17)=0,"-",_xlfn.MINIFS(Auswertung!$F$3:$F$17,Auswertung!$J$3:$J$17, $E50,Auswertung!$R$3:$R$17, ">="&H17)) -> 4 | I50: =H50 -> 4 | J50: =IF(_xlfn.MINIFS(Auswertung!$F$3:$F$17,Auswertung!$J$3:$J$17, $E50,Auswertung!$R$3:$R$17, ">="&J17)=0,"-",_xlfn.MINIFS(Auswertung!$F$3:$F$17,Auswertung!$J$3:$J$17, $E50,Auswertung!$R$3:$R$17, ">="&J17)) -> 4 | K50: =J50 -> 4 | L50: =IF(_xlfn.MINIFS(Auswertung!$F$3:$F$17,Auswertung!$J$3:$J$17, $E50,Auswertung!$R$3:$R$17, ">="&L17)=0,"-",_xlfn.MINIFS(Auswertung!$F$3:$F$17,Auswertung!$J$3:$J$17, $E50,Auswertung!$R$3:$R$17, ">="&L17)) -> 4 | M50: =L50 -> 4 | N50: =IF(_xlfn.MINIFS(Auswertung!$F$3:$F$17,Auswertung!$J$3:$J$17, $E50,Auswertung!$R$3:$R$17, ">="&N17)=0,"-",_xlfn.MINIFS(Auswertung!$F$3:$F$17,Auswertung!$J$3:$J$17, $E50,Auswertung!$R$3:$R$17, ">="&N17)) -> 4 | O50: =N50 -> 4 | P50: =IF(_xlfn.MINIFS(Auswertung!$F$3:$F$17,Auswertung!$J$3:$J$17, $E50,Auswertung!$R$3:$R$17, ">="&P17)=0,"-",_xlfn.MINIFS(Auswertung!$F$3:$F$17,Auswertung!$J$3:$J$17, $E50,Auswertung!$R$3:$R$17, ">="&P17)) -> 4 | Q50: =P50 -> 4 | R50: =IF(_xlfn.MINIFS(Auswertung!$F$3:$F$17,Auswertung!$J$3:$J$17, $E50,Auswertung!$R$3:$R$17, ">="&R17)=0,"-",_xlfn.MINIFS(Auswertung!$F$3:$F$17,Auswertung!$J$3:$J$17, $E50,Auswertung!$R$3:$R$17, ">="&R17)) -> 4 | S50: =R50 -> 4 | T50: =IF(_xlfn.MINIFS(Auswertung!$F$3:$F$17,Auswertung!$J$3:$J$17, $E50,Auswertung!$R$3:$R$17, ">="&T17)=0,"-",_xlfn.MINIFS(Auswertung!$F$3:$F$17,Auswertung!$J$3:$J$17, $E50,Auswertung!$R$3:$R$17, ">="&T17)) -> 4 | U50: =T50 -> 4 | V50: =IF(_xlfn.MINIFS(Auswertung!$F$3:$F$17,Auswertung!$J$3:$J$17, $E50,Auswertung!$R$3:$R$17, ">="&V17)=0,"-",_xlfn.MINIFS(Auswertung!$F$3:$F$17,Auswertung!$J$3:$J$17, $E50,Auswertung!$R$3:$R$17, ">="&V17)) -> 4 | W50: =V50 -> 4 | X50: =IF(_xlfn.MINIFS(Auswertung!$F$3:$F$17,Auswertung!$J$3:$J$17, $E50,Auswertung!$R$3:$R$17, ">="&X17)=0,"-",_xlfn.MINIFS(Auswertung!$F$3:$F$17,Auswertung!$J$3:$J$17, $E50,Auswertung!$R$3:$R$17, ">="&X17)) -> - | Y50: =X50 -> - | Z50: =IF(_xlfn.MINIFS(Auswertung!$F$3:$F$17,Auswertung!$J$3:$J$17, $E50,Auswertung!$R$3:$R$17, ">="&Z17)=0,"-",_xlfn.MINIFS(Auswertung!$F$3:$F$17,Auswertung!$J$3:$J$17, $E50,Auswertung!$R$3:$R$17, ">="&Z17)) -> 4 | AA50: =Z50 -> 4 | AB50: =IF(_xlfn.MINIFS(Auswertung!$F$3:$F$17,Auswertung!$J$3:$J$17, $E50,Auswertung!$R$3:$R$17, ">="&AB17)=0,"-",_xlfn.MINIFS(Auswertung!$F$3:$F$17,Auswertung!$J$3:$J$17, $E50,Auswertung!$R$3:$R$17, ">="&AB17)) -> 4 | AC50: =AB50 -> 4 | AD50: =IF(_xlfn.MINIFS(Auswertung!$F$3:$F$17,Auswertung!$J$3:$J$17, $E50,Auswertung!$R$3:$R$17, ">="&AD17)=0,"-",_xlfn.MINIFS(Auswertung!$F$3:$F$17,Auswertung!$J$3:$J$17, $E50,Auswertung!$R$3:$R$17, ">="&AD17)) -> - | AE50: =AD50 -> - | AF50: =IF(_xlfn.MINIFS(Auswertung!$F$3:$F$17,Auswertung!$J$3:$J$17, $E50,Auswertung!$R$3:$R$17, ">="&AF17)=0,"-",_xlfn.MINIFS(Auswertung!$F$3:$F$17,Auswertung!$J$3:$J$17, $E50,Auswertung!$R$3:$R$17, ">="&AF17)) -> - | AG50: =AF50 -> - | AH50: =IF(_xlfn.MINIFS(Auswertung!$F$3:$F$17,Auswertung!$J$3:$J$17, $E50,Auswertung!$R$3:$R$17, ">="&AH17)=0,"-",_xlfn.MINIFS(Auswertung!$F$3:$F$17,Auswertung!$J$3:$J$17, $E50,Auswertung!$R$3:$R$17, ">="&AH17)) -> - | AI50: - | AN50: 1000 | AO50: - | AP50: 1500 | AQ50: 460 | AR50: 420 | AS50: 460 | AT50: 420 | AU50: 460 | AV50: 420 | AW50: 460 | AX50: 420 | AY50: 460 | AZ50: 420 | BA50: 460 | BB50: 420 | BC50: 460 | BD50: 420 | BE50: 460 | BF50: 420 | BG50: 460 | BH50: 420 | BI50: - | BJ50: - | BK50: 460 | BL50: 420 | BM50: 460 | BN50: 420 | BO50: - | BP50: - | BQ50: - | BR50: - | BS50: - | BT50: -
C51: 1500 | D51: - | E51: 2000 | F51: =IF(_xlfn.MINIFS(Auswertung!$F$3:$F$17,Auswertung!$J$3:$J$17, $E51,Auswertung!$R$3:$R$17, ">="&F18)=0,"-",_xlfn.MINIFS(Auswertung!$F$3:$F$17,Auswertung!$J$3:$J$17, $E51,Auswertung!$R$3:$R$17, ">="&F18)) -> 4 | G51: 4 | H51: =IF(_xlfn.MINIFS(Auswertung!$F$3:$F$17,Auswertung!$J$3:$J$17, $E51,Auswertung!$R$3:$R$17, ">="&H18)=0,"-",_xlfn.MINIFS(Auswertung!$F$3:$F$17,Auswertung!$J$3:$J$17, $E51,Auswertung!$R$3:$R$17, ">="&H18)) -> 5 | I51: =H51 -> 5 | J51: =IF(_xlfn.MINIFS(Auswertung!$F$3:$F$17,Auswertung!$J$3:$J$17, $E51,Auswertung!$R$3:$R$17, ">="&J18)=0,"-",_xlfn.MINIFS(Auswertung!$F$3:$F$17,Auswertung!$J$3:$J$17, $E51,Auswertung!$R$3:$R$17, ">="&J18)) -> 5 | K51: =J51 -> 5 | L51: =IF(_xlfn.MINIFS(Auswertung!$F$3:$F$17,Auswertung!$J$3:$J$17, $E51,Auswertung!$R$3:$R$17, ">="&L18)=0,"-",_xlfn.MINIFS(Auswertung!$F$3:$F$17,Auswertung!$J$3:$J$17, $E51,Auswertung!$R$3:$R$17, ">="&L18)) -> 5 | M51: =L51 -> 5 | N51: =IF(_xlfn.MINIFS(Auswertung!$F$3:$F$17,Auswertung!$J$3:$J$17, $E51,Auswertung!$R$3:$R$17, ">="&N18)=0,"-",_xlfn.MINIFS(Auswertung!$F$3:$F$17,Auswertung!$J$3:$J$17, $E51,Auswertung!$R$3:$R$17, ">="&N18)) -> 5 | O51: =N51 -> 5 | P51: =IF(_xlfn.MINIFS(Auswertung!$F$3:$F$17,Auswertung!$J$3:$J$17, $E51,Auswertung!$R$3:$R$17, ">="&P18)=0,"-",_xlfn.MINIFS(Auswertung!$F$3:$F$17,Auswertung!$J$3:$J$17, $E51,Auswertung!$R$3:$R$17, ">="&P18)) -> 5 | Q51: =P51 -> 5 | R51: =IF(_xlfn.MINIFS(Auswertung!$F$3:$F$17,Auswertung!$J$3:$J$17, $E51,Auswertung!$R$3:$R$17, ">="&R18)=0,"-",_xlfn.MINIFS(Auswertung!$F$3:$F$17,Auswertung!$J$3:$J$17, $E51,Auswertung!$R$3:$R$17, ">="&R18)) -> 5 | S51: =R51 -> 5 | T51: =IF(_xlfn.MINIFS(Auswertung!$F$3:$F$17,Auswertung!$J$3:$J$17, $E51,Auswertung!$R$3:$R$17, ">="&T18)=0,"-",_xlfn.MINIFS(Auswertung!$F$3:$F$17,Auswertung!$J$3:$J$17, $E51,Auswertung!$R$3:$R$17, ">="&T18)) -> 5 | U51: =T51 -> 5 | V51: =IF(_xlfn.MINIFS(Auswertung!$F$3:$F$17,Auswertung!$J$3:$J$17, $E51,Auswertung!$R$3:$R$17, ">="&V18)=0,"-",_xlfn.MINIFS(Auswertung!$F$3:$F$17,Auswertung!$J$3:$J$17, $E51,Auswertung!$R$3:$R$17, ">="&V18)) -> 5 | W51: =V51 -> 5 | X51: =IF(_xlfn.MINIFS(Auswertung!$F$3:$F$17,Auswertung!$J$3:$J$17, $E51,Auswertung!$R$3:$R$17, ">="&X18)=0,"-",_xlfn.MINIFS(Auswertung!$F$3:$F$17,Auswertung!$J$3:$J$17, $E51,Auswertung!$R$3:$R$17, ">="&X18)) -> 6 | Y51: =X51 -> 6 | Z51: =IF(_xlfn.MINIFS(Auswertung!$F$3:$F$17,Auswertung!$J$3:$J$17, $E51,Auswertung!$R$3:$R$17, ">="&Z18)=0,"-",_xlfn.MINIFS(Auswertung!$F$3:$F$17,Auswertung!$J$3:$J$17, $E51,Auswertung!$R$3:$R$17, ">="&Z18)) -> 5 | AA51: =Z51 -> 5 | AB51: =IF(_xlfn.MINIFS(Auswertung!$F$3:$F$17,Auswertung!$J$3:$J$17, $E51,Auswertung!$R$3:$R$17, ">="&AB18)=0,"-",_xlfn.MINIFS(Auswertung!$F$3:$F$17,Auswertung!$J$3:$J$17, $E51,Auswertung!$R$3:$R$17, ">="&AB18)) -> 5 | AC51: =AB51 -> 5 | AD51: =IF(_xlfn.MINIFS(Auswertung!$F$3:$F$17,Auswertung!$J$3:$J$17, $E51,Auswertung!$R$3:$R$17, ">="&AD18)=0,"-",_xlfn.MINIFS(Auswertung!$F$3:$F$17,Auswertung!$J$3:$J$17, $E51,Auswertung!$R$3:$R$17, ">="&AD18)) -> 6 | AE51: =AD51 -> 6 | AF51: =IF(_xlfn.MINIFS(Auswertung!$F$3:$F$17,Auswertung!$J$3:$J$17, $E51,Auswertung!$R$3:$R$17, ">="&AF18)=0,"-",_xlfn.MINIFS(Auswertung!$F$3:$F$17,Auswertung!$J$3:$J$17, $E51,Auswertung!$R$3:$R$17, ">="&AF18)) -> - | AG51: =AF51 -> - | AH51: =IF(_xlfn.MINIFS(Auswertung!$F$3:$F$17,Auswertung!$J$3:$J$17, $E51,Auswertung!$R$3:$R$17, ">="&AH18)=0,"-",_xlfn.MINIFS(Auswertung!$F$3:$F$17,Auswertung!$J$3:$J$17, $E51,Auswertung!$R$3:$R$17, ">="&AH18)) -> - | AI51: - | AN51: 1500 | AO51: - | AP51: 2000 | AQ51: 627 | AR51: 587 | AS51: 470 | AT51: 440 | AU51: 470 | AV51: 440 | AW51: 470 | AX51: 440 | AY51: 470 | AZ51: 440 | BA51: 470 | BB51: 440 | BC51: 470 | BD51: 440 | BE51: 470 | BF51: 440 | BG51: 470 | BH51: 440 | BI51: 376 | BJ51: 352 | BK51: 470 | BL51: 440 | BM51: 470 | BN51: 440 | BO51: 376 | BP51: 352 | BQ51: - | BR51: - | BS51: - | BT51: -
C52: 2000 | D52: - | E52: 2500 | F52: =IF(_xlfn.MINIFS(Auswertung!$F$3:$F$17,Auswertung!$J$3:$J$17, $E52,Auswertung!$R$3:$R$17, ">="&F19)=0,"-",_xlfn.MINIFS(Auswertung!$F$3:$F$17,Auswertung!$J$3:$J$17, $E52,Auswertung!$R$3:$R$17, ">="&F19)) -> 5 | G52: 5 | H52: =IF(_xlfn.MINIFS(Auswertung!$F$3:$F$17,Auswertung!$J$3:$J$17, $E52,Auswertung!$R$3:$R$17, ">="&H19)=0,"-",_xlfn.MINIFS(Auswertung!$F$3:$F$17,Auswertung!$J$3:$J$17, $E52,Auswertung!$R$3:$R$17, ">="&H19)) -> 5 | I52: =H52 -> 5 | J52: =IF(_xlfn.MINIFS(Auswertung!$F$3:$F$17,Auswertung!$J$3:$J$17, $E52,Auswertung!$R$3:$R$17, ">="&J19)=0,"-",_xlfn.MINIFS(Auswertung!$F$3:$F$17,Auswertung!$J$3:$J$17, $E52,Auswertung!$R$3:$R$17, ">="&J19)) -> 6 | K52: =J52 -> 6 | L52: =IF(_xlfn.MINIFS(Auswertung!$F$3:$F$17,Auswertung!$J$3:$J$17, $E52,Auswertung!$R$3:$R$17, ">="&L19)=0,"-",_xlfn.MINIFS(Auswertung!$F$3:$F$17,Auswertung!$J$3:$J$17, $E52,Auswertung!$R$3:$R$17, ">="&L19)) -> 6 | M52: =L52 -> 6 | N52: =IF(_xlfn.MINIFS(Auswertung!$F$3:$F$17,Auswertung!$J$3:$J$17, $E52,Auswertung!$R$3:$R$17, ">="&N19)=0,"-",_xlfn.MINIFS(Auswertung!$F$3:$F$17,Auswertung!$J$3:$J$17, $E52,Auswertung!$R$3:$R$17, ">="&N19)) -> 6 | O52: =N52 -> 6 | P52: =IF(_xlfn.MINIFS(Auswertung!$F$3:$F$17,Auswertung!$J$3:$J$17, $E52,Auswertung!$R$3:$R$17, ">="&P19)=0,"-",_xlfn.MINIFS(Auswertung!$F$3:$F$17,Auswertung!$J$3:$J$17, $E52,Auswertung!$R$3:$R$17, ">="&P19)) -> 6 | Q52: =P52 -> 6 | R52: =IF(_xlfn.MINIFS(Auswertung!$F$3:$F$17,Auswertung!$J$3:$J$17, $E52,Auswertung!$R$3:$R$17, ">="&R19)=0,"-",_xlfn.MINIFS(Auswertung!$F$3:$F$17,Auswertung!$J$3:$J$17, $E52,Auswertung!$R$3:$R$17, ">="&R19)) -> 6 | S52: =R52 -> 6 | T52: =IF(_xlfn.MINIFS(Auswertung!$F$3:$F$17,Auswertung!$J$3:$J$17, $E52,Auswertung!$R$3:$R$17, ">="&T19)=0,"-",_xlfn.MINIFS(Auswertung!$F$3:$F$17,Auswertung!$J$3:$J$17, $E52,Auswertung!$R$3:$R$17, ">="&T19)) -> 6 | U52: =T52 -> 6 | V52: =IF(_xlfn.MINIFS(Auswertung!$F$3:$F$17,Auswertung!$J$3:$J$17, $E52,Auswertung!$R$3:$R$17, ">="&V19)=0,"-",_xlfn.MINIFS(Auswertung!$F$3:$F$17,Auswertung!$J$3:$J$17, $E52,Auswertung!$R$3:$R$17, ">="&V19)) -> 6 | W52: =V52 -> 6 | X52: =IF(_xlfn.MINIFS(Auswertung!$F$3:$F$17,Auswertung!$J$3:$J$17, $E52,Auswertung!$R$3:$R$17, ">="&X19)=0,"-",_xlfn.MINIFS(Auswertung!$F$3:$F$17,Auswertung!$J$3:$J$17, $E52,Auswertung!$R$3:$R$17, ">="&X19)) -> 7 | Y52: =X52 -> 7 | Z52: =IF(_xlfn.MINIFS(Auswertung!$F$3:$F$17,Auswertung!$J$3:$J$17, $E52,Auswertung!$R$3:$R$17, ">="&Z19)=0,"-",_xlfn.MINIFS(Auswertung!$F$3:$F$17,Auswertung!$J$3:$J$17, $E52,Auswertung!$R$3:$R$17, ">="&Z19)) -> 6 | AA52: =Z52 -> 6 | AB52: =IF(_xlfn.MINIFS(Auswertung!$F$3:$F$17,Auswertung!$J$3:$J$17, $E52,Auswertung!$R$3:$R$17, ">="&AB19)=0,"-",_xlfn.MINIFS(Auswertung!$F$3:$F$17,Auswertung!$J$3:$J$17, $E52,Auswertung!$R$3:$R$17, ">="&AB19)) -> 6 | AC52: =AB52 -> 6 | AD52: =IF(_xlfn.MINIFS(Auswertung!$F$3:$F$17,Auswertung!$J$3:$J$17, $E52,Auswertung!$R$3:$R$17, ">="&AD19)=0,"-",_xlfn.MINIFS(Auswertung!$F$3:$F$17,Auswertung!$J$3:$J$17, $E52,Auswertung!$R$3:$R$17, ">="&AD19)) -> 7 | AE52: =AD52 -> 7 | AF52: =IF(_xlfn.MINIFS(Auswertung!$F$3:$F$17,Auswertung!$J$3:$J$17, $E52,Auswertung!$R$3:$R$17, ">="&AF19)=0,"-",_xlfn.MINIFS(Auswertung!$F$3:$F$17,Auswertung!$J$3:$J$17, $E52,Auswertung!$R$3:$R$17, ">="&AF19)) -> - | AG52: =AF52 -> - | AH52: =IF(_xlfn.MINIFS(Auswertung!$F$3:$F$17,Auswertung!$J$3:$J$17, $E52,Auswertung!$R$3:$R$17, ">="&AH19)=0,"-",_xlfn.MINIFS(Auswertung!$F$3:$F$17,Auswertung!$J$3:$J$17, $E52,Auswertung!$R$3:$R$17, ">="&AH19)) -> - | AI52: - | AN52: 2000 | AO52: - | AP52: 2500 | AQ52: 595 | AR52: 565 | AS52: 595 | AT52: 565 | AU52: 476 | AV52: 452 | AW52: 476 | AX52: 452 | AY52: 476 | AZ52: 452 | BA52: 476 | BB52: 452 | BC52: 476 | BD52: 452 | BE52: 476 | BF52: 452 | BG52: 476 | BH52: 452 | BI52: 397 | BJ52: 377 | BK52: 476 | BL52: 452 | BM52: 476 | BN52: 452 | BO52: 397 | BP52: 377 | BQ52: - | BR52: - | BS52: - | BT52: -
C53: 2500 | D53: - | E53: 3050 | F53: =IF(_xlfn.MINIFS(Auswertung!$F$3:$F$17,Auswertung!$J$3:$J$17, $E53,Auswertung!$R$3:$R$17, ">="&F20)=0,"-",_xlfn.MINIFS(Auswertung!$F$3:$F$17,Auswertung!$J$3:$J$17, $E53,Auswertung!$R$3:$R$17, ">="&F20)) -> 6 | G53: 6 | H53: =IF(_xlfn.MINIFS(Auswertung!$F$3:$F$17,Auswertung!$J$3:$J$17, $E53,Auswertung!$R$3:$R$17, ">="&H20)=0,"-",_xlfn.MINIFS(Auswertung!$F$3:$F$17,Auswertung!$J$3:$J$17, $E53,Auswertung!$R$3:$R$17, ">="&H20)) -> 6 | I53: =H53 -> 6 | J53: =IF(_xlfn.MINIFS(Auswertung!$F$3:$F$17,Auswertung!$J$3:$J$17, $E53,Auswertung!$R$3:$R$17, ">="&J20)=0,"-",_xlfn.MINIFS(Auswertung!$F$3:$F$17,Auswertung!$J$3:$J$17, $E53,Auswertung!$R$3:$R$17, ">="&J20)) -> 7 | K53: =J53 -> 7 | L53: =IF(_xlfn.MINIFS(Auswertung!$F$3:$F$17,Auswertung!$J$3:$J$17, $E53,Auswertung!$R$3:$R$17, ">="&L20)=0,"-",_xlfn.MINIFS(Auswertung!$F$3:$F$17,Auswertung!$J$3:$J$17, $E53,Auswertung!$R$3:$R$17, ">="&L20)) -> 7 | M53: =L53 -> 7 | N53: =IF(_xlfn.MINIFS(Auswertung!$F$3:$F$17,Auswertung!$J$3:$J$17, $E53,Auswertung!$R$3:$R$17, ">="&N20)=0,"-",_xlfn.MINIFS(Auswertung!$F$3:$F$17,Auswertung!$J$3:$J$17, $E53,Auswertung!$R$3:$R$17, ">="&N20)) -> 7 | O53: =N53 -> 7 | P53: =IF(_xlfn.MINIFS(Auswertung!$F$3:$F$17,Auswertung!$J$3:$J$17, $E53,Auswertung!$R$3:$R$17, ">="&P20)=0,"-",_xlfn.MINIFS(Auswertung!$F$3:$F$17,Auswertung!$J$3:$J$17, $E53,Auswertung!$R$3:$R$17, ">="&P20)) -> 7 | Q53: =P53 -> 7 | R53: =IF(_xlfn.MINIFS(Auswertung!$F$3:$F$17,Auswertung!$J$3:$J$17, $E53,Auswertung!$R$3:$R$17, ">="&R20)=0,"-",_xlfn.MINIFS(Auswertung!$F$3:$F$17,Auswertung!$J$3:$J$17, $E53,Auswertung!$R$3:$R$17, ">="&R20)) -> 7 | S53: =R53 -> 7 | T53: =IF(_xlfn.MINIFS(Auswertung!$F$3:$F$17,Auswertung!$J$3:$J$17, $E53,Auswertung!$R$3:$R$17, ">="&T20)=0,"-",_xlfn.MINIFS(Auswertung!$F$3:$F$17,Auswertung!$J$3:$J$17, $E53,Auswertung!$R$3:$R$17, ">="&T20)) -> 7 | U53: =T53 -> 7 | V53: =IF(_xlfn.MINIFS(Auswertung!$F$3:$F$17,Auswertung!$J$3:$J$17, $E53,Auswertung!$R$3:$R$17, ">="&V20)=0,"-",_xlfn.MINIFS(Auswertung!$F$3:$F$17,Auswertung!$J$3:$J$17, $E53,Auswertung!$R$3:$R$17, ">="&V20)) -> 7 | W53: =V53 -> 7 | X53: =IF(_xlfn.MINIFS(Auswertung!$F$3:$F$17,Auswertung!$J$3:$J$17, $E53,Auswertung!$R$3:$R$17, ">="&X20)=0,"-",_xlfn.MINIFS(Auswertung!$F$3:$F$17,Auswertung!$J$3:$J$17, $E53,Auswertung!$R$3:$R$17, ">="&X20)) -> 7 | Y53: =X53 -> 7 | Z53: =IF(_xlfn.MINIFS(Auswertung!$F$3:$F$17,Auswertung!$J$3:$J$17, $E53,Auswertung!$R$3:$R$17, ">="&Z20)=0,"-",_xlfn.MINIFS(Auswertung!$F$3:$F$17,Auswertung!$J$3:$J$17, $E53,Auswertung!$R$3:$R$17, ">="&Z20)) -> 7 | AA53: =Z53 -> 7 | AB53: =IF(_xlfn.MINIFS(Auswertung!$F$3:$F$17,Auswertung!$J$3:$J$17, $E53,Auswertung!$R$3:$R$17, ">="&AB20)=0,"-",_xlfn.MINIFS(Auswertung!$F$3:$F$17,Auswertung!$J$3:$J$17, $E53,Auswertung!$R$3:$R$17, ">="&AB20)) -> 7 | AC53: =AB53 -> 7 | AD53: =IF(_xlfn.MINIFS(Auswertung!$F$3:$F$17,Auswertung!$J$3:$J$17, $E53,Auswertung!$R$3:$R$17, ">="&AD20)=0,"-",_xlfn.MINIFS(Auswertung!$F$3:$F$17,Auswertung!$J$3:$J$17, $E53,Auswertung!$R$3:$R$17, ">="&AD20)) -> 7 | AE53: =AD53 -> 7 | AF53: =IF(_xlfn.MINIFS(Auswertung!$F$3:$F$17,Auswertung!$J$3:$J$17, $E53,Auswertung!$R$3:$R$17, ">="&AF20)=0,"-",_xlfn.MINIFS(Auswertung!$F$3:$F$17,Auswertung!$J$3:$J$17, $E53,Auswertung!$R$3:$R$17, ">="&AF20)) -> 7 | AG53: =AF53 -> 7 | AH53: =IF(_xlfn.MINIFS(Auswertung!$F$3:$F$17,Auswertung!$J$3:$J$17, $E53,Auswertung!$R$3:$R$17, ">="&AH20)=0,"-",_xlfn.MINIFS(Auswertung!$F$3:$F$17,Auswertung!$J$3:$J$17, $E53,Auswertung!$R$3:$R$17, ">="&AH20)) -> - | AI53: - | AN53: 2500 | AO53: - | AP53: 3050 | AQ53: 586 | AR53: 562 | AS53: 586 | AT53: 562 | AU53: 488 | AV53: 468 | AW53: 488 | AX53: 468 | AY53: 488 | AZ53: 468 | BA53: 488 | BB53: 468 | BC53: 488 | BD53: 468 | BE53: 488 | BF53: 468 | BG53: 488 | BH53: 468 | BI53: 488 | BJ53: 468 | BK53: 488 | BL53: 468 | BM53: 488 | BN53: 468 | BO53: 488 | BP53: 468 | BQ53: 488 | BR53: 468 | BS53: - | BT53: -
B54: III: Ortschaften, freies Feld | C54: 340 | D54: - | E54: 500 | F54: =IF(_xlfn.MINIFS(Auswertung!$F$3:$F$17,Auswertung!$J$3:$J$17, $E54,Auswertung!$R$3:$R$17, ">="&F21)=0,"-",_xlfn.MINIFS(Auswertung!$F$3:$F$17,Auswertung!$J$3:$J$17, $E54,Auswertung!$R$3:$R$17, ">="&F21)) -> 2 | G54: 2 | H54: =IF(_xlfn.MINIFS(Auswertung!$F$3:$F$17,Auswertung!$J$3:$J$17, $E54,Auswertung!$R$3:$R$17, ">="&H21)=0,"-",_xlfn.MINIFS(Auswertung!$F$3:$F$17,Auswertung!$J$3:$J$17, $E54,Auswertung!$R$3:$R$17, ">="&H21)) -> 2 | I54: =H54 -> 2 | J54: =IF(_xlfn.MINIFS(Auswertung!$F$3:$F$17,Auswertung!$J$3:$J$17, $E54,Auswertung!$R$3:$R$17, ">="&J21)=0,"-",_xlfn.MINIFS(Auswertung!$F$3:$F$17,Auswertung!$J$3:$J$17, $E54,Auswertung!$R$3:$R$17, ">="&J21)) -> 2 | K54: =J54 -> 2 | L54: =IF(_xlfn.MINIFS(Auswertung!$F$3:$F$17,Auswertung!$J$3:$J$17, $E54,Auswertung!$R$3:$R$17, ">="&L21)=0,"-",_xlfn.MINIFS(Auswertung!$F$3:$F$17,Auswertung!$J$3:$J$17, $E54,Auswertung!$R$3:$R$17, ">="&L21)) -> 2 | M54: =L54 -> 2 | N54: =IF(_xlfn.MINIFS(Auswertung!$F$3:$F$17,Auswertung!$J$3:$J$17, $E54,Auswertung!$R$3:$R$17, ">="&N21)=0,"-",_xlfn.MINIFS(Auswertung!$F$3:$F$17,Auswertung!$J$3:$J$17, $E54,Auswertung!$R$3:$R$17, ">="&N21)) -> 2 | O54: =N54 -> 2 | P54: =IF(_xlfn.MINIFS(Auswertung!$F$3:$F$17,Auswertung!$J$3:$J$17, $E54,Auswertung!$R$3:$R$17, ">="&P21)=0,"-",_xlfn.MINIFS(Auswertung!$F$3:$F$17,Auswertung!$J$3:$J$17, $E54,Auswertung!$R$3:$R$17, ">="&P21)) -> 2 | Q54: =P54 -> 2 | R54: =IF(_xlfn.MINIFS(Auswertung!$F$3:$F$17,Auswertung!$J$3:$J$17, $E54,Auswertung!$R$3:$R$17, ">="&R21)=0,"-",_xlfn.MINIFS(Auswertung!$F$3:$F$17,Auswertung!$J$3:$J$17, $E54,Auswertung!$R$3:$R$17, ">="&R21)) -> 2 | S54: =R54 -> 2 | T54: =IF(_xlfn.MINIFS(Auswertung!$F$3:$F$17,Auswertung!$J$3:$J$17, $E54,Auswertung!$R$3:$R$17, ">="&T21)=0,"-",_xlfn.MINIFS(Auswertung!$F$3:$F$17,Auswertung!$J$3:$J$17, $E54,Auswertung!$R$3:$R$17, ">="&T21)) -> 2 | U54: =T54 -> 2 | V54: =IF(_xlfn.MINIFS(Auswertung!$F$3:$F$17,Auswertung!$J$3:$J$17, $E54,Auswertung!$R$3:$R$17, ">="&V21)=0,"-",_xlfn.MINIFS(Auswertung!$F$3:$F$17,Auswertung!$J$3:$J$17, $E54,Auswertung!$R$3:$R$17, ">="&V21)) -> 2 | W54: =V54 -> 2 | X54: =IF(_xlfn.MINIFS(Auswertung!$F$3:$F$17,Auswertung!$J$3:$J$17, $E54,Auswertung!$R$3:$R$17, ">="&X21)=0,"-",_xlfn.MINIFS(Auswertung!$F$3:$F$17,Auswertung!$J$3:$J$17, $E54,Auswertung!$R$3:$R$17, ">="&X21)) -> 2 | Y54: =X54 -> 2 | Z54: =IF(_xlfn.MINIFS(Auswertung!$F$3:$F$17,Auswertung!$J$3:$J$17, $E54,Auswertung!$R$3:$R$17, ">="&Z21)=0,"-",_xlfn.MINIFS(Auswertung!$F$3:$F$17,Auswertung!$J$3:$J$17, $E54,Auswertung!$R$3:$R$17, ">="&Z21)) -> 2 | AA54: =Z54 -> 2 | AB54: =IF(_xlfn.MINIFS(Auswertung!$F$3:$F$17,Auswertung!$J$3:$J$17, $E54,Auswertung!$R$3:$R$17, ">="&AB21)=0,"-",_xlfn.MINIFS(Auswertung!$F$3:$F$17,Auswertung!$J$3:$J$17, $E54,Auswertung!$R$3:$R$17, ">="&AB21)) -> 2 | AC54: =AB54 -> 2 | AD54: =IF(_xlfn.MINIFS(Auswertung!$F$3:$F$17,Auswertung!$J$3:$J$17, $E54,Auswertung!$R$3:$R$17, ">="&AD21)=0,"-",_xlfn.MINIFS(Auswertung!$F$3:$F$17,Auswertung!$J$3:$J$17, $E54,Auswertung!$R$3:$R$17, ">="&AD21)) -> 2 | AE54: =AD54 -> 2 | AF54: =IF(_xlfn.MINIFS(Auswertung!$F$3:$F$17,Auswertung!$J$3:$J$17, $E54,Auswertung!$R$3:$R$17, ">="&AF21)=0,"-",_xlfn.MINIFS(Auswertung!$F$3:$F$17,Auswertung!$J$3:$J$17, $E54,Auswertung!$R$3:$R$17, ">="&AF21)) -> 2 | AG54: =AF54 -> 2 | AH54: =IF(_xlfn.MINIFS(Auswertung!$F$3:$F$17,Auswertung!$J$3:$J$17, $E54,Auswertung!$R$3:$R$17, ">="&AH21)=0,"-",_xlfn.MINIFS(Auswertung!$F$3:$F$17,Auswertung!$J$3:$J$17, $E54,Auswertung!$R$3:$R$17, ">="&AH21)) -> 2 | AI54: 2 | AM54: III: Ortschaften, freies Feld | AN54: 340 | AO54: - | AP54: 500 | AQ54: 380 | AR54: 260 | AS54: 380 | AT54: 260 | AU54: 380 | AV54: 260 | AW54: 380 | AX54: 260 | AY54: 380 | AZ54: 260 | BA54: 380 | BB54: 260 | BC54: 380 | BD54: 260 | BE54: 380 | BF54: 260 | BG54: 380 | BH54: 260 | BI54: 380 | BJ54: 260 | BK54: 380 | BL54: 260 | BM54: 380 | BN54: 260 | BO54: 380 | BP54: 260 | BQ54: 380 | BR54: 260 | BS54: 380 | BT54: 260
C55: 500 | D55: - | E55: 1000 | F55: =IF(_xlfn.MINIFS(Auswertung!$F$3:$F$17,Auswertung!$J$3:$J$17, $E55,Auswertung!$R$3:$R$17, ">="&F22)=0,"-",_xlfn.MINIFS(Auswertung!$F$3:$F$17,Auswertung!$J$3:$J$17, $E55,Auswertung!$R$3:$R$17, ">="&F22)) -> 3 | G55: 3 | H55: =IF(_xlfn.MINIFS(Auswertung!$F$3:$F$17,Auswertung!$J$3:$J$17, $E55,Auswertung!$R$3:$R$17, ">="&H22)=0,"-",_xlfn.MINIFS(Auswertung!$F$3:$F$17,Auswertung!$J$3:$J$17, $E55,Auswertung!$R$3:$R$17, ">="&H22)) -> 3 | I55: =H55 -> 3 | J55: =IF(_xlfn.MINIFS(Auswertung!$F$3:$F$17,Auswertung!$J$3:$J$17, $E55,Auswertung!$R$3:$R$17, ">="&J22)=0,"-",_xlfn.MINIFS(Auswertung!$F$3:$F$17,Auswertung!$J$3:$J$17, $E55,Auswertung!$R$3:$R$17, ">="&J22)) -> 3 | K55: =J55 -> 3 | L55: =IF(_xlfn.MINIFS(Auswertung!$F$3:$F$17,Auswertung!$J$3:$J$17, $E55,Auswertung!$R$3:$R$17, ">="&L22)=0,"-",_xlfn.MINIFS(Auswertung!$F$3:$F$17,Auswertung!$J$3:$J$17, $E55,Auswertung!$R$3:$R$17, ">="&L22)) -> 3 | M55: =L55 -> 3 | N55: =IF(_xlfn.MINIFS(Auswertung!$F$3:$F$17,Auswertung!$J$3:$J$17, $E55,Auswertung!$R$3:$R$17, ">="&N22)=0,"-",_xlfn.MINIFS(Auswertung!$F$3:$F$17,Auswertung!$J$3:$J$17, $E55,Auswertung!$R$3:$R$17, ">="&N22)) -> 3 | O55: =N55 -> 3 | P55: =IF(_xlfn.MINIFS(Auswertung!$F$3:$F$17,Auswertung!$J$3:$J$17, $E55,Auswertung!$R$3:$R$17, ">="&P22)=0,"-",_xlfn.MINIFS(Auswertung!$F$3:$F$17,Auswertung!$J$3:$J$17, $E55,Auswertung!$R$3:$R$17, ">="&P22)) -> 3 | Q55: =P55 -> 3 | R55: =IF(_xlfn.MINIFS(Auswertung!$F$3:$F$17,Auswertung!$J$3:$J$17, $E55,Auswertung!$R$3:$R$17, ">="&R22)=0,"-",_xlfn.MINIFS(Auswertung!$F$3:$F$17,Auswertung!$J$3:$J$17, $E55,Auswertung!$R$3:$R$17, ">="&R22)) -> 3 | S55: =R55 -> 3 | T55: =IF(_xlfn.MINIFS(Auswertung!$F$3:$F$17,Auswertung!$J$3:$J$17, $E55,Auswertung!$R$3:$R$17, ">="&T22)=0,"-",_xlfn.MINIFS(Auswertung!$F$3:$F$17,Auswertung!$J$3:$J$17, $E55,Auswertung!$R$3:$R$17, ">="&T22)) -> 3 | U55: =T55 -> 3 | V55: =IF(_xlfn.MINIFS(Auswertung!$F$3:$F$17,Auswertung!$J$3:$J$17, $E55,Auswertung!$R$3:$R$17, ">="&V22)=0,"-",_xlfn.MINIFS(Auswertung!$F$3:$F$17,Auswertung!$J$3:$J$17, $E55,Auswertung!$R$3:$R$17, ">="&V22)) -> 3 | W55: =V55 -> 3 | X55: =IF(_xlfn.MINIFS(Auswertung!$F$3:$F$17,Auswertung!$J$3:$J$17, $E55,Auswertung!$R$3:$R$17, ">="&X22)=0,"-",_xlfn.MINIFS(Auswertung!$F$3:$F$17,Auswertung!$J$3:$J$17, $E55,Auswertung!$R$3:$R$17, ">="&X22)) -> 3 | Y55: =X55 -> 3 | Z55: =IF(_xlfn.MINIFS(Auswertung!$F$3:$F$17,Auswertung!$J$3:$J$17, $E55,Auswertung!$R$3:$R$17, ">="&Z22)=0,"-",_xlfn.MINIFS(Auswertung!$F$3:$F$17,Auswertung!$J$3:$J$17, $E55,Auswertung!$R$3:$R$17, ">="&Z22)) -> 3 | AA55: =Z55 -> 3 | AB55: =IF(_xlfn.MINIFS(Auswertung!$F$3:$F$17,Auswertung!$J$3:$J$17, $E55,Auswertung!$R$3:$R$17, ">="&AB22)=0,"-",_xlfn.MINIFS(Auswertung!$F$3:$F$17,Auswertung!$J$3:$J$17, $E55,Auswertung!$R$3:$R$17, ">="&AB22)) -> 3 | AC55: =AB55 -> 3 | AD55: =IF(_xlfn.MINIFS(Auswertung!$F$3:$F$17,Auswertung!$J$3:$J$17, $E55,Auswertung!$R$3:$R$17, ">="&AD22)=0,"-",_xlfn.MINIFS(Auswertung!$F$3:$F$17,Auswertung!$J$3:$J$17, $E55,Auswertung!$R$3:$R$17, ">="&AD22)) -> 3 | AE55: =AD55 -> 3 | AF55: =IF(_xlfn.MINIFS(Auswertung!$F$3:$F$17,Auswertung!$J$3:$J$17, $E55,Auswertung!$R$3:$R$17, ">="&AF22)=0,"-",_xlfn.MINIFS(Auswertung!$F$3:$F$17,Auswertung!$J$3:$J$17, $E55,Auswertung!$R$3:$R$17, ">="&AF22)) -> 3 | AG55: =AF55 -> 3 | AH55: =IF(_xlfn.MINIFS(Auswertung!$F$3:$F$17,Auswertung!$J$3:$J$17, $E55,Auswertung!$R$3:$R$17, ">="&AH22)=0,"-",_xlfn.MINIFS(Auswertung!$F$3:$F$17,Auswertung!$J$3:$J$17, $E55,Auswertung!$R$3:$R$17, ">="&AH22)) -> - | AI55: - | AN55: 500 | AO55: - | AP55: 1000 | AQ55: 440 | AR55: 380 | AS55: 440 | AT55: 380 | AU55: 440 | AV55: 380 | AW55: 440 | AX55: 380 | AY55: 440 | AZ55: 380 | BA55: 440 | BB55: 380 | BC55: 440 | BD55: 380 | BE55: 440 | BF55: 380 | BG55: 440 | BH55: 380 | BI55: 440 | BJ55: 380 | BK55: 440 | BL55: 380 | BM55: 440 | BN55: 380 | BO55: 440 | BP55: 380 | BQ55: 440 | BR55: 380 | BS55: - | BT55: -
C56: 1000 | D56: - | E56: 1500 | F56: =IF(_xlfn.MINIFS(Auswertung!$F$3:$F$17,Auswertung!$J$3:$J$17, $E56,Auswertung!$R$3:$R$17, ">="&F23)=0,"-",_xlfn.MINIFS(Auswertung!$F$3:$F$17,Auswertung!$J$3:$J$17, $E56,Auswertung!$R$3:$R$17, ">="&F23)) -> 3 | G56: 3 | H56: =IF(_xlfn.MINIFS(Auswertung!$F$3:$F$17,Auswertung!$J$3:$J$17, $E56,Auswertung!$R$3:$R$17, ">="&H23)=0,"-",_xlfn.MINIFS(Auswertung!$F$3:$F$17,Auswertung!$J$3:$J$17, $E56,Auswertung!$R$3:$R$17, ">="&H23)) -> 3 | I56: =H56 -> 3 | J56: =IF(_xlfn.MINIFS(Auswertung!$F$3:$F$17,Auswertung!$J$3:$J$17, $E56,Auswertung!$R$3:$R$17, ">="&J23)=0,"-",_xlfn.MINIFS(Auswertung!$F$3:$F$17,Auswertung!$J$3:$J$17, $E56,Auswertung!$R$3:$R$17, ">="&J23)) -> 4 | K56: =J56 -> 4 | L56: =IF(_xlfn.MINIFS(Auswertung!$F$3:$F$17,Auswertung!$J$3:$J$17, $E56,Auswertung!$R$3:$R$17, ">="&L23)=0,"-",_xlfn.MINIFS(Auswertung!$F$3:$F$17,Auswertung!$J$3:$J$17, $E56,Auswertung!$R$3:$R$17, ">="&L23)) -> 4 | M56: =L56 -> 4 | N56: =IF(_xlfn.MINIFS(Auswertung!$F$3:$F$17,Auswertung!$J$3:$J$17, $E56,Auswertung!$R$3:$R$17, ">="&N23)=0,"-",_xlfn.MINIFS(Auswertung!$F$3:$F$17,Auswertung!$J$3:$J$17, $E56,Auswertung!$R$3:$R$17, ">="&N23)) -> 4 | O56: =N56 -> 4 | P56: =IF(_xlfn.MINIFS(Auswertung!$F$3:$F$17,Auswertung!$J$3:$J$17, $E56,Auswertung!$R$3:$R$17, ">="&P23)=0,"-",_xlfn.MINIFS(Auswertung!$F$3:$F$17,Auswertung!$J$3:$J$17, $E56,Auswertung!$R$3:$R$17, ">="&P23)) -> 4 | Q56: =P56 -> 4 | R56: =IF(_xlfn.MINIFS(Auswertung!$F$3:$F$17,Auswertung!$J$3:$J$17, $E56,Auswertung!$R$3:$R$17, ">="&R23)=0,"-",_xlfn.MINIFS(Auswertung!$F$3:$F$17,Auswertung!$J$3:$J$17, $E56,Auswertung!$R$3:$R$17, ">="&R23)) -> 4 | S56: =R56 -> 4 | T56: =IF(_xlfn.MINIFS(Auswertung!$F$3:$F$17,Auswertung!$J$3:$J$17, $E56,Auswertung!$R$3:$R$17, ">="&T23)=0,"-",_xlfn.MINIFS(Auswertung!$F$3:$F$17,Auswertung!$J$3:$J$17, $E56,Auswertung!$R$3:$R$17, ">="&T23)) -> 4 | U56: =T56 -> 4 | V56: =IF(_xlfn.MINIFS(Auswertung!$F$3:$F$17,Auswertung!$J$3:$J$17, $E56,Auswertung!$R$3:$R$17, ">="&V23)=0,"-",_xlfn.MINIFS(Auswertung!$F$3:$F$17,Auswertung!$J$3:$J$17, $E56,Auswertung!$R$3:$R$17, ">="&V23)) -> 4 | W56: =V56 -> 4 | X56: =IF(_xlfn.MINIFS(Auswertung!$F$3:$F$17,Auswertung!$J$3:$J$17, $E56,Auswertung!$R$3:$R$17, ">="&X23)=0,"-",_xlfn.MINIFS(Auswertung!$F$3:$F$17,Auswertung!$J$3:$J$17, $E56,Auswertung!$R$3:$R$17, ">="&X23)) -> 4 | Y56: =X56 -> 4 | Z56: =IF(_xlfn.MINIFS(Auswertung!$F$3:$F$17,Auswertung!$J$3:$J$17, $E56,Auswertung!$R$3:$R$17, ">="&Z23)=0,"-",_xlfn.MINIFS(Auswertung!$F$3:$F$17,Auswertung!$J$3:$J$17, $E56,Auswertung!$R$3:$R$17, ">="&Z23)) -> 4 | AA56: =Z56 -> 4 | AB56: =IF(_xlfn.MINIFS(Auswertung!$F$3:$F$17,Auswertung!$J$3:$J$17, $E56,Auswertung!$R$3:$R$17, ">="&AB23)=0,"-",_xlfn.MINIFS(Auswertung!$F$3:$F$17,Auswertung!$J$3:$J$17, $E56,Auswertung!$R$3:$R$17, ">="&AB23)) -> 4 | AC56: =AB56 -> 4 | AD56: =IF(_xlfn.MINIFS(Auswertung!$F$3:$F$17,Auswertung!$J$3:$J$17, $E56,Auswertung!$R$3:$R$17, ">="&AD23)=0,"-",_xlfn.MINIFS(Auswertung!$F$3:$F$17,Auswertung!$J$3:$J$17, $E56,Auswertung!$R$3:$R$17, ">="&AD23)) -> 4 | AE56: =AD56 -> 4 | AF56: =IF(_xlfn.MINIFS(Auswertung!$F$3:$F$17,Auswertung!$J$3:$J$17, $E56,Auswertung!$R$3:$R$17, ">="&AF23)=0,"-",_xlfn.MINIFS(Auswertung!$F$3:$F$17,Auswertung!$J$3:$J$17, $E56,Auswertung!$R$3:$R$17, ">="&AF23)) -> 4 | AG56: =AF56 -> 4 | AH56: =IF(_xlfn.MINIFS(Auswertung!$F$3:$F$17,Auswertung!$J$3:$J$17, $E56,Auswertung!$R$3:$R$17, ">="&AH23)=0,"-",_xlfn.MINIFS(Auswertung!$F$3:$F$17,Auswertung!$J$3:$J$17, $E56,Auswertung!$R$3:$R$17, ">="&AH23)) -> - | AI56: - | AN56: 1000 | AO56: - | AP56: 1500 | AQ56: 690 | AR56: 630 | AS56: 690 | AT56: 630 | AU56: 460 | AV56: 420 | AW56: 460 | AX56: 420 | AY56: 460 | AZ56: 420 | BA56: 460 | BB56: 420 | BC56: 460 | BD56: 420 | BE56: 460 | BF56: 420 | BG56: 460 | BH56: 420 | BI56: 460 | BJ56: 420 | BK56: 460 | BL56: 420 | BM56: 460 | BN56: 420 | BO56: 460 | BP56: 420 | BQ56: 460 | BR56: 420 | BS56: - | BT56: -
C57: 1500 | D57: - | E57: 2000 | F57: =IF(_xlfn.MINIFS(Auswertung!$F$3:$F$17,Auswertung!$J$3:$J$17, $E57,Auswertung!$R$3:$R$17, ">="&F24)=0,"-",_xlfn.MINIFS(Auswertung!$F$3:$F$17,Auswertung!$J$3:$J$17, $E57,Auswertung!$R$3:$R$17, ">="&F24)) -> 4 | G57: 4 | H57: =IF(_xlfn.MINIFS(Auswertung!$F$3:$F$17,Auswertung!$J$3:$J$17, $E57,Auswertung!$R$3:$R$17, ">="&H24)=0,"-",_xlfn.MINIFS(Auswertung!$F$3:$F$17,Auswertung!$J$3:$J$17, $E57,Auswertung!$R$3:$R$17, ">="&H24)) -> 4 | I57: =H57 -> 4 | J57: =IF(_xlfn.MINIFS(Auswertung!$F$3:$F$17,Auswertung!$J$3:$J$17, $E57,Auswertung!$R$3:$R$17, ">="&J24)=0,"-",_xlfn.MINIFS(Auswertung!$F$3:$F$17,Auswertung!$J$3:$J$17, $E57,Auswertung!$R$3:$R$17, ">="&J24)) -> 4 | K57: =J57 -> 4 | L57: =IF(_xlfn.MINIFS(Auswertung!$F$3:$F$17,Auswertung!$J$3:$J$17, $E57,Auswertung!$R$3:$R$17, ">="&L24)=0,"-",_xlfn.MINIFS(Auswertung!$F$3:$F$17,Auswertung!$J$3:$J$17, $E57,Auswertung!$R$3:$R$17, ">="&L24)) -> 4 | M57: =L57 -> 4 | N57: =IF(_xlfn.MINIFS(Auswertung!$F$3:$F$17,Auswertung!$J$3:$J$17, $E57,Auswertung!$R$3:$R$17, ">="&N24)=0,"-",_xlfn.MINIFS(Auswertung!$F$3:$F$17,Auswertung!$J$3:$J$17, $E57,Auswertung!$R$3:$R$17, ">="&N24)) -> 5 | O57: =N57 -> 5 | P57: =IF(_xlfn.MINIFS(Auswertung!$F$3:$F$17,Auswertung!$J$3:$J$17, $E57,Auswertung!$R$3:$R$17, ">="&P24)=0,"-",_xlfn.MINIFS(Auswertung!$F$3:$F$17,Auswertung!$J$3:$J$17, $E57,Auswertung!$R$3:$R$17, ">="&P24)) -> 4 | Q57: =P57 -> 4 | R57: =IF(_xlfn.MINIFS(Auswertung!$F$3:$F$17,Auswertung!$J$3:$J$17, $E57,Auswertung!$R$3:$R$17, ">="&R24)=0,"-",_xlfn.MINIFS(Auswertung!$F$3:$F$17,Auswertung!$J$3:$J$17, $E57,Auswertung!$R$3:$R$17, ">="&R24)) -> 5 | S57: =R57 -> 5 | T57: =IF(_xlfn.MINIFS(Auswertung!$F$3:$F$17,Auswertung!$J$3:$J$17, $E57,Auswertung!$R$3:$R$17, ">="&T24)=0,"-",_xlfn.MINIFS(Auswertung!$F$3:$F$17,Auswertung!$J$3:$J$17, $E57,Auswertung!$R$3:$R$17, ">="&T24)) -> 5 | U57: =T57 -> 5 | V57: =IF(_xlfn.MINIFS(Auswertung!$F$3:$F$17,Auswertung!$J$3:$J$17, $E57,Auswertung!$R$3:$R$17, ">="&V24)=0,"-",_xlfn.MINIFS(Auswertung!$F$3:$F$17,Auswertung!$J$3:$J$17, $E57,Auswertung!$R$3:$R$17, ">="&V24)) -> 5 | W57: =V57 -> 5 | X57: =IF(_xlfn.MINIFS(Auswertung!$F$3:$F$17,Auswertung!$J$3:$J$17, $E57,Auswertung!$R$3:$R$17, ">="&X24)=0,"-",_xlfn.MINIFS(Auswertung!$F$3:$F$17,Auswertung!$J$3:$J$17, $E57,Auswertung!$R$3:$R$17, ">="&X24)) -> 5 | Y57: =X57 -> 5 | Z57: =IF(_xlfn.MINIFS(Auswertung!$F$3:$F$17,Auswertung!$J$3:$J$17, $E57,Auswertung!$R$3:$R$17, ">="&Z24)=0,"-",_xlfn.MINIFS(Auswertung!$F$3:$F$17,Auswertung!$J$3:$J$17, $E57,Auswertung!$R$3:$R$17, ">="&Z24)) -> 5 | AA57: =Z57 -> 5 | AB57: =IF(_xlfn.MINIFS(Auswertung!$F$3:$F$17,Auswertung!$J$3:$J$17, $E57,Auswertung!$R$3:$R$17, ">="&AB24)=0,"-",_xlfn.MINIFS(Auswertung!$F$3:$F$17,Auswertung!$J$3:$J$17, $E57,Auswertung!$R$3:$R$17, ">="&AB24)) -> 5 | AC57: =AB57 -> 5 | AD57: =IF(_xlfn.MINIFS(Auswertung!$F$3:$F$17,Auswertung!$J$3:$J$17, $E57,Auswertung!$R$3:$R$17, ">="&AD24)=0,"-",_xlfn.MINIFS(Auswertung!$F$3:$F$17,Auswertung!$J$3:$J$17, $E57,Auswertung!$R$3:$R$17, ">="&AD24)) -> 5 | AE57: =AD57 -> 5 | AF57: =IF(_xlfn.MINIFS(Auswertung!$F$3:$F$17,Auswertung!$J$3:$J$17, $E57,Auswertung!$R$3:$R$17, ">="&AF24)=0,"-",_xlfn.MINIFS(Auswertung!$F$3:$F$17,Auswertung!$J$3:$J$17, $E57,Auswertung!$R$3:$R$17, ">="&AF24)) -> 5 | AG57: =AF57 -> 5 | AH57: =IF(_xlfn.MINIFS(Auswertung!$F$3:$F$17,Auswertung!$J$3:$J$17, $E57,Auswertung!$R$3:$R$17, ">="&AH24)=0,"-",_xlfn.MINIFS(Auswertung!$F$3:$F$17,Auswertung!$J$3:$J$17, $E57,Auswertung!$R$3:$R$17, ">="&AH24)) -> 6 | AI57: 6 | AN57: 1500 | AO57: - | AP57: 2000 | AQ57: 627 | AR57: 587 | AS57: 627 | AT57: 587 | AU57: 627 | AV57: 587 | AW57: 627 | AX57: 587 | AY57: 470 | AZ57: 440 | BA57: 627 | BB57: 587 | BC57: 470 | BD57: 440 | BE57: 470 | BF57: 440 | BG57: 470 | BH57: 440 | BI57: 470 | BJ57: 440 | BK57: 470 | BL57: 440 | BM57: 470 | BN57: 440 | BO57: 470 | BP57: 440 | BQ57: 470 | BR57: 440 | BS57: 376 | BT57: 352
C58: 2000 | D58: - | E58: 2500 | F58: =IF(_xlfn.MINIFS(Auswertung!$F$3:$F$17,Auswertung!$J$3:$J$17, $E58,Auswertung!$R$3:$R$17, ">="&F25)=0,"-",_xlfn.MINIFS(Auswertung!$F$3:$F$17,Auswertung!$J$3:$J$17, $E58,Auswertung!$R$3:$R$17, ">="&F25)) -> 5 | G58: 5 | H58: =IF(_xlfn.MINIFS(Auswertung!$F$3:$F$17,Auswertung!$J$3:$J$17, $E58,Auswertung!$R$3:$R$17, ">="&H25)=0,"-",_xlfn.MINIFS(Auswertung!$F$3:$F$17,Auswertung!$J$3:$J$17, $E58,Auswertung!$R$3:$R$17, ">="&H25)) -> 5 | I58: =H58 -> 5 | J58: =IF(_xlfn.MINIFS(Auswertung!$F$3:$F$17,Auswertung!$J$3:$J$17, $E58,Auswertung!$R$3:$R$17, ">="&J25)=0,"-",_xlfn.MINIFS(Auswertung!$F$3:$F$17,Auswertung!$J$3:$J$17, $E58,Auswertung!$R$3:$R$17, ">="&J25)) -> 5 | K58: =J58 -> 5 | L58: =IF(_xlfn.MINIFS(Auswertung!$F$3:$F$17,Auswertung!$J$3:$J$17, $E58,Auswertung!$R$3:$R$17, ">="&L25)=0,"-",_xlfn.MINIFS(Auswertung!$F$3:$F$17,Auswertung!$J$3:$J$17, $E58,Auswertung!$R$3:$R$17, ">="&L25)) -> 5 | M58: =L58 -> 5 | N58: =IF(_xlfn.MINIFS(Auswertung!$F$3:$F$17,Auswertung!$J$3:$J$17, $E58,Auswertung!$R$3:$R$17, ">="&N25)=0,"-",_xlfn.MINIFS(Auswertung!$F$3:$F$17,Auswertung!$J$3:$J$17, $E58,Auswertung!$R$3:$R$17, ">="&N25)) -> 6 | O58: =N58 -> 6 | P58: =IF(_xlfn.MINIFS(Auswertung!$F$3:$F$17,Auswertung!$J$3:$J$17, $E58,Auswertung!$R$3:$R$17, ">="&P25)=0,"-",_xlfn.MINIFS(Auswertung!$F$3:$F$17,Auswertung!$J$3:$J$17, $E58,Auswertung!$R$3:$R$17, ">="&P25)) -> 5 | Q58: =P58 -> 5 | R58: =IF(_xlfn.MINIFS(Auswertung!$F$3:$F$17,Auswertung!$J$3:$J$17, $E58,Auswertung!$R$3:$R$17, ">="&R25)=0,"-",_xlfn.MINIFS(Auswertung!$F$3:$F$17,Auswertung!$J$3:$J$17, $E58,Auswertung!$R$3:$R$17, ">="&R25)) -> 5 | S58: =R58 -> 5 | T58: =IF(_xlfn.MINIFS(Auswertung!$F$3:$F$17,Auswertung!$J$3:$J$17, $E58,Auswertung!$R$3:$R$17, ">="&T25)=0,"-",_xlfn.MINIFS(Auswertung!$F$3:$F$17,Auswertung!$J$3:$J$17, $E58,Auswertung!$R$3:$R$17, ">="&T25)) -> 6 | U58: =T58 -> 6 | V58: =IF(_xlfn.MINIFS(Auswertung!$F$3:$F$17,Auswertung!$J$3:$J$17, $E58,Auswertung!$R$3:$R$17, ">="&V25)=0,"-",_xlfn.MINIFS(Auswertung!$F$3:$F$17,Auswertung!$J$3:$J$17, $E58,Auswertung!$R$3:$R$17, ">="&V25)) -> 6 | W58: =V58 -> 6 | X58: =IF(_xlfn.MINIFS(Auswertung!$F$3:$F$17,Auswertung!$J$3:$J$17, $E58,Auswertung!$R$3:$R$17, ">="&X25)=0,"-",_xlfn.MINIFS(Auswertung!$F$3:$F$17,Auswertung!$J$3:$J$17, $E58,Auswertung!$R$3:$R$17, ">="&X25)) -> 6 | Y58: =X58 -> 6 | Z58: =IF(_xlfn.MINIFS(Auswertung!$F$3:$F$17,Auswertung!$J$3:$J$17, $E58,Auswertung!$R$3:$R$17, ">="&Z25)=0,"-",_xlfn.MINIFS(Auswertung!$F$3:$F$17,Auswertung!$J$3:$J$17, $E58,Auswertung!$R$3:$R$17, ">="&Z25)) -> 6 | AA58: =Z58 -> 6 | AB58: =IF(_xlfn.MINIFS(Auswertung!$F$3:$F$17,Auswertung!$J$3:$J$17, $E58,Auswertung!$R$3:$R$17, ">="&AB25)=0,"-",_xlfn.MINIFS(Auswertung!$F$3:$F$17,Auswertung!$J$3:$J$17, $E58,Auswertung!$R$3:$R$17, ">="&AB25)) -> 6 | AC58: =AB58 -> 6 | AD58: =IF(_xlfn.MINIFS(Auswertung!$F$3:$F$17,Auswertung!$J$3:$J$17, $E58,Auswertung!$R$3:$R$17, ">="&AD25)=0,"-",_xlfn.MINIFS(Auswertung!$F$3:$F$17,Auswertung!$J$3:$J$17, $E58,Auswertung!$R$3:$R$17, ">="&AD25)) -> 6 | AE58: =AD58 -> 6 | AF58: =IF(_xlfn.MINIFS(Auswertung!$F$3:$F$17,Auswertung!$J$3:$J$17, $E58,Auswertung!$R$3:$R$17, ">="&AF25)=0,"-",_xlfn.MINIFS(Auswertung!$F$3:$F$17,Auswertung!$J$3:$J$17, $E58,Auswertung!$R$3:$R$17, ">="&AF25)) -> 6 | AG58: =AF58 -> 6 | AH58: =IF(_xlfn.MINIFS(Auswertung!$F$3:$F$17,Auswertung!$J$3:$J$17, $E58,Auswertung!$R$3:$R$17, ">="&AH25)=0,"-",_xlfn.MINIFS(Auswertung!$F$3:$F$17,Auswertung!$J$3:$J$17, $E58,Auswertung!$R$3:$R$17, ">="&AH25)) -> 7 | AI58: 7 | AN58: 2000 | AO58: - | AP58: 2500 | AQ58: 595 | AR58: 565 | AS58: 595 | AT58: 565 | AU58: 595 | AV58: 565 | AW58: 595 | AX58: 565 | AY58: 476 | AZ58: 452 | BA58: 595 | BB58: 565 | BC58: 595 | BD58: 565 | BE58: 476 | BF58: 452 | BG58: 476 | BH58: 452 | BI58: 476 | BJ58: 452 | BK58: 476 | BL58: 452 | BM58: 476 | BN58: 452 | BO58: 476 | BP58: 452 | BQ58: 476 | BR58: 452 | BS58: 397 | BT58: 377
C59: 2500 | D59: - | E59: 3050 | F59: =IF(_xlfn.MINIFS(Auswertung!$F$3:$F$17,Auswertung!$J$3:$J$17, $E59,Auswertung!$R$3:$R$17, ">="&F26)=0,"-",_xlfn.MINIFS(Auswertung!$F$3:$F$17,Auswertung!$J$3:$J$17, $E59,Auswertung!$R$3:$R$17, ">="&F26)) -> 6 | G59: 6 | H59: =IF(_xlfn.MINIFS(Auswertung!$F$3:$F$17,Auswertung!$J$3:$J$17, $E59,Auswertung!$R$3:$R$17, ">="&H26)=0,"-",_xlfn.MINIFS(Auswertung!$F$3:$F$17,Auswertung!$J$3:$J$17, $E59,Auswertung!$R$3:$R$17, ">="&H26)) -> 6 | I59: =H59 -> 6 | J59: =IF(_xlfn.MINIFS(Auswertung!$F$3:$F$17,Auswertung!$J$3:$J$17, $E59,Auswertung!$R$3:$R$17, ">="&J26)=0,"-",_xlfn.MINIFS(Auswertung!$F$3:$F$17,Auswertung!$J$3:$J$17, $E59,Auswertung!$R$3:$R$17, ">="&J26)) -> 6 | K59: =J59 -> 6 | L59: =IF(_xlfn.MINIFS(Auswertung!$F$3:$F$17,Auswertung!$J$3:$J$17, $E59,Auswertung!$R$3:$R$17, ">="&L26)=0,"-",_xlfn.MINIFS(Auswertung!$F$3:$F$17,Auswertung!$J$3:$J$17, $E59,Auswertung!$R$3:$R$17, ">="&L26)) -> 6 | M59: =L59 -> 6 | N59: =IF(_xlfn.MINIFS(Auswertung!$F$3:$F$17,Auswertung!$J$3:$J$17, $E59,Auswertung!$R$3:$R$17, ">="&N26)=0,"-",_xlfn.MINIFS(Auswertung!$F$3:$F$17,Auswertung!$J$3:$J$17, $E59,Auswertung!$R$3:$R$17, ">="&N26)) -> 7 | O59: =N59 -> 7 | P59: =IF(_xlfn.MINIFS(Auswertung!$F$3:$F$17,Auswertung!$J$3:$J$17, $E59,Auswertung!$R$3:$R$17, ">="&P26)=0,"-",_xlfn.MINIFS(Auswertung!$F$3:$F$17,Auswertung!$J$3:$J$17, $E59,Auswertung!$R$3:$R$17, ">="&P26)) -> 6 | Q59: =P59 -> 6 | R59: =IF(_xlfn.MINIFS(Auswertung!$F$3:$F$17,Auswertung!$J$3:$J$17, $E59,Auswertung!$R$3:$R$17, ">="&R26)=0,"-",_xlfn.MINIFS(Auswertung!$F$3:$F$17,Auswertung!$J$3:$J$17, $E59,Auswertung!$R$3:$R$17, ">="&R26)) -> 6 | S59: =R59 -> 6 | T59: =IF(_xlfn.MINIFS(Auswertung!$F$3:$F$17,Auswertung!$J$3:$J$17, $E59,Auswertung!$R$3:$R$17, ">="&T26)=0,"-",_xlfn.MINIFS(Auswertung!$F$3:$F$17,Auswertung!$J$3:$J$17, $E59,Auswertung!$R$3:$R$17, ">="&T26)) -> 7 | U59: =T59 -> 7 | V59: =IF(_xlfn.MINIFS(Auswertung!$F$3:$F$17,Auswertung!$J$3:$J$17, $E59,Auswertung!$R$3:$R$17, ">="&V26)=0,"-",_xlfn.MINIFS(Auswertung!$F$3:$F$17,Auswertung!$J$3:$J$17, $E59,Auswertung!$R$3:$R$17, ">="&V26)) -> 7 | W59: =V59 -> 7 | X59: =IF(_xlfn.MINIFS(Auswertung!$F$3:$F$17,Auswertung!$J$3:$J$17, $E59,Auswertung!$R$3:$R$17, ">="&X26)=0,"-",_xlfn.MINIFS(Auswertung!$F$3:$F$17,Auswertung!$J$3:$J$17, $E59,Auswertung!$R$3:$R$17, ">="&X26)) -> 7 | Y59: =X59 -> 7 | Z59: =IF(_xlfn.MINIFS(Auswertung!$F$3:$F$17,Auswertung!$J$3:$J$17, $E59,Auswertung!$R$3:$R$17, ">="&Z26)=0,"-",_xlfn.MINIFS(Auswertung!$F$3:$F$17,Auswertung!$J$3:$J$17, $E59,Auswertung!$R$3:$R$17, ">="&Z26)) -> 7 | AA59: =Z59 -> 7 | AB59: =IF(_xlfn.MINIFS(Auswertung!$F$3:$F$17,Auswertung!$J$3:$J$17, $E59,Auswertung!$R$3:$R$17, ">="&AB26)=0,"-",_xlfn.MINIFS(Auswertung!$F$3:$F$17,Auswertung!$J$3:$J$17, $E59,Auswertung!$R$3:$R$17, ">="&AB26)) -> 7 | AC59: =AB59 -> 7 | AD59: =IF(_xlfn.MINIFS(Auswertung!$F$3:$F$17,Auswertung!$J$3:$J$17, $E59,Auswertung!$R$3:$R$17, ">="&AD26)=0,"-",_xlfn.MINIFS(Auswertung!$F$3:$F$17,Auswertung!$J$3:$J$17, $E59,Auswertung!$R$3:$R$17, ">="&AD26)) -> 7 | AE59: =AD59 -> 7 | AF59: =IF(_xlfn.MINIFS(Auswertung!$F$3:$F$17,Auswertung!$J$3:$J$17, $E59,Auswertung!$R$3:$R$17, ">="&AF26)=0,"-",_xlfn.MINIFS(Auswertung!$F$3:$F$17,Auswertung!$J$3:$J$17, $E59,Auswertung!$R$3:$R$17, ">="&AF26)) -> 7 | AG59: =AF59 -> 7 | AH59: =IF(_xlfn.MINIFS(Auswertung!$F$3:$F$17,Auswertung!$J$3:$J$17, $E59,Auswertung!$R$3:$R$17, ">="&AH26)=0,"-",_xlfn.MINIFS(Auswertung!$F$3:$F$17,Auswertung!$J$3:$J$17, $E59,Auswertung!$R$3:$R$17, ">="&AH26)) -> 7 | AI59: 7 | AN59: 2500 | AO59: - | AP59: 3050 | AQ59: 586 | AR59: 562 | AS59: 586 | AT59: 562 | AU59: 586 | AV59: 562 | AW59: 586 | AX59: 562 | AY59: 488 | AZ59: 468 | BA59: 586 | BB59: 562 | BC59: 586 | BD59: 562 | BE59: 488 | BF59: 468 | BG59: 488 | BH59: 468 | BI59: 488 | BJ59: 468 | BK59: 488 | BL59: 468 | BM59: 488 | BN59: 468 | BO59: 488 | BP59: 468 | BQ59: 488 | BR59: 468 | BS59: 488 | BT59: 468
B60: IV: Gross-flächige Stadtgebiete | C60: 340 | D60: - | E60: 500 | F60: =IF(_xlfn.MINIFS(Auswertung!$F$3:$F$17,Auswertung!$J$3:$J$17, $E60,Auswertung!$R$3:$R$17, ">="&F27)=0,"-",_xlfn.MINIFS(Auswertung!$F$3:$F$17,Auswertung!$J$3:$J$17, $E60,Auswertung!$R$3:$R$17, ">="&F27)) -> 2 | G60: 2 | H60: =IF(_xlfn.MINIFS(Auswertung!$F$3:$F$17,Auswertung!$J$3:$J$17, $E60,Auswertung!$R$3:$R$17, ">="&H27)=0,"-",_xlfn.MINIFS(Auswertung!$F$3:$F$17,Auswertung!$J$3:$J$17, $E60,Auswertung!$R$3:$R$17, ">="&H27)) -> 2 | I60: =H60 -> 2 | J60: =IF(_xlfn.MINIFS(Auswertung!$F$3:$F$17,Auswertung!$J$3:$J$17, $E60,Auswertung!$R$3:$R$17, ">="&J27)=0,"-",_xlfn.MINIFS(Auswertung!$F$3:$F$17,Auswertung!$J$3:$J$17, $E60,Auswertung!$R$3:$R$17, ">="&J27)) -> 2 | K60: =J60 -> 2 | L60: =IF(_xlfn.MINIFS(Auswertung!$F$3:$F$17,Auswertung!$J$3:$J$17, $E60,Auswertung!$R$3:$R$17, ">="&L27)=0,"-",_xlfn.MINIFS(Auswertung!$F$3:$F$17,Auswertung!$J$3:$J$17, $E60,Auswertung!$R$3:$R$17, ">="&L27)) -> 2 | M60: =L60 -> 2 | N60: =IF(_xlfn.MINIFS(Auswertung!$F$3:$F$17,Auswertung!$J$3:$J$17, $E60,Auswertung!$R$3:$R$17, ">="&N27)=0,"-",_xlfn.MINIFS(Auswertung!$F$3:$F$17,Auswertung!$J$3:$J$17, $E60,Auswertung!$R$3:$R$17, ">="&N27)) -> 2 | O60: =N60 -> 2 | P60: =IF(_xlfn.MINIFS(Auswertung!$F$3:$F$17,Auswertung!$J$3:$J$17, $E60,Auswertung!$R$3:$R$17, ">="&P27)=0,"-",_xlfn.MINIFS(Auswertung!$F$3:$F$17,Auswertung!$J$3:$J$17, $E60,Auswertung!$R$3:$R$17, ">="&P27)) -> 2 | Q60: =P60 -> 2 | R60: =IF(_xlfn.MINIFS(Auswertung!$F$3:$F$17,Auswertung!$J$3:$J$17, $E60,Auswertung!$R$3:$R$17, ">="&R27)=0,"-",_xlfn.MINIFS(Auswertung!$F$3:$F$17,Auswertung!$J$3:$J$17, $E60,Auswertung!$R$3:$R$17, ">="&R27)) -> 2 | S60: =R60 -> 2 | T60: =IF(_xlfn.MINIFS(Auswertung!$F$3:$F$17,Auswertung!$J$3:$J$17, $E60,Auswertung!$R$3:$R$17, ">="&T27)=0,"-",_xlfn.MINIFS(Auswertung!$F$3:$F$17,Auswertung!$J$3:$J$17, $E60,Auswertung!$R$3:$R$17, ">="&T27)) -> 2 | U60: =T60 -> 2 | V60: =IF(_xlfn.MINIFS(Auswertung!$F$3:$F$17,Auswertung!$J$3:$J$17, $E60,Auswertung!$R$3:$R$17, ">="&V27)=0,"-",_xlfn.MINIFS(Auswertung!$F$3:$F$17,Auswertung!$J$3:$J$17, $E60,Auswertung!$R$3:$R$17, ">="&V27)) -> 2 | W60: =V60 -> 2 | X60: =IF(_xlfn.MINIFS(Auswertung!$F$3:$F$17,Auswertung!$J$3:$J$17, $E60,Auswertung!$R$3:$R$17, ">="&X27)=0,"-",_xlfn.MINIFS(Auswertung!$F$3:$F$17,Auswertung!$J$3:$J$17, $E60,Auswertung!$R$3:$R$17, ">="&X27)) -> 2 | Y60: =X60 -> 2 | Z60: =IF(_xlfn.MINIFS(Auswertung!$F$3:$F$17,Auswertung!$J$3:$J$17, $E60,Auswertung!$R$3:$R$17, ">="&Z27)=0,"-",_xlfn.MINIFS(Auswertung!$F$3:$F$17,Auswertung!$J$3:$J$17, $E60,Auswertung!$R$3:$R$17, ">="&Z27)) -> 2 | AA60: =Z60 -> 2 | AB60: =IF(_xlfn.MINIFS(Auswertung!$F$3:$F$17,Auswertung!$J$3:$J$17, $E60,Auswertung!$R$3:$R$17, ">="&AB27)=0,"-",_xlfn.MINIFS(Auswertung!$F$3:$F$17,Auswertung!$J$3:$J$17, $E60,Auswertung!$R$3:$R$17, ">="&AB27)) -> 2 | AC60: =AB60 -> 2 | AD60: =IF(_xlfn.MINIFS(Auswertung!$F$3:$F$17,Auswertung!$J$3:$J$17, $E60,Auswertung!$R$3:$R$17, ">="&AD27)=0,"-",_xlfn.MINIFS(Auswertung!$F$3:$F$17,Auswertung!$J$3:$J$17, $E60,Auswertung!$R$3:$R$17, ">="&AD27)) -> 2 | AE60: =AD60 -> 2 | AF60: =IF(_xlfn.MINIFS(Auswertung!$F$3:$F$17,Auswertung!$J$3:$J$17, $E60,Auswertung!$R$3:$R$17, ">="&AF27)=0,"-",_xlfn.MINIFS(Auswertung!$F$3:$F$17,Auswertung!$J$3:$J$17, $E60,Auswertung!$R$3:$R$17, ">="&AF27)) -> 2 | AG60: =AF60 -> 2 | AH60: =IF(_xlfn.MINIFS(Auswertung!$F$3:$F$17,Auswertung!$J$3:$J$17, $E60,Auswertung!$R$3:$R$17, ">="&AH27)=0,"-",_xlfn.MINIFS(Auswertung!$F$3:$F$17,Auswertung!$J$3:$J$17, $E60,Auswertung!$R$3:$R$17, ">="&AH27)) -> 2 | AI60: 2 | AM60: IV: Gross-flächige Stadtgebiete | AN60: 340 | AO60: - | AP60: 500 | AQ60: 380 | AR60: 260 | AS60: 380 | AT60: 260 | AU60: 380 | AV60: 260 | AW60: 380 | AX60: 260 | AY60: 380 | AZ60: 260 | BA60: 380 | BB60: 260 | BC60: 380 | BD60: 260 | BE60: 380 | BF60: 260 | BG60: 380 | BH60: 260 | BI60: 380 | BJ60: 260 | BK60: 380 | BL60: 260 | BM60: 380 | BN60: 260 | BO60: 380 | BP60: 260 | BQ60: 380 | BR60: 260 | BS60: 380 | BT60: 260
C61: 500 | D61: - | E61: 1000 | F61: =IF(_xlfn.MINIFS(Auswertung!$F$3:$F$17,Auswertung!$J$3:$J$17, $E61,Auswertung!$R$3:$R$17, ">="&F28)=0,"-",_xlfn.MINIFS(Auswertung!$F$3:$F$17,Auswertung!$J$3:$J$17, $E61,Auswertung!$R$3:$R$17, ">="&F28)) -> 3 | G61: 3 | H61: =IF(_xlfn.MINIFS(Auswertung!$F$3:$F$17,Auswertung!$J$3:$J$17, $E61,Auswertung!$R$3:$R$17, ">="&H28)=0,"-",_xlfn.MINIFS(Auswertung!$F$3:$F$17,Auswertung!$J$3:$J$17, $E61,Auswertung!$R$3:$R$17, ">="&H28)) -> 3 | I61: =H61 -> 3 | J61: =IF(_xlfn.MINIFS(Auswertung!$F$3:$F$17,Auswertung!$J$3:$J$17, $E61,Auswertung!$R$3:$R$17, ">="&J28)=0,"-",_xlfn.MINIFS(Auswertung!$F$3:$F$17,Auswertung!$J$3:$J$17, $E61,Auswertung!$R$3:$R$17, ">="&J28)) -> 3 | K61: =J61 -> 3 | L61: =IF(_xlfn.MINIFS(Auswertung!$F$3:$F$17,Auswertung!$J$3:$J$17, $E61,Auswertung!$R$3:$R$17, ">="&L28)=0,"-",_xlfn.MINIFS(Auswertung!$F$3:$F$17,Auswertung!$J$3:$J$17, $E61,Auswertung!$R$3:$R$17, ">="&L28)) -> 3 | M61: =L61 -> 3 | N61: =IF(_xlfn.MINIFS(Auswertung!$F$3:$F$17,Auswertung!$J$3:$J$17, $E61,Auswertung!$R$3:$R$17, ">="&N28)=0,"-",_xlfn.MINIFS(Auswertung!$F$3:$F$17,Auswertung!$J$3:$J$17, $E61,Auswertung!$R$3:$R$17, ">="&N28)) -> 3 | O61: =N61 -> 3 | P61: =IF(_xlfn.MINIFS(Auswertung!$F$3:$F$17,Auswertung!$J$3:$J$17, $E61,Auswertung!$R$3:$R$17, ">="&P28)=0,"-",_xlfn.MINIFS(Auswertung!$F$3:$F$17,Auswertung!$J$3:$J$17, $E61,Auswertung!$R$3:$R$17, ">="&P28)) -> 3 | Q61: =P61 -> 3 | R61: =IF(_xlfn.MINIFS(Auswertung!$F$3:$F$17,Auswertung!$J$3:$J$17, $E61,Auswertung!$R$3:$R$17, ">="&R28)=0,"-",_xlfn.MINIFS(Auswertung!$F$3:$F$17,Auswertung!$J$3:$J$17, $E61,Auswertung!$R$3:$R$17, ">="&R28)) -> 3 | S61: =R61 -> 3 | T61: =IF(_xlfn.MINIFS(Auswertung!$F$3:$F$17,Auswertung!$J$3:$J$17, $E61,Auswertung!$R$3:$R$17, ">="&T28)=0,"-",_xlfn.MINIFS(Auswertung!$F$3:$F$17,Auswertung!$J$3:$J$17, $E61,Auswertung!$R$3:$R$17, ">="&T28)) -> 3 | U61: =T61 -> 3 | V61: =IF(_xlfn.MINIFS(Auswertung!$F$3:$F$17,Auswertung!$J$3:$J$17, $E61,Auswertung!$R$3:$R$17, ">="&V28)=0,"-",_xlfn.MINIFS(Auswertung!$F$3:$F$17,Auswertung!$J$3:$J$17, $E61,Auswertung!$R$3:$R$17, ">="&V28)) -> 3 | W61: =V61 -> 3 | X61: =IF(_xlfn.MINIFS(Auswertung!$F$3:$F$17,Auswertung!$J$3:$J$17, $E61,Auswertung!$R$3:$R$17, ">="&X28)=0,"-",_xlfn.MINIFS(Auswertung!$F$3:$F$17,Auswertung!$J$3:$J$17, $E61,Auswertung!$R$3:$R$17, ">="&X28)) -> 3 | Y61: =X61 -> 3 | Z61: =IF(_xlfn.MINIFS(Auswertung!$F$3:$F$17,Auswertung!$J$3:$J$17, $E61,Auswertung!$R$3:$R$17, ">="&Z28)=0,"-",_xlfn.MINIFS(Auswertung!$F$3:$F$17,Auswertung!$J$3:$J$17, $E61,Auswertung!$R$3:$R$17, ">="&Z28)) -> 3 | AA61: =Z61 -> 3 | AB61: =IF(_xlfn.MINIFS(Auswertung!$F$3:$F$17,Auswertung!$J$3:$J$17, $E61,Auswertung!$R$3:$R$17, ">="&AB28)=0,"-",_xlfn.MINIFS(Auswertung!$F$3:$F$17,Auswertung!$J$3:$J$17, $E61,Auswertung!$R$3:$R$17, ">="&AB28)) -> 3 | AC61: =AB61 -> 3 | AD61: =IF(_xlfn.MINIFS(Auswertung!$F$3:$F$17,Auswertung!$J$3:$J$17, $E61,Auswertung!$R$3:$R$17, ">="&AD28)=0,"-",_xlfn.MINIFS(Auswertung!$F$3:$F$17,Auswertung!$J$3:$J$17, $E61,Auswertung!$R$3:$R$17, ">="&AD28)) -> 3 | AE61: =AD61 -> 3 | AF61: =IF(_xlfn.MINIFS(Auswertung!$F$3:$F$17,Auswertung!$J$3:$J$17, $E61,Auswertung!$R$3:$R$17, ">="&AF28)=0,"-",_xlfn.MINIFS(Auswertung!$F$3:$F$17,Auswertung!$J$3:$J$17, $E61,Auswertung!$R$3:$R$17, ">="&AF28)) -> 3 | AG61: =AF61 -> 3 | AH61: =IF(_xlfn.MINIFS(Auswertung!$F$3:$F$17,Auswertung!$J$3:$J$17, $E61,Auswertung!$R$3:$R$17, ">="&AH28)=0,"-",_xlfn.MINIFS(Auswertung!$F$3:$F$17,Auswertung!$J$3:$J$17, $E61,Auswertung!$R$3:$R$17, ">="&AH28)) -> 3 | AI61: 3 | AN61: 500 | AO61: - | AP61: 1000 | AQ61: 440 | AR61: 380 | AS61: 440 | AT61: 380 | AU61: 440 | AV61: 380 | AW61: 440 | AX61: 380 | AY61: 440 | AZ61: 380 | BA61: 440 | BB61: 380 | BC61: 440 | BD61: 380 | BE61: 440 | BF61: 380 | BG61: 440 | BH61: 380 | BI61: 440 | BJ61: 380 | BK61: 440 | BL61: 380 | BM61: 440 | BN61: 380 | BO61: 440 | BP61: 380 | BQ61: 440 | BR61: 380 | BS61: 440 | BT61: 380
C62: 1000 | D62: - | E62: 1500 | F62: =IF(_xlfn.MINIFS(Auswertung!$F$3:$F$17,Auswertung!$J$3:$J$17, $E62,Auswertung!$R$3:$R$17, ">="&F29)=0,"-",_xlfn.MINIFS(Auswertung!$F$3:$F$17,Auswertung!$J$3:$J$17, $E62,Auswertung!$R$3:$R$17, ">="&F29)) -> 3 | G62: 3 | H62: =IF(_xlfn.MINIFS(Auswertung!$F$3:$F$17,Auswertung!$J$3:$J$17, $E62,Auswertung!$R$3:$R$17, ">="&H29)=0,"-",_xlfn.MINIFS(Auswertung!$F$3:$F$17,Auswertung!$J$3:$J$17, $E62,Auswertung!$R$3:$R$17, ">="&H29)) -> 3 | I62: =H62 -> 3 | J62: =IF(_xlfn.MINIFS(Auswertung!$F$3:$F$17,Auswertung!$J$3:$J$17, $E62,Auswertung!$R$3:$R$17, ">="&J29)=0,"-",_xlfn.MINIFS(Auswertung!$F$3:$F$17,Auswertung!$J$3:$J$17, $E62,Auswertung!$R$3:$R$17, ">="&J29)) -> 3 | K62: =J62 -> 3 | L62: =IF(_xlfn.MINIFS(Auswertung!$F$3:$F$17,Auswertung!$J$3:$J$17, $E62,Auswertung!$R$3:$R$17, ">="&L29)=0,"-",_xlfn.MINIFS(Auswertung!$F$3:$F$17,Auswertung!$J$3:$J$17, $E62,Auswertung!$R$3:$R$17, ">="&L29)) -> 3 | M62: =L62 -> 3 | N62: =IF(_xlfn.MINIFS(Auswertung!$F$3:$F$17,Auswertung!$J$3:$J$17, $E62,Auswertung!$R$3:$R$17, ">="&N29)=0,"-",_xlfn.MINIFS(Auswertung!$F$3:$F$17,Auswertung!$J$3:$J$17, $E62,Auswertung!$R$3:$R$17, ">="&N29)) -> 3 | O62: =N62 -> 3 | P62: =IF(_xlfn.MINIFS(Auswertung!$F$3:$F$17,Auswertung!$J$3:$J$17, $E62,Auswertung!$R$3:$R$17, ">="&P29)=0,"-",_xlfn.MINIFS(Auswertung!$F$3:$F$17,Auswertung!$J$3:$J$17, $E62,Auswertung!$R$3:$R$17, ">="&P29)) -> 3 | Q62: =P62 -> 3 | R62: =IF(_xlfn.MINIFS(Auswertung!$F$3:$F$17,Auswertung!$J$3:$J$17, $E62,Auswertung!$R$3:$R$17, ">="&R29)=0,"-",_xlfn.MINIFS(Auswertung!$F$3:$F$17,Auswertung!$J$3:$J$17, $E62,Auswertung!$R$3:$R$17, ">="&R29)) -> 3 | S62: =R62 -> 3 | T62: =IF(_xlfn.MINIFS(Auswertung!$F$3:$F$17,Auswertung!$J$3:$J$17, $E62,Auswertung!$R$3:$R$17, ">="&T29)=0,"-",_xlfn.MINIFS(Auswertung!$F$3:$F$17,Auswertung!$J$3:$J$17, $E62,Auswertung!$R$3:$R$17, ">="&T29)) -> 3 | U62: =T62 -> 3 | V62: =IF(_xlfn.MINIFS(Auswertung!$F$3:$F$17,Auswertung!$J$3:$J$17, $E62,Auswertung!$R$3:$R$17, ">="&V29)=0,"-",_xlfn.MINIFS(Auswertung!$F$3:$F$17,Auswertung!$J$3:$J$17, $E62,Auswertung!$R$3:$R$17, ">="&V29)) -> 4 | W62: =V62 -> 4 | X62: =IF(_xlfn.MINIFS(Auswertung!$F$3:$F$17,Auswertung!$J$3:$J$17, $E62,Auswertung!$R$3:$R$17, ">="&X29)=0,"-",_xlfn.MINIFS(Auswertung!$F$3:$F$17,Auswertung!$J$3:$J$17, $E62,Auswertung!$R$3:$R$17, ">="&X29)) -> 4 | Y62: =X62 -> 4 | Z62: =IF(_xlfn.MINIFS(Auswertung!$F$3:$F$17,Auswertung!$J$3:$J$17, $E62,Auswertung!$R$3:$R$17, ">="&Z29)=0,"-",_xlfn.MINIFS(Auswertung!$F$3:$F$17,Auswertung!$J$3:$J$17, $E62,Auswertung!$R$3:$R$17, ">="&Z29)) -> 3 | AA62: =Z62 -> 3 | AB62: =IF(_xlfn.MINIFS(Auswertung!$F$3:$F$17,Auswertung!$J$3:$J$17, $E62,Auswertung!$R$3:$R$17, ">="&AB29)=0,"-",_xlfn.MINIFS(Auswertung!$F$3:$F$17,Auswertung!$J$3:$J$17, $E62,Auswertung!$R$3:$R$17, ">="&AB29)) -> 3 | AC62: =AB62 -> 3 | AD62: =IF(_xlfn.MINIFS(Auswertung!$F$3:$F$17,Auswertung!$J$3:$J$17, $E62,Auswertung!$R$3:$R$17, ">="&AD29)=0,"-",_xlfn.MINIFS(Auswertung!$F$3:$F$17,Auswertung!$J$3:$J$17, $E62,Auswertung!$R$3:$R$17, ">="&AD29)) -> 4 | AE62: =AD62 -> 4 | AF62: =IF(_xlfn.MINIFS(Auswertung!$F$3:$F$17,Auswertung!$J$3:$J$17, $E62,Auswertung!$R$3:$R$17, ">="&AF29)=0,"-",_xlfn.MINIFS(Auswertung!$F$3:$F$17,Auswertung!$J$3:$J$17, $E62,Auswertung!$R$3:$R$17, ">="&AF29)) -> 4 | AG62: =AF62 -> 4 | AH62: =IF(_xlfn.MINIFS(Auswertung!$F$3:$F$17,Auswertung!$J$3:$J$17, $E62,Auswertung!$R$3:$R$17, ">="&AH29)=0,"-",_xlfn.MINIFS(Auswertung!$F$3:$F$17,Auswertung!$J$3:$J$17, $E62,Auswertung!$R$3:$R$17, ">="&AH29)) -> 4 | AI62: 4 | AN62: 1000 | AO62: - | AP62: 1500 | AQ62: 690 | AR62: 630 | AS62: 690 | AT62: 630 | AU62: 690 | AV62: 630 | AW62: 690 | AX62: 630 | AY62: 690 | AZ62: 630 | BA62: 690 | BB62: 630 | BC62: 690 | BD62: 630 | BE62: 690 | BF62: 630 | BG62: 460 | BH62: 420 | BI62: 460 | BJ62: 420 | BK62: 690 | BL62: 630 | BM62: 690 | BN62: 630 | BO62: 460 | BP62: 420 | BQ62: 460 | BR62: 420 | BS62: 460 | BT62: 420
C63: 1500 | D63: - | E63: 2000 | F63: =IF(_xlfn.MINIFS(Auswertung!$F$3:$F$17,Auswertung!$J$3:$J$17, $E63,Auswertung!$R$3:$R$17, ">="&F30)=0,"-",_xlfn.MINIFS(Auswertung!$F$3:$F$17,Auswertung!$J$3:$J$17, $E63,Auswertung!$R$3:$R$17, ">="&F30)) -> 4 | G63: 4 | H63: =IF(_xlfn.MINIFS(Auswertung!$F$3:$F$17,Auswertung!$J$3:$J$17, $E63,Auswertung!$R$3:$R$17, ">="&H30)=0,"-",_xlfn.MINIFS(Auswertung!$F$3:$F$17,Auswertung!$J$3:$J$17, $E63,Auswertung!$R$3:$R$17, ">="&H30)) -> 4 | I63: =H63 -> 4 | J63: =IF(_xlfn.MINIFS(Auswertung!$F$3:$F$17,Auswertung!$J$3:$J$17, $E63,Auswertung!$R$3:$R$17, ">="&J30)=0,"-",_xlfn.MINIFS(Auswertung!$F$3:$F$17,Auswertung!$J$3:$J$17, $E63,Auswertung!$R$3:$R$17, ">="&J30)) -> 4 | K63: =J63 -> 4 | L63: =IF(_xlfn.MINIFS(Auswertung!$F$3:$F$17,Auswertung!$J$3:$J$17, $E63,Auswertung!$R$3:$R$17, ">="&L30)=0,"-",_xlfn.MINIFS(Auswertung!$F$3:$F$17,Auswertung!$J$3:$J$17, $E63,Auswertung!$R$3:$R$17, ">="&L30)) -> 4 | M63: =L63 -> 4 | N63: =IF(_xlfn.MINIFS(Auswertung!$F$3:$F$17,Auswertung!$J$3:$J$17, $E63,Auswertung!$R$3:$R$17, ">="&N30)=0,"-",_xlfn.MINIFS(Auswertung!$F$3:$F$17,Auswertung!$J$3:$J$17, $E63,Auswertung!$R$3:$R$17, ">="&N30)) -> 4 | O63: =N63 -> 4 | P63: =IF(_xlfn.MINIFS(Auswertung!$F$3:$F$17,Auswertung!$J$3:$J$17, $E63,Auswertung!$R$3:$R$17, ">="&P30)=0,"-",_xlfn.MINIFS(Auswertung!$F$3:$F$17,Auswertung!$J$3:$J$17, $E63,Auswertung!$R$3:$R$17, ">="&P30)) -> 4 | Q63: =P63 -> 4 | R63: =IF(_xlfn.MINIFS(Auswertung!$F$3:$F$17,Auswertung!$J$3:$J$17, $E63,Auswertung!$R$3:$R$17, ">="&R30)=0,"-",_xlfn.MINIFS(Auswertung!$F$3:$F$17,Auswertung!$J$3:$J$17, $E63,Auswertung!$R$3:$R$17, ">="&R30)) -> 4 | S63: =R63 -> 4 | T63: =IF(_xlfn.MINIFS(Auswertung!$F$3:$F$17,Auswertung!$J$3:$J$17, $E63,Auswertung!$R$3:$R$17, ">="&T30)=0,"-",_xlfn.MINIFS(Auswertung!$F$3:$F$17,Auswertung!$J$3:$J$17, $E63,Auswertung!$R$3:$R$17, ">="&T30)) -> 4 | U63: =T63 -> 4 | V63: =IF(_xlfn.MINIFS(Auswertung!$F$3:$F$17,Auswertung!$J$3:$J$17, $E63,Auswertung!$R$3:$R$17, ">="&V30)=0,"-",_xlfn.MINIFS(Auswertung!$F$3:$F$17,Auswertung!$J$3:$J$17, $E63,Auswertung!$R$3:$R$17, ">="&V30)) -> 4 | W63: =V63 -> 4 | X63: =IF(_xlfn.MINIFS(Auswertung!$F$3:$F$17,Auswertung!$J$3:$J$17, $E63,Auswertung!$R$3:$R$17, ">="&X30)=0,"-",_xlfn.MINIFS(Auswertung!$F$3:$F$17,Auswertung!$J$3:$J$17, $E63,Auswertung!$R$3:$R$17, ">="&X30)) -> 5 | Y63: =X63 -> 5 | Z63: =IF(_xlfn.MINIFS(Auswertung!$F$3:$F$17,Auswertung!$J$3:$J$17, $E63,Auswertung!$R$3:$R$17, ">="&Z30)=0,"-",_xlfn.MINIFS(Auswertung!$F$3:$F$17,Auswertung!$J$3:$J$17, $E63,Auswertung!$R$3:$R$17, ">="&Z30)) -> 4 | AA63: =Z63 -> 4 | AB63: =IF(_xlfn.MINIFS(Auswertung!$F$3:$F$17,Auswertung!$J$3:$J$17, $E63,Auswertung!$R$3:$R$17, ">="&AB30)=0,"-",_xlfn.MINIFS(Auswertung!$F$3:$F$17,Auswertung!$J$3:$J$17, $E63,Auswertung!$R$3:$R$17, ">="&AB30)) -> 4 | AC63: =AB63 -> 4 | AD63: =IF(_xlfn.MINIFS(Auswertung!$F$3:$F$17,Auswertung!$J$3:$J$17, $E63,Auswertung!$R$3:$R$17, ">="&AD30)=0,"-",_xlfn.MINIFS(Auswertung!$F$3:$F$17,Auswertung!$J$3:$J$17, $E63,Auswertung!$R$3:$R$17, ">="&AD30)) -> 5 | AE63: =AD63 -> 5 | AF63: =IF(_xlfn.MINIFS(Auswertung!$F$3:$F$17,Auswertung!$J$3:$J$17, $E63,Auswertung!$R$3:$R$17, ">="&AF30)=0,"-",_xlfn.MINIFS(Auswertung!$F$3:$F$17,Auswertung!$J$3:$J$17, $E63,Auswertung!$R$3:$R$17, ">="&AF30)) -> 5 | AG63: =AF63 -> 5 | AH63: =IF(_xlfn.MINIFS(Auswertung!$F$3:$F$17,Auswertung!$J$3:$J$17, $E63,Auswertung!$R$3:$R$17, ">="&AH30)=0,"-",_xlfn.MINIFS(Auswertung!$F$3:$F$17,Auswertung!$J$3:$J$17, $E63,Auswertung!$R$3:$R$17, ">="&AH30)) -> 5 | AI63: 5 | AN63: 1500 | AO63: - | AP63: 2000 | AQ63: 627 | AR63: 587 | AS63: 627 | AT63: 587 | AU63: 627 | AV63: 587 | AW63: 627 | AX63: 587 | AY63: 627 | AZ63: 587 | BA63: 627 | BB63: 587 | BC63: 627 | BD63: 587 | BE63: 627 | BF63: 587 | BG63: 627 | BH63: 587 | BI63: 470 | BJ63: 440 | BK63: 627 | BL63: 587 | BM63: 627 | BN63: 587 | BO63: 470 | BP63: 440 | BQ63: 470 | BR63: 440 | BS63: 470 | BT63: 440
C64: 2000 | D64: - | E64: 2500 | F64: =IF(_xlfn.MINIFS(Auswertung!$F$3:$F$17,Auswertung!$J$3:$J$17, $E64,Auswertung!$R$3:$R$17, ">="&F31)=0,"-",_xlfn.MINIFS(Auswertung!$F$3:$F$17,Auswertung!$J$3:$J$17, $E64,Auswertung!$R$3:$R$17, ">="&F31)) -> 5 | G64: 5 | H64: =IF(_xlfn.MINIFS(Auswertung!$F$3:$F$17,Auswertung!$J$3:$J$17, $E64,Auswertung!$R$3:$R$17, ">="&H31)=0,"-",_xlfn.MINIFS(Auswertung!$F$3:$F$17,Auswertung!$J$3:$J$17, $E64,Auswertung!$R$3:$R$17, ">="&H31)) -> 5 | I64: =H64 -> 5 | J64: =IF(_xlfn.MINIFS(Auswertung!$F$3:$F$17,Auswertung!$J$3:$J$17, $E64,Auswertung!$R$3:$R$17, ">="&J31)=0,"-",_xlfn.MINIFS(Auswertung!$F$3:$F$17,Auswertung!$J$3:$J$17, $E64,Auswertung!$R$3:$R$17, ">="&J31)) -> 5 | K64: =J64 -> 5 | L64: =IF(_xlfn.MINIFS(Auswertung!$F$3:$F$17,Auswertung!$J$3:$J$17, $E64,Auswertung!$R$3:$R$17, ">="&L31)=0,"-",_xlfn.MINIFS(Auswertung!$F$3:$F$17,Auswertung!$J$3:$J$17, $E64,Auswertung!$R$3:$R$17, ">="&L31)) -> 5 | M64: =L64 -> 5 | N64: =IF(_xlfn.MINIFS(Auswertung!$F$3:$F$17,Auswertung!$J$3:$J$17, $E64,Auswertung!$R$3:$R$17, ">="&N31)=0,"-",_xlfn.MINIFS(Auswertung!$F$3:$F$17,Auswertung!$J$3:$J$17, $E64,Auswertung!$R$3:$R$17, ">="&N31)) -> 5 | O64: =N64 -> 5 | P64: =IF(_xlfn.MINIFS(Auswertung!$F$3:$F$17,Auswertung!$J$3:$J$17, $E64,Auswertung!$R$3:$R$17, ">="&P31)=0,"-",_xlfn.MINIFS(Auswertung!$F$3:$F$17,Auswertung!$J$3:$J$17, $E64,Auswertung!$R$3:$R$17, ">="&P31)) -> 5 | Q64: =P64 -> 5 | R64: =IF(_xlfn.MINIFS(Auswertung!$F$3:$F$17,Auswertung!$J$3:$J$17, $E64,Auswertung!$R$3:$R$17, ">="&R31)=0,"-",_xlfn.MINIFS(Auswertung!$F$3:$F$17,Auswertung!$J$3:$J$17, $E64,Auswertung!$R$3:$R$17, ">="&R31)) -> 5 | S64: =R64 -> 5 | T64: =IF(_xlfn.MINIFS(Auswertung!$F$3:$F$17,Auswertung!$J$3:$J$17, $E64,Auswertung!$R$3:$R$17, ">="&T31)=0,"-",_xlfn.MINIFS(Auswertung!$F$3:$F$17,Auswertung!$J$3:$J$17, $E64,Auswertung!$R$3:$R$17, ">="&T31)) -> 5 | U64: =T64 -> 5 | V64: =IF(_xlfn.MINIFS(Auswertung!$F$3:$F$17,Auswertung!$J$3:$J$17, $E64,Auswertung!$R$3:$R$17, ">="&V31)=0,"-",_xlfn.MINIFS(Auswertung!$F$3:$F$17,Auswertung!$J$3:$J$17, $E64,Auswertung!$R$3:$R$17, ">="&V31)) -> 5 | W64: =V64 -> 5 | X64: =IF(_xlfn.MINIFS(Auswertung!$F$3:$F$17,Auswertung!$J$3:$J$17, $E64,Auswertung!$R$3:$R$17, ">="&X31)=0,"-",_xlfn.MINIFS(Auswertung!$F$3:$F$17,Auswertung!$J$3:$J$17, $E64,Auswertung!$R$3:$R$17, ">="&X31)) -> 6 | Y64: =X64 -> 6 | Z64: =IF(_xlfn.MINIFS(Auswertung!$F$3:$F$17,Auswertung!$J$3:$J$17, $E64,Auswertung!$R$3:$R$17, ">="&Z31)=0,"-",_xlfn.MINIFS(Auswertung!$F$3:$F$17,Auswertung!$J$3:$J$17, $E64,Auswertung!$R$3:$R$17, ">="&Z31)) -> 5 | AA64: =Z64 -> 5 | AB64: =IF(_xlfn.MINIFS(Auswertung!$F$3:$F$17,Auswertung!$J$3:$J$17, $E64,Auswertung!$R$3:$R$17, ">="&AB31)=0,"-",_xlfn.MINIFS(Auswertung!$F$3:$F$17,Auswertung!$J$3:$J$17, $E64,Auswertung!$R$3:$R$17, ">="&AB31)) -> 5 | AC64: =AB64 -> 5 | AD64: =IF(_xlfn.MINIFS(Auswertung!$F$3:$F$17,Auswertung!$J$3:$J$17, $E64,Auswertung!$R$3:$R$17, ">="&AD31)=0,"-",_xlfn.MINIFS(Auswertung!$F$3:$F$17,Auswertung!$J$3:$J$17, $E64,Auswertung!$R$3:$R$17, ">="&AD31)) -> 5 | AE64: =AD64 -> 5 | AF64: =IF(_xlfn.MINIFS(Auswertung!$F$3:$F$17,Auswertung!$J$3:$J$17, $E64,Auswertung!$R$3:$R$17, ">="&AF31)=0,"-",_xlfn.MINIFS(Auswertung!$F$3:$F$17,Auswertung!$J$3:$J$17, $E64,Auswertung!$R$3:$R$17, ">="&AF31)) -> 6 | AG64: =AF64 -> 6 | AH64: =IF(_xlfn.MINIFS(Auswertung!$F$3:$F$17,Auswertung!$J$3:$J$17, $E64,Auswertung!$R$3:$R$17, ">="&AH31)=0,"-",_xlfn.MINIFS(Auswertung!$F$3:$F$17,Auswertung!$J$3:$J$17, $E64,Auswertung!$R$3:$R$17, ">="&AH31)) -> 6 | AI64: 6 | AN64: 2000 | AO64: - | AP64: 2500 | AQ64: 595 | AR64: 565 | AS64: 595 | AT64: 565 | AU64: 595 | AV64: 565 | AW64: 595 | AX64: 565 | AY64: 595 | AZ64: 565 | BA64: 595 | BB64: 565 | BC64: 595 | BD64: 565 | BE64: 595 | BF64: 565 | BG64: 595 | BH64: 565 | BI64: 476 | BJ64: 452 | BK64: 595 | BL64: 565 | BM64: 595 | BN64: 565 | BO64: 595 | BP64: 565 | BQ64: 476 | BR64: 452 | BS64: 476 | BT64: 452
C65: 2500 | D65: - | E65: 3050 | F65: =IF(_xlfn.MINIFS(Auswertung!$F$3:$F$17,Auswertung!$J$3:$J$17, $E65,Auswertung!$R$3:$R$17, ">="&F32)=0,"-",_xlfn.MINIFS(Auswertung!$F$3:$F$17,Auswertung!$J$3:$J$17, $E65,Auswertung!$R$3:$R$17, ">="&F32)) -> 5 | G65: 5 | H65: =IF(_xlfn.MINIFS(Auswertung!$F$3:$F$17,Auswertung!$J$3:$J$17, $E65,Auswertung!$R$3:$R$17, ">="&H32)=0,"-",_xlfn.MINIFS(Auswertung!$F$3:$F$17,Auswertung!$J$3:$J$17, $E65,Auswertung!$R$3:$R$17, ">="&H32)) -> 5 | I65: =H65 -> 5 | J65: =IF(_xlfn.MINIFS(Auswertung!$F$3:$F$17,Auswertung!$J$3:$J$17, $E65,Auswertung!$R$3:$R$17, ">="&J32)=0,"-",_xlfn.MINIFS(Auswertung!$F$3:$F$17,Auswertung!$J$3:$J$17, $E65,Auswertung!$R$3:$R$17, ">="&J32)) -> 5 | K65: =J65 -> 5 | L65: =IF(_xlfn.MINIFS(Auswertung!$F$3:$F$17,Auswertung!$J$3:$J$17, $E65,Auswertung!$R$3:$R$17, ">="&L32)=0,"-",_xlfn.MINIFS(Auswertung!$F$3:$F$17,Auswertung!$J$3:$J$17, $E65,Auswertung!$R$3:$R$17, ">="&L32)) -> 6 | M65: =L65 -> 6 | N65: =IF(_xlfn.MINIFS(Auswertung!$F$3:$F$17,Auswertung!$J$3:$J$17, $E65,Auswertung!$R$3:$R$17, ">="&N32)=0,"-",_xlfn.MINIFS(Auswertung!$F$3:$F$17,Auswertung!$J$3:$J$17, $E65,Auswertung!$R$3:$R$17, ">="&N32)) -> 6 | O65: =N65 -> 6 | P65: =IF(_xlfn.MINIFS(Auswertung!$F$3:$F$17,Auswertung!$J$3:$J$17, $E65,Auswertung!$R$3:$R$17, ">="&P32)=0,"-",_xlfn.MINIFS(Auswertung!$F$3:$F$17,Auswertung!$J$3:$J$17, $E65,Auswertung!$R$3:$R$17, ">="&P32)) -> 5 | Q65: =P65 -> 5 | R65: =IF(_xlfn.MINIFS(Auswertung!$F$3:$F$17,Auswertung!$J$3:$J$17, $E65,Auswertung!$R$3:$R$17, ">="&R32)=0,"-",_xlfn.MINIFS(Auswertung!$F$3:$F$17,Auswertung!$J$3:$J$17, $E65,Auswertung!$R$3:$R$17, ">="&R32)) -> 6 | S65: =R65 -> 6 | T65: =IF(_xlfn.MINIFS(Auswertung!$F$3:$F$17,Auswertung!$J$3:$J$17, $E65,Auswertung!$R$3:$R$17, ">="&T32)=0,"-",_xlfn.MINIFS(Auswertung!$F$3:$F$17,Auswertung!$J$3:$J$17, $E65,Auswertung!$R$3:$R$17, ">="&T32)) -> 6 | U65: =T65 -> 6 | V65: =IF(_xlfn.MINIFS(Auswertung!$F$3:$F$17,Auswertung!$J$3:$J$17, $E65,Auswertung!$R$3:$R$17, ">="&V32)=0,"-",_xlfn.MINIFS(Auswertung!$F$3:$F$17,Auswertung!$J$3:$J$17, $E65,Auswertung!$R$3:$R$17, ">="&V32)) -> 6 | W65: =V65 -> 6 | X65: =IF(_xlfn.MINIFS(Auswertung!$F$3:$F$17,Auswertung!$J$3:$J$17, $E65,Auswertung!$R$3:$R$17, ">="&X32)=0,"-",_xlfn.MINIFS(Auswertung!$F$3:$F$17,Auswertung!$J$3:$J$17, $E65,Auswertung!$R$3:$R$17, ">="&X32)) -> 7 | Y65: =X65 -> 7 | Z65: =IF(_xlfn.MINIFS(Auswertung!$F$3:$F$17,Auswertung!$J$3:$J$17, $E65,Auswertung!$R$3:$R$17, ">="&Z32)=0,"-",_xlfn.MINIFS(Auswertung!$F$3:$F$17,Auswertung!$J$3:$J$17, $E65,Auswertung!$R$3:$R$17, ">="&Z32)) -> 6 | AA65: =Z65 -> 6 | AB65: =IF(_xlfn.MINIFS(Auswertung!$F$3:$F$17,Auswertung!$J$3:$J$17, $E65,Auswertung!$R$3:$R$17, ">="&AB32)=0,"-",_xlfn.MINIFS(Auswertung!$F$3:$F$17,Auswertung!$J$3:$J$17, $E65,Auswertung!$R$3:$R$17, ">="&AB32)) -> 6 | AC65: =AB65 -> 6 | AD65: =IF(_xlfn.MINIFS(Auswertung!$F$3:$F$17,Auswertung!$J$3:$J$17, $E65,Auswertung!$R$3:$R$17, ">="&AD32)=0,"-",_xlfn.MINIFS(Auswertung!$F$3:$F$17,Auswertung!$J$3:$J$17, $E65,Auswertung!$R$3:$R$17, ">="&AD32)) -> 6 | AE65: =AD65 -> 6 | AF65: =IF(_xlfn.MINIFS(Auswertung!$F$3:$F$17,Auswertung!$J$3:$J$17, $E65,Auswertung!$R$3:$R$17, ">="&AF32)=0,"-",_xlfn.MINIFS(Auswertung!$F$3:$F$17,Auswertung!$J$3:$J$17, $E65,Auswertung!$R$3:$R$17, ">="&AF32)) -> 7 | AG65: =AF65 -> 7 | AH65: =IF(_xlfn.MINIFS(Auswertung!$F$3:$F$17,Auswertung!$J$3:$J$17, $E65,Auswertung!$R$3:$R$17, ">="&AH32)=0,"-",_xlfn.MINIFS(Auswertung!$F$3:$F$17,Auswertung!$J$3:$J$17, $E65,Auswertung!$R$3:$R$17, ">="&AH32)) -> 7 | AI65: 7 | AN65: 2500 | AO65: - | AP65: 3050 | AQ65: 733 | AR65: 703 | AS65: 733 | AT65: 703 | AU65: 733 | AV65: 703 | AW65: 586 | AX65: 562 | AY65: 586 | AZ65: 562 | BA65: 733 | BB65: 703 | BC65: 586 | BD65: 562 | BE65: 586 | BF65: 562 | BG65: 586 | BH65: 562 | BI65: 488 | BJ65: 468 | BK65: 586 | BL65: 562 | BM65: 586 | BN65: 562 | BO65: 586 | BP65: 562 | BQ65: 488 | BR65: 468 | BS65: 488 | BT65: 468
B67: Tabelle 2 | C67: 8mm Largo EF-x-40-x-Nieten | AM67: =B67&".1" -> Tabelle 2.1 | AO67: =C67 -> 8mm Largo EF-x-40-x-Nieten
B68: Anzahl Verbindungsmittel | AM68: Maximale Verbindungsmittelabstände
B71: Staudruck [kN/m2] | F71: =F38 -> 0.9 | P71: =P38 -> 1.1 | Z71: =Z38 -> 1.3 | AM71: Staudruck [kN/m2] | AQ71: =F71 -> 0.9 | BA71: =P71 -> 1.1 | BK71: =Z71 -> 1.3
B72: Gebäudehöhe bis [m] | F72: < | G72: =G39 -> 11 | H72: < | I72: =I39 -> 15 | J72: < | K72: =K39 -> 25 | L72: < | M72: =M39 -> 30 | N72: < | O72: =O39 -> 50 | P72: < | Q72: =Q39 -> 11 | R72: < | S72: =S39 -> 15 | T72: < | U72: =U39 -> 25 | V72: < | W72: =W39 -> 30 | X72: < | Y72: =Y39 -> 50 | Z72: < | AA72: =AA39 -> 11 | AB72: < | AC72: =AC39 -> 15 | AD72: < | AE72: =AE39 -> 25 | AF72: < | AG72: =AG39 -> 30 | AH72: < | AI72: =AI39 -> 50 | AM72: Gebäudehöhe bis [m] | AQ72: < | AR72: =G72 -> 11 | AS72: < | AT72: =I72 -> 15 | AU72: < | AV72: =K72 -> 25 | AW72: < | AX72: =M72 -> 30 | AY72: < | AZ72: =O72 -> 50 | BA72: < | BB72: =Q72 -> 11 | BC72: < | BD72: =S72 -> 15 | BE72: < | BF72: =U72 -> 25 | BG72: < | BH72: =W72 -> 30 | BI72: < | BJ72: =Y72 -> 50 | BK72: < | BL72: =AA72 -> 11 | BM72: < | BN72: =AC72 -> 15 | BO72: < | BP72: =AE72 -> 25 | BQ72: < | BR72: =AG72 -> 30 | BS72: < | BT72: =AI72 -> 50
B73: Gelände-kategorie | C73: Plattenhöhe [mm] | F73: Anzahl Befestigungspunkte/ Anzahl Eckverbinder | Z73: Mit cpe,Rand = | AD73: =AD40 -> 0.8/-1.3 | AM73: Gelände-kategorie | AN73: Plattenhöhe [mm] | AQ73: Maximale Befestigungsmittelabstände d2/d3 [mm] | BK73: Mit cpe,Rand = | BO73: =AD73 -> 0.8/-1.3
B75: II: Seeufer | C75: 340 | D75: - | E75: 500 | F75: =IF(_xlfn.MINIFS(Auswertung!$F$3:$F$17,Auswertung!$J$3:$J$17, $E75,Auswertung!$S$3:$S$17, ">="&F9)=0,"-",_xlfn.MINIFS(Auswertung!$F$3:$F$17,Auswertung!$J$3:$J$17, $E75,Auswertung!$S$3:$S$17, ">="&F9)) -> 2 | G75: =F75 -> 2 | H75: =IF(_xlfn.MINIFS(Auswertung!$F$3:$F$17,Auswertung!$J$3:$J$17, $E75,Auswertung!$S$3:$S$17, ">="&H9)=0,"-",_xlfn.MINIFS(Auswertung!$F$3:$F$17,Auswertung!$J$3:$J$17, $E75,Auswertung!$S$3:$S$17, ">="&H9)) -> 2 | I75: =H75 -> 2 | J75: =IF(_xlfn.MINIFS(Auswertung!$F$3:$F$17,Auswertung!$J$3:$J$17, $E75,Auswertung!$S$3:$S$17, ">="&J9)=0,"-",_xlfn.MINIFS(Auswertung!$F$3:$F$17,Auswertung!$J$3:$J$17, $E75,Auswertung!$S$3:$S$17, ">="&J9)) -> 2 | K75: =J75 -> 2 | L75: =IF(_xlfn.MINIFS(Auswertung!$F$3:$F$17,Auswertung!$J$3:$J$17, $E75,Auswertung!$S$3:$S$17, ">="&L9)=0,"-",_xlfn.MINIFS(Auswertung!$F$3:$F$17,Auswertung!$J$3:$J$17, $E75,Auswertung!$S$3:$S$17, ">="&L9)) -> 2 | M75: =L75 -> 2 | N75: =IF(_xlfn.MINIFS(Auswertung!$F$3:$F$17,Auswertung!$J$3:$J$17, $E75,Auswertung!$S$3:$S$17, ">="&N9)=0,"-",_xlfn.MINIFS(Auswertung!$F$3:$F$17,Auswertung!$J$3:$J$17, $E75,Auswertung!$S$3:$S$17, ">="&N9)) -> 2 | O75: =N75 -> 2 | P75: =IF(_xlfn.MINIFS(Auswertung!$F$3:$F$17,Auswertung!$J$3:$J$17, $E75,Auswertung!$S$3:$S$17, ">="&P9)=0,"-",_xlfn.MINIFS(Auswertung!$F$3:$F$17,Auswertung!$J$3:$J$17, $E75,Auswertung!$S$3:$S$17, ">="&P9)) -> 2 | Q75: =P75 -> 2 | R75: =IF(_xlfn.MINIFS(Auswertung!$F$3:$F$17,Auswertung!$J$3:$J$17, $E75,Auswertung!$S$3:$S$17, ">="&R9)=0,"-",_xlfn.MINIFS(Auswertung!$F$3:$F$17,Auswertung!$J$3:$J$17, $E75,Auswertung!$S$3:$S$17, ">="&R9)) -> 2 | S75: =R75 -> 2 | T75: =IF(_xlfn.MINIFS(Auswertung!$F$3:$F$17,Auswertung!$J$3:$J$17, $E75,Auswertung!$S$3:$S$17, ">="&T9)=0,"-",_xlfn.MINIFS(Auswertung!$F$3:$F$17,Auswertung!$J$3:$J$17, $E75,Auswertung!$S$3:$S$17, ">="&T9)) -> 2 | U75: =T75 -> 2 | V75: =IF(_xlfn.MINIFS(Auswertung!$F$3:$F$17,Auswertung!$J$3:$J$17, $E75,Auswertung!$S$3:$S$17, ">="&V9)=0,"-",_xlfn.MINIFS(Auswertung!$F$3:$F$17,Auswertung!$J$3:$J$17, $E75,Auswertung!$S$3:$S$17, ">="&V9)) -> - | W75: =V75 -> - | X75: =IF(_xlfn.MINIFS(Auswertung!$F$3:$F$17,Auswertung!$J$3:$J$17, $E75,Auswertung!$S$3:$S$17, ">="&X9)=0,"-",_xlfn.MINIFS(Auswertung!$F$3:$F$17,Auswertung!$J$3:$J$17, $E75,Auswertung!$S$3:$S$17, ">="&X9)) -> - | Y75: =X75 -> - | Z75: =IF(_xlfn.MINIFS(Auswertung!$F$3:$F$17,Auswertung!$J$3:$J$17, $E75,Auswertung!$S$3:$S$17, ">="&Z9)=0,"-",_xlfn.MINIFS(Auswertung!$F$3:$F$17,Auswertung!$J$3:$J$17, $E75,Auswertung!$S$3:$S$17, ">="&Z9)) -> 2 | AA75: =Z75 -> 2 | AB75: =IF(_xlfn.MINIFS(Auswertung!$F$3:$F$17,Auswertung!$J$3:$J$17, $E75,Auswertung!$S$3:$S$17, ">="&AB9)=0,"-",_xlfn.MINIFS(Auswertung!$F$3:$F$17,Auswertung!$J$3:$J$17, $E75,Auswertung!$S$3:$S$17, ">="&AB9)) -> - | AC75: =AB75 -> - | AD75: =IF(_xlfn.MINIFS(Auswertung!$F$3:$F$17,Auswertung!$J$3:$J$17, $E75,Auswertung!$S$3:$S$17, ">="&AD9)=0,"-",_xlfn.MINIFS(Auswertung!$F$3:$F$17,Auswertung!$J$3:$J$17, $E75,Auswertung!$S$3:$S$17, ">="&AD9)) -> - | AE75: =AD75 -> - | AF75: =IF(_xlfn.MINIFS(Auswertung!$F$3:$F$17,Auswertung!$J$3:$J$17, $E75,Auswertung!$S$3:$S$17, ">="&AF9)=0,"-",_xlfn.MINIFS(Auswertung!$F$3:$F$17,Auswertung!$J$3:$J$17, $E75,Auswertung!$S$3:$S$17, ">="&AF9)) -> - | AG75: =AF75 -> - | AH75: =IF(_xlfn.MINIFS(Auswertung!$F$3:$F$17,Auswertung!$J$3:$J$17, $E75,Auswertung!$S$3:$S$17, ">="&AH9)=0,"-",_xlfn.MINIFS(Auswertung!$F$3:$F$17,Auswertung!$J$3:$J$17, $E75,Auswertung!$S$3:$S$17, ">="&AH9)) -> - | AI75: =AH75 -> - | AM75: II: Seeufer | AN75: 340 | AO75: - | AP75: 500 | AQ75: =IFERROR(($AP75-2*60)/(F75-1),"-") -> 380 | AR75: =IFERROR(($AP75-2*120)/(F75-1),"-") -> 260 | AS75: =IFERROR(($AP75-2*60)/(H75-1),"-") -> 380 | AT75: =IFERROR(($AP75-2*120)/(H75-1),"-") -> 260 | AU75: =IFERROR(($AP75-2*60)/(J75-1),"-") -> 380 | AV75: =IFERROR(($AP75-2*120)/(J75-1),"-") -> 260 | AW75: =IFERROR(($AP75-2*60)/(L75-1),"-") -> 380 | AX75: =IFERROR(($AP75-2*120)/(L75-1),"-") -> 260 | AY75: =IFERROR(($AP75-2*60)/(N75-1),"-") -> 380 | AZ75: =IFERROR(($AP75-2*120)/(N75-1),"-") -> 260 | BA75: =IFERROR(($AP75-2*60)/(P75-1),"-") -> 380 | BB75: =IFERROR(($AP75-2*120)/(P75-1),"-") -> 260 | BC75: =IFERROR(($AP75-2*60)/(R75-1),"-") -> 380 | BD75: =IFERROR(($AP75-2*120)/(R75-1),"-") -> 260 | BE75: =IFERROR(($AP75-2*60)/(T75-1),"-") -> 380 | BF75: =IFERROR(($AP75-2*120)/(T75-1),"-") -> 260 | BG75: =IFERROR(($AP75-2*60)/(V75-1),"-") -> - | BH75: =IFERROR(($AP75-2*120)/(V75-1),"-") -> - | BI75: =IFERROR(($AP75-2*60)/(X75-1),"-") -> - | BJ75: =IFERROR(($AP75-2*120)/(X75-1),"-") -> - | BK75: =IFERROR(($AP75-2*60)/(Z75-1),"-") -> 380 | BL75: =IFERROR(($AP75-2*120)/(Z75-1),"-") -> 260 | BM75: =IFERROR(($AP75-2*60)/(AB75-1),"-") -> - | BN75: =IFERROR(($AP75-2*120)/(AB75-1),"-") -> - | BO75: =IFERROR(($AP75-2*60)/(AD75-1),"-") -> - | BP75: =IFERROR(($AP75-2*120)/(AD75-1),"-") -> - | BQ75: =IFERROR(($AP75-2*60)/(AF75-1),"-") -> - | BR75: =IFERROR(($AP75-2*120)/(AF75-1),"-") -> - | BS75: =IFERROR(($AP75-2*60)/(AH75-1),"-") -> - | BT75: =IFERROR(($AP75-2*120)/(AH75-1),"-") -> -
C76: 500 | D76: - | E76: 1000 | F76: =IF(_xlfn.MINIFS(Auswertung!$F$3:$F$17,Auswertung!$J$3:$J$17, $E76,Auswertung!$S$3:$S$17, ">="&F10)=0,"-",_xlfn.MINIFS(Auswertung!$F$3:$F$17,Auswertung!$J$3:$J$17, $E76,Auswertung!$S$3:$S$17, ">="&F10)) -> 3 | G76: =F76 -> 3 | H76: =IF(_xlfn.MINIFS(Auswertung!$F$3:$F$17,Auswertung!$J$3:$J$17, $E76,Auswertung!$S$3:$S$17, ">="&H10)=0,"-",_xlfn.MINIFS(Auswertung!$F$3:$F$17,Auswertung!$J$3:$J$17, $E76,Auswertung!$S$3:$S$17, ">="&H10)) -> 3 | I76: =H76 -> 3 | J76: =IF(_xlfn.MINIFS(Auswertung!$F$3:$F$17,Auswertung!$J$3:$J$17, $E76,Auswertung!$S$3:$S$17, ">="&J10)=0,"-",_xlfn.MINIFS(Auswertung!$F$3:$F$17,Auswertung!$J$3:$J$17, $E76,Auswertung!$S$3:$S$17, ">="&J10)) -> 3 | K76: =J76 -> 3 | L76: =IF(_xlfn.MINIFS(Auswertung!$F$3:$F$17,Auswertung!$J$3:$J$17, $E76,Auswertung!$S$3:$S$17, ">="&L10)=0,"-",_xlfn.MINIFS(Auswertung!$F$3:$F$17,Auswertung!$J$3:$J$17, $E76,Auswertung!$S$3:$S$17, ">="&L10)) -> 3 | M76: =L76 -> 3 | N76: =IF(_xlfn.MINIFS(Auswertung!$F$3:$F$17,Auswertung!$J$3:$J$17, $E76,Auswertung!$S$3:$S$17, ">="&N10)=0,"-",_xlfn.MINIFS(Auswertung!$F$3:$F$17,Auswertung!$J$3:$J$17, $E76,Auswertung!$S$3:$S$17, ">="&N10)) -> 3 | O76: =N76 -> 3 | P76: =IF(_xlfn.MINIFS(Auswertung!$F$3:$F$17,Auswertung!$J$3:$J$17, $E76,Auswertung!$S$3:$S$17, ">="&P10)=0,"-",_xlfn.MINIFS(Auswertung!$F$3:$F$17,Auswertung!$J$3:$J$17, $E76,Auswertung!$S$3:$S$17, ">="&P10)) -> 3 | Q76: =P76 -> 3 | R76: =IF(_xlfn.MINIFS(Auswertung!$F$3:$F$17,Auswertung!$J$3:$J$17, $E76,Auswertung!$S$3:$S$17, ">="&R10)=0,"-",_xlfn.MINIFS(Auswertung!$F$3:$F$17,Auswertung!$J$3:$J$17, $E76,Auswertung!$S$3:$S$17, ">="&R10)) -> 3 | S76: =R76 -> 3 | T76: =IF(_xlfn.MINIFS(Auswertung!$F$3:$F$17,Auswertung!$J$3:$J$17, $E76,Auswertung!$S$3:$S$17, ">="&T10)=0,"-",_xlfn.MINIFS(Auswertung!$F$3:$F$17,Auswertung!$J$3:$J$17, $E76,Auswertung!$S$3:$S$17, ">="&T10)) -> - | U76: =T76 -> - | V76: =IF(_xlfn.MINIFS(Auswertung!$F$3:$F$17,Auswertung!$J$3:$J$17, $E76,Auswertung!$S$3:$S$17, ">="&V10)=0,"-",_xlfn.MINIFS(Auswertung!$F$3:$F$17,Auswertung!$J$3:$J$17, $E76,Auswertung!$S$3:$S$17, ">="&V10)) -> - | W76: =V76 -> - | X76: =IF(_xlfn.MINIFS(Auswertung!$F$3:$F$17,Auswertung!$J$3:$J$17, $E76,Auswertung!$S$3:$S$17, ">="&X10)=0,"-",_xlfn.MINIFS(Auswertung!$F$3:$F$17,Auswertung!$J$3:$J$17, $E76,Auswertung!$S$3:$S$17, ">="&X10)) -> - | Y76: =X76 -> - | Z76: =IF(_xlfn.MINIFS(Auswertung!$F$3:$F$17,Auswertung!$J$3:$J$17, $E76,Auswertung!$S$3:$S$17, ">="&Z10)=0,"-",_xlfn.MINIFS(Auswertung!$F$3:$F$17,Auswertung!$J$3:$J$17, $E76,Auswertung!$S$3:$S$17, ">="&Z10)) -> - | AA76: =Z76 -> - | AB76: =IF(_xlfn.MINIFS(Auswertung!$F$3:$F$17,Auswertung!$J$3:$J$17, $E76,Auswertung!$S$3:$S$17, ">="&AB10)=0,"-",_xlfn.MINIFS(Auswertung!$F$3:$F$17,Auswertung!$J$3:$J$17, $E76,Auswertung!$S$3:$S$17, ">="&AB10)) -> - | AC76: =AB76 -> - | AD76: =IF(_xlfn.MINIFS(Auswertung!$F$3:$F$17,Auswertung!$J$3:$J$17, $E76,Auswertung!$S$3:$S$17, ">="&AD10)=0,"-",_xlfn.MINIFS(Auswertung!$F$3:$F$17,Auswertung!$J$3:$J$17, $E76,Auswertung!$S$3:$S$17, ">="&AD10)) -> - | AE76: =AD76 -> - | AF76: =IF(_xlfn.MINIFS(Auswertung!$F$3:$F$17,Auswertung!$J$3:$J$17, $E76,Auswertung!$S$3:$S$17, ">="&AF10)=0,"-",_xlfn.MINIFS(Auswertung!$F$3:$F$17,Auswertung!$J$3:$J$17, $E76,Auswertung!$S$3:$S$17, ">="&AF10)) -> - | AG76: =AF76 -> - | AH76: =IF(_xlfn.MINIFS(Auswertung!$F$3:$F$17,Auswertung!$J$3:$J$17, $E76,Auswertung!$S$3:$S$17, ">="&AH10)=0,"-",_xlfn.MINIFS(Auswertung!$F$3:$F$17,Auswertung!$J$3:$J$17, $E76,Auswertung!$S$3:$S$17, ">="&AH10)) -> - | AI76: - | AN76: 500 | AO76: - | AP76: 1000 | AQ76: =IFERROR(($AP76-2*60)/(F76-1),"-") -> 440 | AR76: =IFERROR(($AP76-2*120)/(F76-1),"-") -> 380 | AS76: 440 | AT76: 380 | AU76: 440 | AV76: 380 | AW76: 440 | AX76: 380 | AY76: 440 | AZ76: 380 | BA76: 440 | BB76: 380 | BC76: 440 | BD76: 380 | BE76: - | BF76: - | BG76: - | BH76: - | BI76: - | BJ76: - | BK76: - | BL76: - | BM76: - | BN76: - | BO76: - | BP76: - | BQ76: - | BR76: - | BS76: - | BT76: -
C77: 1000 | D77: - | E77: 1500 | F77: =IF(_xlfn.MINIFS(Auswertung!$F$3:$F$17,Auswertung!$J$3:$J$17, $E77,Auswertung!$S$3:$S$17, ">="&F11)=0,"-",_xlfn.MINIFS(Auswertung!$F$3:$F$17,Auswertung!$J$3:$J$17, $E77,Auswertung!$S$3:$S$17, ">="&F11)) -> 4 | G77: 4 | H77: =IF(_xlfn.MINIFS(Auswertung!$F$3:$F$17,Auswertung!$J$3:$J$17, $E77,Auswertung!$S$3:$S$17, ">="&H11)=0,"-",_xlfn.MINIFS(Auswertung!$F$3:$F$17,Auswertung!$J$3:$J$17, $E77,Auswertung!$S$3:$S$17, ">="&H11)) -> 4 | I77: =H77 -> 4 | J77: =IF(_xlfn.MINIFS(Auswertung!$F$3:$F$17,Auswertung!$J$3:$J$17, $E77,Auswertung!$S$3:$S$17, ">="&J11)=0,"-",_xlfn.MINIFS(Auswertung!$F$3:$F$17,Auswertung!$J$3:$J$17, $E77,Auswertung!$S$3:$S$17, ">="&J11)) -> 4 | K77: =J77 -> 4 | L77: =IF(_xlfn.MINIFS(Auswertung!$F$3:$F$17,Auswertung!$J$3:$J$17, $E77,Auswertung!$S$3:$S$17, ">="&L11)=0,"-",_xlfn.MINIFS(Auswertung!$F$3:$F$17,Auswertung!$J$3:$J$17, $E77,Auswertung!$S$3:$S$17, ">="&L11)) -> 4 | M77: =L77 -> 4 | N77: =IF(_xlfn.MINIFS(Auswertung!$F$3:$F$17,Auswertung!$J$3:$J$17, $E77,Auswertung!$S$3:$S$17, ">="&N11)=0,"-",_xlfn.MINIFS(Auswertung!$F$3:$F$17,Auswertung!$J$3:$J$17, $E77,Auswertung!$S$3:$S$17, ">="&N11)) -> 4 | O77: =N77 -> 4 | P77: =IF(_xlfn.MINIFS(Auswertung!$F$3:$F$17,Auswertung!$J$3:$J$17, $E77,Auswertung!$S$3:$S$17, ">="&P11)=0,"-",_xlfn.MINIFS(Auswertung!$F$3:$F$17,Auswertung!$J$3:$J$17, $E77,Auswertung!$S$3:$S$17, ">="&P11)) -> 4 | Q77: =P77 -> 4 | R77: =IF(_xlfn.MINIFS(Auswertung!$F$3:$F$17,Auswertung!$J$3:$J$17, $E77,Auswertung!$S$3:$S$17, ">="&R11)=0,"-",_xlfn.MINIFS(Auswertung!$F$3:$F$17,Auswertung!$J$3:$J$17, $E77,Auswertung!$S$3:$S$17, ">="&R11)) -> 4 | S77: =R77 -> 4 | T77: =IF(_xlfn.MINIFS(Auswertung!$F$3:$F$17,Auswertung!$J$3:$J$17, $E77,Auswertung!$S$3:$S$17, ">="&T11)=0,"-",_xlfn.MINIFS(Auswertung!$F$3:$F$17,Auswertung!$J$3:$J$17, $E77,Auswertung!$S$3:$S$17, ">="&T11)) -> - | U77: =T77 -> - | V77: =IF(_xlfn.MINIFS(Auswertung!$F$3:$F$17,Auswertung!$J$3:$J$17, $E77,Auswertung!$S$3:$S$17, ">="&V11)=0,"-",_xlfn.MINIFS(Auswertung!$F$3:$F$17,Auswertung!$J$3:$J$17, $E77,Auswertung!$S$3:$S$17, ">="&V11)) -> - | W77: =V77 -> - | X77: =IF(_xlfn.MINIFS(Auswertung!$F$3:$F$17,Auswertung!$J$3:$J$17, $E77,Auswertung!$S$3:$S$17, ">="&X11)=0,"-",_xlfn.MINIFS(Auswertung!$F$3:$F$17,Auswertung!$J$3:$J$17, $E77,Auswertung!$S$3:$S$17, ">="&X11)) -> - | Y77: =X77 -> - | Z77: =IF(_xlfn.MINIFS(Auswertung!$F$3:$F$17,Auswertung!$J$3:$J$17, $E77,Auswertung!$S$3:$S$17, ">="&Z11)=0,"-",_xlfn.MINIFS(Auswertung!$F$3:$F$17,Auswertung!$J$3:$J$17, $E77,Auswertung!$S$3:$S$17, ">="&Z11)) -> - | AA77: =Z77 -> - | AB77: =IF(_xlfn.MINIFS(Auswertung!$F$3:$F$17,Auswertung!$J$3:$J$17, $E77,Auswertung!$S$3:$S$17, ">="&AB11)=0,"-",_xlfn.MINIFS(Auswertung!$F$3:$F$17,Auswertung!$J$3:$J$17, $E77,Auswertung!$S$3:$S$17, ">="&AB11)) -> - | AC77: =AB77 -> - | AD77: =IF(_xlfn.MINIFS(Auswertung!$F$3:$F$17,Auswertung!$J$3:$J$17, $E77,Auswertung!$S$3:$S$17, ">="&AD11)=0,"-",_xlfn.MINIFS(Auswertung!$F$3:$F$17,Auswertung!$J$3:$J$17, $E77,Auswertung!$S$3:$S$17, ">="&AD11)) -> - | AE77: =AD77 -> - | AF77: =IF(_xlfn.MINIFS(Auswertung!$F$3:$F$17,Auswertung!$J$3:$J$17, $E77,Auswertung!$S$3:$S$17, ">="&AF11)=0,"-",_xlfn.MINIFS(Auswertung!$F$3:$F$17,Auswertung!$J$3:$J$17, $E77,Auswertung!$S$3:$S$17, ">="&AF11)) -> - | AG77: =AF77 -> - | AH77: =IF(_xlfn.MINIFS(Auswertung!$F$3:$F$17,Auswertung!$J$3:$J$17, $E77,Auswertung!$S$3:$S$17, ">="&AH11)=0,"-",_xlfn.MINIFS(Auswertung!$F$3:$F$17,Auswertung!$J$3:$J$17, $E77,Auswertung!$S$3:$S$17, ">="&AH11)) -> - | AI77: - | AN77: 1000 | AO77: - | AP77: 1500 | AQ77: 460 | AR77: 420 | AS77: 460 | AT77: 420 | AU77: 460 | AV77: 420 | AW77: 460 | AX77: 420 | AY77: 460 | AZ77: 420 | BA77: 460 | BB77: 420 | BC77: 460 | BD77: 420 | BE77: - | BF77: - | BG77: - | BH77: - | BI77: - | BJ77: - | BK77: - | BL77: - | BM77: - | BN77: - | BO77: - | BP77: - | BQ77: - | BR77: - | BS77: - | BT77: -
C78: 1500 | D78: - | E78: 2000 | F78: =IF(_xlfn.MINIFS(Auswertung!$F$3:$F$17,Auswertung!$J$3:$J$17, $E78,Auswertung!$S$3:$S$17, ">="&F12)=0,"-",_xlfn.MINIFS(Auswertung!$F$3:$F$17,Auswertung!$J$3:$J$17, $E78,Auswertung!$S$3:$S$17, ">="&F12)) -> 5 | G78: 5 | H78: =IF(_xlfn.MINIFS(Auswertung!$F$3:$F$17,Auswertung!$J$3:$J$17, $E78,Auswertung!$S$3:$S$17, ">="&H12)=0,"-",_xlfn.MINIFS(Auswertung!$F$3:$F$17,Auswertung!$J$3:$J$17, $E78,Auswertung!$S$3:$S$17, ">="&H12)) -> 5 | I78: =H78 -> 5 | J78: =IF(_xlfn.MINIFS(Auswertung!$F$3:$F$17,Auswertung!$J$3:$J$17, $E78,Auswertung!$S$3:$S$17, ">="&J12)=0,"-",_xlfn.MINIFS(Auswertung!$F$3:$F$17,Auswertung!$J$3:$J$17, $E78,Auswertung!$S$3:$S$17, ">="&J12)) -> 5 | K78: =J78 -> 5 | L78: =IF(_xlfn.MINIFS(Auswertung!$F$3:$F$17,Auswertung!$J$3:$J$17, $E78,Auswertung!$S$3:$S$17, ">="&L12)=0,"-",_xlfn.MINIFS(Auswertung!$F$3:$F$17,Auswertung!$J$3:$J$17, $E78,Auswertung!$S$3:$S$17, ">="&L12)) -> 5 | M78: =L78 -> 5 | N78: =IF(_xlfn.MINIFS(Auswertung!$F$3:$F$17,Auswertung!$J$3:$J$17, $E78,Auswertung!$S$3:$S$17, ">="&N12)=0,"-",_xlfn.MINIFS(Auswertung!$F$3:$F$17,Auswertung!$J$3:$J$17, $E78,Auswertung!$S$3:$S$17, ">="&N12)) -> 6 | O78: =N78 -> 6 | P78: =IF(_xlfn.MINIFS(Auswertung!$F$3:$F$17,Auswertung!$J$3:$J$17, $E78,Auswertung!$S$3:$S$17, ">="&P12)=0,"-",_xlfn.MINIFS(Auswertung!$F$3:$F$17,Auswertung!$J$3:$J$17, $E78,Auswertung!$S$3:$S$17, ">="&P12)) -> 5 | Q78: =P78 -> 5 | R78: =IF(_xlfn.MINIFS(Auswertung!$F$3:$F$17,Auswertung!$J$3:$J$17, $E78,Auswertung!$S$3:$S$17, ">="&R12)=0,"-",_xlfn.MINIFS(Auswertung!$F$3:$F$17,Auswertung!$J$3:$J$17, $E78,Auswertung!$S$3:$S$17, ">="&R12)) -> 5 | S78: =R78 -> 5 | T78: =IF(_xlfn.MINIFS(Auswertung!$F$3:$F$17,Auswertung!$J$3:$J$17, $E78,Auswertung!$S$3:$S$17, ">="&T12)=0,"-",_xlfn.MINIFS(Auswertung!$F$3:$F$17,Auswertung!$J$3:$J$17, $E78,Auswertung!$S$3:$S$17, ">="&T12)) -> 6 | U78: =T78 -> 6 | V78: =IF(_xlfn.MINIFS(Auswertung!$F$3:$F$17,Auswertung!$J$3:$J$17, $E78,Auswertung!$S$3:$S$17, ">="&V12)=0,"-",_xlfn.MINIFS(Auswertung!$F$3:$F$17,Auswertung!$J$3:$J$17, $E78,Auswertung!$S$3:$S$17, ">="&V12)) -> - | W78: =V78 -> - | X78: =IF(_xlfn.MINIFS(Auswertung!$F$3:$F$17,Auswertung!$J$3:$J$17, $E78,Auswertung!$S$3:$S$17, ">="&X12)=0,"-",_xlfn.MINIFS(Auswertung!$F$3:$F$17,Auswertung!$J$3:$J$17, $E78,Auswertung!$S$3:$S$17, ">="&X12)) -> - | Y78: =X78 -> - | Z78: =IF(_xlfn.MINIFS(Auswertung!$F$3:$F$17,Auswertung!$J$3:$J$17, $E78,Auswertung!$S$3:$S$17, ">="&Z12)=0,"-",_xlfn.MINIFS(Auswertung!$F$3:$F$17,Auswertung!$J$3:$J$17, $E78,Auswertung!$S$3:$S$17, ">="&Z12)) -> 6 | AA78: =Z78 -> 6 | AB78: =IF(_xlfn.MINIFS(Auswertung!$F$3:$F$17,Auswertung!$J$3:$J$17, $E78,Auswertung!$S$3:$S$17, ">="&AB12)=0,"-",_xlfn.MINIFS(Auswertung!$F$3:$F$17,Auswertung!$J$3:$J$17, $E78,Auswertung!$S$3:$S$17, ">="&AB12)) -> - | AC78: =AB78 -> - | AD78: =IF(_xlfn.MINIFS(Auswertung!$F$3:$F$17,Auswertung!$J$3:$J$17, $E78,Auswertung!$S$3:$S$17, ">="&AD12)=0,"-",_xlfn.MINIFS(Auswertung!$F$3:$F$17,Auswertung!$J$3:$J$17, $E78,Auswertung!$S$3:$S$17, ">="&AD12)) -> - | AE78: =AD78 -> - | AF78: =IF(_xlfn.MINIFS(Auswertung!$F$3:$F$17,Auswertung!$J$3:$J$17, $E78,Auswertung!$S$3:$S$17, ">="&AF12)=0,"-",_xlfn.MINIFS(Auswertung!$F$3:$F$17,Auswertung!$J$3:$J$17, $E78,Auswertung!$S$3:$S$17, ">="&AF12)) -> - | AG78: =AF78 -> - | AH78: =IF(_xlfn.MINIFS(Auswertung!$F$3:$F$17,Auswertung!$J$3:$J$17, $E78,Auswertung!$S$3:$S$17, ">="&AH12)=0,"-",_xlfn.MINIFS(Auswertung!$F$3:$F$17,Auswertung!$J$3:$J$17, $E78,Auswertung!$S$3:$S$17, ">="&AH12)) -> - | AI78: - | AN78: 1500 | AO78: - | AP78: 2000 | AQ78: 470 | AR78: 440 | AS78: 470 | AT78: 440 | AU78: 470 | AV78: 440 | AW78: 470 | AX78: 440 | AY78: 376 | AZ78: 352 | BA78: 470 | BB78: 440 | BC78: 470 | BD78: 440 | BE78: 376 | BF78: 352 | BG78: - | BH78: - | BI78: - | BJ78: - | BK78: 376 | BL78: 352 | BM78: - | BN78: - | BO78: - | BP78: - | BQ78: - | BR78: - | BS78: - | BT78: -
C79: 2000 | D79: - | E79: 2500 | F79: =IF(_xlfn.MINIFS(Auswertung!$F$3:$F$17,Auswertung!$J$3:$J$17, $E79,Auswertung!$S$3:$S$17, ">="&F13)=0,"-",_xlfn.MINIFS(Auswertung!$F$3:$F$17,Auswertung!$J$3:$J$17, $E79,Auswertung!$S$3:$S$17, ">="&F13)) -> 6 | G79: 6 | H79: =IF(_xlfn.MINIFS(Auswertung!$F$3:$F$17,Auswertung!$J$3:$J$17, $E79,Auswertung!$S$3:$S$17, ">="&H13)=0,"-",_xlfn.MINIFS(Auswertung!$F$3:$F$17,Auswertung!$J$3:$J$17, $E79,Auswertung!$S$3:$S$17, ">="&H13)) -> 6 | I79: =H79 -> 6 | J79: =IF(_xlfn.MINIFS(Auswertung!$F$3:$F$17,Auswertung!$J$3:$J$17, $E79,Auswertung!$S$3:$S$17, ">="&J13)=0,"-",_xlfn.MINIFS(Auswertung!$F$3:$F$17,Auswertung!$J$3:$J$17, $E79,Auswertung!$S$3:$S$17, ">="&J13)) -> 6 | K79: =J79 -> 6 | L79: =IF(_xlfn.MINIFS(Auswertung!$F$3:$F$17,Auswertung!$J$3:$J$17, $E79,Auswertung!$S$3:$S$17, ">="&L13)=0,"-",_xlfn.MINIFS(Auswertung!$F$3:$F$17,Auswertung!$J$3:$J$17, $E79,Auswertung!$S$3:$S$17, ">="&L13)) -> 6 | M79: =L79 -> 6 | N79: =IF(_xlfn.MINIFS(Auswertung!$F$3:$F$17,Auswertung!$J$3:$J$17, $E79,Auswertung!$S$3:$S$17, ">="&N13)=0,"-",_xlfn.MINIFS(Auswertung!$F$3:$F$17,Auswertung!$J$3:$J$17, $E79,Auswertung!$S$3:$S$17, ">="&N13)) -> 7 | O79: =N79 -> 7 | P79: =IF(_xlfn.MINIFS(Auswertung!$F$3:$F$17,Auswertung!$J$3:$J$17, $E79,Auswertung!$S$3:$S$17, ">="&P13)=0,"-",_xlfn.MINIFS(Auswertung!$F$3:$F$17,Auswertung!$J$3:$J$17, $E79,Auswertung!$S$3:$S$17, ">="&P13)) -> 6 | Q79: =P79 -> 6 | R79: =IF(_xlfn.MINIFS(Auswertung!$F$3:$F$17,Auswertung!$J$3:$J$17, $E79,Auswertung!$S$3:$S$17, ">="&R13)=0,"-",_xlfn.MINIFS(Auswertung!$F$3:$F$17,Auswertung!$J$3:$J$17, $E79,Auswertung!$S$3:$S$17, ">="&R13)) -> 6 | S79: =R79 -> 6 | T79: =IF(_xlfn.MINIFS(Auswertung!$F$3:$F$17,Auswertung!$J$3:$J$17, $E79,Auswertung!$S$3:$S$17, ">="&T13)=0,"-",_xlfn.MINIFS(Auswertung!$F$3:$F$17,Auswertung!$J$3:$J$17, $E79,Auswertung!$S$3:$S$17, ">="&T13)) -> 7 | U79: =T79 -> 7 | V79: =IF(_xlfn.MINIFS(Auswertung!$F$3:$F$17,Auswertung!$J$3:$J$17, $E79,Auswertung!$S$3:$S$17, ">="&V13)=0,"-",_xlfn.MINIFS(Auswertung!$F$3:$F$17,Auswertung!$J$3:$J$17, $E79,Auswertung!$S$3:$S$17, ">="&V13)) -> - | W79: =V79 -> - | X79: =IF(_xlfn.MINIFS(Auswertung!$F$3:$F$17,Auswertung!$J$3:$J$17, $E79,Auswertung!$S$3:$S$17, ">="&X13)=0,"-",_xlfn.MINIFS(Auswertung!$F$3:$F$17,Auswertung!$J$3:$J$17, $E79,Auswertung!$S$3:$S$17, ">="&X13)) -> - | Y79: =X79 -> - | Z79: =IF(_xlfn.MINIFS(Auswertung!$F$3:$F$17,Auswertung!$J$3:$J$17, $E79,Auswertung!$S$3:$S$17, ">="&Z13)=0,"-",_xlfn.MINIFS(Auswertung!$F$3:$F$17,Auswertung!$J$3:$J$17, $E79,Auswertung!$S$3:$S$17, ">="&Z13)) -> 7 | AA79: =Z79 -> 7 | AB79: =IF(_xlfn.MINIFS(Auswertung!$F$3:$F$17,Auswertung!$J$3:$J$17, $E79,Auswertung!$S$3:$S$17, ">="&AB13)=0,"-",_xlfn.MINIFS(Auswertung!$F$3:$F$17,Auswertung!$J$3:$J$17, $E79,Auswertung!$S$3:$S$17, ">="&AB13)) -> - | AC79: =AB79 -> - | AD79: =IF(_xlfn.MINIFS(Auswertung!$F$3:$F$17,Auswertung!$J$3:$J$17, $E79,Auswertung!$S$3:$S$17, ">="&AD13)=0,"-",_xlfn.MINIFS(Auswertung!$F$3:$F$17,Auswertung!$J$3:$J$17, $E79,Auswertung!$S$3:$S$17, ">="&AD13)) -> - | AE79: =AD79 -> - | AF79: =IF(_xlfn.MINIFS(Auswertung!$F$3:$F$17,Auswertung!$J$3:$J$17, $E79,Auswertung!$S$3:$S$17, ">="&AF13)=0,"-",_xlfn.MINIFS(Auswertung!$F$3:$F$17,Auswertung!$J$3:$J$17, $E79,Auswertung!$S$3:$S$17, ">="&AF13)) -> - | AG79: =AF79 -> - | AH79: =IF(_xlfn.MINIFS(Auswertung!$F$3:$F$17,Auswertung!$J$3:$J$17, $E79,Auswertung!$S$3:$S$17, ">="&AH13)=0,"-",_xlfn.MINIFS(Auswertung!$F$3:$F$17,Auswertung!$J$3:$J$17, $E79,Auswertung!$S$3:$S$17, ">="&AH13)) -> - | AI79: - | AN79: 2000 | AO79: - | AP79: 2500 | AQ79: 476 | AR79: 452 | AS79: 476 | AT79: 452 | AU79: 476 | AV79: 452 | AW79: 476 | AX79: 452 | AY79: 397 | AZ79: 377 | BA79: 476 | BB79: 452 | BC79: 476 | BD79: 452 | BE79: 397 | BF79: 377 | BG79: - | BH79: - | BI79: - | BJ79: - | BK79: 397 | BL79: 377 | BM79: - | BN79: - | BO79: - | BP79: - | BQ79: - | BR79: - | BS79: - | BT79: -
C80: 2500 | D80: - | E80: 3050 | F80: =IF(_xlfn.MINIFS(Auswertung!$F$3:$F$17,Auswertung!$J$3:$J$17, $E80,Auswertung!$S$3:$S$17, ">="&F14)=0,"-",_xlfn.MINIFS(Auswertung!$F$3:$F$17,Auswertung!$J$3:$J$17, $E80,Auswertung!$S$3:$S$17, ">="&F14)) -> 7 | G80: 7 | H80: =IF(_xlfn.MINIFS(Auswertung!$F$3:$F$17,Auswertung!$J$3:$J$17, $E80,Auswertung!$S$3:$S$17, ">="&H14)=0,"-",_xlfn.MINIFS(Auswertung!$F$3:$F$17,Auswertung!$J$3:$J$17, $E80,Auswertung!$S$3:$S$17, ">="&H14)) -> 7 | I80: =H80 -> 7 | J80: =IF(_xlfn.MINIFS(Auswertung!$F$3:$F$17,Auswertung!$J$3:$J$17, $E80,Auswertung!$S$3:$S$17, ">="&J14)=0,"-",_xlfn.MINIFS(Auswertung!$F$3:$F$17,Auswertung!$J$3:$J$17, $E80,Auswertung!$S$3:$S$17, ">="&J14)) -> 7 | K80: =J80 -> 7 | L80: =IF(_xlfn.MINIFS(Auswertung!$F$3:$F$17,Auswertung!$J$3:$J$17, $E80,Auswertung!$S$3:$S$17, ">="&L14)=0,"-",_xlfn.MINIFS(Auswertung!$F$3:$F$17,Auswertung!$J$3:$J$17, $E80,Auswertung!$S$3:$S$17, ">="&L14)) -> 7 | M80: =L80 -> 7 | N80: =IF(_xlfn.MINIFS(Auswertung!$F$3:$F$17,Auswertung!$J$3:$J$17, $E80,Auswertung!$S$3:$S$17, ">="&N14)=0,"-",_xlfn.MINIFS(Auswertung!$F$3:$F$17,Auswertung!$J$3:$J$17, $E80,Auswertung!$S$3:$S$17, ">="&N14)) -> 7 | O80: =N80 -> 7 | P80: =IF(_xlfn.MINIFS(Auswertung!$F$3:$F$17,Auswertung!$J$3:$J$17, $E80,Auswertung!$S$3:$S$17, ">="&P14)=0,"-",_xlfn.MINIFS(Auswertung!$F$3:$F$17,Auswertung!$J$3:$J$17, $E80,Auswertung!$S$3:$S$17, ">="&P14)) -> 7 | Q80: =P80 -> 7 | R80: =IF(_xlfn.MINIFS(Auswertung!$F$3:$F$17,Auswertung!$J$3:$J$17, $E80,Auswertung!$S$3:$S$17, ">="&R14)=0,"-",_xlfn.MINIFS(Auswertung!$F$3:$F$17,Auswertung!$J$3:$J$17, $E80,Auswertung!$S$3:$S$17, ">="&R14)) -> 7 | S80: =R80 -> 7 | T80: =IF(_xlfn.MINIFS(Auswertung!$F$3:$F$17,Auswertung!$J$3:$J$17, $E80,Auswertung!$S$3:$S$17, ">="&T14)=0,"-",_xlfn.MINIFS(Auswertung!$F$3:$F$17,Auswertung!$J$3:$J$17, $E80,Auswertung!$S$3:$S$17, ">="&T14)) -> 9 | U80: =T80 -> 9 | V80: =IF(_xlfn.MINIFS(Auswertung!$F$3:$F$17,Auswertung!$J$3:$J$17, $E80,Auswertung!$S$3:$S$17, ">="&V14)=0,"-",_xlfn.MINIFS(Auswertung!$F$3:$F$17,Auswertung!$J$3:$J$17, $E80,Auswertung!$S$3:$S$17, ">="&V14)) -> - | W80: =V80 -> - | X80: =IF(_xlfn.MINIFS(Auswertung!$F$3:$F$17,Auswertung!$J$3:$J$17, $E80,Auswertung!$S$3:$S$17, ">="&X14)=0,"-",_xlfn.MINIFS(Auswertung!$F$3:$F$17,Auswertung!$J$3:$J$17, $E80,Auswertung!$S$3:$S$17, ">="&X14)) -> - | Y80: =X80 -> - | Z80: =IF(_xlfn.MINIFS(Auswertung!$F$3:$F$17,Auswertung!$J$3:$J$17, $E80,Auswertung!$S$3:$S$17, ">="&Z14)=0,"-",_xlfn.MINIFS(Auswertung!$F$3:$F$17,Auswertung!$J$3:$J$17, $E80,Auswertung!$S$3:$S$17, ">="&Z14)) -> 9 | AA80: =Z80 -> 9 | AB80: =IF(_xlfn.MINIFS(Auswertung!$F$3:$F$17,Auswertung!$J$3:$J$17, $E80,Auswertung!$S$3:$S$17, ">="&AB14)=0,"-",_xlfn.MINIFS(Auswertung!$F$3:$F$17,Auswertung!$J$3:$J$17, $E80,Auswertung!$S$3:$S$17, ">="&AB14)) -> - | AC80: =AB80 -> - | AD80: =IF(_xlfn.MINIFS(Auswertung!$F$3:$F$17,Auswertung!$J$3:$J$17, $E80,Auswertung!$S$3:$S$17, ">="&AD14)=0,"-",_xlfn.MINIFS(Auswertung!$F$3:$F$17,Auswertung!$J$3:$J$17, $E80,Auswertung!$S$3:$S$17, ">="&AD14)) -> - | AE80: =AD80 -> - | AF80: =IF(_xlfn.MINIFS(Auswertung!$F$3:$F$17,Auswertung!$J$3:$J$17, $E80,Auswertung!$S$3:$S$17, ">="&AF14)=0,"-",_xlfn.MINIFS(Auswertung!$F$3:$F$17,Auswertung!$J$3:$J$17, $E80,Auswertung!$S$3:$S$17, ">="&AF14)) -> - | AG80: =AF80 -> - | AH80: =IF(_xlfn.MINIFS(Auswertung!$F$3:$F$17,Auswertung!$J$3:$J$17, $E80,Auswertung!$S$3:$S$17, ">="&AH14)=0,"-",_xlfn.MINIFS(Auswertung!$F$3:$F$17,Auswertung!$J$3:$J$17, $E80,Auswertung!$S$3:$S$17, ">="&AH14)) -> - | AI80: - | AN80: 2500 | AO80: - | AP80: 3050 | AQ80: 488 | AR80: 468 | AS80: 488 | AT80: 468 | AU80: 488 | AV80: 468 | AW80: 488 | AX80: 468 | AY80: 488 | AZ80: 468 | BA80: 488 | BB80: 468 | BC80: 488 | BD80: 468 | BE80: 366 | BF80: 351 | BG80: - | BH80: - | BI80: - | BJ80: - | BK80: 366 | BL80: 351 | BM80: - | BN80: - | BO80: - | BP80: - | BQ80: - | BR80: - | BS80: - | BT80: -
B81: IIa: Grosse Ebene | C81: 340 | D81: - | E81: 500 | F81: =IF(_xlfn.MINIFS(Auswertung!$F$3:$F$17,Auswertung!$J$3:$J$17, $E81,Auswertung!$S$3:$S$17, ">="&F15)=0,"-",_xlfn.MINIFS(Auswertung!$F$3:$F$17,Auswertung!$J$3:$J$17, $E81,Auswertung!$S$3:$S$17, ">="&F15)) -> 2 | G81: 2 | H81: =IF(_xlfn.MINIFS(Auswertung!$F$3:$F$17,Auswertung!$J$3:$J$17, $E81,Auswertung!$S$3:$S$17, ">="&H15)=0,"-",_xlfn.MINIFS(Auswertung!$F$3:$F$17,Auswertung!$J$3:$J$17, $E81,Auswertung!$S$3:$S$17, ">="&H15)) -> 2 | I81: =H81 -> 2 | J81: =IF(_xlfn.MINIFS(Auswertung!$F$3:$F$17,Auswertung!$J$3:$J$17, $E81,Auswertung!$S$3:$S$17, ">="&J15)=0,"-",_xlfn.MINIFS(Auswertung!$F$3:$F$17,Auswertung!$J$3:$J$17, $E81,Auswertung!$S$3:$S$17, ">="&J15)) -> 2 | K81: =J81 -> 2 | L81: =IF(_xlfn.MINIFS(Auswertung!$F$3:$F$17,Auswertung!$J$3:$J$17, $E81,Auswertung!$S$3:$S$17, ">="&L15)=0,"-",_xlfn.MINIFS(Auswertung!$F$3:$F$17,Auswertung!$J$3:$J$17, $E81,Auswertung!$S$3:$S$17, ">="&L15)) -> 2 | M81: =L81 -> 2 | N81: =IF(_xlfn.MINIFS(Auswertung!$F$3:$F$17,Auswertung!$J$3:$J$17, $E81,Auswertung!$S$3:$S$17, ">="&N15)=0,"-",_xlfn.MINIFS(Auswertung!$F$3:$F$17,Auswertung!$J$3:$J$17, $E81,Auswertung!$S$3:$S$17, ">="&N15)) -> 2 | O81: =N81 -> 2 | P81: =IF(_xlfn.MINIFS(Auswertung!$F$3:$F$17,Auswertung!$J$3:$J$17, $E81,Auswertung!$S$3:$S$17, ">="&P15)=0,"-",_xlfn.MINIFS(Auswertung!$F$3:$F$17,Auswertung!$J$3:$J$17, $E81,Auswertung!$S$3:$S$17, ">="&P15)) -> 2 | Q81: =P81 -> 2 | R81: =IF(_xlfn.MINIFS(Auswertung!$F$3:$F$17,Auswertung!$J$3:$J$17, $E81,Auswertung!$S$3:$S$17, ">="&R15)=0,"-",_xlfn.MINIFS(Auswertung!$F$3:$F$17,Auswertung!$J$3:$J$17, $E81,Auswertung!$S$3:$S$17, ">="&R15)) -> 2 | S81: =R81 -> 2 | T81: =IF(_xlfn.MINIFS(Auswertung!$F$3:$F$17,Auswertung!$J$3:$J$17, $E81,Auswertung!$S$3:$S$17, ">="&T15)=0,"-",_xlfn.MINIFS(Auswertung!$F$3:$F$17,Auswertung!$J$3:$J$17, $E81,Auswertung!$S$3:$S$17, ">="&T15)) -> 2 | U81: =T81 -> 2 | V81: =IF(_xlfn.MINIFS(Auswertung!$F$3:$F$17,Auswertung!$J$3:$J$17, $E81,Auswertung!$S$3:$S$17, ">="&V15)=0,"-",_xlfn.MINIFS(Auswertung!$F$3:$F$17,Auswertung!$J$3:$J$17, $E81,Auswertung!$S$3:$S$17, ">="&V15)) -> 2 | W81: =V81 -> 2 | X81: =IF(_xlfn.MINIFS(Auswertung!$F$3:$F$17,Auswertung!$J$3:$J$17, $E81,Auswertung!$S$3:$S$17, ">="&X15)=0,"-",_xlfn.MINIFS(Auswertung!$F$3:$F$17,Auswertung!$J$3:$J$17, $E81,Auswertung!$S$3:$S$17, ">="&X15)) -> 2 | Y81: =X81 -> 2 | Z81: =IF(_xlfn.MINIFS(Auswertung!$F$3:$F$17,Auswertung!$J$3:$J$17, $E81,Auswertung!$S$3:$S$17, ">="&Z15)=0,"-",_xlfn.MINIFS(Auswertung!$F$3:$F$17,Auswertung!$J$3:$J$17, $E81,Auswertung!$S$3:$S$17, ">="&Z15)) -> 2 | AA81: =Z81 -> 2 | AB81: =IF(_xlfn.MINIFS(Auswertung!$F$3:$F$17,Auswertung!$J$3:$J$17, $E81,Auswertung!$S$3:$S$17, ">="&AB15)=0,"-",_xlfn.MINIFS(Auswertung!$F$3:$F$17,Auswertung!$J$3:$J$17, $E81,Auswertung!$S$3:$S$17, ">="&AB15)) -> 2 | AC81: =AB81 -> 2 | AD81: =IF(_xlfn.MINIFS(Auswertung!$F$3:$F$17,Auswertung!$J$3:$J$17, $E81,Auswertung!$S$3:$S$17, ">="&AD15)=0,"-",_xlfn.MINIFS(Auswertung!$F$3:$F$17,Auswertung!$J$3:$J$17, $E81,Auswertung!$S$3:$S$17, ">="&AD15)) -> 2 | AE81: =AD81 -> 2 | AF81: =IF(_xlfn.MINIFS(Auswertung!$F$3:$F$17,Auswertung!$J$3:$J$17, $E81,Auswertung!$S$3:$S$17, ">="&AF15)=0,"-",_xlfn.MINIFS(Auswertung!$F$3:$F$17,Auswertung!$J$3:$J$17, $E81,Auswertung!$S$3:$S$17, ">="&AF15)) -> - | AG81: =AF81 -> - | AH81: =IF(_xlfn.MINIFS(Auswertung!$F$3:$F$17,Auswertung!$J$3:$J$17, $E81,Auswertung!$S$3:$S$17, ">="&AH15)=0,"-",_xlfn.MINIFS(Auswertung!$F$3:$F$17,Auswertung!$J$3:$J$17, $E81,Auswertung!$S$3:$S$17, ">="&AH15)) -> - | AI81: - | AM81: IIa: Grosse Ebene | AN81: 340 | AO81: - | AP81: 500 | AQ81: 380 | AR81: 260 | AS81: 380 | AT81: 260 | AU81: 380 | AV81: 260 | AW81: 380 | AX81: 260 | AY81: 380 | AZ81: 260 | BA81: 380 | BB81: 260 | BC81: 380 | BD81: 260 | BE81: 380 | BF81: 260 | BG81: 380 | BH81: 260 | BI81: 380 | BJ81: 260 | BK81: 380 | BL81: 260 | BM81: 380 | BN81: 260 | BO81: 380 | BP81: 260 | BQ81: - | BR81: - | BS81: - | BT81: -
C82: 500 | D82: - | E82: 1000 | F82: =IF(_xlfn.MINIFS(Auswertung!$F$3:$F$17,Auswertung!$J$3:$J$17, $E82,Auswertung!$S$3:$S$17, ">="&F16)=0,"-",_xlfn.MINIFS(Auswertung!$F$3:$F$17,Auswertung!$J$3:$J$17, $E82,Auswertung!$S$3:$S$17, ">="&F16)) -> 3 | G82: 3 | H82: =IF(_xlfn.MINIFS(Auswertung!$F$3:$F$17,Auswertung!$J$3:$J$17, $E82,Auswertung!$S$3:$S$17, ">="&H16)=0,"-",_xlfn.MINIFS(Auswertung!$F$3:$F$17,Auswertung!$J$3:$J$17, $E82,Auswertung!$S$3:$S$17, ">="&H16)) -> 3 | I82: =H82 -> 3 | J82: =IF(_xlfn.MINIFS(Auswertung!$F$3:$F$17,Auswertung!$J$3:$J$17, $E82,Auswertung!$S$3:$S$17, ">="&J16)=0,"-",_xlfn.MINIFS(Auswertung!$F$3:$F$17,Auswertung!$J$3:$J$17, $E82,Auswertung!$S$3:$S$17, ">="&J16)) -> 3 | K82: =J82 -> 3 | L82: =IF(_xlfn.MINIFS(Auswertung!$F$3:$F$17,Auswertung!$J$3:$J$17, $E82,Auswertung!$S$3:$S$17, ">="&L16)=0,"-",_xlfn.MINIFS(Auswertung!$F$3:$F$17,Auswertung!$J$3:$J$17, $E82,Auswertung!$S$3:$S$17, ">="&L16)) -> 3 | M82: =L82 -> 3 | N82: =IF(_xlfn.MINIFS(Auswertung!$F$3:$F$17,Auswertung!$J$3:$J$17, $E82,Auswertung!$S$3:$S$17, ">="&N16)=0,"-",_xlfn.MINIFS(Auswertung!$F$3:$F$17,Auswertung!$J$3:$J$17, $E82,Auswertung!$S$3:$S$17, ">="&N16)) -> 3 | O82: =N82 -> 3 | P82: =IF(_xlfn.MINIFS(Auswertung!$F$3:$F$17,Auswertung!$J$3:$J$17, $E82,Auswertung!$S$3:$S$17, ">="&P16)=0,"-",_xlfn.MINIFS(Auswertung!$F$3:$F$17,Auswertung!$J$3:$J$17, $E82,Auswertung!$S$3:$S$17, ">="&P16)) -> 3 | Q82: =P82 -> 3 | R82: =IF(_xlfn.MINIFS(Auswertung!$F$3:$F$17,Auswertung!$J$3:$J$17, $E82,Auswertung!$S$3:$S$17, ">="&R16)=0,"-",_xlfn.MINIFS(Auswertung!$F$3:$F$17,Auswertung!$J$3:$J$17, $E82,Auswertung!$S$3:$S$17, ">="&R16)) -> 3 | S82: =R82 -> 3 | T82: =IF(_xlfn.MINIFS(Auswertung!$F$3:$F$17,Auswertung!$J$3:$J$17, $E82,Auswertung!$S$3:$S$17, ">="&T16)=0,"-",_xlfn.MINIFS(Auswertung!$F$3:$F$17,Auswertung!$J$3:$J$17, $E82,Auswertung!$S$3:$S$17, ">="&T16)) -> 3 | U82: =T82 -> 3 | V82: =IF(_xlfn.MINIFS(Auswertung!$F$3:$F$17,Auswertung!$J$3:$J$17, $E82,Auswertung!$S$3:$S$17, ">="&V16)=0,"-",_xlfn.MINIFS(Auswertung!$F$3:$F$17,Auswertung!$J$3:$J$17, $E82,Auswertung!$S$3:$S$17, ">="&V16)) -> 3 | W82: =V82 -> 3 | X82: =IF(_xlfn.MINIFS(Auswertung!$F$3:$F$17,Auswertung!$J$3:$J$17, $E82,Auswertung!$S$3:$S$17, ">="&X16)=0,"-",_xlfn.MINIFS(Auswertung!$F$3:$F$17,Auswertung!$J$3:$J$17, $E82,Auswertung!$S$3:$S$17, ">="&X16)) -> - | Y82: =X82 -> - | Z82: =IF(_xlfn.MINIFS(Auswertung!$F$3:$F$17,Auswertung!$J$3:$J$17, $E82,Auswertung!$S$3:$S$17, ">="&Z16)=0,"-",_xlfn.MINIFS(Auswertung!$F$3:$F$17,Auswertung!$J$3:$J$17, $E82,Auswertung!$S$3:$S$17, ">="&Z16)) -> 3 | AA82: =Z82 -> 3 | AB82: =IF(_xlfn.MINIFS(Auswertung!$F$3:$F$17,Auswertung!$J$3:$J$17, $E82,Auswertung!$S$3:$S$17, ">="&AB16)=0,"-",_xlfn.MINIFS(Auswertung!$F$3:$F$17,Auswertung!$J$3:$J$17, $E82,Auswertung!$S$3:$S$17, ">="&AB16)) -> 3 | AC82: =AB82 -> 3 | AD82: =IF(_xlfn.MINIFS(Auswertung!$F$3:$F$17,Auswertung!$J$3:$J$17, $E82,Auswertung!$S$3:$S$17, ">="&AD16)=0,"-",_xlfn.MINIFS(Auswertung!$F$3:$F$17,Auswertung!$J$3:$J$17, $E82,Auswertung!$S$3:$S$17, ">="&AD16)) -> - | AE82: =AD82 -> - | AF82: =IF(_xlfn.MINIFS(Auswertung!$F$3:$F$17,Auswertung!$J$3:$J$17, $E82,Auswertung!$S$3:$S$17, ">="&AF16)=0,"-",_xlfn.MINIFS(Auswertung!$F$3:$F$17,Auswertung!$J$3:$J$17, $E82,Auswertung!$S$3:$S$17, ">="&AF16)) -> - | AG82: =AF82 -> - | AH82: =IF(_xlfn.MINIFS(Auswertung!$F$3:$F$17,Auswertung!$J$3:$J$17, $E82,Auswertung!$S$3:$S$17, ">="&AH16)=0,"-",_xlfn.MINIFS(Auswertung!$F$3:$F$17,Auswertung!$J$3:$J$17, $E82,Auswertung!$S$3:$S$17, ">="&AH16)) -> - | AI82: - | AN82: 500 | AO82: - | AP82: 1000 | AQ82: 440 | AR82: 380 | AS82: 440 | AT82: 380 | AU82: 440 | AV82: 380 | AW82: 440 | AX82: 380 | AY82: 440 | AZ82: 380 | BA82: 440 | BB82: 380 | BC82: 440 | BD82: 380 | BE82: 440 | BF82: 380 | BG82: 440 | BH82: 380 | BI82: - | BJ82: - | BK82: 440 | BL82: 380 | BM82: 440 | BN82: 380 | BO82: - | BP82: - | BQ82: - | BR82: - | BS82: - | BT82: -
C83: 1000 | D83: - | E83: 1500 | F83: =IF(_xlfn.MINIFS(Auswertung!$F$3:$F$17,Auswertung!$J$3:$J$17, $E83,Auswertung!$S$3:$S$17, ">="&F17)=0,"-",_xlfn.MINIFS(Auswertung!$F$3:$F$17,Auswertung!$J$3:$J$17, $E83,Auswertung!$S$3:$S$17, ">="&F17)) -> 4 | G83: 4 | H83: =IF(_xlfn.MINIFS(Auswertung!$F$3:$F$17,Auswertung!$J$3:$J$17, $E83,Auswertung!$S$3:$S$17, ">="&H17)=0,"-",_xlfn.MINIFS(Auswertung!$F$3:$F$17,Auswertung!$J$3:$J$17, $E83,Auswertung!$S$3:$S$17, ">="&H17)) -> 4 | I83: =H83 -> 4 | J83: =IF(_xlfn.MINIFS(Auswertung!$F$3:$F$17,Auswertung!$J$3:$J$17, $E83,Auswertung!$S$3:$S$17, ">="&J17)=0,"-",_xlfn.MINIFS(Auswertung!$F$3:$F$17,Auswertung!$J$3:$J$17, $E83,Auswertung!$S$3:$S$17, ">="&J17)) -> 4 | K83: =J83 -> 4 | L83: =IF(_xlfn.MINIFS(Auswertung!$F$3:$F$17,Auswertung!$J$3:$J$17, $E83,Auswertung!$S$3:$S$17, ">="&L17)=0,"-",_xlfn.MINIFS(Auswertung!$F$3:$F$17,Auswertung!$J$3:$J$17, $E83,Auswertung!$S$3:$S$17, ">="&L17)) -> 4 | M83: =L83 -> 4 | N83: =IF(_xlfn.MINIFS(Auswertung!$F$3:$F$17,Auswertung!$J$3:$J$17, $E83,Auswertung!$S$3:$S$17, ">="&N17)=0,"-",_xlfn.MINIFS(Auswertung!$F$3:$F$17,Auswertung!$J$3:$J$17, $E83,Auswertung!$S$3:$S$17, ">="&N17)) -> 4 | O83: =N83 -> 4 | P83: =IF(_xlfn.MINIFS(Auswertung!$F$3:$F$17,Auswertung!$J$3:$J$17, $E83,Auswertung!$S$3:$S$17, ">="&P17)=0,"-",_xlfn.MINIFS(Auswertung!$F$3:$F$17,Auswertung!$J$3:$J$17, $E83,Auswertung!$S$3:$S$17, ">="&P17)) -> 4 | Q83: =P83 -> 4 | R83: =IF(_xlfn.MINIFS(Auswertung!$F$3:$F$17,Auswertung!$J$3:$J$17, $E83,Auswertung!$S$3:$S$17, ">="&R17)=0,"-",_xlfn.MINIFS(Auswertung!$F$3:$F$17,Auswertung!$J$3:$J$17, $E83,Auswertung!$S$3:$S$17, ">="&R17)) -> 4 | S83: =R83 -> 4 | T83: =IF(_xlfn.MINIFS(Auswertung!$F$3:$F$17,Auswertung!$J$3:$J$17, $E83,Auswertung!$S$3:$S$17, ">="&T17)=0,"-",_xlfn.MINIFS(Auswertung!$F$3:$F$17,Auswertung!$J$3:$J$17, $E83,Auswertung!$S$3:$S$17, ">="&T17)) -> 4 | U83: =T83 -> 4 | V83: =IF(_xlfn.MINIFS(Auswertung!$F$3:$F$17,Auswertung!$J$3:$J$17, $E83,Auswertung!$S$3:$S$17, ">="&V17)=0,"-",_xlfn.MINIFS(Auswertung!$F$3:$F$17,Auswertung!$J$3:$J$17, $E83,Auswertung!$S$3:$S$17, ">="&V17)) -> 4 | W83: =V83 -> 4 | X83: =IF(_xlfn.MINIFS(Auswertung!$F$3:$F$17,Auswertung!$J$3:$J$17, $E83,Auswertung!$S$3:$S$17, ">="&X17)=0,"-",_xlfn.MINIFS(Auswertung!$F$3:$F$17,Auswertung!$J$3:$J$17, $E83,Auswertung!$S$3:$S$17, ">="&X17)) -> - | Y83: =X83 -> - | Z83: =IF(_xlfn.MINIFS(Auswertung!$F$3:$F$17,Auswertung!$J$3:$J$17, $E83,Auswertung!$S$3:$S$17, ">="&Z17)=0,"-",_xlfn.MINIFS(Auswertung!$F$3:$F$17,Auswertung!$J$3:$J$17, $E83,Auswertung!$S$3:$S$17, ">="&Z17)) -> 4 | AA83: =Z83 -> 4 | AB83: =IF(_xlfn.MINIFS(Auswertung!$F$3:$F$17,Auswertung!$J$3:$J$17, $E83,Auswertung!$S$3:$S$17, ">="&AB17)=0,"-",_xlfn.MINIFS(Auswertung!$F$3:$F$17,Auswertung!$J$3:$J$17, $E83,Auswertung!$S$3:$S$17, ">="&AB17)) -> 4 | AC83: =AB83 -> 4 | AD83: =IF(_xlfn.MINIFS(Auswertung!$F$3:$F$17,Auswertung!$J$3:$J$17, $E83,Auswertung!$S$3:$S$17, ">="&AD17)=0,"-",_xlfn.MINIFS(Auswertung!$F$3:$F$17,Auswertung!$J$3:$J$17, $E83,Auswertung!$S$3:$S$17, ">="&AD17)) -> - | AE83: =AD83 -> - | AF83: =IF(_xlfn.MINIFS(Auswertung!$F$3:$F$17,Auswertung!$J$3:$J$17, $E83,Auswertung!$S$3:$S$17, ">="&AF17)=0,"-",_xlfn.MINIFS(Auswertung!$F$3:$F$17,Auswertung!$J$3:$J$17, $E83,Auswertung!$S$3:$S$17, ">="&AF17)) -> - | AG83: =AF83 -> - | AH83: =IF(_xlfn.MINIFS(Auswertung!$F$3:$F$17,Auswertung!$J$3:$J$17, $E83,Auswertung!$S$3:$S$17, ">="&AH17)=0,"-",_xlfn.MINIFS(Auswertung!$F$3:$F$17,Auswertung!$J$3:$J$17, $E83,Auswertung!$S$3:$S$17, ">="&AH17)) -> - | AI83: - | AN83: 1000 | AO83: - | AP83: 1500 | AQ83: 460 | AR83: 420 | AS83: 460 | AT83: 420 | AU83: 460 | AV83: 420 | AW83: 460 | AX83: 420 | AY83: 460 | AZ83: 420 | BA83: 460 | BB83: 420 | BC83: 460 | BD83: 420 | BE83: 460 | BF83: 420 | BG83: 460 | BH83: 420 | BI83: - | BJ83: - | BK83: 460 | BL83: 420 | BM83: 460 | BN83: 420 | BO83: - | BP83: - | BQ83: - | BR83: - | BS83: - | BT83: -
C84: 1500 | D84: - | E84: 2000 | F84: =IF(_xlfn.MINIFS(Auswertung!$F$3:$F$17,Auswertung!$J$3:$J$17, $E84,Auswertung!$S$3:$S$17, ">="&F18)=0,"-",_xlfn.MINIFS(Auswertung!$F$3:$F$17,Auswertung!$J$3:$J$17, $E84,Auswertung!$S$3:$S$17, ">="&F18)) -> 4 | G84: 4 | H84: =IF(_xlfn.MINIFS(Auswertung!$F$3:$F$17,Auswertung!$J$3:$J$17, $E84,Auswertung!$S$3:$S$17, ">="&H18)=0,"-",_xlfn.MINIFS(Auswertung!$F$3:$F$17,Auswertung!$J$3:$J$17, $E84,Auswertung!$S$3:$S$17, ">="&H18)) -> 5 | I84: =H84 -> 5 | J84: =IF(_xlfn.MINIFS(Auswertung!$F$3:$F$17,Auswertung!$J$3:$J$17, $E84,Auswertung!$S$3:$S$17, ">="&J18)=0,"-",_xlfn.MINIFS(Auswertung!$F$3:$F$17,Auswertung!$J$3:$J$17, $E84,Auswertung!$S$3:$S$17, ">="&J18)) -> 5 | K84: =J84 -> 5 | L84: =IF(_xlfn.MINIFS(Auswertung!$F$3:$F$17,Auswertung!$J$3:$J$17, $E84,Auswertung!$S$3:$S$17, ">="&L18)=0,"-",_xlfn.MINIFS(Auswertung!$F$3:$F$17,Auswertung!$J$3:$J$17, $E84,Auswertung!$S$3:$S$17, ">="&L18)) -> 5 | M84: =L84 -> 5 | N84: =IF(_xlfn.MINIFS(Auswertung!$F$3:$F$17,Auswertung!$J$3:$J$17, $E84,Auswertung!$S$3:$S$17, ">="&N18)=0,"-",_xlfn.MINIFS(Auswertung!$F$3:$F$17,Auswertung!$J$3:$J$17, $E84,Auswertung!$S$3:$S$17, ">="&N18)) -> 5 | O84: =N84 -> 5 | P84: =IF(_xlfn.MINIFS(Auswertung!$F$3:$F$17,Auswertung!$J$3:$J$17, $E84,Auswertung!$S$3:$S$17, ">="&P18)=0,"-",_xlfn.MINIFS(Auswertung!$F$3:$F$17,Auswertung!$J$3:$J$17, $E84,Auswertung!$S$3:$S$17, ">="&P18)) -> 5 | Q84: =P84 -> 5 | R84: =IF(_xlfn.MINIFS(Auswertung!$F$3:$F$17,Auswertung!$J$3:$J$17, $E84,Auswertung!$S$3:$S$17, ">="&R18)=0,"-",_xlfn.MINIFS(Auswertung!$F$3:$F$17,Auswertung!$J$3:$J$17, $E84,Auswertung!$S$3:$S$17, ">="&R18)) -> 5 | S84: =R84 -> 5 | T84: =IF(_xlfn.MINIFS(Auswertung!$F$3:$F$17,Auswertung!$J$3:$J$17, $E84,Auswertung!$S$3:$S$17, ">="&T18)=0,"-",_xlfn.MINIFS(Auswertung!$F$3:$F$17,Auswertung!$J$3:$J$17, $E84,Auswertung!$S$3:$S$17, ">="&T18)) -> 5 | U84: =T84 -> 5 | V84: =IF(_xlfn.MINIFS(Auswertung!$F$3:$F$17,Auswertung!$J$3:$J$17, $E84,Auswertung!$S$3:$S$17, ">="&V18)=0,"-",_xlfn.MINIFS(Auswertung!$F$3:$F$17,Auswertung!$J$3:$J$17, $E84,Auswertung!$S$3:$S$17, ">="&V18)) -> 5 | W84: =V84 -> 5 | X84: =IF(_xlfn.MINIFS(Auswertung!$F$3:$F$17,Auswertung!$J$3:$J$17, $E84,Auswertung!$S$3:$S$17, ">="&X18)=0,"-",_xlfn.MINIFS(Auswertung!$F$3:$F$17,Auswertung!$J$3:$J$17, $E84,Auswertung!$S$3:$S$17, ">="&X18)) -> 6 | Y84: =X84 -> 6 | Z84: =IF(_xlfn.MINIFS(Auswertung!$F$3:$F$17,Auswertung!$J$3:$J$17, $E84,Auswertung!$S$3:$S$17, ">="&Z18)=0,"-",_xlfn.MINIFS(Auswertung!$F$3:$F$17,Auswertung!$J$3:$J$17, $E84,Auswertung!$S$3:$S$17, ">="&Z18)) -> 5 | AA84: =Z84 -> 5 | AB84: =IF(_xlfn.MINIFS(Auswertung!$F$3:$F$17,Auswertung!$J$3:$J$17, $E84,Auswertung!$S$3:$S$17, ">="&AB18)=0,"-",_xlfn.MINIFS(Auswertung!$F$3:$F$17,Auswertung!$J$3:$J$17, $E84,Auswertung!$S$3:$S$17, ">="&AB18)) -> 5 | AC84: =AB84 -> 5 | AD84: =IF(_xlfn.MINIFS(Auswertung!$F$3:$F$17,Auswertung!$J$3:$J$17, $E84,Auswertung!$S$3:$S$17, ">="&AD18)=0,"-",_xlfn.MINIFS(Auswertung!$F$3:$F$17,Auswertung!$J$3:$J$17, $E84,Auswertung!$S$3:$S$17, ">="&AD18)) -> 6 | AE84: =AD84 -> 6 | AF84: =IF(_xlfn.MINIFS(Auswertung!$F$3:$F$17,Auswertung!$J$3:$J$17, $E84,Auswertung!$S$3:$S$17, ">="&AF18)=0,"-",_xlfn.MINIFS(Auswertung!$F$3:$F$17,Auswertung!$J$3:$J$17, $E84,Auswertung!$S$3:$S$17, ">="&AF18)) -> - | AG84: =AF84 -> - | AH84: =IF(_xlfn.MINIFS(Auswertung!$F$3:$F$17,Auswertung!$J$3:$J$17, $E84,Auswertung!$S$3:$S$17, ">="&AH18)=0,"-",_xlfn.MINIFS(Auswertung!$F$3:$F$17,Auswertung!$J$3:$J$17, $E84,Auswertung!$S$3:$S$17, ">="&AH18)) -> - | AI84: - | AN84: 1500 | AO84: - | AP84: 2000 | AQ84: 627 | AR84: 587 | AS84: 470 | AT84: 440 | AU84: 470 | AV84: 440 | AW84: 470 | AX84: 440 | AY84: 470 | AZ84: 440 | BA84: 470 | BB84: 440 | BC84: 470 | BD84: 440 | BE84: 470 | BF84: 440 | BG84: 470 | BH84: 440 | BI84: 376 | BJ84: 352 | BK84: 470 | BL84: 440 | BM84: 470 | BN84: 440 | BO84: 376 | BP84: 352 | BQ84: - | BR84: - | BS84: - | BT84: -
C85: 2000 | D85: - | E85: 2500 | F85: =IF(_xlfn.MINIFS(Auswertung!$F$3:$F$17,Auswertung!$J$3:$J$17, $E85,Auswertung!$S$3:$S$17, ">="&F19)=0,"-",_xlfn.MINIFS(Auswertung!$F$3:$F$17,Auswertung!$J$3:$J$17, $E85,Auswertung!$S$3:$S$17, ">="&F19)) -> 5 | G85: 5 | H85: =IF(_xlfn.MINIFS(Auswertung!$F$3:$F$17,Auswertung!$J$3:$J$17, $E85,Auswertung!$S$3:$S$17, ">="&H19)=0,"-",_xlfn.MINIFS(Auswertung!$F$3:$F$17,Auswertung!$J$3:$J$17, $E85,Auswertung!$S$3:$S$17, ">="&H19)) -> 5 | I85: =H85 -> 5 | J85: =IF(_xlfn.MINIFS(Auswertung!$F$3:$F$17,Auswertung!$J$3:$J$17, $E85,Auswertung!$S$3:$S$17, ">="&J19)=0,"-",_xlfn.MINIFS(Auswertung!$F$3:$F$17,Auswertung!$J$3:$J$17, $E85,Auswertung!$S$3:$S$17, ">="&J19)) -> 6 | K85: =J85 -> 6 | L85: =IF(_xlfn.MINIFS(Auswertung!$F$3:$F$17,Auswertung!$J$3:$J$17, $E85,Auswertung!$S$3:$S$17, ">="&L19)=0,"-",_xlfn.MINIFS(Auswertung!$F$3:$F$17,Auswertung!$J$3:$J$17, $E85,Auswertung!$S$3:$S$17, ">="&L19)) -> 6 | M85: =L85 -> 6 | N85: =IF(_xlfn.MINIFS(Auswertung!$F$3:$F$17,Auswertung!$J$3:$J$17, $E85,Auswertung!$S$3:$S$17, ">="&N19)=0,"-",_xlfn.MINIFS(Auswertung!$F$3:$F$17,Auswertung!$J$3:$J$17, $E85,Auswertung!$S$3:$S$17, ">="&N19)) -> 6 | O85: =N85 -> 6 | P85: =IF(_xlfn.MINIFS(Auswertung!$F$3:$F$17,Auswertung!$J$3:$J$17, $E85,Auswertung!$S$3:$S$17, ">="&P19)=0,"-",_xlfn.MINIFS(Auswertung!$F$3:$F$17,Auswertung!$J$3:$J$17, $E85,Auswertung!$S$3:$S$17, ">="&P19)) -> 6 | Q85: =P85 -> 6 | R85: =IF(_xlfn.MINIFS(Auswertung!$F$3:$F$17,Auswertung!$J$3:$J$17, $E85,Auswertung!$S$3:$S$17, ">="&R19)=0,"-",_xlfn.MINIFS(Auswertung!$F$3:$F$17,Auswertung!$J$3:$J$17, $E85,Auswertung!$S$3:$S$17, ">="&R19)) -> 6 | S85: =R85 -> 6 | T85: =IF(_xlfn.MINIFS(Auswertung!$F$3:$F$17,Auswertung!$J$3:$J$17, $E85,Auswertung!$S$3:$S$17, ">="&T19)=0,"-",_xlfn.MINIFS(Auswertung!$F$3:$F$17,Auswertung!$J$3:$J$17, $E85,Auswertung!$S$3:$S$17, ">="&T19)) -> 6 | U85: =T85 -> 6 | V85: =IF(_xlfn.MINIFS(Auswertung!$F$3:$F$17,Auswertung!$J$3:$J$17, $E85,Auswertung!$S$3:$S$17, ">="&V19)=0,"-",_xlfn.MINIFS(Auswertung!$F$3:$F$17,Auswertung!$J$3:$J$17, $E85,Auswertung!$S$3:$S$17, ">="&V19)) -> 6 | W85: =V85 -> 6 | X85: =IF(_xlfn.MINIFS(Auswertung!$F$3:$F$17,Auswertung!$J$3:$J$17, $E85,Auswertung!$S$3:$S$17, ">="&X19)=0,"-",_xlfn.MINIFS(Auswertung!$F$3:$F$17,Auswertung!$J$3:$J$17, $E85,Auswertung!$S$3:$S$17, ">="&X19)) -> 7 | Y85: =X85 -> 7 | Z85: =IF(_xlfn.MINIFS(Auswertung!$F$3:$F$17,Auswertung!$J$3:$J$17, $E85,Auswertung!$S$3:$S$17, ">="&Z19)=0,"-",_xlfn.MINIFS(Auswertung!$F$3:$F$17,Auswertung!$J$3:$J$17, $E85,Auswertung!$S$3:$S$17, ">="&Z19)) -> 6 | AA85: =Z85 -> 6 | AB85: =IF(_xlfn.MINIFS(Auswertung!$F$3:$F$17,Auswertung!$J$3:$J$17, $E85,Auswertung!$S$3:$S$17, ">="&AB19)=0,"-",_xlfn.MINIFS(Auswertung!$F$3:$F$17,Auswertung!$J$3:$J$17, $E85,Auswertung!$S$3:$S$17, ">="&AB19)) -> 6 | AC85: =AB85 -> 6 | AD85: =IF(_xlfn.MINIFS(Auswertung!$F$3:$F$17,Auswertung!$J$3:$J$17, $E85,Auswertung!$S$3:$S$17, ">="&AD19)=0,"-",_xlfn.MINIFS(Auswertung!$F$3:$F$17,Auswertung!$J$3:$J$17, $E85,Auswertung!$S$3:$S$17, ">="&AD19)) -> 7 | AE85: =AD85 -> 7 | AF85: =IF(_xlfn.MINIFS(Auswertung!$F$3:$F$17,Auswertung!$J$3:$J$17, $E85,Auswertung!$S$3:$S$17, ">="&AF19)=0,"-",_xlfn.MINIFS(Auswertung!$F$3:$F$17,Auswertung!$J$3:$J$17, $E85,Auswertung!$S$3:$S$17, ">="&AF19)) -> - | AG85: =AF85 -> - | AH85: =IF(_xlfn.MINIFS(Auswertung!$F$3:$F$17,Auswertung!$J$3:$J$17, $E85,Auswertung!$S$3:$S$17, ">="&AH19)=0,"-",_xlfn.MINIFS(Auswertung!$F$3:$F$17,Auswertung!$J$3:$J$17, $E85,Auswertung!$S$3:$S$17, ">="&AH19)) -> - | AI85: - | AN85: 2000 | AO85: - | AP85: 2500 | AQ85: 595 | AR85: 565 | AS85: 595 | AT85: 565 | AU85: 476 | AV85: 452 | AW85: 476 | AX85: 452 | AY85: 476 | AZ85: 452 | BA85: 476 | BB85: 452 | BC85: 476 | BD85: 452 | BE85: 476 | BF85: 452 | BG85: 476 | BH85: 452 | BI85: 397 | BJ85: 377 | BK85: 476 | BL85: 452 | BM85: 476 | BN85: 452 | BO85: 397 | BP85: 377 | BQ85: - | BR85: - | BS85: - | BT85: -
C86: 2500 | D86: - | E86: 3050 | F86: =IF(_xlfn.MINIFS(Auswertung!$F$3:$F$17,Auswertung!$J$3:$J$17, $E86,Auswertung!$S$3:$S$17, ">="&F20)=0,"-",_xlfn.MINIFS(Auswertung!$F$3:$F$17,Auswertung!$J$3:$J$17, $E86,Auswertung!$S$3:$S$17, ">="&F20)) -> 6 | G86: 6 | H86: =IF(_xlfn.MINIFS(Auswertung!$F$3:$F$17,Auswertung!$J$3:$J$17, $E86,Auswertung!$S$3:$S$17, ">="&H20)=0,"-",_xlfn.MINIFS(Auswertung!$F$3:$F$17,Auswertung!$J$3:$J$17, $E86,Auswertung!$S$3:$S$17, ">="&H20)) -> 6 | I86: =H86 -> 6 | J86: =IF(_xlfn.MINIFS(Auswertung!$F$3:$F$17,Auswertung!$J$3:$J$17, $E86,Auswertung!$S$3:$S$17, ">="&J20)=0,"-",_xlfn.MINIFS(Auswertung!$F$3:$F$17,Auswertung!$J$3:$J$17, $E86,Auswertung!$S$3:$S$17, ">="&J20)) -> 7 | K86: =J86 -> 7 | L86: =IF(_xlfn.MINIFS(Auswertung!$F$3:$F$17,Auswertung!$J$3:$J$17, $E86,Auswertung!$S$3:$S$17, ">="&L20)=0,"-",_xlfn.MINIFS(Auswertung!$F$3:$F$17,Auswertung!$J$3:$J$17, $E86,Auswertung!$S$3:$S$17, ">="&L20)) -> 7 | M86: =L86 -> 7 | N86: =IF(_xlfn.MINIFS(Auswertung!$F$3:$F$17,Auswertung!$J$3:$J$17, $E86,Auswertung!$S$3:$S$17, ">="&N20)=0,"-",_xlfn.MINIFS(Auswertung!$F$3:$F$17,Auswertung!$J$3:$J$17, $E86,Auswertung!$S$3:$S$17, ">="&N20)) -> 7 | O86: =N86 -> 7 | P86: =IF(_xlfn.MINIFS(Auswertung!$F$3:$F$17,Auswertung!$J$3:$J$17, $E86,Auswertung!$S$3:$S$17, ">="&P20)=0,"-",_xlfn.MINIFS(Auswertung!$F$3:$F$17,Auswertung!$J$3:$J$17, $E86,Auswertung!$S$3:$S$17, ">="&P20)) -> 7 | Q86: =P86 -> 7 | R86: =IF(_xlfn.MINIFS(Auswertung!$F$3:$F$17,Auswertung!$J$3:$J$17, $E86,Auswertung!$S$3:$S$17, ">="&R20)=0,"-",_xlfn.MINIFS(Auswertung!$F$3:$F$17,Auswertung!$J$3:$J$17, $E86,Auswertung!$S$3:$S$17, ">="&R20)) -> 7 | S86: =R86 -> 7 | T86: =IF(_xlfn.MINIFS(Auswertung!$F$3:$F$17,Auswertung!$J$3:$J$17, $E86,Auswertung!$S$3:$S$17, ">="&T20)=0,"-",_xlfn.MINIFS(Auswertung!$F$3:$F$17,Auswertung!$J$3:$J$17, $E86,Auswertung!$S$3:$S$17, ">="&T20)) -> 7 | U86: =T86 -> 7 | V86: =IF(_xlfn.MINIFS(Auswertung!$F$3:$F$17,Auswertung!$J$3:$J$17, $E86,Auswertung!$S$3:$S$17, ">="&V20)=0,"-",_xlfn.MINIFS(Auswertung!$F$3:$F$17,Auswertung!$J$3:$J$17, $E86,Auswertung!$S$3:$S$17, ">="&V20)) -> 7 | W86: =V86 -> 7 | X86: =IF(_xlfn.MINIFS(Auswertung!$F$3:$F$17,Auswertung!$J$3:$J$17, $E86,Auswertung!$S$3:$S$17, ">="&X20)=0,"-",_xlfn.MINIFS(Auswertung!$F$3:$F$17,Auswertung!$J$3:$J$17, $E86,Auswertung!$S$3:$S$17, ">="&X20)) -> 9 | Y86: =X86 -> 9 | Z86: =IF(_xlfn.MINIFS(Auswertung!$F$3:$F$17,Auswertung!$J$3:$J$17, $E86,Auswertung!$S$3:$S$17, ">="&Z20)=0,"-",_xlfn.MINIFS(Auswertung!$F$3:$F$17,Auswertung!$J$3:$J$17, $E86,Auswertung!$S$3:$S$17, ">="&Z20)) -> 7 | AA86: =Z86 -> 7 | AB86: =IF(_xlfn.MINIFS(Auswertung!$F$3:$F$17,Auswertung!$J$3:$J$17, $E86,Auswertung!$S$3:$S$17, ">="&AB20)=0,"-",_xlfn.MINIFS(Auswertung!$F$3:$F$17,Auswertung!$J$3:$J$17, $E86,Auswertung!$S$3:$S$17, ">="&AB20)) -> 7 | AC86: =AB86 -> 7 | AD86: =IF(_xlfn.MINIFS(Auswertung!$F$3:$F$17,Auswertung!$J$3:$J$17, $E86,Auswertung!$S$3:$S$17, ">="&AD20)=0,"-",_xlfn.MINIFS(Auswertung!$F$3:$F$17,Auswertung!$J$3:$J$17, $E86,Auswertung!$S$3:$S$17, ">="&AD20)) -> 9 | AE86: =AD86 -> 9 | AF86: =IF(_xlfn.MINIFS(Auswertung!$F$3:$F$17,Auswertung!$J$3:$J$17, $E86,Auswertung!$S$3:$S$17, ">="&AF20)=0,"-",_xlfn.MINIFS(Auswertung!$F$3:$F$17,Auswertung!$J$3:$J$17, $E86,Auswertung!$S$3:$S$17, ">="&AF20)) -> - | AG86: =AF86 -> - | AH86: =IF(_xlfn.MINIFS(Auswertung!$F$3:$F$17,Auswertung!$J$3:$J$17, $E86,Auswertung!$S$3:$S$17, ">="&AH20)=0,"-",_xlfn.MINIFS(Auswertung!$F$3:$F$17,Auswertung!$J$3:$J$17, $E86,Auswertung!$S$3:$S$17, ">="&AH20)) -> - | AI86: - | AN86: 2500 | AO86: - | AP86: 3050 | AQ86: 586 | AR86: 562 | AS86: 586 | AT86: 562 | AU86: 488 | AV86: 468 | AW86: 488 | AX86: 468 | AY86: 488 | AZ86: 468 | BA86: 488 | BB86: 468 | BC86: 488 | BD86: 468 | BE86: 488 | BF86: 468 | BG86: 488 | BH86: 468 | BI86: 366 | BJ86: 351 | BK86: 488 | BL86: 468 | BM86: 488 | BN86: 468 | BO86: 366 | BP86: 351 | BQ86: - | BR86: - | BS86: - | BT86: -
B87: III: Ortschaften, freies Feld | C87: 340 | D87: - | E87: 500 | F87: =IF(_xlfn.MINIFS(Auswertung!$F$3:$F$17,Auswertung!$J$3:$J$17, $E87,Auswertung!$S$3:$S$17, ">="&F21)=0,"-",_xlfn.MINIFS(Auswertung!$F$3:$F$17,Auswertung!$J$3:$J$17, $E87,Auswertung!$S$3:$S$17, ">="&F21)) -> 2 | G87: 2 | H87: =IF(_xlfn.MINIFS(Auswertung!$F$3:$F$17,Auswertung!$J$3:$J$17, $E87,Auswertung!$S$3:$S$17, ">="&H21)=0,"-",_xlfn.MINIFS(Auswertung!$F$3:$F$17,Auswertung!$J$3:$J$17, $E87,Auswertung!$S$3:$S$17, ">="&H21)) -> 2 | I87: =H87 -> 2 | J87: =IF(_xlfn.MINIFS(Auswertung!$F$3:$F$17,Auswertung!$J$3:$J$17, $E87,Auswertung!$S$3:$S$17, ">="&J21)=0,"-",_xlfn.MINIFS(Auswertung!$F$3:$F$17,Auswertung!$J$3:$J$17, $E87,Auswertung!$S$3:$S$17, ">="&J21)) -> 2 | K87: =J87 -> 2 | L87: =IF(_xlfn.MINIFS(Auswertung!$F$3:$F$17,Auswertung!$J$3:$J$17, $E87,Auswertung!$S$3:$S$17, ">="&L21)=0,"-",_xlfn.MINIFS(Auswertung!$F$3:$F$17,Auswertung!$J$3:$J$17, $E87,Auswertung!$S$3:$S$17, ">="&L21)) -> 2 | M87: =L87 -> 2 | N87: =IF(_xlfn.MINIFS(Auswertung!$F$3:$F$17,Auswertung!$J$3:$J$17, $E87,Auswertung!$S$3:$S$17, ">="&N21)=0,"-",_xlfn.MINIFS(Auswertung!$F$3:$F$17,Auswertung!$J$3:$J$17, $E87,Auswertung!$S$3:$S$17, ">="&N21)) -> 2 | O87: =N87 -> 2 | P87: =IF(_xlfn.MINIFS(Auswertung!$F$3:$F$17,Auswertung!$J$3:$J$17, $E87,Auswertung!$S$3:$S$17, ">="&P21)=0,"-",_xlfn.MINIFS(Auswertung!$F$3:$F$17,Auswertung!$J$3:$J$17, $E87,Auswertung!$S$3:$S$17, ">="&P21)) -> 2 | Q87: =P87 -> 2 | R87: =IF(_xlfn.MINIFS(Auswertung!$F$3:$F$17,Auswertung!$J$3:$J$17, $E87,Auswertung!$S$3:$S$17, ">="&R21)=0,"-",_xlfn.MINIFS(Auswertung!$F$3:$F$17,Auswertung!$J$3:$J$17, $E87,Auswertung!$S$3:$S$17, ">="&R21)) -> 2 | S87: =R87 -> 2 | T87: =IF(_xlfn.MINIFS(Auswertung!$F$3:$F$17,Auswertung!$J$3:$J$17, $E87,Auswertung!$S$3:$S$17, ">="&T21)=0,"-",_xlfn.MINIFS(Auswertung!$F$3:$F$17,Auswertung!$J$3:$J$17, $E87,Auswertung!$S$3:$S$17, ">="&T21)) -> 2 | U87: =T87 -> 2 | V87: =IF(_xlfn.MINIFS(Auswertung!$F$3:$F$17,Auswertung!$J$3:$J$17, $E87,Auswertung!$S$3:$S$17, ">="&V21)=0,"-",_xlfn.MINIFS(Auswertung!$F$3:$F$17,Auswertung!$J$3:$J$17, $E87,Auswertung!$S$3:$S$17, ">="&V21)) -> 2 | W87: =V87 -> 2 | X87: =IF(_xlfn.MINIFS(Auswertung!$F$3:$F$17,Auswertung!$J$3:$J$17, $E87,Auswertung!$S$3:$S$17, ">="&X21)=0,"-",_xlfn.MINIFS(Auswertung!$F$3:$F$17,Auswertung!$J$3:$J$17, $E87,Auswertung!$S$3:$S$17, ">="&X21)) -> 2 | Y87: =X87 -> 2 | Z87: =IF(_xlfn.MINIFS(Auswertung!$F$3:$F$17,Auswertung!$J$3:$J$17, $E87,Auswertung!$S$3:$S$17, ">="&Z21)=0,"-",_xlfn.MINIFS(Auswertung!$F$3:$F$17,Auswertung!$J$3:$J$17, $E87,Auswertung!$S$3:$S$17, ">="&Z21)) -> 2 | AA87: =Z87 -> 2 | AB87: =IF(_xlfn.MINIFS(Auswertung!$F$3:$F$17,Auswertung!$J$3:$J$17, $E87,Auswertung!$S$3:$S$17, ">="&AB21)=0,"-",_xlfn.MINIFS(Auswertung!$F$3:$F$17,Auswertung!$J$3:$J$17, $E87,Auswertung!$S$3:$S$17, ">="&AB21)) -> 2 | AC87: =AB87 -> 2 | AD87: =IF(_xlfn.MINIFS(Auswertung!$F$3:$F$17,Auswertung!$J$3:$J$17, $E87,Auswertung!$S$3:$S$17, ">="&AD21)=0,"-",_xlfn.MINIFS(Auswertung!$F$3:$F$17,Auswertung!$J$3:$J$17, $E87,Auswertung!$S$3:$S$17, ">="&AD21)) -> 2 | AE87: =AD87 -> 2 | AF87: =IF(_xlfn.MINIFS(Auswertung!$F$3:$F$17,Auswertung!$J$3:$J$17, $E87,Auswertung!$S$3:$S$17, ">="&AF21)=0,"-",_xlfn.MINIFS(Auswertung!$F$3:$F$17,Auswertung!$J$3:$J$17, $E87,Auswertung!$S$3:$S$17, ">="&AF21)) -> 2 | AG87: =AF87 -> 2 | AH87: =IF(_xlfn.MINIFS(Auswertung!$F$3:$F$17,Auswertung!$J$3:$J$17, $E87,Auswertung!$S$3:$S$17, ">="&AH21)=0,"-",_xlfn.MINIFS(Auswertung!$F$3:$F$17,Auswertung!$J$3:$J$17, $E87,Auswertung!$S$3:$S$17, ">="&AH21)) -> 2 | AI87: 2 | AM87: III: Ortschaften, freies Feld | AN87: 340 | AO87: - | AP87: 500 | AQ87: 380 | AR87: 260 | AS87: 380 | AT87: 260 | AU87: 380 | AV87: 260 | AW87: 380 | AX87: 260 | AY87: 380 | AZ87: 260 | BA87: 380 | BB87: 260 | BC87: 380 | BD87: 260 | BE87: 380 | BF87: 260 | BG87: 380 | BH87: 260 | BI87: 380 | BJ87: 260 | BK87: 380 | BL87: 260 | BM87: 380 | BN87: 260 | BO87: 380 | BP87: 260 | BQ87: 380 | BR87: 260 | BS87: 380 | BT87: 260
C88: 500 | D88: - | E88: 1000 | F88: =IF(_xlfn.MINIFS(Auswertung!$F$3:$F$17,Auswertung!$J$3:$J$17, $E88,Auswertung!$S$3:$S$17, ">="&F22)=0,"-",_xlfn.MINIFS(Auswertung!$F$3:$F$17,Auswertung!$J$3:$J$17, $E88,Auswertung!$S$3:$S$17, ">="&F22)) -> 3 | G88: 3 | H88: =IF(_xlfn.MINIFS(Auswertung!$F$3:$F$17,Auswertung!$J$3:$J$17, $E88,Auswertung!$S$3:$S$17, ">="&H22)=0,"-",_xlfn.MINIFS(Auswertung!$F$3:$F$17,Auswertung!$J$3:$J$17, $E88,Auswertung!$S$3:$S$17, ">="&H22)) -> 3 | I88: =H88 -> 3 | J88: =IF(_xlfn.MINIFS(Auswertung!$F$3:$F$17,Auswertung!$J$3:$J$17, $E88,Auswertung!$S$3:$S$17, ">="&J22)=0,"-",_xlfn.MINIFS(Auswertung!$F$3:$F$17,Auswertung!$J$3:$J$17, $E88,Auswertung!$S$3:$S$17, ">="&J22)) -> 3 | K88: =J88 -> 3 | L88: =IF(_xlfn.MINIFS(Auswertung!$F$3:$F$17,Auswertung!$J$3:$J$17, $E88,Auswertung!$S$3:$S$17, ">="&L22)=0,"-",_xlfn.MINIFS(Auswertung!$F$3:$F$17,Auswertung!$J$3:$J$17, $E88,Auswertung!$S$3:$S$17, ">="&L22)) -> 3 | M88: =L88 -> 3 | N88: =IF(_xlfn.MINIFS(Auswertung!$F$3:$F$17,Auswertung!$J$3:$J$17, $E88,Auswertung!$S$3:$S$17, ">="&N22)=0,"-",_xlfn.MINIFS(Auswertung!$F$3:$F$17,Auswertung!$J$3:$J$17, $E88,Auswertung!$S$3:$S$17, ">="&N22)) -> 3 | O88: =N88 -> 3 | P88: =IF(_xlfn.MINIFS(Auswertung!$F$3:$F$17,Auswertung!$J$3:$J$17, $E88,Auswertung!$S$3:$S$17, ">="&P22)=0,"-",_xlfn.MINIFS(Auswertung!$F$3:$F$17,Auswertung!$J$3:$J$17, $E88,Auswertung!$S$3:$S$17, ">="&P22)) -> 3 | Q88: =P88 -> 3 | R88: =IF(_xlfn.MINIFS(Auswertung!$F$3:$F$17,Auswertung!$J$3:$J$17, $E88,Auswertung!$S$3:$S$17, ">="&R22)=0,"-",_xlfn.MINIFS(Auswertung!$F$3:$F$17,Auswertung!$J$3:$J$17, $E88,Auswertung!$S$3:$S$17, ">="&R22)) -> 3 | S88: =R88 -> 3 | T88: =IF(_xlfn.MINIFS(Auswertung!$F$3:$F$17,Auswertung!$J$3:$J$17, $E88,Auswertung!$S$3:$S$17, ">="&T22)=0,"-",_xlfn.MINIFS(Auswertung!$F$3:$F$17,Auswertung!$J$3:$J$17, $E88,Auswertung!$S$3:$S$17, ">="&T22)) -> 3 | U88: =T88 -> 3 | V88: =IF(_xlfn.MINIFS(Auswertung!$F$3:$F$17,Auswertung!$J$3:$J$17, $E88,Auswertung!$S$3:$S$17, ">="&V22)=0,"-",_xlfn.MINIFS(Auswertung!$F$3:$F$17,Auswertung!$J$3:$J$17, $E88,Auswertung!$S$3:$S$17, ">="&V22)) -> 3 | W88: =V88 -> 3 | X88: =IF(_xlfn.MINIFS(Auswertung!$F$3:$F$17,Auswertung!$J$3:$J$17, $E88,Auswertung!$S$3:$S$17, ">="&X22)=0,"-",_xlfn.MINIFS(Auswertung!$F$3:$F$17,Auswertung!$J$3:$J$17, $E88,Auswertung!$S$3:$S$17, ">="&X22)) -> 3 | Y88: =X88 -> 3 | Z88: =IF(_xlfn.MINIFS(Auswertung!$F$3:$F$17,Auswertung!$J$3:$J$17, $E88,Auswertung!$S$3:$S$17, ">="&Z22)=0,"-",_xlfn.MINIFS(Auswertung!$F$3:$F$17,Auswertung!$J$3:$J$17, $E88,Auswertung!$S$3:$S$17, ">="&Z22)) -> 3 | AA88: =Z88 -> 3 | AB88: =IF(_xlfn.MINIFS(Auswertung!$F$3:$F$17,Auswertung!$J$3:$J$17, $E88,Auswertung!$S$3:$S$17, ">="&AB22)=0,"-",_xlfn.MINIFS(Auswertung!$F$3:$F$17,Auswertung!$J$3:$J$17, $E88,Auswertung!$S$3:$S$17, ">="&AB22)) -> 3 | AC88: =AB88 -> 3 | AD88: =IF(_xlfn.MINIFS(Auswertung!$F$3:$F$17,Auswertung!$J$3:$J$17, $E88,Auswertung!$S$3:$S$17, ">="&AD22)=0,"-",_xlfn.MINIFS(Auswertung!$F$3:$F$17,Auswertung!$J$3:$J$17, $E88,Auswertung!$S$3:$S$17, ">="&AD22)) -> 3 | AE88: =AD88 -> 3 | AF88: =IF(_xlfn.MINIFS(Auswertung!$F$3:$F$17,Auswertung!$J$3:$J$17, $E88,Auswertung!$S$3:$S$17, ">="&AF22)=0,"-",_xlfn.MINIFS(Auswertung!$F$3:$F$17,Auswertung!$J$3:$J$17, $E88,Auswertung!$S$3:$S$17, ">="&AF22)) -> 3 | AG88: =AF88 -> 3 | AH88: =IF(_xlfn.MINIFS(Auswertung!$F$3:$F$17,Auswertung!$J$3:$J$17, $E88,Auswertung!$S$3:$S$17, ">="&AH22)=0,"-",_xlfn.MINIFS(Auswertung!$F$3:$F$17,Auswertung!$J$3:$J$17, $E88,Auswertung!$S$3:$S$17, ">="&AH22)) -> - | AI88: - | AN88: 500 | AO88: - | AP88: 1000 | AQ88: 440 | AR88: 380 | AS88: 440 | AT88: 380 | AU88: 440 | AV88: 380 | AW88: 440 | AX88: 380 | AY88: 440 | AZ88: 380 | BA88: 440 | BB88: 380 | BC88: 440 | BD88: 380 | BE88: 440 | BF88: 380 | BG88: 440 | BH88: 380 | BI88: 440 | BJ88: 380 | BK88: 440 | BL88: 380 | BM88: 440 | BN88: 380 | BO88: 440 | BP88: 380 | BQ88: 440 | BR88: 380 | BS88: - | BT88: -
C89: 1000 | D89: - | E89: 1500 | F89: =IF(_xlfn.MINIFS(Auswertung!$F$3:$F$17,Auswertung!$J$3:$J$17, $E89,Auswertung!$S$3:$S$17, ">="&F23)=0,"-",_xlfn.MINIFS(Auswertung!$F$3:$F$17,Auswertung!$J$3:$J$17, $E89,Auswertung!$S$3:$S$17, ">="&F23)) -> 3 | G89: 3 | H89: =IF(_xlfn.MINIFS(Auswertung!$F$3:$F$17,Auswertung!$J$3:$J$17, $E89,Auswertung!$S$3:$S$17, ">="&H23)=0,"-",_xlfn.MINIFS(Auswertung!$F$3:$F$17,Auswertung!$J$3:$J$17, $E89,Auswertung!$S$3:$S$17, ">="&H23)) -> 3 | I89: =H89 -> 3 | J89: =IF(_xlfn.MINIFS(Auswertung!$F$3:$F$17,Auswertung!$J$3:$J$17, $E89,Auswertung!$S$3:$S$17, ">="&J23)=0,"-",_xlfn.MINIFS(Auswertung!$F$3:$F$17,Auswertung!$J$3:$J$17, $E89,Auswertung!$S$3:$S$17, ">="&J23)) -> 4 | K89: =J89 -> 4 | L89: =IF(_xlfn.MINIFS(Auswertung!$F$3:$F$17,Auswertung!$J$3:$J$17, $E89,Auswertung!$S$3:$S$17, ">="&L23)=0,"-",_xlfn.MINIFS(Auswertung!$F$3:$F$17,Auswertung!$J$3:$J$17, $E89,Auswertung!$S$3:$S$17, ">="&L23)) -> 4 | M89: =L89 -> 4 | N89: =IF(_xlfn.MINIFS(Auswertung!$F$3:$F$17,Auswertung!$J$3:$J$17, $E89,Auswertung!$S$3:$S$17, ">="&N23)=0,"-",_xlfn.MINIFS(Auswertung!$F$3:$F$17,Auswertung!$J$3:$J$17, $E89,Auswertung!$S$3:$S$17, ">="&N23)) -> 4 | O89: =N89 -> 4 | P89: =IF(_xlfn.MINIFS(Auswertung!$F$3:$F$17,Auswertung!$J$3:$J$17, $E89,Auswertung!$S$3:$S$17, ">="&P23)=0,"-",_xlfn.MINIFS(Auswertung!$F$3:$F$17,Auswertung!$J$3:$J$17, $E89,Auswertung!$S$3:$S$17, ">="&P23)) -> 4 | Q89: =P89 -> 4 | R89: =IF(_xlfn.MINIFS(Auswertung!$F$3:$F$17,Auswertung!$J$3:$J$17, $E89,Auswertung!$S$3:$S$17, ">="&R23)=0,"-",_xlfn.MINIFS(Auswertung!$F$3:$F$17,Auswertung!$J$3:$J$17, $E89,Auswertung!$S$3:$S$17, ">="&R23)) -> 4 | S89: =R89 -> 4 | T89: =IF(_xlfn.MINIFS(Auswertung!$F$3:$F$17,Auswertung!$J$3:$J$17, $E89,Auswertung!$S$3:$S$17, ">="&T23)=0,"-",_xlfn.MINIFS(Auswertung!$F$3:$F$17,Auswertung!$J$3:$J$17, $E89,Auswertung!$S$3:$S$17, ">="&T23)) -> 4 | U89: =T89 -> 4 | V89: =IF(_xlfn.MINIFS(Auswertung!$F$3:$F$17,Auswertung!$J$3:$J$17, $E89,Auswertung!$S$3:$S$17, ">="&V23)=0,"-",_xlfn.MINIFS(Auswertung!$F$3:$F$17,Auswertung!$J$3:$J$17, $E89,Auswertung!$S$3:$S$17, ">="&V23)) -> 4 | W89: =V89 -> 4 | X89: =IF(_xlfn.MINIFS(Auswertung!$F$3:$F$17,Auswertung!$J$3:$J$17, $E89,Auswertung!$S$3:$S$17, ">="&X23)=0,"-",_xlfn.MINIFS(Auswertung!$F$3:$F$17,Auswertung!$J$3:$J$17, $E89,Auswertung!$S$3:$S$17, ">="&X23)) -> 4 | Y89: =X89 -> 4 | Z89: =IF(_xlfn.MINIFS(Auswertung!$F$3:$F$17,Auswertung!$J$3:$J$17, $E89,Auswertung!$S$3:$S$17, ">="&Z23)=0,"-",_xlfn.MINIFS(Auswertung!$F$3:$F$17,Auswertung!$J$3:$J$17, $E89,Auswertung!$S$3:$S$17, ">="&Z23)) -> 4 | AA89: =Z89 -> 4 | AB89: =IF(_xlfn.MINIFS(Auswertung!$F$3:$F$17,Auswertung!$J$3:$J$17, $E89,Auswertung!$S$3:$S$17, ">="&AB23)=0,"-",_xlfn.MINIFS(Auswertung!$F$3:$F$17,Auswertung!$J$3:$J$17, $E89,Auswertung!$S$3:$S$17, ">="&AB23)) -> 4 | AC89: =AB89 -> 4 | AD89: =IF(_xlfn.MINIFS(Auswertung!$F$3:$F$17,Auswertung!$J$3:$J$17, $E89,Auswertung!$S$3:$S$17, ">="&AD23)=0,"-",_xlfn.MINIFS(Auswertung!$F$3:$F$17,Auswertung!$J$3:$J$17, $E89,Auswertung!$S$3:$S$17, ">="&AD23)) -> 4 | AE89: =AD89 -> 4 | AF89: =IF(_xlfn.MINIFS(Auswertung!$F$3:$F$17,Auswertung!$J$3:$J$17, $E89,Auswertung!$S$3:$S$17, ">="&AF23)=0,"-",_xlfn.MINIFS(Auswertung!$F$3:$F$17,Auswertung!$J$3:$J$17, $E89,Auswertung!$S$3:$S$17, ">="&AF23)) -> 4 | AG89: =AF89 -> 4 | AH89: =IF(_xlfn.MINIFS(Auswertung!$F$3:$F$17,Auswertung!$J$3:$J$17, $E89,Auswertung!$S$3:$S$17, ">="&AH23)=0,"-",_xlfn.MINIFS(Auswertung!$F$3:$F$17,Auswertung!$J$3:$J$17, $E89,Auswertung!$S$3:$S$17, ">="&AH23)) -> - | AI89: - | AN89: 1000 | AO89: - | AP89: 1500 | AQ89: 690 | AR89: 630 | AS89: 690 | AT89: 630 | AU89: 460 | AV89: 420 | AW89: 460 | AX89: 420 | AY89: 460 | AZ89: 420 | BA89: 460 | BB89: 420 | BC89: 460 | BD89: 420 | BE89: 460 | BF89: 420 | BG89: 460 | BH89: 420 | BI89: 460 | BJ89: 420 | BK89: 460 | BL89: 420 | BM89: 460 | BN89: 420 | BO89: 460 | BP89: 420 | BQ89: 460 | BR89: 420 | BS89: - | BT89: -
C90: 1500 | D90: - | E90: 2000 | F90: =IF(_xlfn.MINIFS(Auswertung!$F$3:$F$17,Auswertung!$J$3:$J$17, $E90,Auswertung!$S$3:$S$17, ">="&F24)=0,"-",_xlfn.MINIFS(Auswertung!$F$3:$F$17,Auswertung!$J$3:$J$17, $E90,Auswertung!$S$3:$S$17, ">="&F24)) -> 4 | G90: 4 | H90: =IF(_xlfn.MINIFS(Auswertung!$F$3:$F$17,Auswertung!$J$3:$J$17, $E90,Auswertung!$S$3:$S$17, ">="&H24)=0,"-",_xlfn.MINIFS(Auswertung!$F$3:$F$17,Auswertung!$J$3:$J$17, $E90,Auswertung!$S$3:$S$17, ">="&H24)) -> 4 | I90: =H90 -> 4 | J90: =IF(_xlfn.MINIFS(Auswertung!$F$3:$F$17,Auswertung!$J$3:$J$17, $E90,Auswertung!$S$3:$S$17, ">="&J24)=0,"-",_xlfn.MINIFS(Auswertung!$F$3:$F$17,Auswertung!$J$3:$J$17, $E90,Auswertung!$S$3:$S$17, ">="&J24)) -> 4 | K90: =J90 -> 4 | L90: =IF(_xlfn.MINIFS(Auswertung!$F$3:$F$17,Auswertung!$J$3:$J$17, $E90,Auswertung!$S$3:$S$17, ">="&L24)=0,"-",_xlfn.MINIFS(Auswertung!$F$3:$F$17,Auswertung!$J$3:$J$17, $E90,Auswertung!$S$3:$S$17, ">="&L24)) -> 4 | M90: =L90 -> 4 | N90: =IF(_xlfn.MINIFS(Auswertung!$F$3:$F$17,Auswertung!$J$3:$J$17, $E90,Auswertung!$S$3:$S$17, ">="&N24)=0,"-",_xlfn.MINIFS(Auswertung!$F$3:$F$17,Auswertung!$J$3:$J$17, $E90,Auswertung!$S$3:$S$17, ">="&N24)) -> 5 | O90: =N90 -> 5 | P90: =IF(_xlfn.MINIFS(Auswertung!$F$3:$F$17,Auswertung!$J$3:$J$17, $E90,Auswertung!$S$3:$S$17, ">="&P24)=0,"-",_xlfn.MINIFS(Auswertung!$F$3:$F$17,Auswertung!$J$3:$J$17, $E90,Auswertung!$S$3:$S$17, ">="&P24)) -> 4 | Q90: =P90 -> 4 | R90: =IF(_xlfn.MINIFS(Auswertung!$F$3:$F$17,Auswertung!$J$3:$J$17, $E90,Auswertung!$S$3:$S$17, ">="&R24)=0,"-",_xlfn.MINIFS(Auswertung!$F$3:$F$17,Auswertung!$J$3:$J$17, $E90,Auswertung!$S$3:$S$17, ">="&R24)) -> 5 | S90: =R90 -> 5 | T90: =IF(_xlfn.MINIFS(Auswertung!$F$3:$F$17,Auswertung!$J$3:$J$17, $E90,Auswertung!$S$3:$S$17, ">="&T24)=0,"-",_xlfn.MINIFS(Auswertung!$F$3:$F$17,Auswertung!$J$3:$J$17, $E90,Auswertung!$S$3:$S$17, ">="&T24)) -> 5 | U90: =T90 -> 5 | V90: =IF(_xlfn.MINIFS(Auswertung!$F$3:$F$17,Auswertung!$J$3:$J$17, $E90,Auswertung!$S$3:$S$17, ">="&V24)=0,"-",_xlfn.MINIFS(Auswertung!$F$3:$F$17,Auswertung!$J$3:$J$17, $E90,Auswertung!$S$3:$S$17, ">="&V24)) -> 5 | W90: =V90 -> 5 | X90: =IF(_xlfn.MINIFS(Auswertung!$F$3:$F$17,Auswertung!$J$3:$J$17, $E90,Auswertung!$S$3:$S$17, ">="&X24)=0,"-",_xlfn.MINIFS(Auswertung!$F$3:$F$17,Auswertung!$J$3:$J$17, $E90,Auswertung!$S$3:$S$17, ">="&X24)) -> 5 | Y90: =X90 -> 5 | Z90: =IF(_xlfn.MINIFS(Auswertung!$F$3:$F$17,Auswertung!$J$3:$J$17, $E90,Auswertung!$S$3:$S$17, ">="&Z24)=0,"-",_xlfn.MINIFS(Auswertung!$F$3:$F$17,Auswertung!$J$3:$J$17, $E90,Auswertung!$S$3:$S$17, ">="&Z24)) -> 5 | AA90: =Z90 -> 5 | AB90: =IF(_xlfn.MINIFS(Auswertung!$F$3:$F$17,Auswertung!$J$3:$J$17, $E90,Auswertung!$S$3:$S$17, ">="&AB24)=0,"-",_xlfn.MINIFS(Auswertung!$F$3:$F$17,Auswertung!$J$3:$J$17, $E90,Auswertung!$S$3:$S$17, ">="&AB24)) -> 5 | AC90: =AB90 -> 5 | AD90: =IF(_xlfn.MINIFS(Auswertung!$F$3:$F$17,Auswertung!$J$3:$J$17, $E90,Auswertung!$S$3:$S$17, ">="&AD24)=0,"-",_xlfn.MINIFS(Auswertung!$F$3:$F$17,Auswertung!$J$3:$J$17, $E90,Auswertung!$S$3:$S$17, ">="&AD24)) -> 5 | AE90: =AD90 -> 5 | AF90: =IF(_xlfn.MINIFS(Auswertung!$F$3:$F$17,Auswertung!$J$3:$J$17, $E90,Auswertung!$S$3:$S$17, ">="&AF24)=0,"-",_xlfn.MINIFS(Auswertung!$F$3:$F$17,Auswertung!$J$3:$J$17, $E90,Auswertung!$S$3:$S$17, ">="&AF24)) -> 5 | AG90: =AF90 -> 5 | AH90: =IF(_xlfn.MINIFS(Auswertung!$F$3:$F$17,Auswertung!$J$3:$J$17, $E90,Auswertung!$S$3:$S$17, ">="&AH24)=0,"-",_xlfn.MINIFS(Auswertung!$F$3:$F$17,Auswertung!$J$3:$J$17, $E90,Auswertung!$S$3:$S$17, ">="&AH24)) -> 6 | AI90: 6 | AN90: 1500 | AO90: - | AP90: 2000 | AQ90: 627 | AR90: 587 | AS90: 627 | AT90: 587 | AU90: 627 | AV90: 587 | AW90: 627 | AX90: 587 | AY90: 470 | AZ90: 440 | BA90: 627 | BB90: 587 | BC90: 470 | BD90: 440 | BE90: 470 | BF90: 440 | BG90: 470 | BH90: 440 | BI90: 470 | BJ90: 440 | BK90: 470 | BL90: 440 | BM90: 470 | BN90: 440 | BO90: 470 | BP90: 440 | BQ90: 470 | BR90: 440 | BS90: 376 | BT90: 352
C91: 2000 | D91: - | E91: 2500 | F91: =IF(_xlfn.MINIFS(Auswertung!$F$3:$F$17,Auswertung!$J$3:$J$17, $E91,Auswertung!$S$3:$S$17, ">="&F25)=0,"-",_xlfn.MINIFS(Auswertung!$F$3:$F$17,Auswertung!$J$3:$J$17, $E91,Auswertung!$S$3:$S$17, ">="&F25)) -> 5 | G91: 5 | H91: =IF(_xlfn.MINIFS(Auswertung!$F$3:$F$17,Auswertung!$J$3:$J$17, $E91,Auswertung!$S$3:$S$17, ">="&H25)=0,"-",_xlfn.MINIFS(Auswertung!$F$3:$F$17,Auswertung!$J$3:$J$17, $E91,Auswertung!$S$3:$S$17, ">="&H25)) -> 5 | I91: =H91 -> 5 | J91: =IF(_xlfn.MINIFS(Auswertung!$F$3:$F$17,Auswertung!$J$3:$J$17, $E91,Auswertung!$S$3:$S$17, ">="&J25)=0,"-",_xlfn.MINIFS(Auswertung!$F$3:$F$17,Auswertung!$J$3:$J$17, $E91,Auswertung!$S$3:$S$17, ">="&J25)) -> 5 | K91: =J91 -> 5 | L91: =IF(_xlfn.MINIFS(Auswertung!$F$3:$F$17,Auswertung!$J$3:$J$17, $E91,Auswertung!$S$3:$S$17, ">="&L25)=0,"-",_xlfn.MINIFS(Auswertung!$F$3:$F$17,Auswertung!$J$3:$J$17, $E91,Auswertung!$S$3:$S$17, ">="&L25)) -> 5 | M91: =L91 -> 5 | N91: =IF(_xlfn.MINIFS(Auswertung!$F$3:$F$17,Auswertung!$J$3:$J$17, $E91,Auswertung!$S$3:$S$17, ">="&N25)=0,"-",_xlfn.MINIFS(Auswertung!$F$3:$F$17,Auswertung!$J$3:$J$17, $E91,Auswertung!$S$3:$S$17, ">="&N25)) -> 6 | O91: =N91 -> 6 | P91: =IF(_xlfn.MINIFS(Auswertung!$F$3:$F$17,Auswertung!$J$3:$J$17, $E91,Auswertung!$S$3:$S$17, ">="&P25)=0,"-",_xlfn.MINIFS(Auswertung!$F$3:$F$17,Auswertung!$J$3:$J$17, $E91,Auswertung!$S$3:$S$17, ">="&P25)) -> 5 | Q91: =P91 -> 5 | R91: =IF(_xlfn.MINIFS(Auswertung!$F$3:$F$17,Auswertung!$J$3:$J$17, $E91,Auswertung!$S$3:$S$17, ">="&R25)=0,"-",_xlfn.MINIFS(Auswertung!$F$3:$F$17,Auswertung!$J$3:$J$17, $E91,Auswertung!$S$3:$S$17, ">="&R25)) -> 5 | S91: =R91 -> 5 | T91: =IF(_xlfn.MINIFS(Auswertung!$F$3:$F$17,Auswertung!$J$3:$J$17, $E91,Auswertung!$S$3:$S$17, ">="&T25)=0,"-",_xlfn.MINIFS(Auswertung!$F$3:$F$17,Auswertung!$J$3:$J$17, $E91,Auswertung!$S$3:$S$17, ">="&T25)) -> 6 | U91: =T91 -> 6 | V91: =IF(_xlfn.MINIFS(Auswertung!$F$3:$F$17,Auswertung!$J$3:$J$17, $E91,Auswertung!$S$3:$S$17, ">="&V25)=0,"-",_xlfn.MINIFS(Auswertung!$F$3:$F$17,Auswertung!$J$3:$J$17, $E91,Auswertung!$S$3:$S$17, ">="&V25)) -> 6 | W91: =V91 -> 6 | X91: =IF(_xlfn.MINIFS(Auswertung!$F$3:$F$17,Auswertung!$J$3:$J$17, $E91,Auswertung!$S$3:$S$17, ">="&X25)=0,"-",_xlfn.MINIFS(Auswertung!$F$3:$F$17,Auswertung!$J$3:$J$17, $E91,Auswertung!$S$3:$S$17, ">="&X25)) -> 6 | Y91: =X91 -> 6 | Z91: =IF(_xlfn.MINIFS(Auswertung!$F$3:$F$17,Auswertung!$J$3:$J$17, $E91,Auswertung!$S$3:$S$17, ">="&Z25)=0,"-",_xlfn.MINIFS(Auswertung!$F$3:$F$17,Auswertung!$J$3:$J$17, $E91,Auswertung!$S$3:$S$17, ">="&Z25)) -> 6 | AA91: =Z91 -> 6 | AB91: =IF(_xlfn.MINIFS(Auswertung!$F$3:$F$17,Auswertung!$J$3:$J$17, $E91,Auswertung!$S$3:$S$17, ">="&AB25)=0,"-",_xlfn.MINIFS(Auswertung!$F$3:$F$17,Auswertung!$J$3:$J$17, $E91,Auswertung!$S$3:$S$17, ">="&AB25)) -> 6 | AC91: =AB91 -> 6 | AD91: =IF(_xlfn.MINIFS(Auswertung!$F$3:$F$17,Auswertung!$J$3:$J$17, $E91,Auswertung!$S$3:$S$17, ">="&AD25)=0,"-",_xlfn.MINIFS(Auswertung!$F$3:$F$17,Auswertung!$J$3:$J$17, $E91,Auswertung!$S$3:$S$17, ">="&AD25)) -> 6 | AE91: =AD91 -> 6 | AF91: =IF(_xlfn.MINIFS(Auswertung!$F$3:$F$17,Auswertung!$J$3:$J$17, $E91,Auswertung!$S$3:$S$17, ">="&AF25)=0,"-",_xlfn.MINIFS(Auswertung!$F$3:$F$17,Auswertung!$J$3:$J$17, $E91,Auswertung!$S$3:$S$17, ">="&AF25)) -> 6 | AG91: =AF91 -> 6 | AH91: =IF(_xlfn.MINIFS(Auswertung!$F$3:$F$17,Auswertung!$J$3:$J$17, $E91,Auswertung!$S$3:$S$17, ">="&AH25)=0,"-",_xlfn.MINIFS(Auswertung!$F$3:$F$17,Auswertung!$J$3:$J$17, $E91,Auswertung!$S$3:$S$17, ">="&AH25)) -> 7 | AI91: 7 | AN91: 2000 | AO91: - | AP91: 2500 | AQ91: 595 | AR91: 565 | AS91: 595 | AT91: 565 | AU91: 595 | AV91: 565 | AW91: 595 | AX91: 565 | AY91: 476 | AZ91: 452 | BA91: 595 | BB91: 565 | BC91: 595 | BD91: 565 | BE91: 476 | BF91: 452 | BG91: 476 | BH91: 452 | BI91: 476 | BJ91: 452 | BK91: 476 | BL91: 452 | BM91: 476 | BN91: 452 | BO91: 476 | BP91: 452 | BQ91: 476 | BR91: 452 | BS91: 397 | BT91: 377
C92: 2500 | D92: - | E92: 3050 | F92: =IF(_xlfn.MINIFS(Auswertung!$F$3:$F$17,Auswertung!$J$3:$J$17, $E92,Auswertung!$S$3:$S$17, ">="&F26)=0,"-",_xlfn.MINIFS(Auswertung!$F$3:$F$17,Auswertung!$J$3:$J$17, $E92,Auswertung!$S$3:$S$17, ">="&F26)) -> 6 | G92: 6 | H92: =IF(_xlfn.MINIFS(Auswertung!$F$3:$F$17,Auswertung!$J$3:$J$17, $E92,Auswertung!$S$3:$S$17, ">="&H26)=0,"-",_xlfn.MINIFS(Auswertung!$F$3:$F$17,Auswertung!$J$3:$J$17, $E92,Auswertung!$S$3:$S$17, ">="&H26)) -> 6 | I92: =H92 -> 6 | J92: =IF(_xlfn.MINIFS(Auswertung!$F$3:$F$17,Auswertung!$J$3:$J$17, $E92,Auswertung!$S$3:$S$17, ">="&J26)=0,"-",_xlfn.MINIFS(Auswertung!$F$3:$F$17,Auswertung!$J$3:$J$17, $E92,Auswertung!$S$3:$S$17, ">="&J26)) -> 6 | K92: =J92 -> 6 | L92: =IF(_xlfn.MINIFS(Auswertung!$F$3:$F$17,Auswertung!$J$3:$J$17, $E92,Auswertung!$S$3:$S$17, ">="&L26)=0,"-",_xlfn.MINIFS(Auswertung!$F$3:$F$17,Auswertung!$J$3:$J$17, $E92,Auswertung!$S$3:$S$17, ">="&L26)) -> 6 | M92: =L92 -> 6 | N92: =IF(_xlfn.MINIFS(Auswertung!$F$3:$F$17,Auswertung!$J$3:$J$17, $E92,Auswertung!$S$3:$S$17, ">="&N26)=0,"-",_xlfn.MINIFS(Auswertung!$F$3:$F$17,Auswertung!$J$3:$J$17, $E92,Auswertung!$S$3:$S$17, ">="&N26)) -> 7 | O92: =N92 -> 7 | P92: =IF(_xlfn.MINIFS(Auswertung!$F$3:$F$17,Auswertung!$J$3:$J$17, $E92,Auswertung!$S$3:$S$17, ">="&P26)=0,"-",_xlfn.MINIFS(Auswertung!$F$3:$F$17,Auswertung!$J$3:$J$17, $E92,Auswertung!$S$3:$S$17, ">="&P26)) -> 6 | Q92: =P92 -> 6 | R92: =IF(_xlfn.MINIFS(Auswertung!$F$3:$F$17,Auswertung!$J$3:$J$17, $E92,Auswertung!$S$3:$S$17, ">="&R26)=0,"-",_xlfn.MINIFS(Auswertung!$F$3:$F$17,Auswertung!$J$3:$J$17, $E92,Auswertung!$S$3:$S$17, ">="&R26)) -> 6 | S92: =R92 -> 6 | T92: =IF(_xlfn.MINIFS(Auswertung!$F$3:$F$17,Auswertung!$J$3:$J$17, $E92,Auswertung!$S$3:$S$17, ">="&T26)=0,"-",_xlfn.MINIFS(Auswertung!$F$3:$F$17,Auswertung!$J$3:$J$17, $E92,Auswertung!$S$3:$S$17, ">="&T26)) -> 7 | U92: =T92 -> 7 | V92: =IF(_xlfn.MINIFS(Auswertung!$F$3:$F$17,Auswertung!$J$3:$J$17, $E92,Auswertung!$S$3:$S$17, ">="&V26)=0,"-",_xlfn.MINIFS(Auswertung!$F$3:$F$17,Auswertung!$J$3:$J$17, $E92,Auswertung!$S$3:$S$17, ">="&V26)) -> 7 | W92: =V92 -> 7 | X92: =IF(_xlfn.MINIFS(Auswertung!$F$3:$F$17,Auswertung!$J$3:$J$17, $E92,Auswertung!$S$3:$S$17, ">="&X26)=0,"-",_xlfn.MINIFS(Auswertung!$F$3:$F$17,Auswertung!$J$3:$J$17, $E92,Auswertung!$S$3:$S$17, ">="&X26)) -> 7 | Y92: =X92 -> 7 | Z92: =IF(_xlfn.MINIFS(Auswertung!$F$3:$F$17,Auswertung!$J$3:$J$17, $E92,Auswertung!$S$3:$S$17, ">="&Z26)=0,"-",_xlfn.MINIFS(Auswertung!$F$3:$F$17,Auswertung!$J$3:$J$17, $E92,Auswertung!$S$3:$S$17, ">="&Z26)) -> 7 | AA92: =Z92 -> 7 | AB92: =IF(_xlfn.MINIFS(Auswertung!$F$3:$F$17,Auswertung!$J$3:$J$17, $E92,Auswertung!$S$3:$S$17, ">="&AB26)=0,"-",_xlfn.MINIFS(Auswertung!$F$3:$F$17,Auswertung!$J$3:$J$17, $E92,Auswertung!$S$3:$S$17, ">="&AB26)) -> 7 | AC92: =AB92 -> 7 | AD92: =IF(_xlfn.MINIFS(Auswertung!$F$3:$F$17,Auswertung!$J$3:$J$17, $E92,Auswertung!$S$3:$S$17, ">="&AD26)=0,"-",_xlfn.MINIFS(Auswertung!$F$3:$F$17,Auswertung!$J$3:$J$17, $E92,Auswertung!$S$3:$S$17, ">="&AD26)) -> 7 | AE92: =AD92 -> 7 | AF92: =IF(_xlfn.MINIFS(Auswertung!$F$3:$F$17,Auswertung!$J$3:$J$17, $E92,Auswertung!$S$3:$S$17, ">="&AF26)=0,"-",_xlfn.MINIFS(Auswertung!$F$3:$F$17,Auswertung!$J$3:$J$17, $E92,Auswertung!$S$3:$S$17, ">="&AF26)) -> 7 | AG92: =AF92 -> 7 | AH92: =IF(_xlfn.MINIFS(Auswertung!$F$3:$F$17,Auswertung!$J$3:$J$17, $E92,Auswertung!$S$3:$S$17, ">="&AH26)=0,"-",_xlfn.MINIFS(Auswertung!$F$3:$F$17,Auswertung!$J$3:$J$17, $E92,Auswertung!$S$3:$S$17, ">="&AH26)) -> 9 | AI92: 9 | AN92: 2500 | AO92: - | AP92: 3050 | AQ92: 586 | AR92: 562 | AS92: 586 | AT92: 562 | AU92: 586 | AV92: 562 | AW92: 586 | AX92: 562 | AY92: 488 | AZ92: 468 | BA92: 586 | BB92: 562 | BC92: 586 | BD92: 562 | BE92: 488 | BF92: 468 | BG92: 488 | BH92: 468 | BI92: 488 | BJ92: 468 | BK92: 488 | BL92: 468 | BM92: 488 | BN92: 468 | BO92: 488 | BP92: 468 | BQ92: 488 | BR92: 468 | BS92: 366 | BT92: 351
B93: IV: Gross-flächige Stadtgebiete | C93: 340 | D93: - | E93: 500 | F93: =IF(_xlfn.MINIFS(Auswertung!$F$3:$F$17,Auswertung!$J$3:$J$17, $E93,Auswertung!$S$3:$S$17, ">="&F27)=0,"-",_xlfn.MINIFS(Auswertung!$F$3:$F$17,Auswertung!$J$3:$J$17, $E93,Auswertung!$S$3:$S$17, ">="&F27)) -> 2 | G93: 2 | H93: =IF(_xlfn.MINIFS(Auswertung!$F$3:$F$17,Auswertung!$J$3:$J$17, $E93,Auswertung!$S$3:$S$17, ">="&H27)=0,"-",_xlfn.MINIFS(Auswertung!$F$3:$F$17,Auswertung!$J$3:$J$17, $E93,Auswertung!$S$3:$S$17, ">="&H27)) -> 2 | I93: =H93 -> 2 | J93: =IF(_xlfn.MINIFS(Auswertung!$F$3:$F$17,Auswertung!$J$3:$J$17, $E93,Auswertung!$S$3:$S$17, ">="&J27)=0,"-",_xlfn.MINIFS(Auswertung!$F$3:$F$17,Auswertung!$J$3:$J$17, $E93,Auswertung!$S$3:$S$17, ">="&J27)) -> 2 | K93: =J93 -> 2 | L93: =IF(_xlfn.MINIFS(Auswertung!$F$3:$F$17,Auswertung!$J$3:$J$17, $E93,Auswertung!$S$3:$S$17, ">="&L27)=0,"-",_xlfn.MINIFS(Auswertung!$F$3:$F$17,Auswertung!$J$3:$J$17, $E93,Auswertung!$S$3:$S$17, ">="&L27)) -> 2 | M93: =L93 -> 2 | N93: =IF(_xlfn.MINIFS(Auswertung!$F$3:$F$17,Auswertung!$J$3:$J$17, $E93,Auswertung!$S$3:$S$17, ">="&N27)=0,"-",_xlfn.MINIFS(Auswertung!$F$3:$F$17,Auswertung!$J$3:$J$17, $E93,Auswertung!$S$3:$S$17, ">="&N27)) -> 2 | O93: =N93 -> 2 | P93: =IF(_xlfn.MINIFS(Auswertung!$F$3:$F$17,Auswertung!$J$3:$J$17, $E93,Auswertung!$S$3:$S$17, ">="&P27)=0,"-",_xlfn.MINIFS(Auswertung!$F$3:$F$17,Auswertung!$J$3:$J$17, $E93,Auswertung!$S$3:$S$17, ">="&P27)) -> 2 | Q93: =P93 -> 2 | R93: =IF(_xlfn.MINIFS(Auswertung!$F$3:$F$17,Auswertung!$J$3:$J$17, $E93,Auswertung!$S$3:$S$17, ">="&R27)=0,"-",_xlfn.MINIFS(Auswertung!$F$3:$F$17,Auswertung!$J$3:$J$17, $E93,Auswertung!$S$3:$S$17, ">="&R27)) -> 2 | S93: =R93 -> 2 | T93: =IF(_xlfn.MINIFS(Auswertung!$F$3:$F$17,Auswertung!$J$3:$J$17, $E93,Auswertung!$S$3:$S$17, ">="&T27)=0,"-",_xlfn.MINIFS(Auswertung!$F$3:$F$17,Auswertung!$J$3:$J$17, $E93,Auswertung!$S$3:$S$17, ">="&T27)) -> 2 | U93: =T93 -> 2 | V93: =IF(_xlfn.MINIFS(Auswertung!$F$3:$F$17,Auswertung!$J$3:$J$17, $E93,Auswertung!$S$3:$S$17, ">="&V27)=0,"-",_xlfn.MINIFS(Auswertung!$F$3:$F$17,Auswertung!$J$3:$J$17, $E93,Auswertung!$S$3:$S$17, ">="&V27)) -> 2 | W93: =V93 -> 2 | X93: =IF(_xlfn.MINIFS(Auswertung!$F$3:$F$17,Auswertung!$J$3:$J$17, $E93,Auswertung!$S$3:$S$17, ">="&X27)=0,"-",_xlfn.MINIFS(Auswertung!$F$3:$F$17,Auswertung!$J$3:$J$17, $E93,Auswertung!$S$3:$S$17, ">="&X27)) -> 2 | Y93: =X93 -> 2 | Z93: =IF(_xlfn.MINIFS(Auswertung!$F$3:$F$17,Auswertung!$J$3:$J$17, $E93,Auswertung!$S$3:$S$17, ">="&Z27)=0,"-",_xlfn.MINIFS(Auswertung!$F$3:$F$17,Auswertung!$J$3:$J$17, $E93,Auswertung!$S$3:$S$17, ">="&Z27)) -> 2 | AA93: =Z93 -> 2 | AB93: =IF(_xlfn.MINIFS(Auswertung!$F$3:$F$17,Auswertung!$J$3:$J$17, $E93,Auswertung!$S$3:$S$17, ">="&AB27)=0,"-",_xlfn.MINIFS(Auswertung!$F$3:$F$17,Auswertung!$J$3:$J$17, $E93,Auswertung!$S$3:$S$17, ">="&AB27)) -> 2 | AC93: =AB93 -> 2 | AD93: =IF(_xlfn.MINIFS(Auswertung!$F$3:$F$17,Auswertung!$J$3:$J$17, $E93,Auswertung!$S$3:$S$17, ">="&AD27)=0,"-",_xlfn.MINIFS(Auswertung!$F$3:$F$17,Auswertung!$J$3:$J$17, $E93,Auswertung!$S$3:$S$17, ">="&AD27)) -> 2 | AE93: =AD93 -> 2 | AF93: =IF(_xlfn.MINIFS(Auswertung!$F$3:$F$17,Auswertung!$J$3:$J$17, $E93,Auswertung!$S$3:$S$17, ">="&AF27)=0,"-",_xlfn.MINIFS(Auswertung!$F$3:$F$17,Auswertung!$J$3:$J$17, $E93,Auswertung!$S$3:$S$17, ">="&AF27)) -> 2 | AG93: =AF93 -> 2 | AH93: =IF(_xlfn.MINIFS(Auswertung!$F$3:$F$17,Auswertung!$J$3:$J$17, $E93,Auswertung!$S$3:$S$17, ">="&AH27)=0,"-",_xlfn.MINIFS(Auswertung!$F$3:$F$17,Auswertung!$J$3:$J$17, $E93,Auswertung!$S$3:$S$17, ">="&AH27)) -> 2 | AI93: 2 | AM93: IV: Gross-flächige Stadtgebiete | AN93: 340 | AO93: - | AP93: 500 | AQ93: 380 | AR93: 260 | AS93: 380 | AT93: 260 | AU93: 380 | AV93: 260 | AW93: 380 | AX93: 260 | AY93: 380 | AZ93: 260 | BA93: 380 | BB93: 260 | BC93: 380 | BD93: 260 | BE93: 380 | BF93: 260 | BG93: 380 | BH93: 260 | BI93: 380 | BJ93: 260 | BK93: 380 | BL93: 260 | BM93: 380 | BN93: 260 | BO93: 380 | BP93: 260 | BQ93: 380 | BR93: 260 | BS93: 380 | BT93: 260
C94: 500 | D94: - | E94: 1000 | F94: =IF(_xlfn.MINIFS(Auswertung!$F$3:$F$17,Auswertung!$J$3:$J$17, $E94,Auswertung!$S$3:$S$17, ">="&F28)=0,"-",_xlfn.MINIFS(Auswertung!$F$3:$F$17,Auswertung!$J$3:$J$17, $E94,Auswertung!$S$3:$S$17, ">="&F28)) -> 3 | G94: 3 | H94: =IF(_xlfn.MINIFS(Auswertung!$F$3:$F$17,Auswertung!$J$3:$J$17, $E94,Auswertung!$S$3:$S$17, ">="&H28)=0,"-",_xlfn.MINIFS(Auswertung!$F$3:$F$17,Auswertung!$J$3:$J$17, $E94,Auswertung!$S$3:$S$17, ">="&H28)) -> 3 | I94: =H94 -> 3 | J94: =IF(_xlfn.MINIFS(Auswertung!$F$3:$F$17,Auswertung!$J$3:$J$17, $E94,Auswertung!$S$3:$S$17, ">="&J28)=0,"-",_xlfn.MINIFS(Auswertung!$F$3:$F$17,Auswertung!$J$3:$J$17, $E94,Auswertung!$S$3:$S$17, ">="&J28)) -> 3 | K94: =J94 -> 3 | L94: =IF(_xlfn.MINIFS(Auswertung!$F$3:$F$17,Auswertung!$J$3:$J$17, $E94,Auswertung!$S$3:$S$17, ">="&L28)=0,"-",_xlfn.MINIFS(Auswertung!$F$3:$F$17,Auswertung!$J$3:$J$17, $E94,Auswertung!$S$3:$S$17, ">="&L28)) -> 3 | M94: =L94 -> 3 | N94: =IF(_xlfn.MINIFS(Auswertung!$F$3:$F$17,Auswertung!$J$3:$J$17, $E94,Auswertung!$S$3:$S$17, ">="&N28)=0,"-",_xlfn.MINIFS(Auswertung!$F$3:$F$17,Auswertung!$J$3:$J$17, $E94,Auswertung!$S$3:$S$17, ">="&N28)) -> 3 | O94: =N94 -> 3 | P94: =IF(_xlfn.MINIFS(Auswertung!$F$3:$F$17,Auswertung!$J$3:$J$17, $E94,Auswertung!$S$3:$S$17, ">="&P28)=0,"-",_xlfn.MINIFS(Auswertung!$F$3:$F$17,Auswertung!$J$3:$J$17, $E94,Auswertung!$S$3:$S$17, ">="&P28)) -> 3 | Q94: =P94 -> 3 | R94: =IF(_xlfn.MINIFS(Auswertung!$F$3:$F$17,Auswertung!$J$3:$J$17, $E94,Auswertung!$S$3:$S$17, ">="&R28)=0,"-",_xlfn.MINIFS(Auswertung!$F$3:$F$17,Auswertung!$J$3:$J$17, $E94,Auswertung!$S$3:$S$17, ">="&R28)) -> 3 | S94: =R94 -> 3 | T94: =IF(_xlfn.MINIFS(Auswertung!$F$3:$F$17,Auswertung!$J$3:$J$17, $E94,Auswertung!$S$3:$S$17, ">="&T28)=0,"-",_xlfn.MINIFS(Auswertung!$F$3:$F$17,Auswertung!$J$3:$J$17, $E94,Auswertung!$S$3:$S$17, ">="&T28)) -> 3 | U94: =T94 -> 3 | V94: =IF(_xlfn.MINIFS(Auswertung!$F$3:$F$17,Auswertung!$J$3:$J$17, $E94,Auswertung!$S$3:$S$17, ">="&V28)=0,"-",_xlfn.MINIFS(Auswertung!$F$3:$F$17,Auswertung!$J$3:$J$17, $E94,Auswertung!$S$3:$S$17, ">="&V28)) -> 3 | W94: =V94 -> 3 | X94: =IF(_xlfn.MINIFS(Auswertung!$F$3:$F$17,Auswertung!$J$3:$J$17, $E94,Auswertung!$S$3:$S$17, ">="&X28)=0,"-",_xlfn.MINIFS(Auswertung!$F$3:$F$17,Auswertung!$J$3:$J$17, $E94,Auswertung!$S$3:$S$17, ">="&X28)) -> 3 | Y94: =X94 -> 3 | Z94: =IF(_xlfn.MINIFS(Auswertung!$F$3:$F$17,Auswertung!$J$3:$J$17, $E94,Auswertung!$S$3:$S$17, ">="&Z28)=0,"-",_xlfn.MINIFS(Auswertung!$F$3:$F$17,Auswertung!$J$3:$J$17, $E94,Auswertung!$S$3:$S$17, ">="&Z28)) -> 3 | AA94: =Z94 -> 3 | AB94: =IF(_xlfn.MINIFS(Auswertung!$F$3:$F$17,Auswertung!$J$3:$J$17, $E94,Auswertung!$S$3:$S$17, ">="&AB28)=0,"-",_xlfn.MINIFS(Auswertung!$F$3:$F$17,Auswertung!$J$3:$J$17, $E94,Auswertung!$S$3:$S$17, ">="&AB28)) -> 3 | AC94: =AB94 -> 3 | AD94: =IF(_xlfn.MINIFS(Auswertung!$F$3:$F$17,Auswertung!$J$3:$J$17, $E94,Auswertung!$S$3:$S$17, ">="&AD28)=0,"-",_xlfn.MINIFS(Auswertung!$F$3:$F$17,Auswertung!$J$3:$J$17, $E94,Auswertung!$S$3:$S$17, ">="&AD28)) -> 3 | AE94: =AD94 -> 3 | AF94: =IF(_xlfn.MINIFS(Auswertung!$F$3:$F$17,Auswertung!$J$3:$J$17, $E94,Auswertung!$S$3:$S$17, ">="&AF28)=0,"-",_xlfn.MINIFS(Auswertung!$F$3:$F$17,Auswertung!$J$3:$J$17, $E94,Auswertung!$S$3:$S$17, ">="&AF28)) -> 3 | AG94: =AF94 -> 3 | AH94: =IF(_xlfn.MINIFS(Auswertung!$F$3:$F$17,Auswertung!$J$3:$J$17, $E94,Auswertung!$S$3:$S$17, ">="&AH28)=0,"-",_xlfn.MINIFS(Auswertung!$F$3:$F$17,Auswertung!$J$3:$J$17, $E94,Auswertung!$S$3:$S$17, ">="&AH28)) -> 3 | AI94: 3 | AN94: 500 | AO94: - | AP94: 1000 | AQ94: 440 | AR94: 380 | AS94: 440 | AT94: 380 | AU94: 440 | AV94: 380 | AW94: 440 | AX94: 380 | AY94: 440 | AZ94: 380 | BA94: 440 | BB94: 380 | BC94: 440 | BD94: 380 | BE94: 440 | BF94: 380 | BG94: 440 | BH94: 380 | BI94: 440 | BJ94: 380 | BK94: 440 | BL94: 380 | BM94: 440 | BN94: 380 | BO94: 440 | BP94: 380 | BQ94: 440 | BR94: 380 | BS94: 440 | BT94: 380
C95: 1000 | D95: - | E95: 1500 | F95: =IF(_xlfn.MINIFS(Auswertung!$F$3:$F$17,Auswertung!$J$3:$J$17, $E95,Auswertung!$S$3:$S$17, ">="&F29)=0,"-",_xlfn.MINIFS(Auswertung!$F$3:$F$17,Auswertung!$J$3:$J$17, $E95,Auswertung!$S$3:$S$17, ">="&F29)) -> 3 | G95: 3 | H95: =IF(_xlfn.MINIFS(Auswertung!$F$3:$F$17,Auswertung!$J$3:$J$17, $E95,Auswertung!$S$3:$S$17, ">="&H29)=0,"-",_xlfn.MINIFS(Auswertung!$F$3:$F$17,Auswertung!$J$3:$J$17, $E95,Auswertung!$S$3:$S$17, ">="&H29)) -> 3 | I95: =H95 -> 3 | J95: =IF(_xlfn.MINIFS(Auswertung!$F$3:$F$17,Auswertung!$J$3:$J$17, $E95,Auswertung!$S$3:$S$17, ">="&J29)=0,"-",_xlfn.MINIFS(Auswertung!$F$3:$F$17,Auswertung!$J$3:$J$17, $E95,Auswertung!$S$3:$S$17, ">="&J29)) -> 3 | K95: =J95 -> 3 | L95: =IF(_xlfn.MINIFS(Auswertung!$F$3:$F$17,Auswertung!$J$3:$J$17, $E95,Auswertung!$S$3:$S$17, ">="&L29)=0,"-",_xlfn.MINIFS(Auswertung!$F$3:$F$17,Auswertung!$J$3:$J$17, $E95,Auswertung!$S$3:$S$17, ">="&L29)) -> 3 | M95: =L95 -> 3 | N95: =IF(_xlfn.MINIFS(Auswertung!$F$3:$F$17,Auswertung!$J$3:$J$17, $E95,Auswertung!$S$3:$S$17, ">="&N29)=0,"-",_xlfn.MINIFS(Auswertung!$F$3:$F$17,Auswertung!$J$3:$J$17, $E95,Auswertung!$S$3:$S$17, ">="&N29)) -> 3 | O95: =N95 -> 3 | P95: =IF(_xlfn.MINIFS(Auswertung!$F$3:$F$17,Auswertung!$J$3:$J$17, $E95,Auswertung!$S$3:$S$17, ">="&P29)=0,"-",_xlfn.MINIFS(Auswertung!$F$3:$F$17,Auswertung!$J$3:$J$17, $E95,Auswertung!$S$3:$S$17, ">="&P29)) -> 3 | Q95: =P95 -> 3 | R95: =IF(_xlfn.MINIFS(Auswertung!$F$3:$F$17,Auswertung!$J$3:$J$17, $E95,Auswertung!$S$3:$S$17, ">="&R29)=0,"-",_xlfn.MINIFS(Auswertung!$F$3:$F$17,Auswertung!$J$3:$J$17, $E95,Auswertung!$S$3:$S$17, ">="&R29)) -> 3 | S95: =R95 -> 3 | T95: =IF(_xlfn.MINIFS(Auswertung!$F$3:$F$17,Auswertung!$J$3:$J$17, $E95,Auswertung!$S$3:$S$17, ">="&T29)=0,"-",_xlfn.MINIFS(Auswertung!$F$3:$F$17,Auswertung!$J$3:$J$17, $E95,Auswertung!$S$3:$S$17, ">="&T29)) -> 3 | U95: =T95 -> 3 | V95: =IF(_xlfn.MINIFS(Auswertung!$F$3:$F$17,Auswertung!$J$3:$J$17, $E95,Auswertung!$S$3:$S$17, ">="&V29)=0,"-",_xlfn.MINIFS(Auswertung!$F$3:$F$17,Auswertung!$J$3:$J$17, $E95,Auswertung!$S$3:$S$17, ">="&V29)) -> 4 | W95: =V95 -> 4 | X95: =IF(_xlfn.MINIFS(Auswertung!$F$3:$F$17,Auswertung!$J$3:$J$17, $E95,Auswertung!$S$3:$S$17, ">="&X29)=0,"-",_xlfn.MINIFS(Auswertung!$F$3:$F$17,Auswertung!$J$3:$J$17, $E95,Auswertung!$S$3:$S$17, ">="&X29)) -> 4 | Y95: =X95 -> 4 | Z95: =IF(_xlfn.MINIFS(Auswertung!$F$3:$F$17,Auswertung!$J$3:$J$17, $E95,Auswertung!$S$3:$S$17, ">="&Z29)=0,"-",_xlfn.MINIFS(Auswertung!$F$3:$F$17,Auswertung!$J$3:$J$17, $E95,Auswertung!$S$3:$S$17, ">="&Z29)) -> 3 | AA95: =Z95 -> 3 | AB95: =IF(_xlfn.MINIFS(Auswertung!$F$3:$F$17,Auswertung!$J$3:$J$17, $E95,Auswertung!$S$3:$S$17, ">="&AB29)=0,"-",_xlfn.MINIFS(Auswertung!$F$3:$F$17,Auswertung!$J$3:$J$17, $E95,Auswertung!$S$3:$S$17, ">="&AB29)) -> 3 | AC95: =AB95 -> 3 | AD95: =IF(_xlfn.MINIFS(Auswertung!$F$3:$F$17,Auswertung!$J$3:$J$17, $E95,Auswertung!$S$3:$S$17, ">="&AD29)=0,"-",_xlfn.MINIFS(Auswertung!$F$3:$F$17,Auswertung!$J$3:$J$17, $E95,Auswertung!$S$3:$S$17, ">="&AD29)) -> 4 | AE95: =AD95 -> 4 | AF95: =IF(_xlfn.MINIFS(Auswertung!$F$3:$F$17,Auswertung!$J$3:$J$17, $E95,Auswertung!$S$3:$S$17, ">="&AF29)=0,"-",_xlfn.MINIFS(Auswertung!$F$3:$F$17,Auswertung!$J$3:$J$17, $E95,Auswertung!$S$3:$S$17, ">="&AF29)) -> 4 | AG95: =AF95 -> 4 | AH95: =IF(_xlfn.MINIFS(Auswertung!$F$3:$F$17,Auswertung!$J$3:$J$17, $E95,Auswertung!$S$3:$S$17, ">="&AH29)=0,"-",_xlfn.MINIFS(Auswertung!$F$3:$F$17,Auswertung!$J$3:$J$17, $E95,Auswertung!$S$3:$S$17, ">="&AH29)) -> 4 | AI95: 4 | AN95: 1000 | AO95: - | AP95: 1500 | AQ95: 690 | AR95: 630 | AS95: 690 | AT95: 630 | AU95: 690 | AV95: 630 | AW95: 690 | AX95: 630 | AY95: 690 | AZ95: 630 | BA95: 690 | BB95: 630 | BC95: 690 | BD95: 630 | BE95: 690 | BF95: 630 | BG95: 460 | BH95: 420 | BI95: 460 | BJ95: 420 | BK95: 690 | BL95: 630 | BM95: 690 | BN95: 630 | BO95: 460 | BP95: 420 | BQ95: 460 | BR95: 420 | BS95: 460 | BT95: 420
C96: 1500 | D96: - | E96: 2000 | F96: =IF(_xlfn.MINIFS(Auswertung!$F$3:$F$17,Auswertung!$J$3:$J$17, $E96,Auswertung!$S$3:$S$17, ">="&F30)=0,"-",_xlfn.MINIFS(Auswertung!$F$3:$F$17,Auswertung!$J$3:$J$17, $E96,Auswertung!$S$3:$S$17, ">="&F30)) -> 4 | G96: 4 | H96: =IF(_xlfn.MINIFS(Auswertung!$F$3:$F$17,Auswertung!$J$3:$J$17, $E96,Auswertung!$S$3:$S$17, ">="&H30)=0,"-",_xlfn.MINIFS(Auswertung!$F$3:$F$17,Auswertung!$J$3:$J$17, $E96,Auswertung!$S$3:$S$17, ">="&H30)) -> 4 | I96: =H96 -> 4 | J96: =IF(_xlfn.MINIFS(Auswertung!$F$3:$F$17,Auswertung!$J$3:$J$17, $E96,Auswertung!$S$3:$S$17, ">="&J30)=0,"-",_xlfn.MINIFS(Auswertung!$F$3:$F$17,Auswertung!$J$3:$J$17, $E96,Auswertung!$S$3:$S$17, ">="&J30)) -> 4 | K96: =J96 -> 4 | L96: =IF(_xlfn.MINIFS(Auswertung!$F$3:$F$17,Auswertung!$J$3:$J$17, $E96,Auswertung!$S$3:$S$17, ">="&L30)=0,"-",_xlfn.MINIFS(Auswertung!$F$3:$F$17,Auswertung!$J$3:$J$17, $E96,Auswertung!$S$3:$S$17, ">="&L30)) -> 4 | M96: =L96 -> 4 | N96: =IF(_xlfn.MINIFS(Auswertung!$F$3:$F$17,Auswertung!$J$3:$J$17, $E96,Auswertung!$S$3:$S$17, ">="&N30)=0,"-",_xlfn.MINIFS(Auswertung!$F$3:$F$17,Auswertung!$J$3:$J$17, $E96,Auswertung!$S$3:$S$17, ">="&N30)) -> 4 | O96: =N96 -> 4 | P96: =IF(_xlfn.MINIFS(Auswertung!$F$3:$F$17,Auswertung!$J$3:$J$17, $E96,Auswertung!$S$3:$S$17, ">="&P30)=0,"-",_xlfn.MINIFS(Auswertung!$F$3:$F$17,Auswertung!$J$3:$J$17, $E96,Auswertung!$S$3:$S$17, ">="&P30)) -> 4 | Q96: =P96 -> 4 | R96: =IF(_xlfn.MINIFS(Auswertung!$F$3:$F$17,Auswertung!$J$3:$J$17, $E96,Auswertung!$S$3:$S$17, ">="&R30)=0,"-",_xlfn.MINIFS(Auswertung!$F$3:$F$17,Auswertung!$J$3:$J$17, $E96,Auswertung!$S$3:$S$17, ">="&R30)) -> 4 | S96: =R96 -> 4 | T96: =IF(_xlfn.MINIFS(Auswertung!$F$3:$F$17,Auswertung!$J$3:$J$17, $E96,Auswertung!$S$3:$S$17, ">="&T30)=0,"-",_xlfn.MINIFS(Auswertung!$F$3:$F$17,Auswertung!$J$3:$J$17, $E96,Auswertung!$S$3:$S$17, ">="&T30)) -> 4 | U96: =T96 -> 4 | V96: =IF(_xlfn.MINIFS(Auswertung!$F$3:$F$17,Auswertung!$J$3:$J$17, $E96,Auswertung!$S$3:$S$17, ">="&V30)=0,"-",_xlfn.MINIFS(Auswertung!$F$3:$F$17,Auswertung!$J$3:$J$17, $E96,Auswertung!$S$3:$S$17, ">="&V30)) -> 4 | W96: =V96 -> 4 | X96: =IF(_xlfn.MINIFS(Auswertung!$F$3:$F$17,Auswertung!$J$3:$J$17, $E96,Auswertung!$S$3:$S$17, ">="&X30)=0,"-",_xlfn.MINIFS(Auswertung!$F$3:$F$17,Auswertung!$J$3:$J$17, $E96,Auswertung!$S$3:$S$17, ">="&X30)) -> 5 | Y96: =X96 -> 5 | Z96: =IF(_xlfn.MINIFS(Auswertung!$F$3:$F$17,Auswertung!$J$3:$J$17, $E96,Auswertung!$S$3:$S$17, ">="&Z30)=0,"-",_xlfn.MINIFS(Auswertung!$F$3:$F$17,Auswertung!$J$3:$J$17, $E96,Auswertung!$S$3:$S$17, ">="&Z30)) -> 4 | AA96: =Z96 -> 4 | AB96: =IF(_xlfn.MINIFS(Auswertung!$F$3:$F$17,Auswertung!$J$3:$J$17, $E96,Auswertung!$S$3:$S$17, ">="&AB30)=0,"-",_xlfn.MINIFS(Auswertung!$F$3:$F$17,Auswertung!$J$3:$J$17, $E96,Auswertung!$S$3:$S$17, ">="&AB30)) -> 4 | AC96: =AB96 -> 4 | AD96: =IF(_xlfn.MINIFS(Auswertung!$F$3:$F$17,Auswertung!$J$3:$J$17, $E96,Auswertung!$S$3:$S$17, ">="&AD30)=0,"-",_xlfn.MINIFS(Auswertung!$F$3:$F$17,Auswertung!$J$3:$J$17, $E96,Auswertung!$S$3:$S$17, ">="&AD30)) -> 5 | AE96: =AD96 -> 5 | AF96: =IF(_xlfn.MINIFS(Auswertung!$F$3:$F$17,Auswertung!$J$3:$J$17, $E96,Auswertung!$S$3:$S$17, ">="&AF30)=0,"-",_xlfn.MINIFS(Auswertung!$F$3:$F$17,Auswertung!$J$3:$J$17, $E96,Auswertung!$S$3:$S$17, ">="&AF30)) -> 5 | AG96: =AF96 -> 5 | AH96: =IF(_xlfn.MINIFS(Auswertung!$F$3:$F$17,Auswertung!$J$3:$J$17, $E96,Auswertung!$S$3:$S$17, ">="&AH30)=0,"-",_xlfn.MINIFS(Auswertung!$F$3:$F$17,Auswertung!$J$3:$J$17, $E96,Auswertung!$S$3:$S$17, ">="&AH30)) -> 5 | AI96: 5 | AN96: 1500 | AO96: - | AP96: 2000 | AQ96: 627 | AR96: 587 | AS96: 627 | AT96: 587 | AU96: 627 | AV96: 587 | AW96: 627 | AX96: 587 | AY96: 627 | AZ96: 587 | BA96: 627 | BB96: 587 | BC96: 627 | BD96: 587 | BE96: 627 | BF96: 587 | BG96: 627 | BH96: 587 | BI96: 470 | BJ96: 440 | BK96: 627 | BL96: 587 | BM96: 627 | BN96: 587 | BO96: 470 | BP96: 440 | BQ96: 470 | BR96: 440 | BS96: 470 | BT96: 440
C97: 2000 | D97: - | E97: 2500 | F97: =IF(_xlfn.MINIFS(Auswertung!$F$3:$F$17,Auswertung!$J$3:$J$17, $E97,Auswertung!$S$3:$S$17, ">="&F31)=0,"-",_xlfn.MINIFS(Auswertung!$F$3:$F$17,Auswertung!$J$3:$J$17, $E97,Auswertung!$S$3:$S$17, ">="&F31)) -> 5 | G97: 5 | H97: =IF(_xlfn.MINIFS(Auswertung!$F$3:$F$17,Auswertung!$J$3:$J$17, $E97,Auswertung!$S$3:$S$17, ">="&H31)=0,"-",_xlfn.MINIFS(Auswertung!$F$3:$F$17,Auswertung!$J$3:$J$17, $E97,Auswertung!$S$3:$S$17, ">="&H31)) -> 5 | I97: =H97 -> 5 | J97: =IF(_xlfn.MINIFS(Auswertung!$F$3:$F$17,Auswertung!$J$3:$J$17, $E97,Auswertung!$S$3:$S$17, ">="&J31)=0,"-",_xlfn.MINIFS(Auswertung!$F$3:$F$17,Auswertung!$J$3:$J$17, $E97,Auswertung!$S$3:$S$17, ">="&J31)) -> 5 | K97: =J97 -> 5 | L97: =IF(_xlfn.MINIFS(Auswertung!$F$3:$F$17,Auswertung!$J$3:$J$17, $E97,Auswertung!$S$3:$S$17, ">="&L31)=0,"-",_xlfn.MINIFS(Auswertung!$F$3:$F$17,Auswertung!$J$3:$J$17, $E97,Auswertung!$S$3:$S$17, ">="&L31)) -> 5 | M97: =L97 -> 5 | N97: =IF(_xlfn.MINIFS(Auswertung!$F$3:$F$17,Auswertung!$J$3:$J$17, $E97,Auswertung!$S$3:$S$17, ">="&N31)=0,"-",_xlfn.MINIFS(Auswertung!$F$3:$F$17,Auswertung!$J$3:$J$17, $E97,Auswertung!$S$3:$S$17, ">="&N31)) -> 5 | O97: =N97 -> 5 | P97: =IF(_xlfn.MINIFS(Auswertung!$F$3:$F$17,Auswertung!$J$3:$J$17, $E97,Auswertung!$S$3:$S$17, ">="&P31)=0,"-",_xlfn.MINIFS(Auswertung!$F$3:$F$17,Auswertung!$J$3:$J$17, $E97,Auswertung!$S$3:$S$17, ">="&P31)) -> 5 | Q97: =P97 -> 5 | R97: =IF(_xlfn.MINIFS(Auswertung!$F$3:$F$17,Auswertung!$J$3:$J$17, $E97,Auswertung!$S$3:$S$17, ">="&R31)=0,"-",_xlfn.MINIFS(Auswertung!$F$3:$F$17,Auswertung!$J$3:$J$17, $E97,Auswertung!$S$3:$S$17, ">="&R31)) -> 5 | S97: =R97 -> 5 | T97: =IF(_xlfn.MINIFS(Auswertung!$F$3:$F$17,Auswertung!$J$3:$J$17, $E97,Auswertung!$S$3:$S$17, ">="&T31)=0,"-",_xlfn.MINIFS(Auswertung!$F$3:$F$17,Auswertung!$J$3:$J$17, $E97,Auswertung!$S$3:$S$17, ">="&T31)) -> 5 | U97: =T97 -> 5 | V97: =IF(_xlfn.MINIFS(Auswertung!$F$3:$F$17,Auswertung!$J$3:$J$17, $E97,Auswertung!$S$3:$S$17, ">="&V31)=0,"-",_xlfn.MINIFS(Auswertung!$F$3:$F$17,Auswertung!$J$3:$J$17, $E97,Auswertung!$S$3:$S$17, ">="&V31)) -> 5 | W97: =V97 -> 5 | X97: =IF(_xlfn.MINIFS(Auswertung!$F$3:$F$17,Auswertung!$J$3:$J$17, $E97,Auswertung!$S$3:$S$17, ">="&X31)=0,"-",_xlfn.MINIFS(Auswertung!$F$3:$F$17,Auswertung!$J$3:$J$17, $E97,Auswertung!$S$3:$S$17, ">="&X31)) -> 6 | Y97: =X97 -> 6 | Z97: =IF(_xlfn.MINIFS(Auswertung!$F$3:$F$17,Auswertung!$J$3:$J$17, $E97,Auswertung!$S$3:$S$17, ">="&Z31)=0,"-",_xlfn.MINIFS(Auswertung!$F$3:$F$17,Auswertung!$J$3:$J$17, $E97,Auswertung!$S$3:$S$17, ">="&Z31)) -> 5 | AA97: =Z97 -> 5 | AB97: =IF(_xlfn.MINIFS(Auswertung!$F$3:$F$17,Auswertung!$J$3:$J$17, $E97,Auswertung!$S$3:$S$17, ">="&AB31)=0,"-",_xlfn.MINIFS(Auswertung!$F$3:$F$17,Auswertung!$J$3:$J$17, $E97,Auswertung!$S$3:$S$17, ">="&AB31)) -> 5 | AC97: =AB97 -> 5 | AD97: =IF(_xlfn.MINIFS(Auswertung!$F$3:$F$17,Auswertung!$J$3:$J$17, $E97,Auswertung!$S$3:$S$17, ">="&AD31)=0,"-",_xlfn.MINIFS(Auswertung!$F$3:$F$17,Auswertung!$J$3:$J$17, $E97,Auswertung!$S$3:$S$17, ">="&AD31)) -> 5 | AE97: =AD97 -> 5 | AF97: =IF(_xlfn.MINIFS(Auswertung!$F$3:$F$17,Auswertung!$J$3:$J$17, $E97,Auswertung!$S$3:$S$17, ">="&AF31)=0,"-",_xlfn.MINIFS(Auswertung!$F$3:$F$17,Auswertung!$J$3:$J$17, $E97,Auswertung!$S$3:$S$17, ">="&AF31)) -> 6 | AG97: =AF97 -> 6 | AH97: =IF(_xlfn.MINIFS(Auswertung!$F$3:$F$17,Auswertung!$J$3:$J$17, $E97,Auswertung!$S$3:$S$17, ">="&AH31)=0,"-",_xlfn.MINIFS(Auswertung!$F$3:$F$17,Auswertung!$J$3:$J$17, $E97,Auswertung!$S$3:$S$17, ">="&AH31)) -> 6 | AI97: 6 | AN97: 2000 | AO97: - | AP97: 2500 | AQ97: 595 | AR97: 565 | AS97: 595 | AT97: 565 | AU97: 595 | AV97: 565 | AW97: 595 | AX97: 565 | AY97: 595 | AZ97: 565 | BA97: 595 | BB97: 565 | BC97: 595 | BD97: 565 | BE97: 595 | BF97: 565 | BG97: 595 | BH97: 565 | BI97: 476 | BJ97: 452 | BK97: 595 | BL97: 565 | BM97: 595 | BN97: 565 | BO97: 595 | BP97: 565 | BQ97: 476 | BR97: 452 | BS97: 476 | BT97: 452
C98: 2500 | D98: - | E98: 3050 | F98: =IF(_xlfn.MINIFS(Auswertung!$F$3:$F$17,Auswertung!$J$3:$J$17, $E98,Auswertung!$S$3:$S$17, ">="&F32)=0,"-",_xlfn.MINIFS(Auswertung!$F$3:$F$17,Auswertung!$J$3:$J$17, $E98,Auswertung!$S$3:$S$17, ">="&F32)) -> 5 | G98: 5 | H98: =IF(_xlfn.MINIFS(Auswertung!$F$3:$F$17,Auswertung!$J$3:$J$17, $E98,Auswertung!$S$3:$S$17, ">="&H32)=0,"-",_xlfn.MINIFS(Auswertung!$F$3:$F$17,Auswertung!$J$3:$J$17, $E98,Auswertung!$S$3:$S$17, ">="&H32)) -> 5 | I98: =H98 -> 5 | J98: =IF(_xlfn.MINIFS(Auswertung!$F$3:$F$17,Auswertung!$J$3:$J$17, $E98,Auswertung!$S$3:$S$17, ">="&J32)=0,"-",_xlfn.MINIFS(Auswertung!$F$3:$F$17,Auswertung!$J$3:$J$17, $E98,Auswertung!$S$3:$S$17, ">="&J32)) -> 5 | K98: =J98 -> 5 | L98: =IF(_xlfn.MINIFS(Auswertung!$F$3:$F$17,Auswertung!$J$3:$J$17, $E98,Auswertung!$S$3:$S$17, ">="&L32)=0,"-",_xlfn.MINIFS(Auswertung!$F$3:$F$17,Auswertung!$J$3:$J$17, $E98,Auswertung!$S$3:$S$17, ">="&L32)) -> 6 | M98: =L98 -> 6 | N98: =IF(_xlfn.MINIFS(Auswertung!$F$3:$F$17,Auswertung!$J$3:$J$17, $E98,Auswertung!$S$3:$S$17, ">="&N32)=0,"-",_xlfn.MINIFS(Auswertung!$F$3:$F$17,Auswertung!$J$3:$J$17, $E98,Auswertung!$S$3:$S$17, ">="&N32)) -> 6 | O98: =N98 -> 6 | P98: =IF(_xlfn.MINIFS(Auswertung!$F$3:$F$17,Auswertung!$J$3:$J$17, $E98,Auswertung!$S$3:$S$17, ">="&P32)=0,"-",_xlfn.MINIFS(Auswertung!$F$3:$F$17,Auswertung!$J$3:$J$17, $E98,Auswertung!$S$3:$S$17, ">="&P32)) -> 5 | Q98: =P98 -> 5 | R98: =IF(_xlfn.MINIFS(Auswertung!$F$3:$F$17,Auswertung!$J$3:$J$17, $E98,Auswertung!$S$3:$S$17, ">="&R32)=0,"-",_xlfn.MINIFS(Auswertung!$F$3:$F$17,Auswertung!$J$3:$J$17, $E98,Auswertung!$S$3:$S$17, ">="&R32)) -> 6 | S98: =R98 -> 6 | T98: =IF(_xlfn.MINIFS(Auswertung!$F$3:$F$17,Auswertung!$J$3:$J$17, $E98,Auswertung!$S$3:$S$17, ">="&T32)=0,"-",_xlfn.MINIFS(Auswertung!$F$3:$F$17,Auswertung!$J$3:$J$17, $E98,Auswertung!$S$3:$S$17, ">="&T32)) -> 6 | U98: =T98 -> 6 | V98: =IF(_xlfn.MINIFS(Auswertung!$F$3:$F$17,Auswertung!$J$3:$J$17, $E98,Auswertung!$S$3:$S$17, ">="&V32)=0,"-",_xlfn.MINIFS(Auswertung!$F$3:$F$17,Auswertung!$J$3:$J$17, $E98,Auswertung!$S$3:$S$17, ">="&V32)) -> 6 | W98: =V98 -> 6 | X98: =IF(_xlfn.MINIFS(Auswertung!$F$3:$F$17,Auswertung!$J$3:$J$17, $E98,Auswertung!$S$3:$S$17, ">="&X32)=0,"-",_xlfn.MINIFS(Auswertung!$F$3:$F$17,Auswertung!$J$3:$J$17, $E98,Auswertung!$S$3:$S$17, ">="&X32)) -> 7 | Y98: =X98 -> 7 | Z98: =IF(_xlfn.MINIFS(Auswertung!$F$3:$F$17,Auswertung!$J$3:$J$17, $E98,Auswertung!$S$3:$S$17, ">="&Z32)=0,"-",_xlfn.MINIFS(Auswertung!$F$3:$F$17,Auswertung!$J$3:$J$17, $E98,Auswertung!$S$3:$S$17, ">="&Z32)) -> 6 | AA98: =Z98 -> 6 | AB98: =IF(_xlfn.MINIFS(Auswertung!$F$3:$F$17,Auswertung!$J$3:$J$17, $E98,Auswertung!$S$3:$S$17, ">="&AB32)=0,"-",_xlfn.MINIFS(Auswertung!$F$3:$F$17,Auswertung!$J$3:$J$17, $E98,Auswertung!$S$3:$S$17, ">="&AB32)) -> 6 | AC98: =AB98 -> 6 | AD98: =IF(_xlfn.MINIFS(Auswertung!$F$3:$F$17,Auswertung!$J$3:$J$17, $E98,Auswertung!$S$3:$S$17, ">="&AD32)=0,"-",_xlfn.MINIFS(Auswertung!$F$3:$F$17,Auswertung!$J$3:$J$17, $E98,Auswertung!$S$3:$S$17, ">="&AD32)) -> 6 | AE98: =AD98 -> 6 | AF98: =IF(_xlfn.MINIFS(Auswertung!$F$3:$F$17,Auswertung!$J$3:$J$17, $E98,Auswertung!$S$3:$S$17, ">="&AF32)=0,"-",_xlfn.MINIFS(Auswertung!$F$3:$F$17,Auswertung!$J$3:$J$17, $E98,Auswertung!$S$3:$S$17, ">="&AF32)) -> 7 | AG98: =AF98 -> 7 | AH98: =IF(_xlfn.MINIFS(Auswertung!$F$3:$F$17,Auswertung!$J$3:$J$17, $E98,Auswertung!$S$3:$S$17, ">="&AH32)=0,"-",_xlfn.MINIFS(Auswertung!$F$3:$F$17,Auswertung!$J$3:$J$17, $E98,Auswertung!$S$3:$S$17, ">="&AH32)) -> 7 | AI98: 7 | AN98: 2500 | AO98: - | AP98: 3050 | AQ98: 733 | AR98: 703 | AS98: 733 | AT98: 703 | AU98: 733 | AV98: 703 | AW98: 586 | AX98: 562 | AY98: 586 | AZ98: 562 | BA98: 733 | BB98: 703 | BC98: 586 | BD98: 562 | BE98: 586 | BF98: 562 | BG98: 586 | BH98: 562 | BI98: 488 | BJ98: 468 | BK98: 586 | BL98: 562 | BM98: 586 | BN98: 562 | BO98: 586 | BP98: 562 | BQ98: 488 | BR98: 468 | BS98: 488 | BT98: 468
B100: Tabelle 3 | C100: 8mm Largo EF-x-40-x-Sigma 8 Pro | AM100: =B100&".1" -> Tabelle 3.1 | AO100: =C100 -> 8mm Largo EF-x-40-x-Sigma 8 Pro
B101: Anzahl Verbindungsmittel | AM101: Maximale Verbindungsmittelabstände
B104: Staudruck [kN/m2] | F104: =F71 -> 0.9 | P104: =P71 -> 1.1 | Z104: =Z71 -> 1.3 | AM104: Staudruck [kN/m2] | AQ104: =F104 -> 0.9 | BA104: =P104 -> 1.1 | BK104: =Z104 -> 1.3
B105: Gebäudehöhe bis [m] | F105: < | G105: =G72 -> 11 | H105: < | I105: =I72 -> 15 | J105: < | K105: =K72 -> 25 | L105: < | M105: =M72 -> 30 | N105: < | O105: =O72 -> 50 | P105: < | Q105: =Q72 -> 11 | R105: < | S105: =S72 -> 15 | T105: < | U105: =U72 -> 25 | V105: < | W105: =W72 -> 30 | X105: < | Y105: =Y72 -> 50 | Z105: < | AA105: =AA72 -> 11 | AB105: < | AC105: =AC72 -> 15 | AD105: < | AE105: =AE72 -> 25 | AF105: < | AG105: =AG72 -> 30 | AH105: < | AI105: =AI72 -> 50 | AM105: Gebäudehöhe bis [m] | AQ105: < | AR105: =G105 -> 11 | AS105: < | AT105: =I105 -> 15 | AU105: < | AV105: =K105 -> 25 | AW105: < | AX105: =M105 -> 30 | AY105: < | AZ105: =O105 -> 50 | BA105: < | BB105: =Q105 -> 11 | BC105: < | BD105: =S105 -> 15 | BE105: < | BF105: =U105 -> 25 | BG105: < | BH105: =W105 -> 30 | BI105: < | BJ105: =Y105 -> 50 | BK105: < | BL105: =AA105 -> 11 | BM105: < | BN105: =AC105 -> 15 | BO105: < | BP105: =AE105 -> 25 | BQ105: < | BR105: =AG105 -> 30 | BS105: < | BT105: =AI105 -> 50
B106: Gelände-kategorie | C106: Plattenhöhe [mm] | F106: Anzahl Befestigungspunkte/ Anzahl Eckverbinder | Z106: Mit cpe,Rand = | AD106: =AD73 -> 0.8/-1.3 | AM106: Gelände-kategorie | AN106: Plattenhöhe [mm] | AQ106: Maximale Befestigungsmittelabstände d2/d3 [mm] | BK106: Mit cpe,Rand = | BO106: =AD106 -> 0.8/-1.3
B108: II: Seeufer | C108: 340 | D108: - | E108: 500 | F108: =IF(_xlfn.MINIFS(Auswertung!$F$3:$F$17,Auswertung!$J$3:$J$17, $E108,Auswertung!$T$3:$T$17, ">="&F9)=0,"-",_xlfn.MINIFS(Auswertung!$F$3:$F$17,Auswertung!$J$3:$J$17, $E108,Auswertung!$T$3:$T$17, ">="&F9)) -> 2 | G108: =F108 -> 2 | H108: =IF(_xlfn.MINIFS(Auswertung!$F$3:$F$17,Auswertung!$J$3:$J$17, $E108,Auswertung!$T$3:$T$17, ">="&H9)=0,"-",_xlfn.MINIFS(Auswertung!$F$3:$F$17,Auswertung!$J$3:$J$17, $E108,Auswertung!$T$3:$T$17, ">="&H9)) -> 2 | I108: =H108 -> 2 | J108: =IF(_xlfn.MINIFS(Auswertung!$F$3:$F$17,Auswertung!$J$3:$J$17, $E108,Auswertung!$T$3:$T$17, ">="&J9)=0,"-",_xlfn.MINIFS(Auswertung!$F$3:$F$17,Auswertung!$J$3:$J$17, $E108,Auswertung!$T$3:$T$17, ">="&J9)) -> 2 | K108: =J108 -> 2 | L108: =IF(_xlfn.MINIFS(Auswertung!$F$3:$F$17,Auswertung!$J$3:$J$17, $E108,Auswertung!$T$3:$T$17, ">="&L9)=0,"-",_xlfn.MINIFS(Auswertung!$F$3:$F$17,Auswertung!$J$3:$J$17, $E108,Auswertung!$T$3:$T$17, ">="&L9)) -> 2 | M108: =L108 -> 2 | N108: =IF(_xlfn.MINIFS(Auswertung!$F$3:$F$17,Auswertung!$J$3:$J$17, $E108,Auswertung!$T$3:$T$17, ">="&N9)=0,"-",_xlfn.MINIFS(Auswertung!$F$3:$F$17,Auswertung!$J$3:$J$17, $E108,Auswertung!$T$3:$T$17, ">="&N9)) -> 2 | O108: =N108 -> 2 | P108: =IF(_xlfn.MINIFS(Auswertung!$F$3:$F$17,Auswertung!$J$3:$J$17, $E108,Auswertung!$T$3:$T$17, ">="&P9)=0,"-",_xlfn.MINIFS(Auswertung!$F$3:$F$17,Auswertung!$J$3:$J$17, $E108,Auswertung!$T$3:$T$17, ">="&P9)) -> 2 | Q108: =P108 -> 2 | R108: =IF(_xlfn.MINIFS(Auswertung!$F$3:$F$17,Auswertung!$J$3:$J$17, $E108,Auswertung!$T$3:$T$17, ">="&R9)=0,"-",_xlfn.MINIFS(Auswertung!$F$3:$F$17,Auswertung!$J$3:$J$17, $E108,Auswertung!$T$3:$T$17, ">="&R9)) -> 2 | S108: =R108 -> 2 | T108: =IF(_xlfn.MINIFS(Auswertung!$F$3:$F$17,Auswertung!$J$3:$J$17, $E108,Auswertung!$T$3:$T$17, ">="&T9)=0,"-",_xlfn.MINIFS(Auswertung!$F$3:$F$17,Auswertung!$J$3:$J$17, $E108,Auswertung!$T$3:$T$17, ">="&T9)) -> 2 | U108: =T108 -> 2 | V108: =IF(_xlfn.MINIFS(Auswertung!$F$3:$F$17,Auswertung!$J$3:$J$17, $E108,Auswertung!$T$3:$T$17, ">="&V9)=0,"-",_xlfn.MINIFS(Auswertung!$F$3:$F$17,Auswertung!$J$3:$J$17, $E108,Auswertung!$T$3:$T$17, ">="&V9)) -> - | W108: =V108 -> - | X108: =IF(_xlfn.MINIFS(Auswertung!$F$3:$F$17,Auswertung!$J$3:$J$17, $E108,Auswertung!$T$3:$T$17, ">="&X9)=0,"-",_xlfn.MINIFS(Auswertung!$F$3:$F$17,Auswertung!$J$3:$J$17, $E108,Auswertung!$T$3:$T$17, ">="&X9)) -> - | Y108: =X108 -> - | Z108: =IF(_xlfn.MINIFS(Auswertung!$F$3:$F$17,Auswertung!$J$3:$J$17, $E108,Auswertung!$T$3:$T$17, ">="&Z9)=0,"-",_xlfn.MINIFS(Auswertung!$F$3:$F$17,Auswertung!$J$3:$J$17, $E108,Auswertung!$T$3:$T$17, ">="&Z9)) -> 2 | AA108: =Z108 -> 2 | AB108: =IF(_xlfn.MINIFS(Auswertung!$F$3:$F$17,Auswertung!$J$3:$J$17, $E108,Auswertung!$T$3:$T$17, ">="&AB9)=0,"-",_xlfn.MINIFS(Auswertung!$F$3:$F$17,Auswertung!$J$3:$J$17, $E108,Auswertung!$T$3:$T$17, ">="&AB9)) -> - | AC108: =AB108 -> - | AD108: =IF(_xlfn.MINIFS(Auswertung!$F$3:$F$17,Auswertung!$J$3:$J$17, $E108,Auswertung!$T$3:$T$17, ">="&AD9)=0,"-",_xlfn.MINIFS(Auswertung!$F$3:$F$17,Auswertung!$J$3:$J$17, $E108,Auswertung!$T$3:$T$17, ">="&AD9)) -> - | AE108: =AD108 -> - | AF108: =IF(_xlfn.MINIFS(Auswertung!$F$3:$F$17,Auswertung!$J$3:$J$17, $E108,Auswertung!$T$3:$T$17, ">="&AF9)=0,"-",_xlfn.MINIFS(Auswertung!$F$3:$F$17,Auswertung!$J$3:$J$17, $E108,Auswertung!$T$3:$T$17, ">="&AF9)) -> - | AG108: =AF108 -> - | AH108: =IF(_xlfn.MINIFS(Auswertung!$F$3:$F$17,Auswertung!$J$3:$J$17, $E108,Auswertung!$T$3:$T$17, ">="&AH9)=0,"-",_xlfn.MINIFS(Auswertung!$F$3:$F$17,Auswertung!$J$3:$J$17, $E108,Auswertung!$T$3:$T$17, ">="&AH9)) -> - | AI108: =AH108 -> - | AM108: II: Seeufer | AN108: 340 | AO108: - | AP108: 500 | AQ108: =IFERROR(($AP108-2*60)/(F108-1),"-") -> 380 | AR108: =IFERROR(($AP108-2*120)/(F108-1),"-") -> 260 | AS108: =IFERROR(($AP108-2*60)/(H108-1),"-") -> 380 | AT108: =IFERROR(($AP108-2*120)/(H108-1),"-") -> 260 | AU108: =IFERROR(($AP108-2*60)/(J108-1),"-") -> 380 | AV108: =IFERROR(($AP108-2*120)/(J108-1),"-") -> 260 | AW108: =IFERROR(($AP108-2*60)/(L108-1),"-") -> 380 | AX108: =IFERROR(($AP108-2*120)/(L108-1),"-") -> 260 | AY108: =IFERROR(($AP108-2*60)/(N108-1),"-") -> 380 | AZ108: =IFERROR(($AP108-2*120)/(N108-1),"-") -> 260 | BA108: =IFERROR(($AP108-2*60)/(P108-1),"-") -> 380 | BB108: =IFERROR(($AP108-2*120)/(P108-1),"-") -> 260 | BC108: =IFERROR(($AP108-2*60)/(R108-1),"-") -> 380 | BD108: =IFERROR(($AP108-2*120)/(R108-1),"-") -> 260 | BE108: =IFERROR(($AP108-2*60)/(T108-1),"-") -> 380 | BF108: =IFERROR(($AP108-2*120)/(T108-1),"-") -> 260 | BG108: =IFERROR(($AP108-2*60)/(V108-1),"-") -> - | BH108: =IFERROR(($AP108-2*120)/(V108-1),"-") -> - | BI108: =IFERROR(($AP108-2*60)/(X108-1),"-") -> - | BJ108: =IFERROR(($AP108-2*120)/(X108-1),"-") -> - | BK108: =IFERROR(($AP108-2*60)/(Z108-1),"-") -> 380 | BL108: =IFERROR(($AP108-2*120)/(Z108-1),"-") -> 260 | BM108: =IFERROR(($AP108-2*60)/(AB108-1),"-") -> - | BN108: =IFERROR(($AP108-2*120)/(AB108-1),"-") -> - | BO108: =IFERROR(($AP108-2*60)/(AD108-1),"-") -> - | BP108: =IFERROR(($AP108-2*120)/(AD108-1),"-") -> - | BQ108: =IFERROR(($AP108-2*60)/(AF108-1),"-") -> - | BR108: =IFERROR(($AP108-2*120)/(AF108-1),"-") -> - | BS108: =IFERROR(($AP108-2*60)/(AH108-1),"-") -> - | BT108: =IFERROR(($AP108-2*120)/(AH108-1),"-") -> -
C109: 500 | D109: - | E109: 1000 | F109: =IF(_xlfn.MINIFS(Auswertung!$F$3:$F$17,Auswertung!$J$3:$J$17, $E109,Auswertung!$T$3:$T$17, ">="&F10)=0,"-",_xlfn.MINIFS(Auswertung!$F$3:$F$17,Auswertung!$J$3:$J$17, $E109,Auswertung!$T$3:$T$17, ">="&F10)) -> 3 | G109: =F109 -> 3 | H109: =IF(_xlfn.MINIFS(Auswertung!$F$3:$F$17,Auswertung!$J$3:$J$17, $E109,Auswertung!$T$3:$T$17, ">="&H10)=0,"-",_xlfn.MINIFS(Auswertung!$F$3:$F$17,Auswertung!$J$3:$J$17, $E109,Auswertung!$T$3:$T$17, ">="&H10)) -> 3 | I109: =H109 -> 3 | J109: =IF(_xlfn.MINIFS(Auswertung!$F$3:$F$17,Auswertung!$J$3:$J$17, $E109,Auswertung!$T$3:$T$17, ">="&J10)=0,"-",_xlfn.MINIFS(Auswertung!$F$3:$F$17,Auswertung!$J$3:$J$17, $E109,Auswertung!$T$3:$T$17, ">="&J10)) -> 3 | K109: =J109 -> 3 | L109: =IF(_xlfn.MINIFS(Auswertung!$F$3:$F$17,Auswertung!$J$3:$J$17, $E109,Auswertung!$T$3:$T$17, ">="&L10)=0,"-",_xlfn.MINIFS(Auswertung!$F$3:$F$17,Auswertung!$J$3:$J$17, $E109,Auswertung!$T$3:$T$17, ">="&L10)) -> 3 | M109: =L109 -> 3 | N109: =IF(_xlfn.MINIFS(Auswertung!$F$3:$F$17,Auswertung!$J$3:$J$17, $E109,Auswertung!$T$3:$T$17, ">="&N10)=0,"-",_xlfn.MINIFS(Auswertung!$F$3:$F$17,Auswertung!$J$3:$J$17, $E109,Auswertung!$T$3:$T$17, ">="&N10)) -> 3 | O109: =N109 -> 3 | P109: =IF(_xlfn.MINIFS(Auswertung!$F$3:$F$17,Auswertung!$J$3:$J$17, $E109,Auswertung!$T$3:$T$17, ">="&P10)=0,"-",_xlfn.MINIFS(Auswertung!$F$3:$F$17,Auswertung!$J$3:$J$17, $E109,Auswertung!$T$3:$T$17, ">="&P10)) -> 3 | Q109: =P109 -> 3 | R109: =IF(_xlfn.MINIFS(Auswertung!$F$3:$F$17,Auswertung!$J$3:$J$17, $E109,Auswertung!$T$3:$T$17, ">="&R10)=0,"-",_xlfn.MINIFS(Auswertung!$F$3:$F$17,Auswertung!$J$3:$J$17, $E109,Auswertung!$T$3:$T$17, ">="&R10)) -> 3 | S109: =R109 -> 3 | T109: =IF(_xlfn.MINIFS(Auswertung!$F$3:$F$17,Auswertung!$J$3:$J$17, $E109,Auswertung!$T$3:$T$17, ">="&T10)=0,"-",_xlfn.MINIFS(Auswertung!$F$3:$F$17,Auswertung!$J$3:$J$17, $E109,Auswertung!$T$3:$T$17, ">="&T10)) -> - | U109: =T109 -> - | V109: =IF(_xlfn.MINIFS(Auswertung!$F$3:$F$17,Auswertung!$J$3:$J$17, $E109,Auswertung!$T$3:$T$17, ">="&V10)=0,"-",_xlfn.MINIFS(Auswertung!$F$3:$F$17,Auswertung!$J$3:$J$17, $E109,Auswertung!$T$3:$T$17, ">="&V10)) -> - | W109: =V109 -> - | X109: =IF(_xlfn.MINIFS(Auswertung!$F$3:$F$17,Auswertung!$J$3:$J$17, $E109,Auswertung!$T$3:$T$17, ">="&X10)=0,"-",_xlfn.MINIFS(Auswertung!$F$3:$F$17,Auswertung!$J$3:$J$17, $E109,Auswertung!$T$3:$T$17, ">="&X10)) -> - | Y109: =X109 -> - | Z109: =IF(_xlfn.MINIFS(Auswertung!$F$3:$F$17,Auswertung!$J$3:$J$17, $E109,Auswertung!$T$3:$T$17, ">="&Z10)=0,"-",_xlfn.MINIFS(Auswertung!$F$3:$F$17,Auswertung!$J$3:$J$17, $E109,Auswertung!$T$3:$T$17, ">="&Z10)) -> - | AA109: =Z109 -> - | AB109: =IF(_xlfn.MINIFS(Auswertung!$F$3:$F$17,Auswertung!$J$3:$J$17, $E109,Auswertung!$T$3:$T$17, ">="&AB10)=0,"-",_xlfn.MINIFS(Auswertung!$F$3:$F$17,Auswertung!$J$3:$J$17, $E109,Auswertung!$T$3:$T$17, ">="&AB10)) -> - | AC109: =AB109 -> - | AD109: =IF(_xlfn.MINIFS(Auswertung!$F$3:$F$17,Auswertung!$J$3:$J$17, $E109,Auswertung!$T$3:$T$17, ">="&AD10)=0,"-",_xlfn.MINIFS(Auswertung!$F$3:$F$17,Auswertung!$J$3:$J$17, $E109,Auswertung!$T$3:$T$17, ">="&AD10)) -> - | AE109: =AD109 -> - | AF109: =IF(_xlfn.MINIFS(Auswertung!$F$3:$F$17,Auswertung!$J$3:$J$17, $E109,Auswertung!$T$3:$T$17, ">="&AF10)=0,"-",_xlfn.MINIFS(Auswertung!$F$3:$F$17,Auswertung!$J$3:$J$17, $E109,Auswertung!$T$3:$T$17, ">="&AF10)) -> - | AG109: =AF109 -> - | AH109: =IF(_xlfn.MINIFS(Auswertung!$F$3:$F$17,Auswertung!$J$3:$J$17, $E109,Auswertung!$T$3:$T$17, ">="&AH10)=0,"-",_xlfn.MINIFS(Auswertung!$F$3:$F$17,Auswertung!$J$3:$J$17, $E109,Auswertung!$T$3:$T$17, ">="&AH10)) -> - | AI109: - | AN109: 500 | AO109: - | AP109: 1000 | AQ109: =IFERROR(($AP109-2*60)/(F109-1),"-") -> 440 | AR109: =IFERROR(($AP109-2*120)/(F109-1),"-") -> 380 | AS109: 440 | AT109: 380 | AU109: 440 | AV109: 380 | AW109: 440 | AX109: 380 | AY109: 440 | AZ109: 380 | BA109: 440 | BB109: 380 | BC109: 440 | BD109: 380 | BE109: - | BF109: - | BG109: - | BH109: - | BI109: - | BJ109: - | BK109: - | BL109: - | BM109: - | BN109: - | BO109: - | BP109: - | BQ109: - | BR109: - | BS109: - | BT109: -
C110: 1000 | D110: - | E110: 1500 | F110: =IF(_xlfn.MINIFS(Auswertung!$F$3:$F$17,Auswertung!$J$3:$J$17, $E110,Auswertung!$T$3:$T$17, ">="&F11)=0,"-",_xlfn.MINIFS(Auswertung!$F$3:$F$17,Auswertung!$J$3:$J$17, $E110,Auswertung!$T$3:$T$17, ">="&F11)) -> 4 | G110: 4 | H110: =IF(_xlfn.MINIFS(Auswertung!$F$3:$F$17,Auswertung!$J$3:$J$17, $E110,Auswertung!$T$3:$T$17, ">="&H11)=0,"-",_xlfn.MINIFS(Auswertung!$F$3:$F$17,Auswertung!$J$3:$J$17, $E110,Auswertung!$T$3:$T$17, ">="&H11)) -> 4 | I110: =H110 -> 4 | J110: =IF(_xlfn.MINIFS(Auswertung!$F$3:$F$17,Auswertung!$J$3:$J$17, $E110,Auswertung!$T$3:$T$17, ">="&J11)=0,"-",_xlfn.MINIFS(Auswertung!$F$3:$F$17,Auswertung!$J$3:$J$17, $E110,Auswertung!$T$3:$T$17, ">="&J11)) -> 4 | K110: =J110 -> 4 | L110: =IF(_xlfn.MINIFS(Auswertung!$F$3:$F$17,Auswertung!$J$3:$J$17, $E110,Auswertung!$T$3:$T$17, ">="&L11)=0,"-",_xlfn.MINIFS(Auswertung!$F$3:$F$17,Auswertung!$J$3:$J$17, $E110,Auswertung!$T$3:$T$17, ">="&L11)) -> 4 | M110: =L110 -> 4 | N110: =IF(_xlfn.MINIFS(Auswertung!$F$3:$F$17,Auswertung!$J$3:$J$17, $E110,Auswertung!$T$3:$T$17, ">="&N11)=0,"-",_xlfn.MINIFS(Auswertung!$F$3:$F$17,Auswertung!$J$3:$J$17, $E110,Auswertung!$T$3:$T$17, ">="&N11)) -> 4 | O110: =N110 -> 4 | P110: =IF(_xlfn.MINIFS(Auswertung!$F$3:$F$17,Auswertung!$J$3:$J$17, $E110,Auswertung!$T$3:$T$17, ">="&P11)=0,"-",_xlfn.MINIFS(Auswertung!$F$3:$F$17,Auswertung!$J$3:$J$17, $E110,Auswertung!$T$3:$T$17, ">="&P11)) -> 4 | Q110: =P110 -> 4 | R110: =IF(_xlfn.MINIFS(Auswertung!$F$3:$F$17,Auswertung!$J$3:$J$17, $E110,Auswertung!$T$3:$T$17, ">="&R11)=0,"-",_xlfn.MINIFS(Auswertung!$F$3:$F$17,Auswertung!$J$3:$J$17, $E110,Auswertung!$T$3:$T$17, ">="&R11)) -> 4 | S110: =R110 -> 4 | T110: =IF(_xlfn.MINIFS(Auswertung!$F$3:$F$17,Auswertung!$J$3:$J$17, $E110,Auswertung!$T$3:$T$17, ">="&T11)=0,"-",_xlfn.MINIFS(Auswertung!$F$3:$F$17,Auswertung!$J$3:$J$17, $E110,Auswertung!$T$3:$T$17, ">="&T11)) -> - | U110: =T110 -> - | V110: =IF(_xlfn.MINIFS(Auswertung!$F$3:$F$17,Auswertung!$J$3:$J$17, $E110,Auswertung!$T$3:$T$17, ">="&V11)=0,"-",_xlfn.MINIFS(Auswertung!$F$3:$F$17,Auswertung!$J$3:$J$17, $E110,Auswertung!$T$3:$T$17, ">="&V11)) -> - | W110: =V110 -> - | X110: =IF(_xlfn.MINIFS(Auswertung!$F$3:$F$17,Auswertung!$J$3:$J$17, $E110,Auswertung!$T$3:$T$17, ">="&X11)=0,"-",_xlfn.MINIFS(Auswertung!$F$3:$F$17,Auswertung!$J$3:$J$17, $E110,Auswertung!$T$3:$T$17, ">="&X11)) -> - | Y110: =X110 -> - | Z110: =IF(_xlfn.MINIFS(Auswertung!$F$3:$F$17,Auswertung!$J$3:$J$17, $E110,Auswertung!$T$3:$T$17, ">="&Z11)=0,"-",_xlfn.MINIFS(Auswertung!$F$3:$F$17,Auswertung!$J$3:$J$17, $E110,Auswertung!$T$3:$T$17, ">="&Z11)) -> - | AA110: =Z110 -> - | AB110: =IF(_xlfn.MINIFS(Auswertung!$F$3:$F$17,Auswertung!$J$3:$J$17, $E110,Auswertung!$T$3:$T$17, ">="&AB11)=0,"-",_xlfn.MINIFS(Auswertung!$F$3:$F$17,Auswertung!$J$3:$J$17, $E110,Auswertung!$T$3:$T$17, ">="&AB11)) -> - | AC110: =AB110 -> - | AD110: =IF(_xlfn.MINIFS(Auswertung!$F$3:$F$17,Auswertung!$J$3:$J$17, $E110,Auswertung!$T$3:$T$17, ">="&AD11)=0,"-",_xlfn.MINIFS(Auswertung!$F$3:$F$17,Auswertung!$J$3:$J$17, $E110,Auswertung!$T$3:$T$17, ">="&AD11)) -> - | AE110: =AD110 -> - | AF110: =IF(_xlfn.MINIFS(Auswertung!$F$3:$F$17,Auswertung!$J$3:$J$17, $E110,Auswertung!$T$3:$T$17, ">="&AF11)=0,"-",_xlfn.MINIFS(Auswertung!$F$3:$F$17,Auswertung!$J$3:$J$17, $E110,Auswertung!$T$3:$T$17, ">="&AF11)) -> - | AG110: =AF110 -> - | AH110: =IF(_xlfn.MINIFS(Auswertung!$F$3:$F$17,Auswertung!$J$3:$J$17, $E110,Auswertung!$T$3:$T$17, ">="&AH11)=0,"-",_xlfn.MINIFS(Auswertung!$F$3:$F$17,Auswertung!$J$3:$J$17, $E110,Auswertung!$T$3:$T$17, ">="&AH11)) -> - | AI110: - | AN110: 1000 | AO110: - | AP110: 1500 | AQ110: 460 | AR110: 420 | AS110: 460 | AT110: 420 | AU110: 460 | AV110: 420 | AW110: 460 | AX110: 420 | AY110: 460 | AZ110: 420 | BA110: 460 | BB110: 420 | BC110: 460 | BD110: 420 | BE110: - | BF110: - | BG110: - | BH110: - | BI110: - | BJ110: - | BK110: - | BL110: - | BM110: - | BN110: - | BO110: - | BP110: - | BQ110: - | BR110: - | BS110: - | BT110: -
